Workbook

Sheet Firing Range (hidden)
A1: DFE | B1: School Name | C1: Notional SEN | D1: Data Calc | E1: Check
A2: 1001 | B2: Northfleet Nursery | C2: 0 | D2: 0 | E2: =ROUND(D2-C2,0) -> 0
A3: 2000 | B3: St Johns C of E Primary School | C3: 322352.49 | D3: 322352.4928 | E3: =ROUND(D3-C3,0) -> 0
A4: 2002 | B4: Repton Manor Primary School | C4: 179442.2 | D4: 179442.2009 | E4: 0
A5: 2065 | B5: Discovery School, The | C5: 154575.37 | D5: 154575.3704 | E5: 0
A6: 2066 | B6: Maypole Primary School | C6: 186214.8 | D6: 186214.8036 | E6: 0
A7: 2074 | B7: Sunny Bank Primary School | C7: 255701.24 | D7: 255701.2416 | E7: 0
A8: 2079 | B8: Woodlands Primary School | C8: 227120.49 | D8: 227120.4891 | E8: 0
A9: 2088 | B9: Crockenhill Primary School | C9: 71260.92 | D9: 71260.92112 | E9: 0
A10: 2089 | B10: Anthony Roper Primary School, The | C10: 85820.7 | D10: 85820.70034 | E10: 0
A11: 2094 | B11: Cobham Primary School | C11: 47947.03 | D11: 47947.02971 | E11: 0
A12: 2095 | B12: Cecil Road Primary and Nursery School | C12: 228476.01 | D12: 228476.0108 | E12: 0
A13: 2109 | B13: Higham Primary School | C13: 67063.95 | D13: 67063.94575 | E13: 0
A14: 2116 | B14: Lawn Primary School | C14: 242507.11 | D14: 242507.1099 | E14: 0
A15: 2119 | B15: Shears Green Infant School | C15: 149638.96 | D15: 149638.9642 | E15: 0
A16: 2120 | B16: Bean Primary School | C16: 116300.79 | D16: 116300.7879 | E16: 0
A17: 2128 | B17: Capel Primary School | C17: 59839.91 | D17: 59839.90548 | E17: 0
A18: 2130 | B18: Dunton Green Primary School | C18: 74306.44 | D18: 74306.43859 | E18: 0
A19: 2132 | B19: Hadlow Primary School | C19: 99509.49 | D19: 99509.49368 | E19: 0
A20: 2133 | B20: Halstead Community Primary School | C20: 45088.88 | D20: 45088.8842 | E20: 0
A21: 2134 | B21: Four Elms Primary School | C21: 50280.43 | D21: 50280.42853 | E21: 0
A22: 2136 | B22: Kemsing Primary School | C22: 86414.44 | D22: 86414.44364 | E22: 0
A23: 2137 | B23: Leigh Primary School | C23: 51020.75 | D23: 51020.74877 | E23: 0
A24: 2138 | B24: Otford Primary School | C24: 85459.35 | D24: 85459.34892 | E24: 0
A25: 2139 | B25: Pembury School | C25: 116788.11 | D25: 116788.1058 | E25: 0
A26: 2142 | B26: Sandhurst Primary School | C26: 61687.4 | D26: 61687.39724 | E26: 0
A27: 2147 | B27: Weald Community Primary School | C27: 62298.22 | D27: 62298.2194 | E27: 0
A28: 2148 | B28: Shoreham Village School | C28: 47574.59 | D28: 47574.58782 | E28: 0
A29: 2155 | B29: Slade Primary School | C29: 163580.29 | D29: 163580.2944 | E29: 0
A30: 2156 | B30: Sussex Road Community Primary School | C30: 126076.87 | D30: 126076.8738 | E30: 0
A31: 2161 | B31: Boughton Monchelsea Primary School | C31: 70324.46 | D31: 70324.45872 | E31: 0
A32: 2163 | B32: East Farleigh Primary School | C32: 65261.26 | D32: 65261.26113 | E32: 0
A33: 2164 | B33: East Peckham Primary School | C33: 62540.37 | D33: 62540.37322 | E33: 0
A34: 2165 | B34: Headcorn Primary School | C34: 66982.66 | D34: 66982.66238 | E34: 0
A35: 2166 | B35: Hollingbourne Primary School | C35: 36652.59 | D35: 36652.5948 | E35: 0
A36: 2167 | B36: Ightham Primary School | C36: 39042.72 | D36: 39042.71588 | E36: 0
A37: 2168 | B37: Lenham Primary School | C37: 73078.98 | D37: 73078.98145 | E37: 0
A38: 2169 | B38: Platts Heath Primary School | C38: 33112 | D38: 33112.00336 | E38: 0
A39: 2171 | B39: Brunswick House Primary School | C39: 168316.16 | D39: 168316.1555 | E39: 0
A40: 2175 | B40: North Borough Junior School | C40: 201793.33 | D40: 201793.3328 | E40: 0
A41: 2176 | B41: Park Way Primary School | C41: 210055.93 | D41: 210055.9302 | E41: 0
A42: 2183 | B42: Marden Primary School | C42: 152465.15 | D42: 152465.1549 | E42: 0
A43: 2185 | B43: Mereworth Community Primary School | C43: 73376.48 | D43: 73376.48275 | E43: 0
A44: 2187 | B44: Offham Primary School | C44: 53013.36 | D44: 53013.36155 | E44: 0
A45: 2188 | B45: Plaxtol Primary School | C45: 26270.24 | D45: 26270.23501 | E45: 0
A46: 2189 | B46: Ryarsh Primary School | C46: 47520.55 | D46: 47520.55349 | E46: 0
A47: 2190 | B47: Shipbourne School | C47: 20128.8 | D47: 20128.79948 | E47: 0
A48: 2192 | B48: Staplehurst School | C48: 135298.91 | D48: 135298.9134 | E48: 0
A49: 2193 | B49: Sutton Valence Primary School | C49: 65782.15 | D49: 65782.14634 | E49: 0
A50: 2226 | B50: Eastling Primary School | C50: 46024.8 | D50: 46024.80139 | E50: 0
A51: 2227 | B51: Ethelbert Road Primary School | C51: 78396.79 | D51: 78396.78651 | E51: 0
A52: 2228 | B52: Davington Primary School | C52: 247946.23 | D52: 247946.2332 | E52: 0
A53: 2231 | B53: Lower Halstow School | C53: 55478 | D53: 55477.99589 | E53: 0
A54: 2237 | B54: Queenborough School and Nursery | C54: 360888.94 | D54: 360888.9381 | E54: 0
A55: 2239 | B55: Rodmersham School | C55: 32958.87 | D55: 32958.86612 | E55: 0
A56: 2245 | B56: Rose Street School | C56: 368959.76 | D56: 368959.7644 | E56: 0
A57: 2254 | B57: Canterbury Road Primary School | C57: 171026.29 | D57: 171026.2915 | E57: 0
A58: 2258 | B58: Blean Primary School | C58: 157761.26 | D58: 157761.258 | E58: 0
A59: 2259 | B59: Chartham Primary School | C59: 134279.57 | D59: 134279.5693 | E59: 0
A60: 2263 | B60: Herne Bay Infant School | C60: 183569.3 | D60: 183569.3007 | E60: 0
A61: 2265 | B61: Hoath Primary School | C61: 40428.67 | D61: 40428.66726 | E61: 0
A62: 2268 | B62: Westmeads Community Infant School | C62: 58111.27 | D62: 58111.27492 | E62: 0
A63: 2269 | B63: Whitstable Junior School | C63: 140508.95 | D63: 140508.9531 | E63: 0
A64: 2270 | B64: Aldington Primary School | C64: 65823.5 | D64: 65823.49503 | E64: 0
A65: 2272 | B65: East Stour Primary School | C65: 254486.97 | D65: 254486.966 | E65: 0
A66: 2275 | B66: Victoria Road Primary School | C66: 112419.32 | D66: 112419.3199 | E66: 0
A67: 2276 | B67: Willesborough Infant School | C67: 158452.98 | D67: 158452.9807 | E67: =ROUND(D67-C67,0) -> 0
A68: 2278 | B68: Bethersden Primary School | C68: 45251.2 | D68: 45251.20182 | E68: 0
A69: 2279 | B69: Brook Community Primary School | C69: 35914.99 | D69: 35914.98911 | E69: 0
A70: 2280 | B70: Challock Primary School | C70: 66606.04 | D70: 66606.04073 | E70: 0
A71: 2282 | B71: Great Chart Primary School | C71: 155741.23 | D71: 155741.2308 | E71: 0
A72: 2285 | B72: Mersham Primary School | C72: 64812.04 | D72: 64812.03716 | E72: 0
A73: 2289 | B73: Smeeth Community Primary School | C73: 43870.92 | D73: 43870.91812 | E73: 0
A74: 2296 | B74: Mundella Primary School | C74: 202718.52 | D74: 202718.5155 | E74: 0
A75: 2298 | B75: Hawkinge Primary School | C75: 202395.08 | D75: 202395.0759 | E75: 0
A76: 2300 | B76: Sellindge Primary School | C76: 40568.95 | D76: 40568.94735 | E76: 0
A77: 2312 | B77: River Primary School | C77: 193228.38 | D77: 193228.3796 | E77: 0
A78: 2318 | B78: Langdon Primary School | C78: 37785.2 | D78: 37785.19774 | E78: 0
A79: 2320 | B79: Eythorne Elvington Community Primary School | C79: 75620.77 | D79: 75620.76844 | E79: 0
A80: 2321 | B80: Lydden Primary School | C80: 24338.73 | D80: 24338.72601 | E80: 0
A81: 2322 | B81: Preston Primary School | C81: 49954.89 | D81: 49954.89203 | E81: 0
A82: 2326 | B82: Wingham Primary School | C82: 70896.25 | D82: 70896.24754 | E82: 0
A83: 2327 | B83: Worth Primary School | C83: 36826.52 | D83: 36826.52457 | E83: 0
A84: 2328 | B84: St Mildred's Primary Infant School | C84: 129162.84 | D84: 129162.8374 | E84: 0
A85: 2329 | B85: Callis Grange Nursery & Infant School | C85: 123701.97 | D85: 123701.9691 | E85: 0
A86: 2337 | B86: St Crispin's Community Primary Infant School | C86: 113541.46 | D86: 113541.4636 | E86: 0
A87: 2340 | B87: Ellington Infant School | C87: 116161.74 | D87: 116161.7382 | E87: 0
A88: 2345 | B88: Priory Infant School | C88: 169521.22 | D88: 169521.2229 | E88: 0
A89: 2431 | B89: Shears Green Junior School | C89: 237971.31 | D89: 237971.3107 | E89: 0
A90: 2434 | B90: West Minster Primary School | C90: 407052.42 | D90: 407052.4158 | E90: 0
A91: 2454 | B91: Aycliffe Community Primary School | C91: 95093.99 | D91: 95093.9908 | E91: 0
A92: 2459 | B92: Riverhead Infant School | C92: 60775.32 | D92: 60775.32048 | E92: 0
A93: 2465 | B93: Claremont Primary School | C93: 105723.23 | D93: 105723.2275 | E93: 0
A94: 2471 | B94: Whitfield Aspen School | C94: 367275.94 | D94: 367275.9356 | E94: 0
A95: 2474 | B95: St Paul's Infant School | C95: 172192.88 | D95: 172192.8794 | E95: 0
A96: 2482 | B96: Langton Green Primary School | C96: 91688.26 | D96: 91688.2565 | E96: 0
A97: 2490 | B97: Bishops Down Primary School | C97: 85343.28 | D97: 85343.28184 | E97: 0
A98: 2509 | B98: Singlewell Primary School | C98: 175474.91 | D98: 175474.9113 | E98: 0
A99: 2510 | B99: Cheriton Primary School | C99: 235002.73 | D99: 235002.7322 | E99: 0
A100: 2514 | B100: Brookfield Infant School | C100: 89051.81 | D100: 89051.81371 | E100: 0
A101: 2519 | B101: Vigo Village School | C101: 72658.76 | D101: 72658.76255 | E101: 0
A102: 2520 | B102: Madginford Primary School | C102: 202753.14 | D102: 202753.1386 | E102: 0
A103: 2524 | B103: Palmarsh Primary School | C103: 91278.23 | D103: 91278.23076 | E103: 0
A104: 2525 | B104: Painters Ash Primary School | C104: 221832.55 | D104: 221832.5504 | E104: 0
A105: 2530 | B105: Tunbury Primary School | C105: 154287.53 | D105: 154287.5348 | E105: 0
A106: 2532 | B106: St Margaret's-at-Cliffe Primary School | C106: 62593.37 | D106: 62593.36705 | E106: 0
A107: 2534 | B107: Bysing Wood Primary School | C107: 155688.85 | D107: 155688.847 | E107: 0
A108: 2539 | B108: Stocks Green Primary School | C108: 42763.99 | D108: 42763.99108 | E108: 0
A109: 2545 | B109: Sandgate Primary School | C109: 136348.75 | D109: 136348.7519 | E109: 0
A110: 2552 | B110: Sandling Primary School | C110: 119323.06 | D110: 119323.0563 | E110: 0
A111: 2559 | B111: Capel-le-Ferne Primary School | C111: 94394.85 | D111: 94394.85187 | E111: 0
A112: 2562 | B112: Lunsford Primary School | C112: 73860.48 | D112: 73860.47935 | E112: 0
A113: 2569 | B113: Briary Primary School | C113: 195400.28 | D113: 195400.2772 | E113: 0
A114: 2574 | B114: Downs View Infant School | C114: 121990.54 | D114: 121990.535 | E114: 0
A115: 2578 | B115: Kingswood Primary School | C115: 34593.8 | D115: 34593.8041 | E115: 0
A116: 2586 | B116: Senacre Wood Primary School | C116: 150437.96 | D116: 150437.9644 | E116: 0
A117: 2603 | B117: Bromstone Primary School, Broadstairs | C117: 349120.1 | D117: 349120.1045 | E117: 0
A118: 2607 | B118: Parkside Community Primary School | C118: 113767.19 | D118: 113767.1948 | E118: 0
A119: 2611 | B119: St Stephen's Infant School | C119: 212184.76 | D119: 212184.7625 | E119: 0
A120: 2615 | B120: High Firs Primary School | C120: 114763.25 | D120: 114763.247 | E120: 0
A121: 2626 | B121: Sandwich Infant School | C121: 70509.53 | D121: 70509.52901 | E121: 0
A122: 2627 | B122: Sandwich Junior School | C122: 92819.23 | D122: 92819.23312 | E122: 0
A123: 2629 | B123: Holywell Primary School Upchurch | C123: 65814.78 | D123: 65814.77507 | E123: 0
A124: 2632 | B124: Sevenoaks Primary School | C124: 186834.09 | D124: 186834.0891 | E124: 0
A125: 2643 | B125: Swalecliffe Community Primary School | C125: 209430.34 | D125: 209430.3367 | E125: 0
A126: 2648 | B126: Aylesham Primary School | C126: 221879.62 | D126: 221879.6155 | E126: 0
A127: 2651 | B127: Broadwater Down Primary School | C127: 103828.66 | D127: 103828.6628 | E127: 0
A128: 2653 | B128: West Borough Primary School | C128: 216585.02 | D128: 216585.0245 | E128: 0
A129: 2662 | B129: Long Mead Community Primary School | C129: 99859.06 | D129: 99859.05881 | E129: 0
A130: 2672 | B130: Palm Bay Primary School | C130: 201684.15 | D130: 201684.1464 | E130: 0
A131: 2674 | B131: King's Farm Primary School | C131: 336881.75 | D131: 336881.7502 | E131: =ROUND(D131-C131,0) -> 0
A132: 2680 | B132: Kings Hill School | C132: 136525.1 | D132: 136525.1028 | E132: 0
A133: 2682 | B133: New Ash Green Primary School | C133: 185365.07 | D133: 185365.0666 | E133: 0
A134: 2689 | B134: Craylands School, The | C134: 198717.26 | D134: 198717.2583 | E134: 0
A135: 2692 | B135: Churchill School, The | C135: 171000.7 | D135: 171000.7046 | E135: 0
A136: 3010 | B136: St Paul's CEP School | C136: 40212.48 | D136: 40212.48005 | E136: 0
A137: 3015 | B137: Fawkham CEP School | C137: 29161.11 | D137: 29161.10992 | E137: 0
A138: 3020 | B138: Sedley's CEP School | C138: 45275.8 | D138: 45275.80262 | E138: 0
A139: 3022 | B139: Benenden CEP School | C139: 62130.98 | D139: 62130.97525 | E139: 0
A140: 3023 | B140: Bidborough CEP School | C140: 73654.66 | D140: 73654.65579 | E140: 0
A141: 3027 | B141: Cranbrook CEP School | C141: 73236.15 | D141: 73236.15139 | E141: 0
A142: 3029 | B142: Goudhurst & Kilndown CEP School | C142: 44180.4 | D142: 44180.39533 | E142: 0
A143: 3032 | B143: Hawkhurst CEP School | C143: 98520.99 | D143: 98520.9905 | E143: 0
A144: 3033 | B144: Hildenborough CEP School | C144: 59220.14 | D144: 59220.13832 | E144: 0
A145: 3034 | B145: Lamberhurst St Mary's CEP School | C145: 55660.28 | D145: 55660.27616 | E145: 0
A146: 3035 | B146: Seal CEP School | C146: 110550.31 | D146: 110550.3083 | E146: 0
A147: 3037 | B147: St John's CEP School, Sevenoaks | C147: 65991.15 | D147: 65991.14496 | E147: 0
A148: 3042 | B148: Speldhurst CEP School | C148: 31583.79 | D148: 31583.7882 | E148: 0
A149: 3043 | B149: Sundridge & Brasted CEP School | C149: 32994.97 | D149: 32994.97232 | E149: 0
A150: 3050 | B150: St John's CEP School | C150: 258242.24 | D150: 258242.2444 | E150: 0
A151: 3052 | B151: St Mark's CEP School | C151: 181595.16 | D151: 181595.1563 | E151: 0
A152: 3053 | B152: St Peter's CEP School | C152: 50325.18 | D152: 50325.17827 | E152: 0
A153: 3054 | B153: Crockham Hill CEP School | C153: 51056.24 | D153: 51056.23678 | E153: 0
A154: 3055 | B154: Churchill CEP School | C154: 69943.5 | D154: 69943.5037 | E154: 0
A155: 3057 | B155: St Peter's CEP School | C155: 72162.72 | D155: 72162.72229 | E155: 0
A156: 3061 | B156: Bredhurst CEP School | C156: 46929.23 | D156: 46929.22779 | E156: 0
A157: 3062 | B157: Burham CEP School | C157: 67657.61 | D157: 67657.61482 | E157: 0
A158: 3067 | B158: Harrietsham CEP School | C158: 82252.67 | D158: 82252.67262 | E158: 0
A159: 3069 | B159: Leeds & Broomfield CEP School | C159: 27072.37 | D159: 27072.36788 | E159: 0
A160: 3072 | B160: St Michael's CEJ School, Maidstone | C160: 76656.65 | D160: 76656.65225 | E160: 0
A161: 3073 | B161: St Michael's CEI School, Maidstone | C161: 61931.12 | D161: 61931.12354 | E161: 0
A162: 3081 | B162: Thurnham CEI School | C162: 69187.6 | D162: 69187.59826 | E162: 0
A163: 3082 | B163: Trottiscliffe CEP School | C163: 28209.24 | D163: 28209.23881 | E163: 0
A164: 3083 | B164: Ulcombe CEP School | C164: 50157.14 | D164: 50157.14462 | E164: 0
A165: 3084 | B165: Wateringbury CEP School | C165: 74058.89 | D165: 74058.89448 | E165: 0
A166: 3088 | B166: Wouldham, All Saint's CEP School | C166: 168886.77 | D166: 168886.765 | E166: 0
A167: 3089 | B167: St George's CEP School | C167: 90923.71 | D167: 90923.71443 | E167: 0
A168: 3090 | B168: St Margaret's CEP School, Collier Street | C168: 68158.76 | D168: 68158.75959 | E168: 0
A169: 3091 | B169: Laddingford St Mary's CEP School | C169: 36591.76 | D169: 36591.75867 | E169: 0
A170: 3092 | B170: Yalding St Peter & St Paul CEP School | C170: 50875.44 | D170: 50875.43814 | E170: 0
A171: 3106 | B171: Eastchurch CEP School | C171: 348980.17 | D171: 348980.1718 | E171: 0
A172: 3108 | B172: Ospringe CEP School | C172: 136202.21 | D172: 136202.2141 | E172: 0
A173: 3109 | B173: Hernhill CEP School | C173: 73740.17 | D173: 73740.174 | E173: 0
A174: 3111 | B174: Newington CEP School | C174: 90699.51 | D174: 90699.5108 | E174: 0
A175: 3117 | B175: Teynham Parochial CEP School | C175: 135561.26 | D175: 135561.262 | E175: 0
A176: 3120 | B176: Barham CEP School | C176: 71122.4 | D176: 71122.39616 | E176: 0
A177: 3122 | B177: Bridge & Patrixbourne CEP School | C177: 100335.12 | D177: 100335.1228 | E177: 0
A178: 3123 | B178: Chislet CEP School | C178: 45257.26 | D178: 45257.25874 | E178: 0
A179: 3126 | B179: Littlebourne CEP School | C179: 60219.01 | D179: 60219.01214 | E179: 0
A180: 3129 | B180: St Alphege CEI School | C180: 76235.43 | D180: 76235.43445 | E180: 0
A181: 3130 | B181: Wickhambreaux CEP School | C181: 28575.88 | D181: 28575.88424 | E181: 0
A182: 3134 | B182: John Mayne CEP School | C182: 37845.26 | D182: 37845.25994 | E182: 0
A183: 3136 | B183: Brabourne CEP School | C183: 34623.09 | D183: 34623.08975 | E183: 0
A184: 3137 | B184: Brookland CEP School | C184: 44130.76 | D184: 44130.76426 | E184: 0
A185: 3138 | B185: Chilham St Mary's CEP School | C185: 37916.53 | D185: 37916.53341 | E185: 0
A186: 3139 | B186: High Halden CEP School | C186: 34307.4 | D186: 34307.39724 | E186: 0
A187: 3145 | B187: Woodchurch CEP School | C187: 71322.1 | D187: 71322.10017 | E187: 0
A188: 3146 | B188: Bodsham CEP School | C188: 17432.32 | D188: 17432.31855 | E188: 0
A189: 3149 | B189: St Martin's CEP School, Folkestone | C189: 79355.22 | D189: 79355.21853 | E189: 0
A190: 3150 | B190: St Peter's CEP School, Folkestone | C190: 107713.36 | D190: 107713.3568 | E190: 0
A191: 3153 | B191: Seabrook CEP School | C191: 39737.79 | D191: 39737.78592 | E191: 0
A192: 3154 | B192: Lyminge CEP School | C192: 43631.63 | D192: 43631.63373 | E192: 0
A193: 3155 | B193: Lympne CEP School | C193: 77277.85 | D193: 77277.8522 | E193: 0
A194: 3158 | B194: Stelling Minnis CEP School | C194: 34500.41 | D194: 34500.40625 | E194: 0
A195: 3159 | B195: Stowting CEP School | C195: 29970.24 | D195: 29970.23674 | E195: =ROUND(D195-C195,0) -> 0
A196: 3160 | B196: Selsted CEP School | C196: 37491.89 | D196: 37491.8941 | E196: 0
A197: 3167 | B197: Eastry CEP School | C197: 86143.51 | D197: 86143.51387 | E197: 0
A198: 3168 | B198: Goodnestone CEP School | C198: 26249.43 | D198: 26249.42685 | E198: 0
A199: 3169 | B199: Guston CEP School | C199: 89530.33 | D199: 89530.32821 | E199: 0
A200: 3171 | B200: Nonington CEP School | C200: 38800.15 | D200: 38800.15133 | E200: 0
... 103 more rows

Sheet Data (hidden)
A1: 1 | B1: 2 | C1: 1 | D1: 4 | E1: 5 | F1: 6 | G1: 7 | H1: 8 | I1: 9 | J1: 10 | K1: 11 | L1: 12 | M1: 13 | N1: 14 | O1: 15 | P1: 16 | Q1: 17 | R1: 18 | S1: 19 | T1: 20 | U1: 21 | V1: 22 | W1: 23 | X1: 24 | Y1: 25 | Z1: 26 | AA1: 27 | AB1: 28 | AC1: 29 | AD1: 30 | AE1: 31 | AF1: 32 | AG1: 33 | AH1: 34 | AI1: 35 | AJ1: 36 | AK1: 37 | AL1: 38 | AM1: 39 | AN1: 40 | AO1: 41 | AP1: 42 | AQ1: 43 | AR1: 44 | AS1: 45 | AT1: 46 | AU1: 47 | AV1: 48 | AW1: 49 | AX1: 50 | AY1: 51 | AZ1: 52 | BA1: 53 | BB1: 54 | BC1: 55 | BD1: 56 | BE1: 57 | BF1: 58 | BG1: 59 | BH1: 60 | BI1: 61 | BJ1: 62 | BK1: 63 | BL1: 64 | BM1: 65 | BN1: 66 | BO1: 67 | BP1: 68 | BQ1: 69 | BR1: 70 | BS1: 71 | BT1: 72 | BU1: 73 | BV1: 74 | BW1: 75 | BX1: 76 | BY1: 77 | BZ1: 78 | CA1: 79 | CB1: 80
A2: final list | B2: School Name | C2: Phase | D2: F1 - Pri | E2: F1 -KS3 | F2: F1 - KS4 | G2: F2 - FSM Pri | H2: F2 - FSM Sec | I2: F2 - E6FSM Pri | J2: F2 - E6FSM Sec | K2: F2 - IDACI F - Pri | L2: F2 - IDACI E - Pri | M2: F2 - IDACI D - Pri | N2: F2 - IDACI C - Pri | O2: F2 - IDACI B - Pri | P2: F2 - IDACI A - Pri | Q2: F2 - IDACI F - Sec | R2: F2 - IDACI E - Sec | S2: F2 - IDACI D - Sec | T2: F2 - IDACI C - Sec | U2: F2 - IDACI B - Sec | V2: F2 - IDACI A - Sec | W2: F4 - EAL Pri | X2: F4 - EAL Sec | Y2: F6 - EYFS Pri | Z2: F6 - EYFS Sec | AA2: Mobility Pri | AB2: Mobility Sec | AC2: F7 - Lump Sum | AD2: F8 - Sparsity Pri | AE2: F8 - Sparsity Sec | AF2: F9 - ACA | AG2: F10 - Split Site | AH2: F11 - Rates | AI2: F12 - PFI | AJ2: F13 - Exceptional Circumstances | AK2: MFL Rate | AL2: SBS 24-25 | AM2: Protected Grants 24-25 | AN2: Rates - 24-25 | AO2: Pupils - Oct 23 | AP2: Split Sites 24/25 | AQ2: PFI 24/25 | AR2: Early Years - Base Rate | AS2: Early Years - QTS | AT2: Early Years - Disadvantage
A3: 1001 | B3: Northfleet Nursery | C3: 6 | D3: 0 | E3: 0 | F3: 0 | G3: 0 | H3: 0 | I3: 0 | J3: 0 | K3: 0 | L3: 0 | M3: 0 | N3: 0 | O3: 0 | P3: 0 | Q3: 0 | R3: 0 | S3: 0 | T3: 0 | U3: 0 | V3: 0 | W3: 0 | X3: 0 | Y3: 0 | Z3: 0 | AA3: 0 | AB3: 0 | AC3: 0 | AD3: 0 | AE3: 0 | AF3: 0 | AG3: 0 | AH3: 0 | AI3: 0 | AJ3: 0 | AK3: 0 | AL3: 0 | AM3: 0 | AN3: 0 | AO3: 0 | AR3: 0 | AS3: 1.34 | AT3: 0 | CD3: Please Select | CE3: 0
A4: 2000 | B4: St Johns Church of England Primary School | C4: 1 | D4: 407 | E4: 0 | F4: 0 | G4: 0.4594594595 | H4: 0 | I4: 0.4594594595 | J4: 0 | K4: 0.05172413793 | L4: 0.1798029557 | M4: 0.09113300493 | N4: 0.2783251232 | O4: 0.1551724138 | P4: 0 | Q4: 0 | R4: 0 | S4: 0 | T4: 0 | U4: 0 | V4: 0 | W4: 0.3400576369 | X4: 0 | Y4: 0.4270714616 | Z4: 0 | AA4: 0.09359605911 | AB4: 0 | AC4: 142484.2182 | AD4: 0 | AE4: 0 | AF4: 1 | AG4: 0 | AH4: 24576 | AI4: 0 | AJ4: 0 | AK4: 4910.405 | AL4: 2246267.426 | AM4: 162597.0863 | AN4: 24576 | AO4: 404 | AP4: 0 | AQ4: 0 | AR4: 0 | AS4: 1.34 | AT4: 0 | CD4: Statutory | CE4: 12.42
A5: 2002 | B5: Repton Manor Primary School | C5: 1 | D5: 418 | E5: 0 | F5: 0 | G5: 0.1722488038 | H5: 0 | I5: 0.1794258373 | J5: 0 | K5: 0.02631578947 | L5: 0.05741626794 | M5: 0.02870813397 | N5: 0.01435406699 | O5: 0.01913875598 | P5: 0 | Q5: 0 | R5: 0 | S5: 0 | T5: 0 | U5: 0 | V5: 0 | W5: 0.1 | X5: 0 | Y5: 0.2332563071 | Z5: 0 | AA5: 0.05502392344 | AB5: 0 | AC5: 142484.2182 | AD5: 0 | AE5: 0 | AF5: 1 | AG5: 0 | AH5: 17541 | AI5: 0 | AJ5: 0 | AK5: 4910.405 | AL5: 2051357.974 | AM5: 148277.5987 | AN5: 10650 | AO5: 446 | AP5: 0 | AQ5: 0 | AR5: 0 | AS5: 0 | AT5: 0 | CD5: Statutory Plus | CE5: =CE4+5.24 -> 17.66
A6: 2065 | B6: The Discovery School | C6: 1 | D6: 634 | E6: 0 | F6: 0 | G6: 0.07255520505 | H6: 0 | I6: 0.07570977918 | J6: 0 | K6: 0.05678233438 | L6: 0.01735015773 | M6: 0.001577287066 | N6: 0.03312302839 | O6: 0.009463722397 | P6: 0 | Q6: 0 | R6: 0 | S6: 0 | T6: 0 | U6: 0 | V6: 0 | W6: 0.03860294118 | X6: 0 | Y6: 0.1888106226 | Z6: 0 | AA6: 0.05205047319 | AB6: 0 | AC6: 142484.2182 | AD6: 0 | AE6: 0 | AF6: 1 | AG6: 0 | AH6: 94458 | AI6: 0 | AJ6: 0 | AK6: 4910.405 | AL6: 2935151.26 | AM6: 188137.7924 | AN6: 75264 | AO6: 626 | AP6: 0 | AQ6: 0 | AR6: 0 | AS6: 0 | AT6: 0 | CD6: Additionality | CE6: =CE5+3.92 -> 21.58
A7: 2079 | B7: Woodlands Primary School | C7: 1 | D7: 548 | E7: 0 | F7: 0 | G7: 0.2390510949 | H7: 0 | I7: 0.25 | J7: 0 | K7: 0.3229927007 | L7: 0.007299270073 | M7: 0.02919708029 | N7: 0 | O7: 0 | P7: 0 | Q7: 0 | R7: 0 | S7: 0 | T7: 0 | U7: 0 | V7: 0 | W7: 0.04426559356 | X7: 0 | Y7: 0.2392925441 | Z7: 0 | AA7: 0.05656934307 | AB7: 0 | AC7: 142484.2182 | AD7: 0 | AE7: 0 | AF7: 1 | AG7: 0 | AH7: 69342 | AI7: 0 | AJ7: 0 | AK7: 4910.405 | AL7: 2763261.397 | AM7: 199674.2417 | AN7: 57856 | AO7: 592 | AP7: 0 | AQ7: 0 | AR7: 0 | AS7: 0 | AT7: 0
A8: 2088 | B8: Crockenhill Primary School | C8: 1 | D8: 201 | E8: 0 | F8: 0 | G8: 0.3034825871 | H8: 0 | I8: 0.3084577114 | J8: 0 | K8: 0.1044776119 | L8: 0.03482587065 | M8: 0 | N8: 0.02985074627 | O8: 0.1343283582 | P8: 0 | Q8: 0 | R8: 0 | S8: 0 | T8: 0 | U8: 0 | V8: 0 | W8: 0.0289017341 | X8: 0 | Y8: 0.3248366013 | Z8: 0 | AA8: 0.0447761194 | AB8: 0 | AC8: 142484.2182 | AD8: 0 | AE8: 0 | AF8: 1.0378 | AG8: 0 | AH8: 31553 | AI8: 0 | AJ8: 0 | AK8: 4910.405 | AL8: 1039707.342 | AM8: 77200.3634 | AN8: 23827 | AO8: 192 | AP8: 0 | AQ8: 0 | AR8: 0 | AS8: 0 | AT8: 0
A9: 2089 | B9: The Anthony Roper Primary School | C9: 1 | D9: 266 | E9: 0 | F9: 0 | G9: 0.1127819549 | H9: 0 | I9: 0.1127819549 | J9: 0 | K9: 0.05681818182 | L9: 0.003787878788 | M9: 0.003787878788 | N9: 0.01136363636 | O9: 0.02272727273 | P9: 0 | Q9: 0 | R9: 0 | S9: 0 | T9: 0 | U9: 0 | V9: 0 | W9: 0.02074688797 | X9: 0 | Y9: 0.2532713085 | Z9: 0 | AA9: 0.04887218045 | AB9: 0 | AC9: 142484.2182 | AD9: 0 | AE9: 0 | AF9: 1.0378 | AG9: 0 | AH9: 7043 | AI9: 0 | AJ9: 0 | AK9: 4910.405 | AL9: 1260016.227 | AM9: 91870.8827 | AN9: 6656 | AO9: 272 | AP9: 0 | AQ9: 0 | AR9: 0 | AS9: 0 | AT9: 0
A10: 2094 | B10: Cobham Primary School | C10: 1 | D10: 216 | E10: 0 | F10: 0 | G10: 0.06018518519 | H10: 0 | I10: 0.06018518519 | J10: 0 | K10: 0.009259259259 | L10: 0.009259259259 | M10: 0 | N10: 0.01851851852 | O10: 0 | P10: 0 | Q10: 0 | R10: 0 | S10: 0 | T10: 0 | U10: 0 | V10: 0 | W10: 0.0376344086 | X10: 0 | Y10: 0.1923913043 | Z10: 0 | AA10: 0.02777777778 | AB10: 0 | AC10: 142484.2182 | AD10: 0 | AE10: 0 | AF10: 1 | AG10: 0 | AH10: 20659 | AI10: 0 | AJ10: 0 | AK10: 4910.405 | AL10: 999445.65 | AM10: 69527.9223 | AN10: 17216 | AO10: 215 | AP10: 0 | AQ10: 0 | AR10: 0 | AS10: 0 | AT10: 0
A11: 2095 | B11: Cecil Road Primary and Nursery School | C11: 1 | D11: 372 | E11: 0 | F11: 0 | G11: 0.1774193548 | H11: 0 | I11: 0.1774193548 | J11: 0 | K11: 0.2237196765 | L11: 0.153638814 | M11: 0.04582210243 | N11: 0.008086253369 | O11: 0.00269541779 | P11: 0 | Q11: 0 | R11: 0 | S11: 0 | T11: 0 | U11: 0 | V11: 0 | W11: 0.2555205047 | X11: 0 | Y11: 0.3273420479 | Z11: 0 | AA11: 0.06182795699 | AB11: 0 | AC11: 142484.2182 | AD11: 0 | AE11: 0 | AF11: 1 | AG11: 0 | AH11: 44735 | AI11: 0 | AJ11: 0 | AK11: 4910.405 | AL11: 1770307.446 | AM11: 122167.4756 | AN11: 34048 | AO11: 371 | AP11: 0 | AQ11: 0 | AR11: 0 | AS11: 1.34 | AT11: 0
A12: 2109 | B12: Higham Primary School | C12: 1 | D12: 211 | E12: 0 | F12: 0 | G12: 0.1232227488 | H12: 0 | I12: 0.1279620853 | J12: 0 | K12: 0.03317535545 | L12: 0.03317535545 | M12: 0 | N12: 0.02369668246 | O12: 0 | P12: 0 | Q12: 0 | R12: 0 | S12: 0 | T12: 0 | U12: 0 | V12: 0 | W12: 0.02209944751 | X12: 0 | Y12: 0.3721789643 | Z12: 0 | AA12: 0.03317535545 | AB12: 0 | AC12: 142484.2182 | AD12: 0 | AE12: 0 | AF12: 1 | AG12: 0 | AH12: 24950 | AI12: 0 | AJ12: 0 | AK12: 4910.405 | AL12: 1017088.316 | AM12: 71471.3457 | AN12: 22330 | AO12: 210 | AP12: 0 | AQ12: 0 | AR12: 0 | AS12: 0 | AT12: 0
A13: 2116 | B13: Lawn Primary School | C13: 1 | D13: 205 | E13: 0 | F13: 0 | G13: 0.5170731707 | H13: 0 | I13: 0.5170731707 | J13: 0 | K13: 0.05418719212 | L13: 0.01477832512 | M13: 0.2118226601 | N13: 0.0197044335 | O13: 0.5665024631 | P13: 0 | Q13: 0 | R13: 0 | S13: 0 | T13: 0 | U13: 0 | V13: 0 | W13: 0.3063583815 | X13: 0 | Y13: 0.4147239264 | Z13: 0 | AA13: 0.1073170732 | AB13: 0 | AC13: 142484.2182 | AD13: 0 | AE13: 0 | AF13: 1 | AG13: 0 | AH13: 20459 | AI13: 0 | AJ13: 0 | AK13: 4910.405 | AL13: 1238478.169 | AM13: 88632.9149 | AN13: 20709 | AO13: 207 | AP13: 0 | AQ13: 0 | AR13: 0 | AS13: 1.34 | AT13: 0
A14: 2120 | B14: Bean Primary School | C14: 1 | D14: 207 | E14: 0 | F14: 0 | G14: 0.2512077295 | H14: 0 | I14: 0.2560386473 | J14: 0 | K14: 0.5120772947 | L14: 0.0193236715 | M14: 0 | N14: 0 | O14: 0.009661835749 | P14: 0 | Q14: 0 | R14: 0 | S14: 0 | T14: 0 | U14: 0 | V14: 0 | W14: 0.1508379888 | X14: 0 | Y14: 0.2955837871 | Z14: 0 | AA14: 0.140776699 | AB14: 0 | AC14: 142484.2182 | AD14: 0 | AE14: 0 | AF14: 1.0378 | AG14: 0 | AH14: 16717 | AI14: 0 | AJ14: 0 | AK14: 4910.405 | AL14: 1039054.971 | AM14: 75087.5179 | AN14: 16093 | AO14: 194 | AP14: 0 | AQ14: 0 | AR14: 0 | AS14: 0 | AT14: 0
A15: 2128 | B15: Capel Primary School | C15: 1 | D15: 205 | E15: 0 | F15: 0 | G15: 0.2195121951 | H15: 0 | I15: 0.2243902439 | J15: 0 | K15: 0.1176470588 | L15: 0.009803921569 | M15: 0.04901960784 | N15: 0.009803921569 | O15: 0 | P15: 0 | Q15: 0 | R15: 0 | S15: 0 | T15: 0 | U15: 0 | V15: 0 | W15: 0.005617977528 | X15: 0 | Y15: 0.2440510979 | Z15: 0 | AA15: 0.02926829268 | AB15: 0 | AC15: 142484.2182 | AD15: 0 | AE15: 0 | AF15: 1 | AG15: 0 | AH15: 23827 | AI15: 0 | AJ15: 0 | AK15: 4910.405 | AL15: 994387.8867 | AM15: 73709.9853 | AN15: 21457 | AO15: 207 | AP15: 0 | AQ15: 0 | AR15: 0 | AS15: 0 | AT15: 0
A16: 2130 | B16: Dunton Green Primary School | C16: 1 | D16: 170 | E16: 0 | F16: 0 | G16: 0.3352941176 | H16: 0 | I16: 0.3352941176 | J16: 0 | K16: 0 | L16: 0.005882352941 | M16: 0 | N16: 0 | O16: 0 | P16: 0 | Q16: 0 | R16: 0 | S16: 0 | T16: 0 | U16: 0 | V16: 0 | W16: 0.08724832215 | X16: 0 | Y16: 0.2991732804 | Z16: 0 | AA16: 0.06470588235 | AB16: 0 | AC16: 142484.2182 | AD16: 0 | AE16: 0 | AF16: 1.0378 | AG16: 0 | AH16: 32358 | AI16: 0 | AJ16: 0 | AK16: 4910.405 | AL16: 873928.1535 | AM16: 66977.7213 | AN16: 24576 | AO16: 160 | AP16: 0 | AQ16: 0 | AR16: 0 | AS16: 0 | AT16: 0
A17: 2132 | B17: Hadlow Primary School | C17: 1 | D17: 182 | E17: 0 | F17: 0 | G17: 0.3516483516 | H17: 0 | I17: 0.3626373626 | J17: 0 | K17: 0.05494505495 | L17: 0.510989011 | M17: 0.02197802198 | N17: 0 | O17: 0 | P17: 0 | Q17: 0 | R17: 0 | S17: 0 | T17: 0 | U17: 0 | V17: 0 | W17: 0.04516129032 | X17: 0 | Y17: 0.3605843653 | Z17: 0 | AA17: 0.06593406593 | AB17: 0 | AC17: 142484.2182 | AD17: 0 | AE17: 0 | AF17: 1 | AG17: 0 | AH17: 25200 | AI17: 0 | AJ17: 0 | AK17: 4910.405 | AL17: 979622.4273 | AM17: 71908.666 | AN17: 24326 | AO17: 179 | AP17: 0 | AQ17: 0 | AR17: 0 | AS17: 0 | AT17: 0
A18: 2136 | B18: Kemsing Primary School | C18: 1 | D18: 173 | E18: 0 | F18: 0 | G18: 0.1445086705 | H18: 0 | I18: 0.1502890173 | J18: 0 | K18: 0 | L18: 0 | M18: 0 | N18: 0 | O18: 0.005813953488 | P18: 0 | Q18: 0 | R18: 0 | S18: 0 | T18: 0 | U18: 0 | V18: 0 | W18: 0.05263157895 | X18: 0 | Y18: 0.2709713024 | Z18: 0 | AA18: 0.04624277457 | AB18: 0 | AC18: 142484.2182 | AD18: 0 | AE18: 0 | AF18: 1.0378 | AG18: 0 | AH18: 24701 | AI18: 0 | AJ18: 0 | AK18: 4910.405 | AL18: 923480.0752 | AM18: 66927.8851 | AN18: 21956 | AO18: 181 | AP18: 0 | AQ18: 0 | AR18: 0 | AS18: 0 | AT18: 0
A19: 2137 | B19: Leigh Primary School | C19: 1 | D19: 136 | E19: 0 | F19: 0 | G19: 0.1838235294 | H19: 0 | I19: 0.1985294118 | J19: 0 | K19: 0.05882352941 | L19: 0 | M19: 0.02941176471 | N19: 0 | O19: 0 | P19: 0 | Q19: 0 | R19: 0 | S19: 0 | T19: 0 | U19: 0 | V19: 0 | W19: 0.04918032787 | X19: 0 | Y19: 0.3376328502 | Z19: 0 | AA19: 0.05147058824 | AB19: 0 | AC19: 142484.2182 | AD19: 10374.46406 | AE19: 0 | AF19: 1.0378 | AG19: 0 | AH19: 13024 | AI19: 0 | AJ19: 0 | AK19: 4910.405 | AL19: 787256.9914 | AM19: 58608.3613 | AN19: 10853 | AO19: 148 | AP19: 0 | AQ19: 0 | AR19: 0 | AS19: 0 | AT19: 0
A20: 2138 | B20: Otford Primary School | C20: 1 | D20: 285 | E20: 0 | F20: 0 | G20: 0.1614035088 | H20: 0 | I20: 0.1649122807 | J20: 0 | K20: 0.01754385965 | L20: 0.00350877193 | M20: 0 | N20: 0 | O20: 0 | P20: 0 | Q20: 0 | R20: 0 | S20: 0 | T20: 0 | U20: 0 | V20: 0 | W20: 0.01960784314 | X20: 0 | Y20: 0.1744783557 | Z20: 0 | AA20: 0.06666666667 | AB20: 0 | AC20: 142484.2182 | AD20: 0 | AE20: 0 | AF20: 1.0378 | AG20: 0 | AH20: 38830 | AI20: 0 | AJ20: 0 | AK20: 4910.405 | AL20: 1455241.512 | AM20: 105367.1375 | AN20: 29440 | AO20: 308 | AP20: 0 | AQ20: 0 | AR20: 0 | AS20: 0 | AT20: 0
A21: 2139 | B21: Pembury School | C21: 1 | D21: 405 | E21: 0 | F21: 0 | G21: 0.1111111111 | H21: 0 | I21: 0.1135802469 | J21: 0 | K21: 0.04962779156 | L21: 0.004962779156 | M21: 0 | N21: 0.004962779156 | O21: 0 | P21: 0 | Q21: 0 | R21: 0 | S21: 0 | T21: 0 | U21: 0 | V21: 0 | W21: 0.05813953488 | X21: 0 | Y21: 0.255980118 | Z21: 0 | AA21: 0.08148148148 | AB21: 0 | AC21: 142484.2182 | AD21: 0 | AE21: 0 | AF21: 1 | AG21: 0 | AH21: 50232 | AI21: 0 | AJ21: 0 | AK21: 4910.405 | AL21: 1856194.47 | AM21: 125072.6033 | AN21: 42496 | AO21: 397 | AP21: 0 | AQ21: 0 | AR21: 0 | AS21: 0 | AT21: 0
A22: 2142 | B22: Sandhurst Primary School | C22: 1 | D22: 168 | E22: 0 | F22: 0 | G22: 0.2023809524 | H22: 0 | I22: 0.2023809524 | J22: 0 | K22: 0.03571428571 | L22: 0.01785714286 | M22: 0 | N22: 0 | O22: 0 | P22: 0 | Q22: 0 | R22: 0 | S22: 0 | T22: 0 | U22: 0 | V22: 0 | W22: 0.02816901408 | X22: 0 | Y22: 0.1925799901 | Z22: 0 | AA22: 0.07142857143 | AB22: 0 | AC22: 142484.2182 | AD22: 0 | AE22: 0 | AF22: 1 | AG22: 0 | AH22: 28119 | AI22: 0 | AJ22: 0 | AK22: 4910.405 | AL22: 815762.524 | AM22: 60391.2306 | AN22: 21582 | AO22: 161 | AP22: 0 | AQ22: 0 | AR22: 0 | AS22: 0 | AT22: 0
A23: 2147 | B23: Weald Community Primary School | C23: 1 | D23: 97 | E23: 0 | F23: 0 | G23: 0.2164948454 | H23: 0 | I23: 0.2164948454 | J23: 0 | K23: 0.01030927835 | L23: 0 | M23: 0 | N23: 0 | O23: 0 | P23: 0 | Q23: 0 | R23: 0 | S23: 0 | T23: 0 | U23: 0 | V23: 0 | W23: 0.1477272727 | X23: 0 | Y23: 0.2787698413 | Z23: 0 | AA23: 0.1030927835 | AB23: 0 | AC23: 142484.2182 | AD23: 39693.60161 | AE23: 0 | AF23: 1.0378 | AG23: 0 | AH23: 18264 | AI23: 0 | AJ23: 0 | AK23: 4910.405 | AL23: 659910.071 | AM23: 45321.8337 | AN23: 15220 | AO23: 111 | AP23: 0 | AQ23: 0 | AR23: 0 | AS23: 0 | AT23: 0
A24: 2148 | B24: Shoreham Village School | C24: 1 | D24: 79 | E24: 0 | F24: 0 | G24: 0.2025316456 | H24: 0 | I24: 0.2025316456 | J24: 0 | K24: 0.05063291139 | L24: 0 | M24: 0 | N24: 0 | O24: 0 | P24: 0 | Q24: 0 | R24: 0 | S24: 0 | T24: 0 | U24: 0 | V24: 0 | W24: 0 | X24: 0 | Y24: 0.2062747036 | Z24: 0 | AA24: 0.01265822785 | AB24: 0 | AC24: 142484.2182 | AD24: 53225.51125 | AE24: 0 | AF24: 1.0378 | AG24: 0 | AH24: 16717 | AI24: 0 | AJ24: 0 | AK24: 4910.405 | AL24: 547808.028 | AM24: 37340.7804 | AN24: 14097 | AO24: 81 | AP24: 0 | AQ24: 0 | AR24: 0 | AS24: 0 | AT24: 0
A25: 2155 | B25: Slade Primary School and Attached Unit for Children with Hearing Impairment | C25: 1 | D25: 419 | E25: 0 | F25: 0 | G25: 0.1551312649 | H25: 0 | I25: 0.1575178998 | J25: 0 | K25: 0.23150358 | L25: 0.00477326969 | M25: 0.03818615752 | N25: 0 | O25: 0 | P25: 0 | Q25: 0 | R25: 0 | S25: 0 | T25: 0 | U25: 0 | V25: 0 | W25: 0.1611111111 | X25: 0 | Y25: 0.3425396825 | Z25: 0 | AA25: 0.03110047847 | AB25: 0 | AC25: 142484.2182 | AD25: 0 | AE25: 0 | AF25: 1 | AG25: 0 | AH25: 34671 | AI25: 0 | AJ25: 0 | AK25: 4910.405 | AL25: 1935020.67 | AM25: 133620.8641 | AN25: 29952 | AO25: 417 | AP25: 0 | AQ25: 0 | AR25: 0 | AS25: 0 | AT25: 0
A26: 2156 | B26: Sussex Road Community Primary School | C26: 1 | D26: 418 | E26: 0 | F26: 0 | G26: 0.09330143541 | H26: 0 | I26: 0.09330143541 | J26: 0 | K26: 0.1103117506 | L26: 0.002398081535 | M26: 0.02637889688 | N26: 0.00479616307 | O26: 0 | P26: 0 | Q26: 0 | R26: 0 | S26: 0 | T26: 0 | U26: 0 | V26: 0 | W26: 0.08100558659 | X26: 0 | Y26: 0.1837957497 | Z26: 0 | AA26: 0.04784688995 | AB26: 0 | AC26: 142484.2182 | AD26: 0 | AE26: 0 | AF26: 1 | AG26: 0 | AH26: 62790 | AI26: 0 | AJ26: 0 | AK26: 4910.405 | AL26: 1941489.142 | AM26: 130061.257 | AN26: 44544 | AO26: 415 | AP26: 0 | AQ26: 0 | AR26: 0 | AS26: 0 | AT26: 0
A27: 2161 | B27: Boughton Monchelsea Primary School | C27: 1 | D27: 208 | E27: 0 | F27: 0 | G27: 0.1442307692 | H27: 0 | I27: 0.1490384615 | J27: 0 | K27: 0.1009615385 | L27: 0.004807692308 | M27: 0 | N27: 0.01923076923 | O27: 0.05769230769 | P27: 0 | Q27: 0 | R27: 0 | S27: 0 | T27: 0 | U27: 0 | V27: 0 | W27: 0.0393258427 | X27: 0 | Y27: 0.3427644621 | Z27: 0 | AA27: 0.02884615385 | AB27: 0 | AC27: 142484.2182 | AD27: 0 | AE27: 0 | AF27: 1 | AG27: 0 | AH27: 29775 | AI27: 0 | AJ27: 0 | AK27: 4910.405 | AL27: 1042938.063 | AM27: 74968.9073 | AN27: 22580 | AO27: 210 | AP27: 0 | AQ27: 0 | AR27: 0 | AS27: 0 | AT27: 0
A28: 2163 | B28: East Farleigh Primary School | C28: 1 | D28: 208 | E28: 0 | F28: 0 | G28: 0.1778846154 | H28: 0 | I28: 0.1778846154 | J28: 0 | K28: 0.1009615385 | L28: 0.05769230769 | M28: 0 | N28: 0 | O28: 0.04326923077 | P28: 0 | Q28: 0 | R28: 0 | S28: 0 | T28: 0 | U28: 0 | V28: 0 | W28: 0.01117318436 | X28: 0 | Y28: 0.2648687763 | Z28: 0 | AA28: 0.0193236715 | AB28: 0 | AC28: 142484.2182 | AD28: 0 | AE28: 0 | AF28: 1 | AG28: 0 | AH28: 20060 | AI28: 0 | AJ28: 0 | AK28: 4910.405 | AL28: 1012817.387 | AM28: 74502.5658 | AN28: 16717 | AO28: 210 | AP28: 0 | AQ28: 0 | AR28: 0 | AS28: 0 | AT28: 0
A29: 2164 | B29: East Peckham Primary School | C29: 1 | D29: 199 | E29: 0 | F29: 0 | G29: 0.1959798995 | H29: 0 | I29: 0.1959798995 | J29: 0 | K29: 0.4924623116 | L29: 0.04522613065 | M29: 0 | N29: 0 | O29: 0.005025125628 | P29: 0 | Q29: 0 | R29: 0 | S29: 0 | T29: 0 | U29: 0 | V29: 0 | W29: 0.02352941176 | X29: 0 | Y29: 0.2974051896 | Z29: 0 | AA29: 0.05025125628 | AB29: 0 | AC29: 142484.2182 | AD29: 0 | AE29: 0 | AF29: 1 | AG29: 0 | AH29: 20334 | AI29: 0 | AJ29: 0 | AK29: 4910.405 | AL29: 910244.3497 | AM29: 65177.7363 | AN29: 20709 | AO29: 180 | AP29: 0 | AQ29: 0 | AR29: 0 | AS29: 0 | AT29: 0
A30: 2165 | B30: Headcorn Primary School | C30: 1 | D30: 399 | E30: 0 | F30: 0 | G30: 0.2380952381 | H30: 0 | I30: 0.2380952381 | J30: 0 | K30: 0.007537688442 | L30: 0.002512562814 | M30: 0.3316582915 | N30: 0.002512562814 | O30: 0.002512562814 | P30: 0 | Q30: 0 | R30: 0 | S30: 0 | T30: 0 | U30: 0 | V30: 0 | W30: 0.03244837758 | X30: 0 | Y30: 0.2114689626 | Z30: 0 | AA30: 0.05513784461 | AB30: 0 | AC30: 142484.2182 | AD30: 0 | AE30: 0 | AF30: 1 | AG30: 0 | AH30: 57330 | AI30: 0 | AJ30: 0 | AK30: 4910.405 | AL30: 1859184.98 | AM30: 135129.9694 | AN30: 40918 | AO30: 398 | AP30: 0 | AQ30: 0 | AR30: 0 | AS30: 0 | AT30: 0
A31: 2166 | B31: Hollingbourne Primary School | C31: 1 | D31: 99 | E31: 0 | F31: 0 | G31: 0.2222222222 | H31: 0 | I31: 0.2222222222 | J31: 0 | K31: 0.0404040404 | L31: 0.0101010101 | M31: 0 | N31: 0.0303030303 | O31: 0 | P31: 0 | Q31: 0 | R31: 0 | S31: 0 | T31: 0 | U31: 0 | V31: 0 | W31: 0 | X31: 0 | Y31: 0.3656462585 | Z31: 0 | AA31: 0.1313131313 | AB31: 0 | AC31: 142484.2182 | AD31: 38190.0561 | AE31: 0 | AF31: 1 | AG31: 0 | AH31: 15719 | AI31: 0 | AJ31: 0 | AK31: 4910.405 | AL31: 586806.1528 | AM31: 40358.5587 | AN31: 13723 | AO31: 94 | AP31: 0 | AQ31: 0 | AR31: 0 | AS31: 0 | AT31: 0
A32: 2167 | B32: Ightham Primary School | C32: 1 | D32: 210 | E32: 0 | F32: 0 | G32: 0.04285714286 | H32: 0 | I32: 0.04285714286 | J32: 0 | K32: 0.03846153846 | L32: 0.004807692308 | M32: 0 | N32: 0 | O32: 0 | P32: 0 | Q32: 0 | R32: 0 | S32: 0 | T32: 0 | U32: 0 | V32: 0 | W32: 0.03888888889 | X32: 0 | Y32: 0.1833333333 | Z32: 0 | AA32: 0.009523809524 | AB32: 0 | AC32: 142484.2182 | AD32: 0 | AE32: 0 | AF32: 1 | AG32: 0 | AH32: 28404 | AI32: 0 | AJ32: 0 | AK32: 4910.405 | AL32: 976275.59 | AM32: 66543.7367 | AN32: 21457 | AO32: 209 | AP32: 0 | AQ32: 0 | AR32: 0 | AS32: 0 | AT32: 0
A33: 2168 | B33: Lenham Primary School | C33: 1 | D33: 205 | E33: 0 | F33: 0 | G33: 0.3024390244 | H33: 0 | I33: 0.3024390244 | J33: 0 | K33: 0.00487804878 | L33: 0.009756097561 | M33: 0 | N33: 0.00487804878 | O33: 0 | P33: 0.00487804878 | Q33: 0 | R33: 0 | S33: 0 | T33: 0 | U33: 0 | V33: 0 | W33: 0.02762430939 | X33: 0 | Y33: 0.3532258065 | Z33: 0 | AA33: 0.0243902439 | AB33: 0 | AC33: 142484.2182 | AD33: 0 | AE33: 0 | AF33: 1 | AG33: 0 | AH33: 22604 | AI33: 0 | AJ33: 0 | AK33: 4910.405 | AL33: 1027256.986 | AM33: 73974.1788 | AN33: 18837 | AO33: 208 | AP33: 0 | AQ33: 0 | AR33: 0 | AS33: 0 | AT33: 0
A34: 2169 | B34: Platts Heath Primary School | C34: 1 | D34: 55 | E34: 0 | F34: 0 | G34: 0.3818181818 | H34: 0 | I34: 0.4 | J34: 0 | K34: 0 | L34: 0 | M34: 0.09090909091 | N34: 0 | O34: 0.03636363636 | P34: 0 | Q34: 0 | R34: 0 | S34: 0 | T34: 0 | U34: 0 | V34: 0 | W34: 0.02173913043 | X34: 0 | Y34: 0.47 | Z34: 0 | AA34: 0.1320754717 | AB34: 0 | AC34: 142484.2182 | AD34: 16329.25607 | AE34: 0 | AF34: 1 | AG34: 0 | AH34: 2580 | AI34: 0 | AJ34: 0 | AK34: 4910.405 | AL34: 372326.3776 | AM34: 27132.8721 | AN34: 2345 | AO34: 51 | AP34: 0 | AQ34: 0 | AR34: 0 | AS34: 0 | AT34: 0
A35: 2171 | B35: Brunswick House Primary School | C35: 1 | D35: 406 | E35: 0 | F35: 0 | G35: 0.2463054187 | H35: 0 | I35: 0.2512315271 | J35: 0 | K35: 0.1382716049 | L35: 0.01234567901 | M35: 0.004938271605 | N35: 0.00987654321 | O35: 0.004938271605 | P35: 0 | Q35: 0 | R35: 0 | S35: 0 | T35: 0 | U35: 0 | V35: 0 | W35: 0.1959654179 | X35: 0 | Y35: 0.3653936652 | Z35: 0 | AA35: 0.07389162562 | AB35: 0 | AC35: 142484.2182 | AD35: 0 | AE35: 0 | AF35: 1 | AG35: 0 | AH35: 79170 | AI35: 0 | AJ35: 0 | AK35: 4910.405 | AL35: 2048109.178 | AM35: 146134.0287 | AN35: 66048 | AO35: 422 | AP35: 0 | AQ35: 0 | AR35: 0 | AS35: 0 | AT35: 0
A36: 2175 | B36: North Borough Junior School | C36: 1 | D36: 352 | E36: 0 | F36: 0 | G36: 0.3238636364 | H36: 0 | I36: 0.3295454545 | J36: 0 | K36: 0.2670454545 | L36: 0.03693181818 | M36: 0.008522727273 | N36: 0.01136363636 | O36: 0.01420454545 | P36: 0 | Q36: 0 | R36: 0 | S36: 0 | T36: 0 | U36: 0 | V36: 0 | W36: 0.1960227273 | X36: 0 | Y36: 0.3663026434 | Z36: 0 | AA36: 0.07122507123 | AB36: 0 | AC36: 142484.2182 | AD36: 0 | AE36: 0 | AF36: 1 | AG36: 0 | AH36: 28938 | AI36: 0 | AJ36: 0 | AK36: 4910.405 | AL36: 1745043.074 | AM36: 130888.8632 | AN36: 23328 | AO36: 359 | AP36: 0 | AQ36: 0 | AR36: 0 | AS36: 0 | AT36: 0
A37: 2176 | B37: Park Way Primary School | C37: 1 | D37: 306 | E37: 0 | F37: 0 | G37: 0.2647058824 | H37: 0 | I37: 0.2712418301 | J37: 0 | K37: 0.1535947712 | L37: 0.2908496732 | M37: 0.02941176471 | N37: 0.02614379085 | O37: 0.06535947712 | P37: 0 | Q37: 0 | R37: 0 | S37: 0 | T37: 0 | U37: 0 | V37: 0 | W37: 0.178030303 | X37: 0 | Y37: 0.3798648649 | Z37: 0 | AA37: 0.06885245902 | AB37: 0 | AC37: 142484.2182 | AD37: 0 | AE37: 0 | AF37: 1 | AG37: 0 | AH37: 37765 | AI37: 0 | AJ37: 0 | AK37: 4910.405 | AL37: 1589894.591 | AM37: 112813.6248 | AN37: 33280 | AO37: 310 | AP37: 0 | AQ37: 0 | AR37: 0 | AS37: 0 | AT37: 0
A38: 2185 | B38: Mereworth Community Primary School | C38: 1 | D38: 203 | E38: 0 | F38: 0 | G38: 0.1379310345 | H38: 0 | I38: 0.1379310345 | J38: 0 | K38: 0.103960396 | L38: 0.0297029703 | M38: 0 | N38: 0.00495049505 | O38: 0 | P38: 0 | Q38: 0 | R38: 0 | S38: 0 | T38: 0 | U38: 0 | V38: 0 | W38: 0.01685393258 | X38: 0 | Y38: 0.1927447552 | Z38: 0 | AA38: 0.04433497537 | AB38: 0 | AC38: 142484.2182 | AD38: 0 | AE38: 0 | AF38: 1 | AG38: 0 | AH38: 34398 | AI38: 0 | AJ38: 0 | AK38: 4910.405 | AL38: 961208.2592 | AM38: 70026.2873 | AN38: 26368 | AO38: 201 | AP38: 0 | AQ38: 0 | AR38: 0 | AS38: 0 | AT38: 0
A39: 2187 | B39: Offham Primary School | C39: 1 | D39: 199 | E39: 0 | F39: 0 | G39: 0.07537688442 | H39: 0 | I39: 0.08542713568 | J39: 0 | K39: 0.135678392 | L39: 0.005025125628 | M39: 0 | N39: 0.005025125628 | O39: 0.01507537688 | P39: 0 | Q39: 0 | R39: 0 | S39: 0 | T39: 0 | U39: 0 | V39: 0 | W39: 0.01764705882 | X39: 0 | Y39: 0.2282131661 | Z39: 0 | AA39: 0.05527638191 | AB39: 0 | AC39: 142484.2182 | AD39: 0 | AE39: 0 | AF39: 1 | AG39: 0 | AH39: 31318 | AI39: 0 | AJ39: 0 | AK39: 4910.405 | AL39: 929905.2015 | AM39: 65471.9517 | AN39: 23827 | AO39: 197 | AP39: 0 | AQ39: 0 | AR39: 0 | AS39: 0 | AT39: 0
A40: 2188 | B40: Plaxtol Primary School | C40: 1 | D40: 75 | E40: 0 | F40: 0 | G40: 0.1733333333 | H40: 0 | I40: 0.1733333333 | J40: 0 | K40: 0.09333333333 | L40: 0.05333333333 | M40: 0 | N40: 0 | O40: 0 | P40: 0 | Q40: 0 | R40: 0 | S40: 0 | T40: 0 | U40: 0 | V40: 0 | W40: 0.01408450704 | X40: 0 | Y40: 0.262254902 | Z40: 0 | AA40: 0.04 | AB40: 0 | AC40: 142484.2182 | AD40: 49906.43453 | AE40: 0 | AF40: 1 | AG40: 0 | AH40: 15220 | AI40: 0 | AJ40: 0 | AK40: 4910.405 | AL40: 529682.8482 | AM40: 34250.0848 | AN40: 13847 | AO40: 85 | AP40: 0 | AQ40: 0 | AR40: 0 | AS40: 0 | AT40: 0
A41: 2189 | B41: Ryarsh Primary School | C41: 1 | D41: 209 | E41: 0 | F41: 0 | G41: 0.1100478469 | H41: 0 | I41: 0.1100478469 | J41: 0 | K41: 0.01435406699 | L41: 0.004784688995 | M41: 0 | N41: 0.004784688995 | O41: 0 | P41: 0 | Q41: 0 | R41: 0 | S41: 0 | T41: 0 | U41: 0 | V41: 0 | W41: 0.01675977654 | X41: 0 | Y41: 0.1528477334 | Z41: 0 | AA41: 0.02392344498 | AB41: 0 | AC41: 142484.2182 | AD41: 0 | AE41: 0 | AF41: 1 | AG41: 0 | AH41: 24659 | AI41: 0 | AJ41: 0 | AK41: 4910.405 | AL41: 971807.08 | AM41: 69543.9341 | AN41: 21557 | AO41: 208 | AP41: 0 | AQ41: 0 | AR41: 0 | AS41: 0 | AT41: 0
A42: 2190 | B42: Shipbourne School | C42: 1 | D42: 58 | E42: 0 | F42: 0 | G42: 0.06896551724 | H42: 0 | I42: 0.06896551724 | J42: 0 | K42: 0.1896551724 | L42: 0.03448275862 | M42: 0.01724137931 | N42: 0 | O42: 0 | P42: 0 | Q42: 0 | R42: 0 | S42: 0 | T42: 0 | U42: 0 | V42: 0 | W42: 0.0612244898 | X42: 0 | Y42: 0.2717391304 | Z42: 0 | AA42: 0.05172413793 | AB42: 0 | AC42: 142484.2182 | AD42: 0 | AE42: 0 | AF42: 1 | AG42: 0 | AH42: 7411 | AI42: 0 | AJ42: 0 | AK42: 4910.405 | AL42: 377620.476 | AM42: 26883.6896 | AN42: 6737 | AO42: 58 | AP42: 0 | AQ42: 0 | AR42: 0 | AS42: 0 | AT42: 0
A43: 2192 | B43: Staplehurst School | C43: 1 | D43: 386 | E43: 0 | F43: 0 | G43: 0.2227979275 | H43: 0 | I43: 0.225388601 | J43: 0 | K43: 0.02857142857 | L43: 0.01558441558 | M43: 0.002597402597 | N43: 0.005194805195 | O43: 0 | P43: 0 | Q43: 0 | R43: 0 | S43: 0 | T43: 0 | U43: 0 | V43: 0 | W43: 0.05105105105 | X43: 0 | Y43: 0.2981287235 | Z43: 0 | AA43: 0.08549222798 | AB43: 0 | AC43: 142484.2182 | AD43: 0 | AE43: 0 | AF43: 1 | AG43: 0 | AH43: 42588 | AI43: 0 | AJ43: 0 | AK43: 4910.405 | AL43: 1819350.9 | AM43: 131850.5675 | AN43: 37632 | AO43: 390 | AP43: 0 | AQ43: 0 | AR43: 0 | AS43: 0 | AT43: 0
A44: 2193 | B44: Sutton Valence Primary School | C44: 1 | D44: 208 | E44: 0 | F44: 0 | G44: 0.2548076923 | H44: 0 | I44: 0.2548076923 | J44: 0 | K44: 0.08653846154 | L44: 0.0625 | M44: 0.03365384615 | N44: 0.02403846154 | O44: 0 | P44: 0 | Q44: 0 | R44: 0 | S44: 0 | T44: 0 | U44: 0 | V44: 0 | W44: 0.07865168539 | X44: 0 | Y44: 0.229542632 | Z44: 0 | AA44: 0.08695652174 | AB44: 0 | AC44: 142484.2182 | AD44: 0 | AE44: 0 | AF44: 1 | AG44: 0 | AH44: 23802 | AI44: 0 | AJ44: 0 | AK44: 4910.405 | AL44: 976832.7442 | AM44: 72731.2685 | AN44: 19835 | AO44: 198 | AP44: 0 | AQ44: 0 | AR44: 0 | AS44: 0 | AT44: 0
A45: 2226 | B45: Eastling Primary School | C45: 1 | D45: 105 | E45: 0 | F45: 0 | G45: 0.1904761905 | H45: 0 | I45: 0.1904761905 | J45: 0 | K45: 0.1523809524 | L45: 0.0380952381 | M45: 0.01904761905 | N45: 0 | O45: 0.01904761905 | P45: 0 | Q45: 0 | R45: 0 | S45: 0 | T45: 0 | U45: 0 | V45: 0 | W45: 0.05681818182 | X45: 0 | Y45: 0.3149801587 | Z45: 0 | AA45: 0.1238095238 | AB45: 0 | AC45: 142484.2182 | AD45: 33679.41955 | AE45: 0 | AF45: 1 | AG45: 0 | AH45: 14222 | AI45: 0 | AJ45: 0 | AK45: 4910.405 | AL45: 596371.9107 | AM45: 40218.456 | AN45: 12974 | AO45: 97 | AP45: 0 | AQ45: 0 | AR45: 0 | AS45: 0 | AT45: 0
A46: 2227 | B46: Ethelbert Road Primary School | C46: 1 | D46: 207 | E46: 0 | F46: 0 | G46: 0.05797101449 | H46: 0 | I46: 0.06280193237 | J46: 0 | K46: 0.01449275362 | L46: 0.05314009662 | M46: 0.03381642512 | N46: 0.004830917874 | O46: 0.004830917874 | P46: 0 | Q46: 0 | R46: 0 | S46: 0 | T46: 0 | U46: 0 | V46: 0 | W46: 0.04519774011 | X46: 0 | Y46: 0.2032828283 | Z46: 0 | AA46: 0.0193236715 | AB46: 0 | AC46: 142484.2182 | AD46: 0 | AE46: 0 | AF46: 1 | AG46: 0 | AH46: 13772 | AI46: 0 | AJ46: 0 | AK46: 4910.405 | AL46: 957158.57 | AM46: 67414.3744 | AN46: 11477 | AO46: 207 | AP46: 0 | AQ46: 0 | AR46: 0 | AS46: 0 | AT46: 0
A47: 2228 | B47: Davington Primary School | C47: 1 | D47: 417 | E47: 0 | F47: 0 | G47: 0.206235012 | H47: 0 | I47: 0.206235012 | J47: 0 | K47: 0.1199040767 | L47: 0.05995203837 | M47: 0.05755395683 | N47: 0 | O47: 0.2949640288 | P47: 0.007194244604 | Q47: 0 | R47: 0 | S47: 0 | T47: 0 | U47: 0 | V47: 0 | W47: 0.05849582173 | X47: 0 | Y47: 0.2823271758 | Z47: 0 | AA47: 0.04076738609 | AB47: 0 | AC47: 142484.2182 | AD47: 0 | AE47: 0 | AF47: 1 | AG47: 0 | AH47: 46683 | AI47: 0 | AJ47: 0 | AK47: 4910.405 | AL47: 1994669.944 | AM47: 141781.8412 | AN47: 39424 | AO47: 417 | AP47: 0 | AQ47: 0 | AR47: 0 | AS47: 0 | AT47: 0
A48: 2231 | B48: Lower Halstow Primary School | C48: 1 | D48: 187 | E48: 0 | F48: 0 | G48: 0.1390374332 | H48: 0 | I48: 0.1497326203 | J48: 0 | K48: 0.08602150538 | L48: 0.1505376344 | M48: 0.01612903226 | N48: 0.04301075269 | O48: 0.005376344086 | P48: 0 | Q48: 0 | R48: 0 | S48: 0 | T48: 0 | U48: 0 | V48: 0 | W48: 0.03205128205 | X48: 0 | Y48: 0.3821656051 | Z48: 0 | AA48: 0.06951871658 | AB48: 0 | AC48: 142484.2182 | AD48: 0 | AE48: 0 | AF48: 1 | AG48: 0 | AH48: 27655 | AI48: 0 | AJ48: 0 | AK48: 4910.405 | AL48: 935914.1363 | AM48: 66063.3849 | AN48: 20833 | AO48: 186 | AP48: 0 | AQ48: 0 | AR48: 0 | AS48: 0 | AT48: 0
A49: 2239 | B49: Rodmersham School | C49: 1 | D49: 132 | E49: 0 | F49: 0 | G49: 0.09090909091 | H49: 0 | I49: 0.1060606061 | J49: 0 | K49: 0.06060606061 | L49: 0.1060606061 | M49: 0.06060606061 | N49: 0.007575757576 | O49: 0 | P49: 0.01515151515 | Q49: 0 | R49: 0 | S49: 0 | T49: 0 | U49: 0 | V49: 0 | W49: 0.025 | X49: 0 | Y49: 0.2025535236 | Z49: 0 | AA49: 0.1212121212 | AB49: 0 | AC49: 142484.2182 | AD49: 0 | AE49: 0 | AF49: 1 | AG49: 0 | AH49: 6449 | AI49: 0 | AJ49: 12530 | AK49: 4910.405 | AL49: 684232.4764 | AM49: 47692.9304 | AN49: 5863 | AO49: 135 | AP49: 0 | AQ49: 0 | AR49: 0 | AS49: 0 | AT49: 0
A50: 2245 | B50: Rose Street Primary School | C50: 1 | D50: 382 | E50: 0 | F50: 0 | G50: 0.6492146597 | H50: 0 | I50: 0.6544502618 | J50: 0 | K50: 0.007853403141 | L50: 0.02094240838 | M50: 0 | N50: 0.1492146597 | O50: 0.3455497382 | P50: 0.4685863874 | Q50: 0 | R50: 0 | S50: 0 | T50: 0 | U50: 0 | V50: 0 | W50: 0.09667673716 | X50: 0 | Y50: 0.3787477428 | Z50: 0 | AA50: 0.0942408377 | AB50: 0 | AC50: 142484.2182 | AD50: 0 | AE50: 0 | AF50: 1 | AG50: 0 | AH50: 110838 | AI50: 0 | AJ50: 0 | AK50: 4910.405 | AL50: 2249300.123 | AM50: 165210 | AN50: 79872 | AO50: 383 | AP50: 0 | AQ50: 0 | AR50: 0 | AS50: 1.34 | AT50: 0
A51: 2254 | B51: Canterbury Road Primary School | C51: 1 | D51: 208 | E51: 0 | F51: 0 | G51: 0.3173076923 | H51: 0 | I51: 0.3221153846 | J51: 0 | K51: 0.1449275362 | L51: 0.3816425121 | M51: 0.1256038647 | N51: 0 | O51: 0 | P51: 0.1062801932 | Q51: 0 | R51: 0 | S51: 0 | T51: 0 | U51: 0 | V51: 0 | W51: 0.1340782123 | X51: 0 | Y51: 0.3882890365 | Z51: 0 | AA51: 0.06730769231 | AB51: 0 | AC51: 142484.2182 | AD51: 0 | AE51: 0 | AF51: 1 | AG51: 0 | AH51: 34944 | AI51: 0 | AJ51: 0 | AK51: 4910.405 | AL51: 1136041.648 | AM51: 79803.4481 | AN51: 29952 | AO51: 208 | AP51: 0 | AQ51: 0 | AR51: 0 | AS51: 0 | AT51: 0
A52: 2258 | B52: Blean Primary School | C52: 1 | D52: 434 | E52: 0 | F52: 0 | G52: 0.08064516129 | H52: 0 | I52: 0.08525345622 | J52: 0 | K52: 0.01843317972 | L52: 0.02073732719 | M52: 0.009216589862 | N52: 0.03686635945 | O52: 0.03917050691 | P52: 0 | Q52: 0 | R52: 0 | S52: 0 | T52: 0 | U52: 0 | V52: 0 | W52: 0.06684491979 | X52: 0 | Y52: 0.2101721428 | Z52: 0 | AA52: 0.03464203233 | AB52: 0 | AC52: 142484.2182 | AD52: 0 | AE52: 0 | AF52: 1 | AG52: 0 | AH52: 44499 | AI52: 0 | AJ52: 0 | AK52: 4910.405 | AL52: 2015796.83 | AM52: 133417.7153 | AN52: 37632 | AO52: 433 | AP52: 0 | AQ52: 0 | AR52: 0 | AS52: 0 | AT52: 0
A53: 2263 | B53: Herne Bay Infant School | C53: 1 | D53: 239 | E53: 0 | F53: 0 | G53: 0.4058577406 | H53: 0 | I53: 0.4058577406 | J53: 0 | K53: 0.1464435146 | L53: 0.01255230126 | M53: 0.10041841 | N53: 0.08368200837 | O53: 0.1631799163 | P53: 0.004184100418 | Q53: 0 | R53: 0 | S53: 0 | T53: 0 | U53: 0 | V53: 0 | W53: 0.08805031447 | X53: 0 | Y53: 0.4204545455 | Z53: 0 | AA53: 0.03765690377 | AB53: 0 | AC53: 142484.2182 | AD53: 0 | AE53: 0 | AF53: 1 | AG53: 0 | AH53: 19162 | AI53: 0 | AJ53: 0 | AK53: 4910.405 | AL53: 1408540.833 | AM53: 103722.9668 | AN53: 15968 | AO53: 265 | AP53: 0 | AQ53: 0 | AR53: 0 | AS53: 1.34 | AT53: 0
A54: 2265 | B54: Hoath Primary School | C54: 1 | D54: 104 | E54: 0 | F54: 0 | G54: 0.25 | H54: 0 | I54: 0.2596153846 | J54: 0 | K54: 0.2115384615 | L54: 0.05769230769 | M54: 0 | N54: 0.03846153846 | O54: 0.009615384615 | P54: 0 | Q54: 0 | R54: 0 | S54: 0 | T54: 0 | U54: 0 | V54: 0 | W54: 0 | X54: 0 | Y54: 0.4181380417 | Z54: 0 | AA54: 0.05769230769 | AB54: 0 | AC54: 142484.2182 | AD54: 0 | AE54: 0 | AF54: 1 | AG54: 0 | AH54: 17215 | AI54: 0 | AJ54: 0 | AK54: 4910.405 | AL54: 594430.1781 | AM54: 42067.8105 | AN54: 14346 | AO54: 104 | AP54: 0 | AQ54: 0 | AR54: 0 | AS54: 0 | AT54: 0
A55: 2268 | B55: Westmeads Community Infant School | C55: 1 | D55: 141 | E55: 0 | F55: 0 | G55: 0.2127659574 | H55: 0 | I55: 0.2127659574 | J55: 0 | K55: 0 | L55: 0.007142857143 | M55: 0.05714285714 | N55: 0.02857142857 | O55: 0 | P55: 0 | Q55: 0 | R55: 0 | S55: 0 | T55: 0 | U55: 0 | V55: 0 | W55: 0.07692307692 | X55: 0 | Y55: 0.3258426966 | Z55: 0 | AA55: 0.02127659574 | AB55: 0 | AC55: 142484.2182 | AD55: 0 | AE55: 0 | AF55: 1 | AG55: 0 | AH55: 23653 | AI55: 0 | AJ55: 0 | AK55: 4910.405 | AL55: 748700.5292 | AM55: 54236.723 | AN55: 19711 | AO55: 143 | AP55: 0 | AQ55: 0 | AR55: 0 | AS55: 0 | AT55: 0
A56: 2269 | B56: Whitstable Junior School | C56: 1 | D56: 194 | E56: 0 | F56: 0 | G56: 0.324742268 | H56: 0 | I56: 0.3350515464 | J56: 0 | K56: 0.0206185567 | L56: 0.005154639175 | M56: 0.1649484536 | N56: 0.0206185567 | O56: 0.01030927835 | P56: 0 | Q56: 0 | R56: 0 | S56: 0 | T56: 0 | U56: 0 | V56: 0 | W56: 0.015625 | X56: 0 | Y56: 0.3299064307 | Z56: 0 | AA56: 0.05670103093 | AB56: 0 | AC56: 142484.2182 | AD56: 0 | AE56: 0 | AF56: 1 | AG56: 0 | AH56: 23194 | AI56: 0 | AJ56: 0 | AK56: 4910.405 | AL56: 1101745.82 | AM56: 83875.4305 | AN56: 18837 | AO56: 219 | AP56: 0 | AQ56: 0 | AR56: 0 | AS56: 0 | AT56: 0
A57: 2270 | B57: Aldington Primary School | C57: 1 | D57: 193 | E57: 0 | F57: 0 | G57: 0.09844559585 | H57: 0 | I57: 0.103626943 | J57: 0 | K57: 0.00518134715 | L57: 0.0207253886 | M57: 0.00518134715 | N57: 0 | O57: 0.0103626943 | P57: 0 | Q57: 0 | R57: 0 | S57: 0 | T57: 0 | U57: 0 | V57: 0 | W57: 0.006134969325 | X57: 0 | Y57: 0.3352528838 | Z57: 0 | AA57: 0.0414507772 | AB57: 0 | AC57: 142484.2182 | AD57: 0 | AE57: 0 | AF57: 1 | AG57: 0 | AH57: 39350 | AI57: 0 | AJ57: 0 | AK57: 4910.405 | AL57: 929134.6004 | AM57: 65550.0089 | AN57: 29952 | AO57: 192 | AP57: 0 | AQ57: 0 | AR57: 0 | AS57: 0 | AT57: 0
A58: 2275 | B58: Victoria Road Primary School | C58: 1 | D58: 210 | E58: 0 | F58: 0 | G58: 0.2238095238 | H58: 0 | I58: 0.2333333333 | J58: 0 | K58: 0.1047619048 | L58: 0.0380952381 | M58: 0.01904761905 | N58: 0 | O58: 0.06666666667 | P58: 0 | Q58: 0 | R58: 0 | S58: 0 | T58: 0 | U58: 0 | V58: 0 | W58: 0.2166666667 | X58: 0 | Y58: 0.2959276018 | Z58: 0 | AA58: 0.04285714286 | AB58: 0 | AC58: 142484.2182 | AD58: 0 | AE58: 0 | AF58: 1 | AG58: 0 | AH58: 18114 | AI58: 0 | AJ58: 0 | AK58: 4910.405 | AL58: 1048868.001 | AM58: 77735.9339 | AN58: 15095 | AO58: 209 | AP58: 0 | AQ58: 0 | AR58: 0 | AS58: 0 | AT58: 0
A59: 2276 | B59: Willesborough Infant School | C59: 1 | D59: 352 | E59: 0 | F59: 0 | G59: 0.1221590909 | H59: 0 | I59: 0.1278409091 | J59: 0 | K59: 0.1392045455 | L59: 0.1448863636 | M59: 0 | N59: 0.005681818182 | O59: 0.02272727273 | P59: 0 | Q59: 0 | R59: 0 | S59: 0 | T59: 0 | U59: 0 | V59: 0 | W59: 0.3004291845 | X59: 0 | Y59: 0.2678571429 | Z59: 0 | AA59: 0.01988636364 | AB59: 0 | AC59: 142484.2182 | AD59: 0 | AE59: 0 | AF59: 1 | AG59: 0 | AH59: 30303 | AI59: 0 | AJ59: 0 | AK59: 4910.405 | AL59: 1641151.773 | AM59: 112857.6571 | AN59: 23079 | AO59: 349 | AP59: 0 | AQ59: 0 | AR59: 0 | AS59: 0 | AT59: 0
A60: 2278 | B60: Bethersden Primary School | C60: 1 | D60: 113 | E60: 0 | F60: 0 | G60: 0.2477876106 | H60: 0 | I60: 0.2477876106 | J60: 0 | K60: 0.008849557522 | L60: 0.008849557522 | M60: 0.008849557522 | N60: 0 | O60: 0.03539823009 | P60: 0 | Q60: 0 | R60: 0 | S60: 0 | T60: 0 | U60: 0 | V60: 0 | W60: 0.0202020202 | X60: 0 | Y60: 0.2037669932 | Z60: 0 | AA60: 0.03539823009 | AB60: 0 | AC60: 142484.2182 | AD60: 27665.23749 | AE60: 0 | AF60: 1 | AG60: 0 | AH60: 13174 | AI60: 0 | AJ60: 0 | AK60: 4910.405 | AL60: 664495.3468 | AM60: 49092.9557 | AN60: 10978 | AO60: 120 | AP60: 0 | AQ60: 0 | AR60: 0 | AS60: 0 | AT60: 0
A61: 2279 | B61: Brook Community Primary School | C61: 1 | D61: 74 | E61: 0 | F61: 0 | G61: 0.2432432432 | H61: 0 | I61: 0.2432432432 | J61: 0 | K61: 0.02702702703 | L61: 0.05405405405 | M61: 0.02702702703 | N61: 0 | O61: 0.08108108108 | P61: 0 | Q61: 0 | R61: 0 | S61: 0 | T61: 0 | U61: 0 | V61: 0 | W61: 0.046875 | X61: 0 | Y61: 0.2771672772 | Z61: 0 | AA61: 0.1891891892 | AB61: 0 | AC61: 142484.2182 | AD61: 56307.77956 | AE61: 0 | AF61: 1 | AG61: 0 | AH61: 9469 | AI61: 0 | AJ61: 0 | AK61: 4910.405 | AL61: 503990.5089 | AM61: 32307.6622 | AN61: 8608 | AO61: 75 | AP61: 0 | AQ61: 0 | AR61: 0 | AS61: 0 | AT61: 0
A62: 2280 | B62: Challock Primary School | C62: 1 | D62: 208 | E62: 0 | F62: 0 | G62: 0.125 | H62: 0 | I62: 0.125 | J62: 0 | K62: 0 | L62: 0.1359223301 | M62: 0.009708737864 | N62: 0.0145631068 | O62: 0 | P62: 0 | Q62: 0 | R62: 0 | S62: 0 | T62: 0 | U62: 0 | V62: 0 | W62: 0.01685393258 | X62: 0 | Y62: 0.1907721281 | Z62: 0 | AA62: 0.02403846154 | AB62: 0 | AC62: 142484.2182 | AD62: 0 | AE62: 0 | AF62: 1 | AG62: 0 | AH62: 26097 | AI62: 0 | AJ62: 0 | AK62: 4910.405 | AL62: 979098.1 | AM62: 70538.6626 | AN62: 19711 | AO62: 210 | AP62: 0 | AQ62: 0 | AR62: 0 | AS62: 0 | AT62: 0
A63: 2282 | B63: Great Chart Primary School | C63: 1 | D63: 421 | E63: 0 | F63: 0 | G63: 0.1757719715 | H63: 0 | I63: 0.1757719715 | J63: 0 | K63: 0.007142857143 | L63: 0.02142857143 | M63: 0.01904761905 | N63: 0 | O63: 0.02857142857 | P63: 0 | Q63: 0 | R63: 0 | S63: 0 | T63: 0 | U63: 0 | V63: 0 | W63: 0.1396648045 | X63: 0 | Y63: 0.1791902072 | Z63: 0 | AA63: 0.02612826603 | AB63: 0 | AC63: 142484.2182 | AD63: 0 | AE63: 0 | AF63: 1 | AG63: 0 | AH63: 44226 | AI63: 0 | AJ63: 0 | AK63: 4910.405 | AL63: 1957174.2 | AM63: 139310.0308 | AN63: 38400 | AO63: 420 | AP63: 0 | AQ63: 0 | AR63: 0 | AS63: 0 | AT63: 0
A64: 2285 | B64: Mersham Primary School | C64: 1 | D64: 170 | E64: 0 | F64: 0 | G64: 0.2235294118 | H64: 0 | I64: 0.2352941176 | J64: 0 | K64: 0.03529411765 | L64: 0.01176470588 | M64: 0 | N64: 0.005882352941 | O64: 0.04705882353 | P64: 0 | Q64: 0 | R64: 0 | S64: 0 | T64: 0 | U64: 0 | V64: 0 | W64: 0.07284768212 | X64: 0 | Y64: 0.2444860289 | Z64: 0 | AA64: 0.09411764706 | AB64: 0 | AC64: 142484.2182 | AD64: 0 | AE64: 0 | AF64: 1 | AG64: 0 | AH64: 9431 | AI64: 0 | AJ64: 0 | AK64: 4910.405 | AL64: 835499.0956 | AM64: 62333.6532 | AN64: 7859 | AO64: 171 | AP64: 0 | AQ64: 0 | AR64: 0 | AS64: 0 | AT64: 0
A65: 2289 | B65: Smeeth Community Primary School | C65: 1 | D65: 110 | E65: 0 | F65: 0 | G65: 0.1545454545 | H65: 0 | I65: 0.1545454545 | J65: 0 | K65: 0.07339449541 | L65: 0.03669724771 | M65: 0.009174311927 | N65: 0 | O65: 0 | P65: 0 | Q65: 0 | R65: 0 | S65: 0 | T65: 0 | U65: 0 | V65: 0 | W65: 0 | X65: 0 | Y65: 0.1603927987 | Z65: 0 | AA65: 0.02727272727 | AB65: 0 | AC65: 142484.2182 | AD65: 0 | AE65: 0 | AF65: 1 | AG65: 0 | AH65: 17091 | AI65: 0 | AJ65: 0 | AK65: 4910.405 | AL65: 595975.0563 | AM65: 43808.0851 | AN65: 14845 | AO65: 115 | AP65: 0 | AQ65: 0 | AR65: 0 | AS65: 0 | AT65: 0
A66: 2298 | B66: Hawkinge Primary School | C66: 1 | D66: 392 | E66: 0 | F66: 0 | G66: 0.1913265306 | H66: 0 | I66: 0.1964285714 | J66: 0 | K66: 0.25 | L66: 0.005102040816 | M66: 0.01020408163 | N66: 0.02806122449 | O66: 0.04336734694 | P66: 0 | Q66: 0 | R66: 0 | S66: 0 | T66: 0 | U66: 0 | V66: 0 | W66: 0.02285714286 | X66: 0 | Y66: 0.2863922518 | Z66: 0 | AA66: 0.04081632653 | AB66: 0 | AC66: 142484.2182 | AD66: 0 | AE66: 0 | AF66: 1 | AG66: 0 | AH66: 11903 | AI66: 0 | AJ66: 0 | AK66: 4910.405 | AL66: 1799098.92 | AM66: 131213.1006 | AN66: 8243 | AO66: 392 | AP66: 0 | AQ66: 0 | AR66: 0 | AS66: 0 | AT66: 0
A67: 2300 | B67: Sellindge Primary School | C67: 1 | D67: 186 | E67: 0 | F67: 0 | G67: 0.2096774194 | H67: 0 | I67: 0.2096774194 | J67: 0 | K67: 0.01621621622 | L67: 0.01621621622 | M67: 0.02162162162 | N67: 0.005405405405 | O67: 0 | P67: 0 | Q67: 0 | R67: 0 | S67: 0 | T67: 0 | U67: 0 | V67: 0 | W67: 0.06832298137 | X67: 0 | Y67: 0.2283504119 | Z67: 0 | AA67: 0.08648648649 | AB67: 0 | AC67: 142484.2182 | AD67: 0 | AE67: 0 | AF67: 1 | AG67: 0 | AH67: 20659 | AI67: 0 | AJ67: 0 | AK67: 4910.405 | AL67: 860567.5419 | AM67: 63328.3818 | AN67: 20334 | AO67: 173 | AP67: 0 | AQ67: 0 | AR67: 0 | AS67: 0 | AT67: 0
A68: 2312 | B68: River Primary School | C68: 1 | D68: 391 | E68: 0 | F68: 0 | G68: 0.2173913043 | H68: 0 | I68: 0.2199488491 | J68: 0 | K68: 0.1739130435 | L68: 0.03069053708 | M68: 0.104859335 | N68: 0.02301790281 | O68: 0.03324808184 | P68: 0.0179028133 | Q68: 0 | R68: 0 | S68: 0 | T68: 0 | U68: 0 | V68: 0 | W68: 0.02352941176 | X68: 0 | Y68: 0.2778668553 | Z68: 0 | AA68: 0.03324808184 | AB68: 0 | AC68: 142484.2182 | AD68: 0 | AE68: 0 | AF68: 1 | AG68: 0 | AH68: 51597 | AI68: 0 | AJ68: 0 | AK68: 4910.405 | AL68: 1918617.61 | AM68: 137631.8017 | AN68: 40960 | AO68: 411 | AP68: 0 | AQ68: 0 | AR68: 0 | AS68: 0 | AT68: 0
A69: 2318 | B69: Langdon Primary School | C69: 1 | D69: 93 | E69: 0 | F69: 0 | G69: 0.1827956989 | H69: 0 | I69: 0.1827956989 | J69: 0 | K69: 0.1505376344 | L69: 0.05376344086 | M69: 0.05376344086 | N69: 0.01075268817 | O69: 0.08602150538 | P69: 0 | Q69: 0 | R69: 0 | S69: 0 | T69: 0 | U69: 0 | V69: 0 | W69: 0.05128205128 | X69: 0 | Y69: 0.4403508772 | Z69: 0 | AA69: 0.1290322581 | AB69: 0 | AC69: 142484.2182 | AD69: 42700.69264 | AE69: 0 | AF69: 1 | AG69: 0 | AH69: 5489 | AI69: 0 | AJ69: 0 | AK69: 4910.405 | AL69: 564680.2135 | AM69: 36908.0315 | AN69: 4990 | AO69: 88 | AP69: 0 | AQ69: 0 | AR69: 0 | AS69: 0 | AT69: 0
A70: 2320 | B70: Eythorne Elvington Community Primary School | C70: 1 | D70: 114 | E70: 0 | F70: 0 | G70: 0.4561403509 | H70: 0 | I70: 0.4736842105 | J70: 0 | K70: 0.01785714286 | L70: 0.5625 | M70: 0 | N70: 0 | O70: 0.02678571429 | P70: 0 | Q70: 0 | R70: 0 | S70: 0 | T70: 0 | U70: 0 | V70: 0 | W70: 0.01 | X70: 0 | Y70: 0.1697099893 | Z70: 0 | AA70: 0.149122807 | AB70: 0 | AC70: 142484.2182 | AD70: 26913.46473 | AE70: 0 | AF70: 1 | AG70: 0 | AH70: 20334 | AI70: 0 | AJ70: 0 | AK70: 4910.405 | AL70: 641798.0325 | AM70: 47508.7955 | AN70: 17340 | AO70: 99 | AP70: 0 | AQ70: 0 | AR70: 0 | AS70: 0 | AT70: 0
A71: 2321 | B71: Lydden Primary School | C71: 1 | D71: 77 | E71: 0 | F71: 0 | G71: 0.1818181818 | H71: 0 | I71: 0.1948051948 | J71: 0 | K71: 0.1428571429 | L71: 0.05194805195 | M71: 0.07792207792 | N71: 0.02597402597 | O71: 0 | P71: 0 | Q71: 0 | R71: 0 | S71: 0 | T71: 0 | U71: 0 | V71: 0 | W71: 0 | X71: 0 | Y71: 0.2584541063 | Z71: 0 | AA71: 0.09090909091 | AB71: 0 | AC71: 142484.2182 | AD71: 16555.53967 | AE71: 0 | AF71: 1 | AG71: 0 | AH71: 10180 | AI71: 0 | AJ71: 0 | AK71: 4910.405 | AL71: 471613.2065 | AM71: 32774.0037 | AN71: 9331 | AO71: 75 | AP71: 0 | AQ71: 0 | AR71: 0 | AS71: 0 | AT71: 0
A72: 2322 | B72: Preston Primary School | C72: 1 | D72: 119 | E72: 0 | F72: 0 | G72: 0.1176470588 | H72: 0 | I72: 0.1260504202 | J72: 0 | K72: 0.07627118644 | L72: 0.01694915254 | M72: 0 | N72: 0.008474576271 | O72: 0.01694915254 | P72: 0 | Q72: 0 | R72: 0 | S72: 0 | T72: 0 | U72: 0 | V72: 0 | W72: 0.02830188679 | X72: 0 | Y72: 0.2424089069 | Z72: 0 | AA72: 0.05042016807 | AB72: 0 | AC72: 142484.2182 | AD72: 23154.60094 | AE72: 0 | AF72: 1 | AG72: 0 | AH72: 17715 | AI72: 0 | AJ72: 0 | AK72: 4910.405 | AL72: 648531.5622 | AM72: 44631.6883 | AN72: 17964 | AO72: 119 | AP72: 0 | AQ72: 0 | AR72: 0 | AS72: 0 | AT72: 0
A73: 2326 | B73: Wingham Primary School | C73: 1 | D73: 202 | E73: 0 | F73: 0 | G73: 0.1881188119 | H73: 0 | I73: 0.1881188119 | J73: 0 | K73: 0.1243781095 | L73: 0.03482587065 | M73: 0 | N73: 0.02487562189 | O73: 0 | P73: 0 | Q73: 0 | R73: 0 | S73: 0 | T73: 0 | U73: 0 | V73: 0 | W73: 0.04651162791 | X73: 0 | Y73: 0.1827097506 | Z73: 0 | AA73: 0.07425742574 | AB73: 0 | AC73: 142484.2182 | AD73: 0 | AE73: 0 | AF73: 1 | AG73: 0 | AH73: 37128 | AI73: 0 | AJ73: 0 | AK73: 4910.405 | AL73: 942827.9318 | AM73: 69575.9575 | AN73: 31232 | AO73: 194 | AP73: 0 | AQ73: 0 | AR73: 0 | AS73: 0 | AT73: 0
A74: 2328 | B74: St Mildred's Primary Infant School | C74: 1 | D74: 270 | E74: 0 | F74: 0 | G74: 0.1703703704 | H74: 0 | I74: 0.1703703704 | J74: 0 | K74: 0.05555555556 | L74: 0.05925925926 | M74: 0.04814814815 | N74: 0.03703703704 | O74: 0.03333333333 | P74: 0 | Q74: 0 | R74: 0 | S74: 0 | T74: 0 | U74: 0 | V74: 0 | W74: 0.07777777778 | X74: 0 | Y74: 0.3296089385 | Z74: 0 | AA74: 0 | AB74: 0 | AC74: 142484.2182 | AD74: 0 | AE74: 0 | AF74: 1 | AG74: 0 | AH74: 32878 | AI74: 0 | AJ74: 0 | AK74: 4910.405 | AL74: 1307997.928 | AM74: 91924.3255 | AN74: 24950 | AO74: 268 | AP74: 0 | AQ74: 0 | AR74: 0 | AS74: 0 | AT74: 0
A75: 2329 | B75: Callis Grange Nursery and Infant School | C75: 1 | D75: 254 | E75: 0 | F75: 0 | G75: 0.2401574803 | H75: 0 | I75: 0.2440944882 | J75: 0 | K75: 0.03543307087 | L75: 0.2598425197 | M75: 0.02755905512 | N75: 0.02755905512 | O75: 0.06692913386 | P75: 0.03149606299 | Q75: 0 | R75: 0 | S75: 0 | T75: 0 | U75: 0 | V75: 0 | W75: 0.07142857143 | X75: 0 | Y75: 0.2515337423 | Z75: 0 | AA75: 0.0157480315 | AB75: 0 | AC75: 142484.2182 | AD75: 0 | AE75: 0 | AF75: 1 | AG75: 0 | AH75: 52962 | AI75: 0 | AJ75: 0 | AK75: 4910.405 | AL75: 1255349.88 | AM75: 90588.347 | AN75: 43520 | AO75: 255 | AP75: 0 | AQ75: 0 | AR75: 0 | AS75: 1.34 | AT75: 0
A76: 2337 | B76: St Crispin's Community Primary Infant School | C76: 1 | D76: 209 | E76: 0 | F76: 0 | G76: 0.2822966507 | H76: 0 | I76: 0.2822966507 | J76: 0 | K76: 0.1100478469 | L76: 0.1961722488 | M76: 0.004784688995 | N76: 0.04784688995 | O76: 0.01913875598 | P76: 0.00956937799 | Q76: 0 | R76: 0 | S76: 0 | T76: 0 | U76: 0 | V76: 0 | W76: 0.04054054054 | X76: 0 | Y76: 0.4452054795 | Z76: 0 | AA76: 0.03827751196 | AB76: 0 | AC76: 142484.2182 | AD76: 0 | AE76: 0 | AF76: 1 | AG76: 0 | AH76: 23578 | AI76: 0 | AJ76: 0 | AK76: 4910.405 | AL76: 1239947.724 | AM76: 87884.3666 | AN76: 20085 | AO76: 243 | AP76: 0 | AQ76: 0 | AR76: 0 | AS76: 0 | AT76: 0
A77: 2340 | B77: Ellington Infant School | C77: 1 | D77: 174 | E77: 0 | F77: 0 | G77: 0.5172413793 | H77: 0 | I77: 0.5172413793 | J77: 0 | K77: 0.2471264368 | L77: 0.09770114943 | M77: 0.08620689655 | N77: 0.1724137931 | O77: 0.08620689655 | P77: 0.09195402299 | Q77: 0 | R77: 0 | S77: 0 | T77: 0 | U77: 0 | V77: 0 | W77: 0.1120689655 | X77: 0 | Y77: 0.3392857143 | Z77: 0 | AA77: 0.08620689655 | AB77: 0 | AC77: 142484.2182 | AD77: 0 | AE77: 0 | AF77: 1 | AG77: 0 | AH77: 22118 | AI77: 0 | AJ77: 0 | AK77: 4910.405 | AL77: 892381.3802 | AM77: 64558.2826 | AN77: 27648 | AO77: 145 | AP77: 0 | AQ77: 0 | AR77: 0 | AS77: 0 | AT77: 0
A78: 2345 | B78: Priory Infant School | C78: 1 | D78: 156 | E78: 0 | F78: 0 | G78: 0.4679487179 | H78: 0 | I78: 0.4679487179 | J78: 0 | K78: 0.09677419355 | L78: 0.1741935484 | M78: 0.08387096774 | N78: 0.3032258065 | O78: 0.08387096774 | P78: 0.02580645161 | Q78: 0 | R78: 0 | S78: 0 | T78: 0 | U78: 0 | V78: 0 | W78: 0.1326530612 | X78: 0 | Y78: 0.5806451613 | Z78: 0 | AA78: 0.08333333333 | AB78: 0 | AC78: 142484.2182 | AD78: 0 | AE78: 0 | AF78: 1 | AG78: 0 | AH78: 37128 | AI78: 0 | AJ78: 0 | AK78: 4910.405 | AL78: 857871.5819 | AM78: 60781.5165 | AN78: 30976 | AO78: 136 | AP78: 0 | AQ78: 0 | AR78: 0 | AS78: 0 | AT78: 0
A79: 2431 | B79: Shears Green Junior School | C79: 1 | D79: 489 | E79: 0 | F79: 0 | G79: 0.3374233129 | H79: 0 | I79: 0.3394683027 | J79: 0 | K79: 0.1270491803 | L79: 0.3360655738 | M79: 0.02459016393 | N79: 0.01024590164 | O79: 0.02049180328 | P79: 0 | Q79: 0 | R79: 0 | S79: 0 | T79: 0 | U79: 0 | V79: 0 | W79: 0.0654396728 | X79: 0 | Y79: 0.1718716114 | Z79: 0 | AA79: 0.03067484663 | AB79: 0 | AC79: 142484.2182 | AD79: 0 | AE79: 0 | AF79: 1 | AG79: 0 | AH79: 18713 | AI79: 0 | AJ79: 0 | AK79: 4910.405 | AL79: 2287740.96 | AM79: 176177.0323 | AN79: 21760 | AO79: 496 | AP79: 0 | AQ79: 0 | AR79: 0 | AS79: 0 | AT79: 0
A80: 2434 | B80: West Minster Primary School | C80: 1 | D80: 433 | E80: 0 | F80: 0 | G80: 0.6258660508 | H80: 0 | I80: 0.6374133949 | J80: 0 | K80: 0.04618937644 | L80: 0.01154734411 | M80: 0.006928406467 | N80: 0.0623556582 | O80: 0.5889145497 | P80: 0.2540415704 | Q80: 0 | R80: 0 | S80: 0 | T80: 0 | U80: 0 | V80: 0 | W80: 0.01604278075 | X80: 0 | Y80: 0.2856995551 | Z80: 0 | AA80: 0.05104408353 | AB80: 0 | AC80: 142484.2182 | AD80: 0 | AE80: 0 | AF80: 1 | AG80: 0 | AH80: 104286 | AI80: 0 | AJ80: 0 | AK80: 4910.405 | AL80: 2584995.358 | AM80: 199978.4645 | AN80: 80384 | AO80: 459 | AP80: 0 | AQ80: 0 | AR80: 0 | AS80: 1.34 | AT80: 0
A81: 2454 | B81: Aycliffe Community Primary School | C81: 1 | D81: 87 | E81: 0 | F81: 0 | G81: 0.6206896552 | H81: 0 | I81: 0.632183908 | J81: 0 | K81: 0.04597701149 | L81: 0.03448275862 | M81: 0.8045977011 | N81: 0.04597701149 | O81: 0.01149425287 | P81: 0.02298850575 | Q81: 0 | R81: 0 | S81: 0 | T81: 0 | U81: 0 | V81: 0 | W81: 0.07692307692 | X81: 0 | Y81: 0.3500797448 | Z81: 0 | AA81: 0.09195402299 | AB81: 0 | AC81: 142484.2182 | AD81: 22071.2964 | AE81: 0 | AF81: 1 | AG81: 0 | AH81: 24451 | AI81: 0 | AJ81: 0 | AK81: 4910.405 | AL81: 645691.5577 | AM81: 46732.2267 | AN81: 22829 | AO81: 89 | AP81: 0 | AQ81: 0 | AR81: 0 | AS81: 0 | AT81: 0
A82: 2459 | B82: Riverhead Infants' School | C82: 1 | D82: 261 | E82: 0 | F82: 0 | G82: 0.01915708812 | H82: 0 | I82: 0.01915708812 | J82: 0 | K82: 0 | L82: 0 | M82: 0 | N82: 0 | O82: 0 | P82: 0 | Q82: 0 | R82: 0 | S82: 0 | T82: 0 | U82: 0 | V82: 0 | W82: 0.08333333333 | X82: 0 | Y82: 0.2429378531 | Z82: 0 | AA82: 0.01149425287 | AB82: 0 | AC82: 142484.2182 | AD82: 0 | AE82: 0 | AF82: 1.0378 | AG82: 0 | AH82: 47502 | AI82: 0 | AJ82: 0 | AK82: 4910.405 | AL82: 1263272.68 | AM82: 86903.8789 | AN82: 38912 | AO82: 268 | AP82: 0 | AQ82: 0 | AR82: 0 | AS82: 0 | AT82: 0
A83: 2465 | B83: Claremont Primary School | C83: 1 | D83: 436 | E83: 0 | F83: 0 | G83: 0.0252293578 | H83: 0 | I83: 0.02752293578 | J83: 0 | K83: 0.02293577982 | L83: 0 | M83: 0 | N83: 0 | O83: 0 | P83: 0 | Q83: 0 | R83: 0 | S83: 0 | T83: 0 | U83: 0 | V83: 0 | W83: 0.1409574468 | X83: 0 | Y83: 0.2119811365 | Z83: 0 | AA83: 0.03211009174 | AB83: 0 | AC83: 142484.2182 | AD83: 0 | AE83: 0 | AF83: 1 | AG83: 0 | AH83: 41496 | AI83: 0 | AJ83: 0 | AK83: 4910.405 | AL83: 2035094.87 | AM83: 127479.366 | AN83: 38656 | AO83: 437 | AP83: 0 | AQ83: 0 | AR83: 0 | AS83: 0 | AT83: 0
A84: 2471 | B84: Whitfield Aspen School | C84: 1 | D84: 620 | E84: 0 | F84: 0 | G84: 0.3596774194 | H84: 0 | I84: 0.3612903226 | J84: 0 | K84: 0.25 | L84: 0.0935483871 | M84: 0.08387096774 | N84: 0.0564516129 | O84: 0.06290322581 | P84: 0.008064516129 | Q84: 0 | R84: 0 | S84: 0 | T84: 0 | U84: 0 | V84: 0 | W84: 0.02803738318 | X84: 0 | Y84: 0.5080333653 | Z84: 0 | AA84: 0.07443365696 | AB84: 0 | AC84: 142484.2182 | AD84: 0 | AE84: 0 | AF84: 1 | AG84: 79481.73437 | AH84: 84630 | AI84: 0 | AJ84: 0 | AK84: 4910.405 | AL84: 3182661.953 | AM84: 221653.3392 | AN84: 65024 | AO84: 609 | AP84: 79258.6886 | AQ84: 0 | AR84: 0 | AS84: 0 | AT84: 0
A85: 2474 | B85: St Paul's Infant School | C85: 1 | D85: 261 | E85: 0 | F85: 0 | G85: 0.1992337165 | H85: 0 | I85: 0.2030651341 | J85: 0 | K85: 0.2681992337 | L85: 0.0153256705 | M85: 0.003831417625 | N85: 0.01149425287 | O85: 0.003831417625 | P85: 0 | Q85: 0 | R85: 0 | S85: 0 | T85: 0 | U85: 0 | V85: 0 | W85: 0.3295454545 | X85: 0 | Y85: 0.5180722892 | Z85: 0 | AA85: 0.04597701149 | AB85: 0 | AC85: 142484.2182 | AD85: 0 | AE85: 0 | AF85: 1 | AG85: 0 | AH85: 13772 | AI85: 0 | AJ85: 0 | AK85: 4910.405 | AL85: 1366836.599 | AM85: 94272.045 | AN85: 11477 | AO85: 261 | AP85: 0 | AQ85: 0 | AR85: 0 | AS85: 0 | AT85: 0
A86: 2482 | B86: Langton Green Primary School | C86: 1 | D86: 422 | E86: 0 | F86: 0 | G86: 0.04976303318 | H86: 0 | I86: 0.05450236967 | J86: 0 | K86: 0.05924170616 | L86: 0 | M86: 0 | N86: 0 | O86: 0 | P86: 0 | Q86: 0 | R86: 0 | S86: 0 | T86: 0 | U86: 0 | V86: 0 | W86: 0.02754820937 | X86: 0 | Y86: 0.1617002541 | Z86: 0 | AA86: 0.06161137441 | AB86: 0 | AC86: 142484.2182 | AD86: 0 | AE86: 0 | AF86: 1 | AG86: 0 | AH86: 47502 | AI86: 0 | AJ86: 0 | AK86: 4910.405 | AL86: 1930531.14 | AM86: 124434.1357 | AN86: 39168 | AO86: 414 | AP86: 0 | AQ86: 0 | AR86: 0 | AS86: 0 | AT86: 0
A87: 2490 | B87: Bishops Down Primary and Nursery School | C87: 1 | D87: 183 | E87: 0 | F87: 0 | G87: 0.1530054645 | H87: 0 | I87: 0.1530054645 | J87: 0 | K87: 0.1657458564 | L87: 0.005524861878 | M87: 0 | N87: 0.01104972376 | O87: 0.005524861878 | P87: 0 | Q87: 0 | R87: 0 | S87: 0 | T87: 0 | U87: 0 | V87: 0 | W87: 0.08860759494 | X87: 0 | Y87: 0.3966547192 | Z87: 0 | AA87: 0.07650273224 | AB87: 0 | AC87: 142484.2182 | AD87: 0 | AE87: 0 | AF87: 1 | AG87: 0 | AH87: 37128 | AI87: 0 | AJ87: 0 | AK87: 4910.405 | AL87: 1007245.662 | AM87: 69855.162 | AN87: 31232 | AO87: 203 | AP87: 0 | AQ87: 0 | AR87: 0 | AS87: 1.34 | AT87: 0
A88: 2509 | B88: Singlewell Primary School | C88: 1 | D88: 399 | E88: 0 | F88: 0 | G88: 0.1879699248 | H88: 0 | I88: 0.1929824561 | J88: 0 | K88: 0.03759398496 | L88: 0.04511278195 | M88: 0.02005012531 | N88: 0.08020050125 | O88: 0 | P88: 0 | Q88: 0 | R88: 0 | S88: 0 | T88: 0 | U88: 0 | V88: 0 | W88: 0.07669616519 | X88: 0 | Y88: 0.3117046347 | Z88: 0 | AA88: 0.06015037594 | AB88: 0 | AC88: 142484.2182 | AD88: 0 | AE88: 0 | AF88: 1 | AG88: 0 | AH88: 60606 | AI88: 0 | AJ88: 0 | AK88: 4910.405 | AL88: 1856273.45 | AM88: 132238.8519 | AN88: 51712 | AO88: 395 | AP88: 0 | AQ88: 0 | AR88: 0 | AS88: 0 | AT88: 0
A89: 2510 | B89: Cheriton Primary School | C89: 1 | D89: 407 | E89: 0 | F89: 0 | G89: 0.2555282555 | H89: 0 | I89: 0.2555282555 | J89: 0 | K89: 0.1871921182 | L89: 0.0197044335 | M89: 0.004926108374 | N89: 0.009852216749 | O89: 0.01477832512 | P89: 0.002463054187 | Q89: 0 | R89: 0 | S89: 0 | T89: 0 | U89: 0 | V89: 0 | W89: 0.26 | X89: 0 | Y89: 0.3810336335 | Z89: 0 | AA89: 0.1105651106 | AB89: 0 | AC89: 142484.2182 | AD89: 0 | AE89: 0 | AF89: 1 | AG89: 0 | AH89: 7733 | AI89: 0 | AJ89: 0 | AK89: 4910.405 | AL89: 1879930.547 | AM89: 135021.8902 | AN89: 8909 | AO89: 387 | AP89: 0 | AQ89: 0 | AR89: 0 | AS89: 0 | AT89: 0
A90: 2514 | B90: Brookfield Infant School | C90: 1 | D90: 174 | E90: 0 | F90: 0 | G90: 0.2126436782 | H90: 0 | I90: 0.2126436782 | J90: 0 | K90: 0.1436781609 | L90: 0.005747126437 | M90: 0 | N90: 0.03448275862 | O90: 0.08045977011 | P90: 0 | Q90: 0 | R90: 0 | S90: 0 | T90: 0 | U90: 0 | V90: 0 | W90: 0.05084745763 | X90: 0 | Y90: 0.3162393162 | Z90: 0 | AA90: 0.02873563218 | AB90: 0 | AC90: 142484.2182 | AD90: 0 | AE90: 0 | AF90: 1 | AG90: 0 | AH90: 20459 | AI90: 0 | AJ90: 0 | AK90: 4910.405 | AL90: 913803.4551 | AM90: 65877.2486 | AN90: 20210 | AO90: 180 | AP90: 0 | AQ90: 0 | AR90: 0 | AS90: 0 | AT90: 0
A91: 2519 | B91: Vigo Village School | C91: 1 | D91: 132 | E91: 0 | F91: 0 | G91: 0.1893939394 | H91: 0 | I91: 0.196969697 | J91: 0 | K91: 0.03787878788 | L91: 0.0303030303 | M91: 0 | N91: 0.007575757576 | O91: 0.02272727273 | P91: 0 | Q91: 0 | R91: 0 | S91: 0 | T91: 0 | U91: 0 | V91: 0 | W91: 0 | X91: 0 | Y91: 0.2780867262 | Z91: 0 | AA91: 0.08333333333 | AB91: 0 | AC91: 142484.2182 | AD91: 13381.55509 | AE91: 0 | AF91: 1 | AG91: 0 | AH91: 20958 | AI91: 0 | AJ91: 0 | AK91: 4910.405 | AL91: 680302.2256 | AM91: 47320.6577 | AN91: 22081 | AO91: 123 | AP91: 0 | AQ91: 0 | AR91: 0 | AS91: 0 | AT91: 0
A92: 2520 | B92: Madginford Primary School | C92: 1 | D92: 627 | E92: 0 | F92: 0 | G92: 0.1275917065 | H92: 0 | I92: 0.1355661882 | J92: 0 | K92: 0.1068580542 | L92: 0.01275917065 | M92: 0.04625199362 | N92: 0.04465709729 | O92: 0.0350877193 | P92: 0 | Q92: 0 | R92: 0 | S92: 0 | T92: 0 | U92: 0 | V92: 0 | W92: 0.06934306569 | X92: 0 | Y92: 0.232620045 | Z92: 0 | AA92: 0.05263157895 | AB92: 0 | AC92: 142484.2182 | AD92: 0 | AE92: 0 | AF92: 1 | AG92: 0 | AH92: 64974 | AI92: 0 | AJ92: 0 | AK92: 4910.405 | AL92: 2923335.77 | AM92: 193065.4013 | AN92: 58880 | AO92: 627 | AP92: 0 | AQ92: 0 | AR92: 0 | AS92: 0 | AT92: 0
A93: 2524 | B93: Palmarsh Primary School | C93: 1 | D93: 197 | E93: 0 | F93: 0 | G93: 0.2741116751 | H93: 0 | I93: 0.2741116751 | J93: 0 | K93: 0.09137055838 | L93: 0.1015228426 | M93: 0.05076142132 | N93: 0.005076142132 | O93: 0 | P93: 0.005076142132 | Q93: 0 | R93: 0 | S93: 0 | T93: 0 | U93: 0 | V93: 0 | W93: 0.02352941176 | X93: 0 | Y93: 0.3262979289 | Z93: 0 | AA93: 0.03045685279 | AB93: 0 | AC93: 142484.2182 | AD93: 0 | AE93: 0 | AF93: 1 | AG93: 0 | AH93: 16093 | AI93: 0 | AJ93: 0 | AK93: 4910.405 | AL93: 1004103.776 | AM93: 74596.6347 | AN93: 16218 | AO93: 198 | AP93: 0 | AQ93: 0 | AR93: 0 | AS93: 0 | AT93: 0
A94: 2525 | B94: Painters Ash Primary School | C94: 1 | D94: 401 | E94: 0 | F94: 0 | G94: 0.2493765586 | H94: 0 | I94: 0.2518703242 | J94: 0 | K94: 0.1834170854 | L94: 0.3140703518 | M94: 0.0175879397 | N94: 0.005025125628 | O94: 0.03266331658 | P94: 0 | Q94: 0 | R94: 0 | S94: 0 | T94: 0 | U94: 0 | V94: 0 | W94: 0.1497175141 | X94: 0 | Y94: 0.2732455107 | Z94: 0 | AA94: 0.072319202 | AB94: 0 | AC94: 142484.2182 | AD94: 0 | AE94: 0 | AF94: 1 | AG94: 0 | AH94: 44226 | AI94: 0 | AJ94: 0 | AK94: 4910.405 | AL94: 1928558.935 | AM94: 139482.1569 | AN94: 41728 | AO94: 403 | AP94: 0 | AQ94: 0 | AR94: 0 | AS94: 0 | AT94: 0
A95: 2530 | B95: Tunbury Primary School | C95: 1 | D95: 543 | E95: 0 | F95: 0 | G95: 0.1160220994 | H95: 0 | I95: 0.1178637201 | J95: 0 | K95: 0.01841620626 | L95: 0.07550644567 | M95: 0.07182320442 | N95: 0.005524861878 | O95: 0.01657458564 | P95: 0 | Q95: 0 | R95: 0 | S95: 0 | T95: 0 | U95: 0 | V95: 0 | W95: 0.03505154639 | X95: 0 | Y95: 0.200605568 | Z95: 0 | AA95: 0.06273062731 | AB95: 0 | AC95: 142484.2182 | AD95: 0 | AE95: 0 | AF95: 1 | AG95: 0 | AH95: 48594 | AI95: 0 | AJ95: 0 | AK95: 4910.405 | AL95: 2622975.64 | AM95: 170358.771 | AN95: 46336 | AO95: 564 | AP95: 0 | AQ95: 0 | AR95: 0 | AS95: 0 | AT95: 0
A96: 2532 | B96: St Margaret's-at-Cliffe Primary School | C96: 1 | D96: 165 | E96: 0 | F96: 0 | G96: 0.07272727273 | H96: 0 | I96: 0.07272727273 | J96: 0 | K96: 0.1151515152 | L96: 0.02424242424 | M96: 0.0303030303 | N96: 0.01818181818 | O96: 0.01818181818 | P96: 0 | Q96: 0 | R96: 0 | S96: 0 | T96: 0 | U96: 0 | V96: 0 | W96: 0.02666666667 | X96: 0 | Y96: 0.1802329429 | Z96: 0 | AA96: 0.0303030303 | AB96: 0 | AC96: 142484.2182 | AD96: 0 | AE96: 0 | AF96: 1 | AG96: 0 | AH96: 19711 | AI96: 0 | AJ96: 0 | AK96: 4910.405 | AL96: 839617.5649 | AM96: 59954.9111 | AN96: 18713 | AO96: 177 | AP96: 0 | AQ96: 0 | AR96: 0 | AS96: 0 | AT96: 0
A97: 2539 | B97: Stocks Green Primary School | C97: 1 | D97: 212 | E97: 0 | F97: 0 | G97: 0.06132075472 | H97: 0 | I97: 0.06132075472 | J97: 0 | K97: 0.02358490566 | L97: 0.004716981132 | M97: 0.009433962264 | N97: 0 | O97: 0 | P97: 0 | Q97: 0 | R97: 0 | S97: 0 | T97: 0 | U97: 0 | V97: 0 | W97: 0.04812834225 | X97: 0 | Y97: 0.1645320197 | Z97: 0 | AA97: 0.03301886792 | AB97: 0 | AC97: 142484.2182 | AD97: 0 | AE97: 0 | AF97: 1 | AG97: 0 | AH97: 22206 | AI97: 0 | AJ97: 0 | AK97: 4910.405 | AL97: 1000865.14 | AM97: 69730.0704 | AN97: 23204 | AO97: 214 | AP97: 0 | AQ97: 0 | AR97: 0 | AS97: 0 | AT97: 0
A98: 2545 | B98: Sandgate Primary School | C98: 1 | D98: 419 | E98: 0 | F98: 0 | G98: 0.1241050119 | H98: 0 | I98: 0.1241050119 | J98: 0 | K98: 0.1288782816 | L98: 0.04057279236 | M98: 0.00477326969 | N98: 0.0214797136 | O98: 0.009546539379 | P98: 0.002386634845 | Q98: 0 | R98: 0 | S98: 0 | T98: 0 | U98: 0 | V98: 0 | W98: 0.01949860724 | X98: 0 | Y98: 0.2253678483 | Z98: 0 | AA98: 0.02625298329 | AB98: 0 | AC98: 142484.2182 | AD98: 0 | AE98: 0 | AF98: 1 | AG98: 0 | AH98: 52416 | AI98: 0 | AJ98: 0 | AK98: 4910.405 | AL98: 1969934.71 | AM98: 132812.2719 | AN98: 46592 | AO98: 421 | AP98: 0 | AQ98: 0 | AR98: 0 | AS98: 0 | AT98: 0
A99: 2552 | B99: Sandling Primary School | C99: 1 | D99: 414 | E99: 0 | F99: 0 | G99: 0.0652173913 | H99: 0 | I99: 0.0652173913 | J99: 0 | K99: 0.07246376812 | L99: 0.009661835749 | M99: 0 | N99: 0 | O99: 0.007246376812 | P99: 0 | Q99: 0 | R99: 0 | S99: 0 | T99: 0 | U99: 0 | V99: 0 | W99: 0.08474576271 | X99: 0 | Y99: 0.2736892957 | Z99: 0 | AA99: 0.04106280193 | AB99: 0 | AC99: 142484.2182 | AD99: 0 | AE99: 0 | AF99: 1 | AG99: 0 | AH99: 33306 | AI99: 0 | AJ99: 0 | AK99: 4910.405 | AL99: 1944925.69 | AM99: 125288.7616 | AN99: 30720 | AO99: 419 | AP99: 0 | AQ99: 0 | AR99: 0 | AS99: 0 | AT99: 0
A100: 2559 | B100: Capel-le-Ferne Primary School | C100: 1 | D100: 179 | E100: 0 | F100: 0 | G100: 0.1899441341 | H100: 0 | I100: 0.2011173184 | J100: 0 | K100: 0.06145251397 | L100: 0.02793296089 | M100: 0.02793296089 | N100: 0.02793296089 | O100: 0.1284916201 | P100: 0.01117318436 | Q100: 0 | R100: 0 | S100: 0 | T100: 0 | U100: 0 | V100: 0 | W100: 0.006578947368 | X100: 0 | Y100: 0.2976190476 | Z100: 0 | AA100: 0.02234636872 | AB100: 0 | AC100: 142484.2182 | AD100: 0 | AE100: 0 | AF100: 1 | AG100: 0 | AH100: 20210 | AI100: 0 | AJ100: 0 | AK100: 4910.405 | AL100: 902448.8432 | AM100: 65613.0551 | AN100: 19336 | AO100: 179 | AP100: 0 | AQ100: 0 | AR100: 0 | AS100: 0 | AT100: 0
A101: 2562 | B101: Lunsford Primary School | C101: 1 | D101: 203 | E101: 0 | F101: 0 | G101: 0.236453202 | H101: 0 | I101: 0.236453202 | J101: 0 | K101: 0.2118226601 | L101: 0.01477832512 | M101: 0 | N101: 0.07881773399 | O101: 0.0197044335 | P101: 0 | Q101: 0 | R101: 0 | S101: 0 | T101: 0 | U101: 0 | V101: 0 | W101: 0.04046242775 | X101: 0 | Y101: 0.2947552448 | Z101: 0 | AA101: 0.08866995074 | AB101: 0 | AC101: 142484.2182 | AD101: 0 | AE101: 0 | AF101: 1 | AG101: 0 | AH101: 20334 | AI101: 0 | AJ101: 0 | AK101: 4910.405 | AL101: 1025759.795 | AM101: 75373.2034 | AN101: 15270 | AO101: 208 | AP101: 0 | AQ101: 0 | AR101: 0 | AS101: 0 | AT101: 0
A102: 2574 | B102: Downs View Infant School | C102: 1 | D102: 219 | E102: 0 | F102: 0 | G102: 0.2100456621 | H102: 0 | I102: 0.2100456621 | J102: 0 | K102: 0.01826484018 | L102: 0.06849315068 | M102: 0.04566210046 | N102: 0.1552511416 | O102: 0.009132420091 | P102: 0 | Q102: 0 | R102: 0 | S102: 0 | T102: 0 | U102: 0 | V102: 0 | W102: 0.1216216216 | X102: 0 | Y102: 0.3287671233 | Z102: 0 | AA102: 0.04566210046 | AB102: 0 | AC102: 142484.2182 | AD102: 0 | AE102: 0 | AF102: 1 | AG102: 0 | AH102: 32214 | AI102: 0 | AJ102: 0 | AK102: 4910.405 | AL102: 1119638.123 | AM102: 78092.1948 | AN102: 27648 | AO102: 228 | AP102: 0 | AQ102: 0 | AR102: 0 | AS102: 0 | AT102: 0
A103: 2578 | B103: Kingswood Primary School | C103: 1 | D103: 129 | E103: 0 | F103: 0 | G103: 0.1240310078 | H103: 0 | I103: 0.1317829457 | J103: 0 | K103: 0.0234375 | L103: 0 | M103: 0 | N103: 0.0234375 | O103: 0 | P103: 0 | Q103: 0 | R103: 0 | S103: 0 | T103: 0 | U103: 0 | V103: 0 | W103: 0.04424778761 | X103: 0 | Y103: 0.3643680445 | Z103: 0 | AA103: 0.05426356589 | AB103: 0 | AC103: 142484.2182 | AD103: 8483.003799 | AE103: 0 | AF103: 1 | AG103: 0 | AH103: 16592 | AI103: 0 | AJ103: 0 | AK103: 4910.405 | AL103: 701723.9098 | AM103: 49232.0576 | AN103: 16093 | AO103: 132 | AP103: 0 | AQ103: 0 | AR103: 0 | AS103: 0 | AT103: 0
A104: 2586 | B104: Senacre Wood Primary School | C104: 1 | D104: 210 | E104: 0 | F104: 0 | G104: 0.3666666667 | H104: 0 | I104: 0.3714285714 | J104: 0 | K104: 0.03333333333 | L104: 0.04761904762 | M104: 0.4523809524 | N104: 0.03333333333 | O104: 0.1047619048 | P104: 0 | Q104: 0 | R104: 0 | S104: 0 | T104: 0 | U104: 0 | V104: 0 | W104: 0.1277777778 | X104: 0 | Y104: 0.268262987 | Z104: 0 | AA104: 0.0619047619 | AB104: 0 | AC104: 142484.2182 | AD104: 0 | AE104: 0 | AF104: 1 | AG104: 0 | AH104: 19212 | AI104: 0 | AJ104: 0 | AK104: 4910.405 | AL104: 1107756.065 | AM104: 81637.7916 | AN104: 21332 | AO104: 207 | AP104: 0 | AQ104: 0 | AR104: 0 | AS104: 0 | AT104: 0
A105: 2603 | B105: Bromstone Primary School, Broadstairs | C105: 1 | D105: 412 | E105: 0 | F105: 0 | G105: 0.4223300971 | H105: 0 | I105: 0.4247572816 | J105: 0 | K105: 0.1432038835 | L105: 0.1674757282 | M105: 0.09466019417 | N105: 0.07524271845 | O105: 0.1116504854 | P105: 0.03155339806 | Q105: 0 | R105: 0 | S105: 0 | T105: 0 | U105: 0 | V105: 0 | W105: 0.05965909091 | X105: 0 | Y105: 0.433457291 | Z105: 0 | AA105: 0.05582524272 | AB105: 0 | AC105: 142484.2182 | AD105: 0 | AE105: 0 | AF105: 1 | AG105: 0 | AH105: 53235 | AI105: 0 | AJ105: 0 | AK105: 4910.405 | AL105: 2168528.034 | AM105: 160171.3097 | AN105: 45056 | AO105: 416 | AP105: 0 | AQ105: 0 | AR105: 0 | AS105: 0 | AT105: 0
A106: 2607 | B106: Parkside Community Primary School | C106: 1 | D106: 161 | E106: 0 | F106: 0 | G106: 0.6645962733 | H106: 0 | I106: 0.6708074534 | J106: 0 | K106: 0.03726708075 | L106: 0.1677018634 | M106: 0.01242236025 | N106: 0.3354037267 | O106: 0.3602484472 | P106: 0 | Q106: 0 | R106: 0 | S106: 0 | T106: 0 | U106: 0 | V106: 0 | W106: 0.2167832168 | X106: 0 | Y106: 0.6119617225 | Z106: 0 | AA106: 0.3354037267 | AB106: 0 | AC106: 142484.2182 | AD106: 0 | AE106: 0 | AF106: 1 | AG106: 0 | AH106: 19461 | AI106: 0 | AJ106: 0 | AK106: 4910.405 | AL106: 1096772.212 | AM106: 77303.6173 | AN106: 20958 | AO106: 165 | AP106: 0 | AQ106: 0 | AR106: 0 | AS106: 0 | AT106: 0
A107: 2615 | B107: High Firs Primary School | C107: 1 | D107: 207 | E107: 0 | F107: 0 | G107: 0.154589372 | H107: 0 | I107: 0.154589372 | J107: 0 | K107: 0.2028985507 | L107: 0.03381642512 | M107: 0 | N107: 0.02898550725 | O107: 0.1835748792 | P107: 0 | Q107: 0 | R107: 0 | S107: 0 | T107: 0 | U107: 0 | V107: 0 | W107: 0.09604519774 | X107: 0 | Y107: 0.33072578 | Z107: 0 | AA107: 0.06280193237 | AB107: 0 | AC107: 142484.2182 | AD107: 0 | AE107: 0 | AF107: 1.0378 | AG107: 0 | AH107: 21831 | AI107: 0 | AJ107: 0 | AK107: 4910.405 | AL107: 1101162.569 | AM107: 76296.0448 | AN107: 24950 | AO107: 209 | AP107: 0 | AQ107: 0 | AR107: 0 | AS107: 0 | AT107: 0
A108: 2627 | B108: Sandwich Junior School | C108: 1 | D108: 235 | E108: 0 | F108: 0 | G108: 0.2425531915 | H108: 0 | I108: 0.2553191489 | J108: 0 | K108: 0.07659574468 | L108: 0.01276595745 | M108: 0.004255319149 | N108: 0.04255319149 | O108: 0.01276595745 | P108: 0.004255319149 | Q108: 0 | R108: 0 | S108: 0 | T108: 0 | U108: 0 | V108: 0 | W108: 0.05106382979 | X108: 0 | Y108: 0.2374975757 | Z108: 0 | AA108: 0.1021276596 | AB108: 0 | AC108: 142484.2182 | AD108: 0 | AE108: 0 | AF108: 1 | AG108: 0 | AH108: 24202 | AI108: 0 | AJ108: 0 | AK108: 4910.405 | AL108: 1049139.157 | AM108: 78326.3663 | AN108: 28160 | AO108: 213 | AP108: 0 | AQ108: 0 | AR108: 0 | AS108: 0 | AT108: 0
A109: 2632 | B109: Sevenoaks Primary School | C109: 1 | D109: 554 | E109: 0 | F109: 0 | G109: 0.1480144404 | H109: 0 | I109: 0.1516245487 | J109: 0 | K109: 0.01083032491 | L109: 0.003610108303 | M109: 0 | N109: 0 | O109: 0 | P109: 0 | Q109: 0 | R109: 0 | S109: 0 | T109: 0 | U109: 0 | V109: 0 | W109: 0.1338742394 | X109: 0 | Y109: 0.2107631222 | Z109: 0 | AA109: 0.07039711191 | AB109: 0 | AC109: 142484.2182 | AD109: 0 | AE109: 0 | AF109: 1.0378 | AG109: 0 | AH109: 120120 | AI109: 0 | AJ109: 0 | AK109: 4910.405 | AL109: 2820938.51 | AM109: 197531.846 | AN109: 75264 | AO109: 601 | AP109: 0 | AQ109: 0 | AR109: 0 | AS109: 0 | AT109: 0
A110: 2643 | B110: Swalecliffe Community Primary School | C110: 1 | D110: 501 | E110: 0 | F110: 0 | G110: 0.1536926148 | H110: 0 | I110: 0.1616766467 | J110: 0 | K110: 0.086 | L110: 0.014 | M110: 0.048 | N110: 0.018 | O110: 0.018 | P110: 0 | Q110: 0 | R110: 0 | S110: 0 | T110: 0 | U110: 0 | V110: 0 | W110: 0.01324503311 | X110: 0 | Y110: 0.2673243647 | Z110: 0 | AA110: 0.04391217565 | AB110: 0 | AC110: 142484.2182 | AD110: 0 | AE110: 0 | AF110: 1 | AG110: 0 | AH110: 67704 | AI110: 0 | AJ110: 0 | AK110: 4910.405 | AL110: 2554310.46 | AM110: 177494.9976 | AN110: 59904 | AO110: 546 | AP110: 0 | AQ110: 0 | AR110: 0 | AS110: 0 | AT110: 0
A111: 2648 | B111: Aylesham Primary School | C111: 1 | D111: 374 | E111: 0 | F111: 0 | G111: 0.385026738 | H111: 0 | I111: 0.3903743316 | J111: 0 | K111: 0.5748663102 | L111: 0.3181818182 | M111: 0.002673796791 | N111: 0 | O111: 0.002673796791 | P111: 0 | Q111: 0 | R111: 0 | S111: 0 | T111: 0 | U111: 0 | V111: 0 | W111: 0.07836990596 | X111: 0 | Y111: 0.325535756 | Z111: 0 | AA111: 0.08823529412 | AB111: 0 | AC111: 142484.2182 | AD111: 0 | AE111: 0 | AF111: 1 | AG111: 0 | AH111: 36112 | AI111: 0 | AJ111: 0 | AK111: 4910.405 | AL111: 1872546.804 | AM111: 140090.6025 | AN111: 27136 | AO111: 370 | AP111: 0 | AQ111: 0 | AR111: 0 | AS111: 0 | AT111: 0
A112: 2651 | B112: Broadwater Down Primary School | C112: 1 | D112: 127 | E112: 0 | F112: 0 | G112: 0.3937007874 | H112: 0 | I112: 0.3937007874 | J112: 0 | K112: 0.2755905512 | L112: 0 | M112: 0 | N112: 0.007874015748 | O112: 0 | P112: 0 | Q112: 0 | R112: 0 | S112: 0 | T112: 0 | U112: 0 | V112: 0 | W112: 0.2478632479 | X112: 0 | Y112: 0.4690707351 | Z112: 0 | AA112: 0.2362204724 | AB112: 0 | AC112: 142484.2182 | AD112: 0 | AE112: 0 | AF112: 1 | AG112: 0 | AH112: 19336 | AI112: 0 | AJ112: 0 | AK112: 4910.405 | AL112: 806762.2503 | AM112: 57517.1256 | AN112: 18837 | AO112: 136 | AP112: 0 | AQ112: 0 | AR112: 0 | AS112: 0 | AT112: 0
A113: 2653 | B113: West Borough Primary School | C113: 1 | D113: 416 | E113: 0 | F113: 0 | G113: 0.2475961538 | H113: 0 | I113: 0.2475961538 | J113: 0 | K113: 0.1634615385 | L113: 0.1153846154 | M113: 0 | N113: 0.01682692308 | O113: 0.004807692308 | P113: 0.004807692308 | Q113: 0 | R113: 0 | S113: 0 | T113: 0 | U113: 0 | V113: 0 | W113: 0.1988795518 | X113: 0 | Y113: 0.2133827432 | Z113: 0 | AA113: 0.05288461538 | AB113: 0 | AC113: 142484.2182 | AD113: 0 | AE113: 0 | AF113: 1 | AG113: 0 | AH113: 73164 | AI113: 0 | AJ113: 0 | AK113: 4910.405 | AL113: 2118766.01 | AM113: 153329.2986 | AN113: 58368 | AO113: 451 | AP113: 0 | AQ113: 0 | AR113: 0 | AS113: 1.34 | AT113: 0
A114: 2662 | B114: Long Mead Community Primary School | C114: 1 | D114: 105 | E114: 0 | F114: 0 | G114: 0.5523809524 | H114: 0 | I114: 0.5523809524 | J114: 0 | K114: 0.3238095238 | L114: 0 | M114: 0.380952381 | N114: 0.0380952381 | O114: 0 | P114: 0 | Q114: 0 | R114: 0 | S114: 0 | T114: 0 | U114: 0 | V114: 0 | W114: 0.1413043478 | X114: 0 | Y114: 0.5378151261 | Z114: 0 | AA114: 0.2019230769 | AB114: 0 | AC114: 142484.2182 | AD114: 0 | AE114: 0 | AF114: 1 | AG114: 0 | AH114: 17091 | AI114: 0 | AJ114: 0 | AK114: 4910.405 | AL114: 664031.5389 | AM114: 49140.9909 | AN114: 18463 | AO114: 99 | AP114: 0 | AQ114: 0 | AR114: 0 | AS114: 1.34 | AT114: 0
A115: 2674 | B115: King's Farm Primary School | C115: 1 | D115: 411 | E115: 0 | F115: 0 | G115: 0.5547445255 | H115: 0 | I115: 0.5571776156 | J115: 0 | K115: 0.1338199513 | L115: 0.0802919708 | M115: 0.01946472019 | N115: 0.4379562044 | O115: 0.02433090024 | P115: 0 | Q115: 0 | R115: 0 | S115: 0 | T115: 0 | U115: 0 | V115: 0 | W115: 0.1480446927 | X115: 0 | Y115: 0.3477502094 | Z115: 0 | AA115: 0.08515815085 | AB115: 0 | AC115: 142484.2182 | AD115: 0 | AE115: 0 | AF115: 1 | AG115: 0 | AH115: 55146 | AI115: 0 | AJ115: 0 | AK115: 4910.405 | AL115: 2274967.828 | AM115: 170727.0407 | AN115: 43264 | AO115: 403 | AP115: 0 | AQ115: 0 | AR115: 0 | AS115: 1.34 | AT115: 0
A116: 2680 | B116: Kings Hill School Primary and Nursery | C116: 1 | D116: 418 | E116: 0 | F116: 0 | G116: 0.1100478469 | H116: 0 | I116: 0.1124401914 | J116: 0 | K116: 0.04066985646 | L116: 0.002392344498 | M116: 0 | N116: 0.01913875598 | O116: 0.01674641148 | P116: 0 | Q116: 0 | R116: 0 | S116: 0 | T116: 0 | U116: 0 | V116: 0 | W116: 0.03631284916 | X116: 0 | Y116: 0.1416357796 | Z116: 0 | AA116: 0.03349282297 | AB116: 0 | AC116: 142484.2182 | AD116: 0 | AE116: 0 | AF116: 1 | AG116: 0 | AH116: 61152 | AI116: 0 | AJ116: 0 | AK116: 4910.405 | AL116: 1957292.67 | AM116: 128724.2778 | AN116: 52224 | AO116: 417 | AP116: 0 | AQ116: 0 | AR116: 0 | AS116: 0 | AT116: 0
A117: 2682 | B117: New Ash Green Primary School | C117: 1 | D117: 386 | E117: 0 | F117: 0 | G117: 0.1606217617 | H117: 0 | I117: 0.1658031088 | J117: 0 | K117: 0 | L117: 0.00518134715 | M117: 0.0103626943 | N117: 0 | O117: 0 | P117: 0 | Q117: 0 | R117: 0 | S117: 0 | T117: 0 | U117: 0 | V117: 0 | W117: 0.008902077151 | X117: 0 | Y117: 0.3632592995 | Z117: 0 | AA117: 0.04663212435 | AB117: 0 | AC117: 142484.2182 | AD117: 0 | AE117: 0 | AF117: 1.0378 | AG117: 0 | AH117: 39312 | AI117: 0 | AJ117: 0 | AK117: 4910.405 | AL117: 1835410.171 | AM117: 130358.9331 | AN117: 33792 | AO117: 393 | AP117: 0 | AQ117: 0 | AR117: 0 | AS117: 0 | AT117: 0
A118: 2689 | B118: The Craylands School | C118: 1 | D118: 423 | E118: 0 | F118: 0 | G118: 0.2576832151 | H118: 0 | I118: 0.2600472813 | J118: 0 | K118: 0.304964539 | L118: 0.1773049645 | M118: 0 | N118: 0 | O118: 0.1087470449 | P118: 0 | Q118: 0 | R118: 0 | S118: 0 | T118: 0 | U118: 0 | V118: 0 | W118: 0.05524861878 | X118: 0 | Y118: 0.3989459184 | Z118: 0 | AA118: 0.04739336493 | AB118: 0 | AC118: 142484.2182 | AD118: 0 | AE118: 0 | AF118: 1.0378 | AG118: 0 | AH118: 81900 | AI118: 101160.43 | AJ118: 0 | AK118: 4910.405 | AL118: 2211181.012 | AM118: 147307.3802 | AN118: 61952 | AO118: 416 | AP118: 0 | AQ118: 98886.05 | AR118: 0 | AS118: 0 | AT118: 0
A119: 3010 | B119: St Pauls' Church of England Voluntary Controlled Primary School | C119: 1 | D119: 111 | E119: 0 | F119: 0 | G119: 0.0990990991 | H119: 0 | I119: 0.0990990991 | J119: 0 | K119: 0.06306306306 | L119: 0.1621621622 | M119: 0 | N119: 0.009009009009 | O119: 0.04504504505 | P119: 0 | Q119: 0 | R119: 0 | S119: 0 | T119: 0 | U119: 0 | V119: 0 | W119: 0.02105263158 | X119: 0 | Y119: 0.1713931889 | Z119: 0 | AA119: 0.009009009009 | AB119: 0 | AC119: 142484.2182 | AD119: 0 | AE119: 0 | AF119: 1.0378 | AG119: 52954.95205 | AH119: 11477 | AI119: 0 | AJ119: 0 | AK119: 4910.405 | AL119: 650563.1438 | AM119: 43354.3436 | AN119: 10729 | AO119: 110 | AP119: 52806.34712 | AQ119: 0 | AR119: 0 | AS119: 0 | AT119: 0
A120: 3015 | B120: Fawkham Church of England Voluntary Controlled Primary School | C120: 1 | D120: 101 | E120: 0 | F120: 0 | G120: 0.08910891089 | H120: 0 | I120: 0.08910891089 | J120: 0 | K120: 0.009900990099 | L120: 0.0198019802 | M120: 0.0198019802 | N120: 0 | O120: 0 | P120: 0 | Q120: 0 | R120: 0 | S120: 0 | T120: 0 | U120: 0 | V120: 0 | W120: 0 | X120: 0 | Y120: 0.2707641196 | Z120: 0 | AA120: 0.06930693069 | AB120: 0 | AC120: 142484.2182 | AD120: 1284.02787 | AE120: 0 | AF120: 1.0378 | AG120: 0 | AH120: 24451 | AI120: 0 | AJ120: 0 | AK120: 4910.405 | AL120: 550300.6856 | AM120: 37855.7541 | AN120: 21083 | AO120: 97 | AP120: 0 | AQ120: 0 | AR120: 0 | AS120: 0 | AT120: 0
A121: 3022 | B121: Benenden Church of England Primary School | C121: 1 | D121: 215 | E121: 0 | F121: 0 | G121: 0.1023255814 | H121: 0 | I121: 0.1023255814 | J121: 0 | K121: 0.1643192488 | L121: 0.009389671362 | M121: 0 | N121: 0 | O121: 0 | P121: 0 | Q121: 0 | R121: 0 | S121: 0 | T121: 0 | U121: 0 | V121: 0 | W121: 0 | X121: 0 | Y121: 0.1839540681 | Z121: 0 | AA121: 0.02790697674 | AB121: 0 | AC121: 142484.2182 | AD121: 0 | AE121: 0 | AF121: 1 | AG121: 0 | AH121: 55146 | AI121: 0 | AJ121: 0 | AK121: 4910.405 | AL121: 989249.59 | AM121: 70740.8107 | AN121: 34431 | AO121: 209 | AP121: 0 | AQ121: 0 | AR121: 0 | AS121: 0 | AT121: 0
A122: 3023 | B122: Bidborough Church of England Voluntary Controlled Primary School | C122: 1 | D122: 199 | E122: 0 | F122: 0 | G122: 0.05527638191 | H122: 0 | I122: 0.05527638191 | J122: 0 | K122: 0.09045226131 | L122: 0 | M122: 0 | N122: 0.005025125628 | O122: 0 | P122: 0 | Q122: 0 | R122: 0 | S122: 0 | T122: 0 | U122: 0 | V122: 0 | W122: 0.07344632768 | X122: 0 | Y122: 0.2569444444 | Z122: 0 | AA122: 0.04522613065 | AB122: 0 | AC122: 142484.2182 | AD122: 0 | AE122: 0 | AF122: 1 | AG122: 0 | AH122: 17216 | AI122: 0 | AJ122: 0 | AK122: 4910.405 | AL122: 954863.6146 | AM122: 66854.9647 | AN122: 14970 | AO122: 204 | AP122: 0 | AQ122: 0 | AR122: 0 | AS122: 0 | AT122: 0
A123: 3027 | B123: Cranbrook Church of England Primary School | C123: 1 | D123: 205 | E123: 0 | F123: 0 | G123: 0.3707317073 | H123: 0 | I123: 0.3756097561 | J123: 0 | K123: 0.4292682927 | L123: 0.009756097561 | M123: 0 | N123: 0 | O123: 0 | P123: 0 | Q123: 0 | R123: 0 | S123: 0 | T123: 0 | U123: 0 | V123: 0 | W123: 0.06214689266 | X123: 0 | Y123: 0.3246984127 | Z123: 0 | AA123: 0.1024390244 | AB123: 0 | AC123: 142484.2182 | AD123: 0 | AE123: 0 | AF123: 1 | AG123: 0 | AH123: 34295 | AI123: 0 | AJ123: 0 | AK123: 4910.405 | AL123: 1073681.51 | AM123: 80876.2339 | AN123: 26112 | AO123: 205 | AP123: 0 | AQ123: 0 | AR123: 0 | AS123: 0 | AT123: 0
A124: 3029 | B124: Goudhurst and Kilndown Church of England Primary School | C124: 1 | D124: 212 | E124: 0 | F124: 0 | G124: 0.1509433962 | H124: 0 | I124: 0.1509433962 | J124: 0 | K124: 0.07547169811 | L124: 0.01886792453 | M124: 0 | N124: 0 | O124: 0 | P124: 0 | Q124: 0 | R124: 0 | S124: 0 | T124: 0 | U124: 0 | V124: 0 | W124: 0.01648351648 | X124: 0 | Y124: 0.1808201058 | Z124: 0 | AA124: 0.01886792453 | AB124: 0 | AC124: 142484.2182 | AD124: 0 | AE124: 0 | AF124: 1 | AG124: 0 | AH124: 36704 | AI124: 0 | AJ124: 0 | AK124: 4910.405 | AL124: 996428.12 | AM124: 74564.6112 | AN124: 27904 | AO124: 212 | AP124: 0 | AQ124: 0 | AR124: 0 | AS124: 0 | AT124: 0
A125: 3032 | B125: Hawkhurst Church of England Primary School | C125: 1 | D125: 201 | E125: 0 | F125: 0 | G125: 0.3432835821 | H125: 0 | I125: 0.3432835821 | J125: 0 | K125: 0.02487562189 | L125: 0.004975124378 | M125: 0 | N125: 0 | O125: 0 | P125: 0 | Q125: 0 | R125: 0 | S125: 0 | T125: 0 | U125: 0 | V125: 0 | W125: 0.06432748538 | X125: 0 | Y125: 0.236985237 | Z125: 0 | AA125: 0.1144278607 | AB125: 0 | AC125: 142484.2182 | AD125: 0 | AE125: 0 | AF125: 1 | AG125: 0 | AH125: 43134 | AI125: 0 | AJ125: 0 | AK125: 4910.405 | AL125: 968492.369 | AM125: 75949.6256 | AN125: 34560 | AO125: 189 | AP125: 0 | AQ125: 0 | AR125: 0 | AS125: 0 | AT125: 0
A126: 3033 | B126: Hildenborough Church of England Primary School | C126: 1 | D126: 194 | E126: 0 | F126: 0 | G126: 0.09793814433 | H126: 0 | I126: 0.09793814433 | J126: 0 | K126: 0.09793814433 | L126: 0.01546391753 | M126: 0.03608247423 | N126: 0.005154639175 | O126: 0 | P126: 0 | Q126: 0 | R126: 0 | S126: 0 | T126: 0 | U126: 0 | V126: 0 | W126: 0.01829268293 | X126: 0 | Y126: 0.1845296995 | Z126: 0 | AA126: 0.05154639175 | AB126: 0 | AC126: 142484.2182 | AD126: 0 | AE126: 0 | AF126: 1 | AG126: 0 | AH126: 29681 | AI126: 0 | AJ126: 0 | AK126: 4910.405 | AL126: 920231.4682 | AM126: 65643.0771 | AN126: 22580 | AO126: 195 | AP126: 0 | AQ126: 0 | AR126: 0 | AS126: 0 | AT126: 0
A127: 3034 | B127: Lamberhurst St Mary's CofE (Voluntary Controlled) Primary School | C127: 1 | D127: 208 | E127: 0 | F127: 0 | G127: 0.08173076923 | H127: 0 | I127: 0.08173076923 | J127: 0 | K127: 0.01923076923 | L127: 0.01442307692 | M127: 0.009615384615 | N127: 0 | O127: 0 | P127: 0 | Q127: 0 | R127: 0 | S127: 0 | T127: 0 | U127: 0 | V127: 0 | W127: 0.05056179775 | X127: 0 | Y127: 0.2305882353 | Z127: 0 | AA127: 0.03846153846 | AB127: 0 | AC127: 142484.2182 | AD127: 0 | AE127: 0 | AF127: 1 | AG127: 0 | AH127: 36916 | AI127: 0 | AJ127: 0 | AK127: 4910.405 | AL127: 980598.026 | AM127: 69310.7633 | AN127: 27904 | AO127: 208 | AP127: 0 | AQ127: 0 | AR127: 0 | AS127: 0 | AT127: 0
A128: 3037 | B128: St John's Church of England Primary School, Sevenoaks | C128: 1 | D128: 197 | E128: 0 | F128: 0 | G128: 0.1319796954 | H128: 0 | I128: 0.1319796954 | J128: 0 | K128: 0.005076142132 | L128: 0.005076142132 | M128: 0 | N128: 0 | O128: 0 | P128: 0 | Q128: 0 | R128: 0 | S128: 0 | T128: 0 | U128: 0 | V128: 0 | W128: 0.1176470588 | X128: 0 | Y128: 0.222304603 | Z128: 0 | AA128: 0.03045685279 | AB128: 0 | AC128: 142484.2182 | AD128: 0 | AE128: 0 | AF128: 1.0378 | AG128: 0 | AH128: 24950 | AI128: 0 | AJ128: 0 | AK128: 4910.405 | AL128: 937770.3194 | AM128: 68007.6686 | AN128: 22330 | AO128: 192 | AP128: 0 | AQ128: 0 | AR128: 0 | AS128: 0 | AT128: 0
A129: 3042 | B129: Speldhurst Church of England Voluntary Aided Primary School | C129: 1 | D129: 213 | E129: 0 | F129: 0 | G129: 0.06103286385 | H129: 0 | I129: 0.06103286385 | J129: 0 | K129: 0.03286384977 | L129: 0 | M129: 0 | N129: 0 | O129: 0 | P129: 0 | Q129: 0 | R129: 0 | S129: 0 | T129: 0 | U129: 0 | V129: 0 | W129: 0.03825136612 | X129: 0 | Y129: 0.1850945495 | Z129: 0 | AA129: 0.03755868545 | AB129: 0 | AC129: 142484.2182 | AD129: 0 | AE129: 0 | AF129: 1 | AG129: 0 | AH129: 4608 | AI129: 0 | AJ129: 0 | AK129: 4910.405 | AL129: 967795.61 | AM129: 69870.173 | AN129: 3840 | AO129: 211 | AP129: 0 | AQ129: 0 | AR129: 0 | AS129: 0 | AT129: 0
A130: 3043 | B130: Sundridge and Brasted Church of England Voluntary Controlled Primary School | C130: 1 | D130: 68 | E130: 0 | F130: 0 | G130: 0.5588235294 | H130: 0 | I130: 0.5588235294 | J130: 0 | K130: 0.1764705882 | L130: 0 | M130: 0 | N130: 0 | O130: 0.02941176471 | P130: 0 | Q130: 0 | R130: 0 | S130: 0 | T130: 0 | U130: 0 | V130: 0 | W130: 0.05555555556 | X130: 0 | Y130: 0.6037735849 | Z130: 0 | AA130: 0.2352941176 | AB130: 0 | AC130: 142484.2182 | AD130: 56307.77956 | AE130: 0 | AF130: 1.0378 | AG130: 0 | AH130: 8234 | AI130: 0 | AJ130: 0 | AK130: 4910.405 | AL130: 510418.0329 | AM130: 34584.2179 | AN130: 7485 | AO130: 63 | AP130: 0 | AQ130: 0 | AR130: 0 | AS130: 0 | AT130: 0
A131: 3050 | B131: St John's Church of England Primary School | C131: 1 | D131: 631 | E131: 0 | F131: 0 | G131: 0.1014263074 | H131: 0 | I131: 0.1014263074 | J131: 0 | K131: 0.09350237718 | L131: 0.001584786054 | M131: 0 | N131: 0.02694136292 | O131: 0 | P131: 0 | Q131: 0 | R131: 0 | S131: 0 | T131: 0 | U131: 0 | V131: 0 | W131: 0.1074074074 | X131: 0 | Y131: 0.238580662 | Z131: 0 | AA131: 0.03803486529 | AB131: 0 | AC131: 142484.2182 | AD131: 0 | AE131: 0 | AF131: 1 | AG131: 0 | AH131: 85176 | AI131: 0 | AJ131: 0 | AK131: 4910.405 | AL131: 2951377.3 | AM131: 192458.9572 | AN131: 73216 | AO131: 630 | AP131: 0 | AQ131: 0 | AR131: 0 | AS131: 0 | AT131: 0
A132: 3052 | B132: St Mark's Church of England Primary School | C132: 1 | D132: 347 | E132: 0 | F132: 0 | G132: 0.2132564841 | H132: 0 | I132: 0.2132564841 | J132: 0 | K132: 0.2190201729 | L132: 0.00288184438 | M132: 0 | N132: 0.008645533141 | O132: 0 | P132: 0 | Q132: 0 | R132: 0 | S132: 0 | T132: 0 | U132: 0 | V132: 0 | W132: 0.1762820513 | X132: 0 | Y132: 0.260523322 | Z132: 0 | AA132: 0.121037464 | AB132: 0 | AC132: 142484.2182 | AD132: 0 | AE132: 0 | AF132: 1 | AG132: 0 | AH132: 61152 | AI132: 0 | AJ132: 0 | AK132: 4910.405 | AL132: 1717076.219 | AM132: 121235.7932 | AN132: 45568 | AO132: 356 | AP132: 0 | AQ132: 0 | AR132: 0 | AS132: 0 | AT132: 0
A133: 3053 | B133: St Peter's Church of England Primary School | C133: 1 | D133: 210 | E133: 0 | F133: 0 | G133: 0.1428571429 | H133: 0 | I133: 0.1428571429 | J133: 0 | K133: 0.04285714286 | L133: 0 | M133: 0 | N133: 0 | O133: 0 | P133: 0 | Q133: 0 | R133: 0 | S133: 0 | T133: 0 | U133: 0 | V133: 0 | W133: 0.1166666667 | X133: 0 | Y133: 0.2221941355 | Z133: 0 | AA133: 0.03333333333 | AB133: 0 | AC133: 142484.2182 | AD133: 0 | AE133: 0 | AF133: 1 | AG133: 0 | AH133: 49553 | AI133: 0 | AJ133: 0 | AK133: 4910.405 | AL133: 1024971.266 | AM133: 72901.3931 | AN133: 36677 | AO133: 211 | AP133: 0 | AQ133: 0 | AR133: 0 | AS133: 0 | AT133: 0
A134: 3054 | B134: Crockham Hill Church of England Voluntary Controlled Primary School | C134: 1 | D134: 143 | E134: 0 | F134: 0 | G134: 0.03496503497 | H134: 0 | I134: 0.03496503497 | J134: 0 | K134: 0.04195804196 | L134: 0 | M134: 0.08391608392 | N134: 0 | O134: 0 | P134: 0 | Q134: 0 | R134: 0 | S134: 0 | T134: 0 | U134: 0 | V134: 0 | W134: 0.0162601626 | X134: 0 | Y134: 0.1413934426 | Z134: 0 | AA134: 0.02097902098 | AB134: 0 | AC134: 142484.2182 | AD134: 5112.054753 | AE134: 0 | AF134: 1.0378 | AG134: 0 | AH134: 21557 | AI134: 0 | AJ134: 20174 | AK134: 4910.405 | AL134: 716042.3721 | AM134: 48819.7091 | AN134: 17964 | AO134: 137 | AP134: 0 | AQ134: 0 | AR134: 0 | AS134: 0 | AT134: 0
A135: 3055 | B135: Churchill Church of England Voluntary Controlled Primary School | C135: 1 | D135: 205 | E135: 0 | F135: 0 | G135: 0.3073170732 | H135: 0 | I135: 0.3073170732 | J135: 0 | K135: 0.4780487805 | L135: 0.009756097561 | M135: 0.01463414634 | N135: 0.009756097561 | O135: 0 | P135: 0 | Q135: 0 | R135: 0 | S135: 0 | T135: 0 | U135: 0 | V135: 0 | W135: 0.03296703297 | X135: 0 | Y135: 0.4180178557 | Z135: 0 | AA135: 0.05365853659 | AB135: 0 | AC135: 142484.2182 | AD135: 0 | AE135: 0 | AF135: 1.0378 | AG135: 0 | AH135: 33579 | AI135: 0 | AJ135: 0 | AK135: 4910.405 | AL135: 1141105.979 | AM135: 83408.08 | AN135: 28928 | AO135: 212 | AP135: 0 | AQ135: 0 | AR135: 0 | AS135: 0 | AT135: 0
A136: 3057 | B136: St Peter's Church of England Primary School | C136: 1 | D136: 199 | E136: 0 | F136: 0 | G136: 0.1658291457 | H136: 0 | I136: 0.1658291457 | J136: 0 | K136: 0.1005025126 | L136: 0 | M136: 0 | N136: 0.2261306533 | O136: 0.01005025126 | P136: 0 | Q136: 0 | R136: 0 | S136: 0 | T136: 0 | U136: 0 | V136: 0 | W136: 0.04142011834 | X136: 0 | Y136: 0.2415115005 | Z136: 0 | AA136: 0.0351758794 | AB136: 0 | AC136: 142484.2182 | AD136: 0 | AE136: 0 | AF136: 1 | AG136: 0 | AH136: 19610 | AI136: 0 | AJ136: 0 | AK136: 4910.405 | AL136: 981297.6618 | AM136: 70492.6289 | AN136: 16342 | AO136: 201 | AP136: 0 | AQ136: 0 | AR136: 0 | AS136: 0 | AT136: 0
A137: 3061 | B137: Bredhurst Church of England Voluntary Controlled Primary School | C137: 1 | D137: 141 | E137: 0 | F137: 0 | G137: 0.07092198582 | H137: 0 | I137: 0.07092198582 | J137: 0 | K137: 0.02127659574 | L137: 0 | M137: 0 | N137: 0 | O137: 0.007092198582 | P137: 0 | Q137: 0 | R137: 0 | S137: 0 | T137: 0 | U137: 0 | V137: 0 | W137: 0.04132231405 | X137: 0 | Y137: 0.2352941176 | Z137: 0 | AA137: 0.05 | AB137: 0 | AC137: 142484.2182 | AD137: 0 | AE137: 0 | AF137: 1 | AG137: 0 | AH137: 18264 | AI137: 0 | AJ137: 0 | AK137: 4910.405 | AL137: 680923.1212 | AM137: 48454.4881 | AN137: 15220 | AO137: 137 | AP137: 0 | AQ137: 0 | AR137: 0 | AS137: 0 | AT137: 0
A138: 3062 | B138: Burham Church of England Primary School | C138: 1 | D138: 162 | E138: 0 | F138: 0 | G138: 0.1296296296 | H138: 0 | I138: 0.1358024691 | J138: 0 | K138: 0.03086419753 | L138: 0.02469135802 | M138: 0 | N138: 0.03086419753 | O138: 0.02469135802 | P138: 0 | Q138: 0 | R138: 0 | S138: 0 | T138: 0 | U138: 0 | V138: 0 | W138: 0.03703703704 | X138: 0 | Y138: 0.2919926078 | Z138: 0 | AA138: 0.1419753086 | AB138: 0 | AC138: 142484.2182 | AD138: 0 | AE138: 0 | AF138: 1 | AG138: 0 | AH138: 29059 | AI138: 0 | AJ138: 0 | AK138: 4910.405 | AL138: 740911.8241 | AM138: 52231.2542 | AN138: 22081 | AO138: 146 | AP138: 0 | AQ138: 0 | AR138: 0 | AS138: 0 | AT138: 0
A139: 3067 | B139: Harrietsham Church of England Primary School | C139: 1 | D139: 393 | E139: 0 | F139: 0 | G139: 0.2391857506 | H139: 0 | I139: 0.2417302799 | J139: 0 | K139: 0.01781170483 | L139: 0.002544529262 | M139: 0 | N139: 0.005089058524 | O139: 0.007633587786 | P139: 0 | Q139: 0 | R139: 0 | S139: 0 | T139: 0 | U139: 0 | V139: 0 | W139: 0.04105571848 | X139: 0 | Y139: 0.3484230765 | Z139: 0 | AA139: 0.1147959184 | AB139: 0 | AC139: 142484.2182 | AD139: 0 | AE139: 0 | AF139: 1 | AG139: 0 | AH139: 42061 | AI139: 0 | AJ139: 0 | AK139: 4910.405 | AL139: 1725310.021 | AM139: 125619.0035 | AN139: 33792 | AO139: 362 | AP139: 0 | AQ139: 0 | AR139: 0 | AS139: 0 | AT139: 0
A140: 3069 | B140: Leeds and Broomfield Church of England Primary School | C140: 1 | D140: 92 | E140: 0 | F140: 0 | G140: 0.2391304348 | H140: 0 | I140: 0.2391304348 | J140: 0 | K140: 0.04395604396 | L140: 0.02197802198 | M140: 0.02197802198 | N140: 0.05494505495 | O140: 0 | P140: 0 | Q140: 0 | R140: 0 | S140: 0 | T140: 0 | U140: 0 | V140: 0 | W140: 0.0987654321 | X140: 0 | Y140: 0.3130152548 | Z140: 0 | AA140: 0.1086956522 | AB140: 0 | AC140: 142484.2182 | AD140: 21726.2327 | AE140: 0 | AF140: 1 | AG140: 0 | AH140: 6038 | AI140: 0 | AJ140: 0 | AK140: 4910.405 | AL140: 535330.0655 | AM140: 36783.9406 | AN140: 5489 | AO140: 84 | AP140: 0 | AQ140: 0 | AR140: 0 | AS140: 0 | AT140: 0
A141: 3072 | B141: Maidstone, St Michael's Church of England Junior School | C141: 1 | D141: 180 | E141: 0 | F141: 0 | G141: 0.2555555556 | H141: 0 | I141: 0.2555555556 | J141: 0 | K141: 0.06111111111 | L141: 0.01111111111 | M141: 0 | N141: 0.005555555556 | O141: 0.02777777778 | P141: 0 | Q141: 0 | R141: 0 | S141: 0 | T141: 0 | U141: 0 | V141: 0 | W141: 0.1944444444 | X141: 0 | Y141: 0.2583404619 | Z141: 0 | AA141: 0.06111111111 | AB141: 0 | AC141: 142484.2182 | AD141: 0 | AE141: 0 | AF141: 1 | AG141: 0 | AH141: 12276 | AI141: 0 | AJ141: 0 | AK141: 4910.405 | AL141: 899071.5863 | AM141: 66281.5447 | AN141: 10230 | AO141: 178 | AP141: 0 | AQ141: 0 | AR141: 0 | AS141: 0 | AT141: 0
A142: 3073 | B142: St Michael's Church of England Infant School Maidstone | C142: 1 | D142: 119 | E142: 0 | F142: 0 | G142: 0.1092436975 | H142: 0 | I142: 0.1176470588 | J142: 0 | K142: 0.02521008403 | L142: 0 | M142: 0 | N142: 0.008403361345 | O142: 0.01680672269 | P142: 0 | Q142: 0 | R142: 0 | S142: 0 | T142: 0 | U142: 0 | V142: 0 | W142: 0.4430379747 | X142: 0 | Y142: 0.2894736842 | Z142: 0 | AA142: 0.02521008403 | AB142: 0 | AC142: 142484.2182 | AD142: 0 | AE142: 0 | AF142: 1 | AG142: 0 | AH142: 12126 | AI142: 0 | AJ142: 0 | AK142: 4910.405 | AL142: 656880.5265 | AM142: 46590.1227 | AN142: 10105 | AO142: 122 | AP142: 0 | AQ142: 0 | AR142: 0 | AS142: 0 | AT142: 0
A143: 3081 | B143: Thurnham Church of England Infant School | C143: 1 | D143: 269 | E143: 0 | F143: 0 | G143: 0.02602230483 | H143: 0 | I143: 0.02602230483 | J143: 0 | K143: 0.03345724907 | L143: 0.003717472119 | M143: 0.003717472119 | N143: 0.01115241636 | O143: 0 | P143: 0 | Q143: 0 | R143: 0 | S143: 0 | T143: 0 | U143: 0 | V143: 0 | W143: 0.04469273743 | X143: 0 | Y143: 0.2234636872 | Z143: 0 | AA143: 0.01115241636 | AB143: 0 | AC143: 142484.2182 | AD143: 0 | AE143: 0 | AF143: 1 | AG143: 0 | AH143: 32760 | AI143: 0 | AJ143: 0 | AK143: 4910.405 | AL143: 1259865.7 | AM143: 82659.5399 | AN143: 26368 | AO143: 270 | AP143: 0 | AQ143: 0 | AR143: 0 | AS143: 0 | AT143: 0
A144: 3082 | B144: Trottiscliffe Church of England Primary School | C144: 1 | D144: 85 | E144: 0 | F144: 0 | G144: 0.07058823529 | H144: 0 | I144: 0.07058823529 | J144: 0 | K144: 0.02352941176 | L144: 0 | M144: 0 | N144: 0 | O144: 0 | P144: 0 | Q144: 0 | R144: 0 | S144: 0 | T144: 0 | U144: 0 | V144: 0 | W144: 0.02898550725 | X144: 0 | Y144: 0.2205882353 | Z144: 0 | AA144: 0.1058823529 | AB144: 0 | AC144: 142484.2182 | AD144: 47009.85409 | AE144: 0 | AF144: 1 | AG144: 0 | AH144: 6998 | AI144: 0 | AJ144: 0 | AK144: 4910.405 | AL144: 481021.2549 | AM144: 30442.296 | AN144: 6362 | AO144: 75 | AP144: 0 | AQ144: 0 | AR144: 0 | AS144: 0 | AT144: 0
A145: 3083 | B145: Ulcombe Church of England Primary School | C145: 1 | D145: 65 | E145: 0 | F145: 0 | G145: 0.5384615385 | H145: 0 | I145: 0.6 | J145: 0 | K145: 0 | L145: 0.01538461538 | M145: 0.1846153846 | N145: 0.04615384615 | O145: 0.03076923077 | P145: 0 | Q145: 0 | R145: 0 | S145: 0 | T145: 0 | U145: 0 | V145: 0 | W145: 0 | X145: 0 | Y145: 0.6445454545 | Z145: 0 | AA145: 0.1230769231 | AB145: 0 | AC145: 142484.2182 | AD145: 56307.77956 | AE145: 0 | AF145: 1 | AG145: 0 | AH145: 6238 | AI145: 0 | AJ145: 0 | AK145: 4910.405 | AL145: 551972.4202 | AM145: 37981.8179 | AN145: 7236 | AO145: 70 | AP145: 0 | AQ145: 0 | AR145: 0 | AS145: 0 | AT145: 0
A146: 3084 | B146: Wateringbury Church of England Primary School | C146: 1 | D146: 151 | E146: 0 | F146: 0 | G146: 0.2450331126 | H146: 0 | I146: 0.2516556291 | J146: 0 | K146: 0.09271523179 | L146: 0.01986754967 | M146: 0.006622516556 | N146: 0.03973509934 | O146: 0.01986754967 | P146: 0 | Q146: 0 | R146: 0 | S146: 0 | T146: 0 | U146: 0 | V146: 0 | W146: 0.08823529412 | X146: 0 | Y146: 0.2898000816 | Z146: 0 | AA146: 0.1721854305 | AB146: 0 | AC146: 142484.2182 | AD146: 0 | AE146: 0 | AF146: 1 | AG146: 0 | AH146: 4940 | AI146: 0 | AJ146: 0 | AK146: 4910.405 | AL146: 789943.7091 | AM146: 60096.0144 | AN146: 4890 | AO146: 159 | AP146: 0 | AQ146: 0 | AR146: 0 | AS146: 0 | AT146: 0
A147: 3088 | B147: Wouldham, All Saints Church of England Voluntary Controlled Primary School | C147: 1 | D147: 393 | E147: 0 | F147: 0 | G147: 0.2086513995 | H147: 0 | I147: 0.213740458 | J147: 0 | K147: 0.08163265306 | L147: 0.07653061224 | M147: 0 | N147: 0.0306122449 | O147: 0.007653061224 | P147: 0 | Q147: 0 | R147: 0 | S147: 0 | T147: 0 | U147: 0 | V147: 0 | W147: 0.03892215569 | X147: 0 | Y147: 0.4560094057 | Z147: 0 | AA147: 0.0534351145 | AB147: 0 | AC147: 142484.2182 | AD147: 0 | AE147: 0 | AF147: 1 | AG147: 0 | AH147: 100464 | AI147: 0 | AJ147: 0 | AK147: 4910.405 | AL147: 1958366.838 | AM147: 136030.629 | AN147: 70656 | AO147: 412 | AP147: 0 | AQ147: 0 | AR147: 0 | AS147: 0 | AT147: 0
A148: 3089 | B148: St George's Church of England Voluntary Controlled Primary School | C148: 1 | D148: 192 | E148: 0 | F148: 0 | G148: 0.1875 | H148: 0 | I148: 0.1875 | J148: 0 | K148: 0.08421052632 | L148: 0.01578947368 | M148: 0 | N148: 0 | O148: 0 | P148: 0 | Q148: 0 | R148: 0 | S148: 0 | T148: 0 | U148: 0 | V148: 0 | W148: 0.005988023952 | X148: 0 | Y148: 0.3103525212 | Z148: 0 | AA148: 0.03645833333 | AB148: 0 | AC148: 142484.2182 | AD148: 0 | AE148: 0 | AF148: 1 | AG148: 0 | AH148: 18089 | AI148: 0 | AJ148: 0 | AK148: 4910.405 | AL148: 972614.7335 | AM148: 71658.4828 | AN148: 18214 | AO148: 201 | AP148: 0 | AQ148: 0 | AR148: 0 | AS148: 0 | AT148: 0
A149: 3090 | B149: St Margaret's, Collier Street Church of England Voluntary Controlled School | C149: 1 | D149: 121 | E149: 0 | F149: 0 | G149: 0.06611570248 | H149: 0 | I149: 0.06611570248 | J149: 0 | K149: 0.00826446281 | L149: 0.09917355372 | M149: 0 | N149: 0 | O149: 0 | P149: 0 | Q149: 0 | R149: 0 | S149: 0 | T149: 0 | U149: 0 | V149: 0 | W149: 0.04716981132 | X149: 0 | Y149: 0.2987421384 | Z149: 0 | AA149: 0.04132231405 | AB149: 0 | AC149: 142484.2182 | AD149: 21651.05542 | AE149: 0 | AF149: 1 | AG149: 0 | AH149: 16766 | AI149: 0 | AJ149: 0 | AK149: 4910.405 | AL149: 658991.477 | AM149: 44724.7565 | AN149: 13972 | AO149: 122 | AP149: 0 | AQ149: 0 | AR149: 0 | AS149: 0 | AT149: 0
A150: 3091 | B150: Laddingford St Mary's Church of England Voluntary Controlled Primary School | C150: 1 | D150: 72 | E150: 0 | F150: 0 | G150: 0.1527777778 | H150: 0 | I150: 0.1944444444 | J150: 0 | K150: 0.05714285714 | L150: 0.02857142857 | M150: 0 | N150: 0.01428571429 | O150: 0 | P150: 0 | Q150: 0 | R150: 0 | S150: 0 | T150: 0 | U150: 0 | V150: 0 | W150: 0.01724137931 | X150: 0 | Y150: 0.4094584661 | Z150: 0 | AA150: 0.09722222222 | AB150: 0 | AC150: 142484.2182 | AD150: 19989.26174 | AE150: 0 | AF150: 1 | AG150: 0 | AH150: 5764 | AI150: 0 | AJ150: 8278.6275 | AK150: 4910.405 | AL150: 488308.0789 | AM150: 33147.2771 | AN150: 5240 | AO150: 72 | AP150: 0 | AQ150: 0 | AR150: 0 | AS150: 0 | AT150: 0
A151: 3092 | B151: Yalding, St Peter and St Paul Church of England Voluntary Controlled Primary School | C151: 1 | D151: 164 | E151: 0 | F151: 0 | G151: 0.1219512195 | H151: 0 | I151: 0.1341463415 | J151: 0 | K151: 0.04268292683 | L151: 0.01829268293 | M151: 0 | N151: 0 | O151: 0 | P151: 0 | Q151: 0 | R151: 0 | S151: 0 | T151: 0 | U151: 0 | V151: 0 | W151: 0.01360544218 | X151: 0 | Y151: 0.3203652968 | Z151: 0 | AA151: 0.04268292683 | AB151: 0 | AC151: 142484.2182 | AD151: 0 | AE151: 0 | AF151: 1 | AG151: 0 | AH151: 17066 | AI151: 0 | AJ151: 0 | AK151: 4910.405 | AL151: 813303.7622 | AM151: 57748.2949 | AN151: 14222 | AO151: 166 | AP151: 0 | AQ151: 0 | AR151: 0 | AS151: 0 | AT151: 0
A152: 3108 | B152: Ospringe Church of England Primary School | C152: 1 | D152: 205 | E152: 0 | F152: 0 | G152: 0.3365853659 | H152: 0 | I152: 0.3463414634 | J152: 0 | K152: 0.1707317073 | L152: 0.03902439024 | M152: 0.3414634146 | N152: 0 | O152: 0.07804878049 | P152: 0 | Q152: 0 | R152: 0 | S152: 0 | T152: 0 | U152: 0 | V152: 0 | W152: 0.04 | X152: 0 | Y152: 0.2981325033 | Z152: 0 | AA152: 0.05853658537 | AB152: 0 | AC152: 142484.2182 | AD152: 0 | AE152: 0 | AF152: 1 | AG152: 0 | AH152: 25200 | AI152: 0 | AJ152: 0 | AK152: 4910.405 | AL152: 1110707.527 | AM152: 81995.0533 | AN152: 23079 | AO152: 211 | AP152: 0 | AQ152: 0 | AR152: 0 | AS152: 0 | AT152: 0
A153: 3109 | B153: Hernhill Church of England Primary School | C153: 1 | D153: 208 | E153: 0 | F153: 0 | G153: 0.08173076923 | H153: 0 | I153: 0.08173076923 | J153: 0 | K153: 0.09615384615 | L153: 0.06730769231 | M153: 0.009615384615 | N153: 0.01442307692 | O153: 0 | P153: 0 | Q153: 0 | R153: 0 | S153: 0 | T153: 0 | U153: 0 | V153: 0 | W153: 0.005617977528 | X153: 0 | Y153: 0.2952026422 | Z153: 0 | AA153: 0.02884615385 | AB153: 0 | AC153: 142484.2182 | AD153: 0 | AE153: 0 | AF153: 1 | AG153: 0 | AH153: 41688 | AI153: 0 | AJ153: 0 | AK153: 4910.405 | AL153: 1011590.876 | AM153: 69870.173 | AN153: 31744 | AO153: 211 | AP153: 0 | AQ153: 0 | AR153: 0 | AS153: 0 | AT153: 0
A154: 3111 | B154: Newington Church of England Primary School | C154: 1 | D154: 207 | E154: 0 | F154: 0 | G154: 0.4009661836 | H154: 0 | I154: 0.4057971014 | J154: 0 | K154: 0.2608695652 | L154: 0.4444444444 | M154: 0.01449275362 | N154: 0.004830917874 | O154: 0.01449275362 | P154: 0.004830917874 | Q154: 0 | R154: 0 | S154: 0 | T154: 0 | U154: 0 | V154: 0 | W154: 0.02777777778 | X154: 0 | Y154: 0.3107235142 | Z154: 0 | AA154: 0.09661835749 | AB154: 0 | AC154: 142484.2182 | AD154: 0 | AE154: 0 | AF154: 1 | AG154: 0 | AH154: 40131 | AI154: 0 | AJ154: 0 | AK154: 4910.405 | AL154: 1137377.77 | AM154: 85865.8883 | AN154: 34048 | AO154: 208 | AP154: 0 | AQ154: 0 | AR154: 0 | AS154: 0 | AT154: 0
A155: 3117 | B155: Teynham Parochial Church of England Primary School | C155: 1 | D155: 200 | E155: 0 | F155: 0 | G155: 0.36 | H155: 0 | I155: 0.37 | J155: 0 | K155: 0.72 | L155: 0.035 | M155: 0.015 | N155: 0.015 | O155: 0.01 | P155: 0.005 | Q155: 0 | R155: 0 | S155: 0 | T155: 0 | U155: 0 | V155: 0 | W155: 0.06936416185 | X155: 0 | Y155: 0.3121387283 | Z155: 0 | AA155: 0.03 | AB155: 0 | AC155: 142484.2182 | AD155: 0 | AE155: 0 | AF155: 1 | AG155: 0 | AH155: 22081 | AI155: 0 | AJ155: 0 | AK155: 4910.405 | AL155: 1055386.112 | AM155: 78094.1963 | AN155: 23827 | AO155: 198 | AP155: 0 | AQ155: 0 | AR155: 0 | AS155: 0 | AT155: 0
A156: 3120 | B156: Barham Church of England Primary School | C156: 1 | D156: 211 | E156: 0 | F156: 0 | G156: 0.1184834123 | H156: 0 | I156: 0.1184834123 | J156: 0 | K156: 0.2985781991 | L156: 0.08530805687 | M156: 0 | N156: 0 | O156: 0.01421800948 | P156: 0 | Q156: 0 | R156: 0 | S156: 0 | T156: 0 | U156: 0 | V156: 0 | W156: 0.04972375691 | X156: 0 | Y156: 0.2880952381 | Z156: 0 | AA156: 0.01895734597 | AB156: 0 | AC156: 142484.2182 | AD156: 0 | AE156: 0 | AF156: 1 | AG156: 0 | AH156: 37401 | AI156: 0 | AJ156: 0 | AK156: 4910.405 | AL156: 1027099.13 | AM156: 71269.1976 | AN156: 28672 | AO156: 211 | AP156: 0 | AQ156: 0 | AR156: 0 | AS156: 0 | AT156: 0
A157: 3122 | B157: Bridge and Patrixbourne Church of England Primary School | C157: 1 | D157: 419 | E157: 0 | F157: 0 | G157: 0.04057279236 | H157: 0 | I157: 0.04295942721 | J157: 0 | K157: 0.04057279236 | L157: 0.06682577566 | M157: 0.002386634845 | N157: 0.05011933174 | O157: 0.01431980907 | P157: 0 | Q157: 0 | R157: 0 | S157: 0 | T157: 0 | U157: 0 | V157: 0 | W157: 0.07799442897 | X157: 0 | Y157: 0.3466382194 | Z157: 0 | AA157: 0.03102625298 | AB157: 0 | AC157: 142484.2182 | AD157: 0 | AE157: 0 | AF157: 1 | AG157: 0 | AH157: 41769 | AI157: 0 | AJ157: 0 | AK157: 4910.405 | AL157: 1921866.63 | AM157: 123703.6007 | AN157: 35072 | AO157: 413 | AP157: 0 | AQ157: 0 | AR157: 0 | AS157: 0 | AT157: 0
A158: 3123 | B158: Chislet Church of England Primary School | C158: 1 | D158: 102 | E158: 0 | F158: 0 | G158: 0.2450980392 | H158: 0 | I158: 0.2450980392 | J158: 0 | K158: 0.2058823529 | L158: 0.07843137255 | M158: 0.01960784314 | N158: 0.009803921569 | O158: 0.04901960784 | P158: 0 | Q158: 0 | R158: 0 | S158: 0 | T158: 0 | U158: 0 | V158: 0 | W158: 0.01149425287 | X158: 0 | Y158: 0.4071428571 | Z158: 0 | AA158: 0.1470588235 | AB158: 0 | AC158: 142484.2182 | AD158: 17069.00047 | AE158: 0 | AF158: 1 | AG158: 0 | AH158: 6724 | AI158: 0 | AJ158: 0 | AK158: 4910.405 | AL158: 535542.5836 | AM158: 37141.2023 | AN158: 6113 | AO158: 88 | AP158: 0 | AQ158: 0 | AR158: 0 | AS158: 0 | AT158: 0
A159: 3126 | B159: Littlebourne Church of England Primary School | C159: 1 | D159: 101 | E159: 0 | F159: 0 | G159: 0.3366336634 | H159: 0 | I159: 0.3366336634 | J159: 0 | K159: 0.0297029703 | L159: 0.1881188119 | M159: 0 | N159: 0.07920792079 | O159: 0 | P159: 0 | Q159: 0 | R159: 0 | S159: 0 | T159: 0 | U159: 0 | V159: 0 | W159: 0.09195402299 | X159: 0 | Y159: 0.3100775194 | Z159: 0 | AA159: 0.0396039604 | AB159: 0 | AC159: 142484.2182 | AD159: 0 | AE159: 0 | AF159: 1 | AG159: 0 | AH159: 13474 | AI159: 0 | AJ159: 0 | AK159: 4910.405 | AL159: 590794.2097 | AM159: 44166.3475 | AN159: 11228 | AO159: 104 | AP159: 0 | AQ159: 0 | AR159: 0 | AS159: 0 | AT159: 0
A160: 3129 | B160: St Alphege Church of England Infant School | C160: 1 | D160: 168 | E160: 0 | F160: 0 | G160: 0.1845238095 | H160: 0 | I160: 0.1845238095 | J160: 0 | K160: 0.0119047619 | L160: 0.0119047619 | M160: 0.1547619048 | N160: 0 | O160: 0.0119047619 | P160: 0 | Q160: 0 | R160: 0 | S160: 0 | T160: 0 | U160: 0 | V160: 0 | W160: 0.04464285714 | X160: 0 | Y160: 0.3423423423 | Z160: 0 | AA160: 0.0119047619 | AB160: 0 | AC160: 142484.2182 | AD160: 0 | AE160: 0 | AF160: 1 | AG160: 0 | AH160: 36855 | AI160: 0 | AJ160: 0 | AK160: 4910.405 | AL160: 867341.6797 | AM160: 60080.0027 | AN160: 31488 | AO160: 166 | AP160: 0 | AQ160: 0 | AR160: 0 | AS160: 0 | AT160: 0
A161: 3130 | B161: Wickhambreaux Church of England Primary School | C161: 1 | D161: 106 | E161: 0 | F161: 0 | G161: 0.09433962264 | H161: 0 | I161: 0.09433962264 | J161: 0 | K161: 0.1132075472 | L161: 0.1132075472 | M161: 0 | N161: 0 | O161: 0.01886792453 | P161: 0 | Q161: 0 | R161: 0 | S161: 0 | T161: 0 | U161: 0 | V161: 0 | W161: 0.09677419355 | X161: 0 | Y161: 0.231884058 | Z161: 0 | AA161: 0.02830188679 | AB161: 0 | AC161: 142484.2182 | AD161: 0 | AE161: 0 | AF161: 1 | AG161: 0 | AH161: 10480 | AI161: 0 | AJ161: 0 | AK161: 4910.405 | AL161: 615693.5139 | AM161: 44833.8364 | AN161: 9606 | AO161: 118 | AP161: 0 | AQ161: 0 | AR161: 0 | AS161: 1.34 | AT161: 0
A162: 3136 | B162: Brabourne Church of England Primary School | C162: 1 | D162: 105 | E162: 0 | F162: 0 | G162: 0.04761904762 | H162: 0 | I162: 0.04761904762 | J162: 0 | K162: 0.02857142857 | L162: 0 | M162: 0 | N162: 0 | O162: 0 | P162: 0 | Q162: 0 | R162: 0 | S162: 0 | T162: 0 | U162: 0 | V162: 0 | W162: 0.01111111111 | X162: 0 | Y162: 0.153654485 | Z162: 0 | AA162: 0.01904761905 | AB162: 0 | AC162: 142484.2182 | AD162: 1094.581135 | AE162: 0 | AF162: 1 | AG162: 0 | AH162: 5160 | AI162: 0 | AJ162: 0 | AK162: 4910.405 | AL162: 541890.9257 | AM162: 39036.5904 | AN162: 4790 | AO162: 104 | AP162: 0 | AQ162: 0 | AR162: 0 | AS162: 0 | AT162: 0
A163: 3137 | B163: Brookland Church of England Primary School | C163: 1 | D163: 98 | E163: 0 | F163: 0 | G163: 0.2755102041 | H163: 0 | I163: 0.2755102041 | J163: 0 | K163: 0.2244897959 | L163: 0 | M163: 0.3163265306 | N163: 0.05102040816 | O163: 0.01020408163 | P163: 0 | Q163: 0 | R163: 0 | S163: 0 | T163: 0 | U163: 0 | V163: 0 | W163: 0.01204819277 | X163: 0 | Y163: 0.3454858395 | Z163: 0 | AA163: 0.08163265306 | AB163: 0 | AC163: 142484.2182 | AD163: 8275.138631 | AE163: 0 | AF163: 1 | AG163: 0 | AH163: 14371 | AI163: 0 | AJ163: 0 | AK163: 4910.405 | AL163: 574421.8208 | AM163: 39161.6821 | AN163: 11976 | AO163: 93 | AP163: 0 | AQ163: 0 | AR163: 0 | AS163: 0 | AT163: 0
A164: 3138 | B164: Chilham, St Mary's Church of England Primary School | C164: 1 | D164: 86 | E164: 0 | F164: 0 | G164: 0.2790697674 | H164: 0 | I164: 0.2790697674 | J164: 0 | K164: 0 | L164: 0.02325581395 | M164: 0 | N164: 0.02325581395 | O164: 0.02325581395 | P164: 0 | Q164: 0 | R164: 0 | S164: 0 | T164: 0 | U164: 0 | V164: 0 | W164: 0.02702702703 | X164: 0 | Y164: 0.2676056338 | Z164: 0 | AA164: 0.06976744186 | AB164: 0 | AC164: 142484.2182 | AD164: 47963.10195 | AE164: 0 | AF164: 1 | AG164: 0 | AH164: 10030 | AI164: 0 | AJ164: 10650 | AK164: 4910.405 | AL164: 568069.5893 | AM164: 38338.0789 | AN164: 8358 | AO164: 89 | AP164: 0 | AQ164: 0 | AR164: 0 | AS164: 0 | AT164: 0
A165: 3139 | B165: High Halden Church of England Primary School | C165: 1 | D165: 102 | E165: 0 | F165: 0 | G165: 0.1470588235 | H165: 0 | I165: 0.1470588235 | J165: 0 | K165: 0.009803921569 | L165: 0.01960784314 | M165: 0 | N165: 0 | O165: 0 | P165: 0 | Q165: 0 | R165: 0 | S165: 0 | T165: 0 | U165: 0 | V165: 0 | W165: 0.01149425287 | X165: 0 | Y165: 0.3684593023 | Z165: 0 | AA165: 0.06862745098 | AB165: 0 | AC165: 142484.2182 | AD165: 31353.05875 | AE165: 0 | AF165: 1 | AG165: 0 | AH165: 19162 | AI165: 0 | AJ165: 0 | AK165: 4910.405 | AL165: 602412.9009 | AM165: 40575.7177 | AN165: 19087 | AO165: 101 | AP165: 0 | AQ165: 0 | AR165: 0 | AS165: 0 | AT165: 0
A166: 3145 | B166: Woodchurch Church of England Primary School | C166: 1 | D166: 167 | E166: 0 | F166: 0 | G166: 0.1976047904 | H166: 0 | I166: 0.1976047904 | J166: 0 | K166: 0.02395209581 | L166: 0.01796407186 | M166: 0.005988023952 | N166: 0 | O166: 0.005988023952 | P166: 0 | Q166: 0 | R166: 0 | S166: 0 | T166: 0 | U166: 0 | V166: 0 | W166: 0 | X166: 0 | Y166: 0.2637362637 | Z166: 0 | AA166: 0.08383233533 | AB166: 0 | AC166: 142484.2182 | AD166: 0 | AE166: 0 | AF166: 1 | AG166: 0 | AH166: 14671 | AI166: 0 | AJ166: 0 | AK166: 4910.405 | AL166: 832998.5273 | AM166: 62847.0292 | AN166: 12226 | AO166: 165 | AP166: 0 | AQ166: 0 | AR166: 0 | AS166: 0 | AT166: 0
A167: 3146 | B167: Bodsham Church of England Primary School | C167: 1 | D167: 75 | E167: 0 | F167: 0 | G167: 0.09333333333 | H167: 0 | I167: 0.09333333333 | J167: 0 | K167: 0 | L167: 0 | M167: 0 | N167: 0.02666666667 | O167: 0.01333333333 | P167: 0 | Q167: 0 | R167: 0 | S167: 0 | T167: 0 | U167: 0 | V167: 0 | W167: 0.09230769231 | X167: 0 | Y167: 0.272378962 | Z167: 0 | AA167: 0.1066666667 | AB167: 0 | AC167: 142484.2182 | AD167: 56232.60228 | AE167: 0 | AF167: 1 | AG167: 0 | AH167: 6754 | AI167: 0 | AJ167: 0 | AK167: 4910.405 | AL167: 498678.0783 | AM167: 31639.1726 | AN167: 6030 | AO167: 76 | AP167: 0 | AQ167: 0 | AR167: 0 | AS167: 0 | AT167: 0
A168: 3149 | B168: Folkestone, St Martin's Church of England Primary School | C168: 1 | D168: 195 | E168: 0 | F168: 0 | G168: 0.158974359 | H168: 0 | I168: 0.1692307692 | J168: 0 | K168: 0.1614583333 | L168: 0.03125 | M168: 0 | N168: 0.01041666667 | O168: 0.015625 | P168: 0.005208333333 | Q168: 0 | R168: 0 | S168: 0 | T168: 0 | U168: 0 | V168: 0 | W168: 0.06832298137 | X168: 0 | Y168: 0.359548296 | Z168: 0 | AA168: 0.0358974359 | AB168: 0 | AC168: 142484.2182 | AD168: 0 | AE168: 0 | AF168: 1 | AG168: 0 | AH168: 23203 | AI168: 0 | AJ168: 0 | AK168: 4910.405 | AL168: 1013169.565 | AM168: 71487.3574 | AN168: 19336 | AO168: 203 | AP168: 0 | AQ168: 0 | AR168: 0 | AS168: 0 | AT168: 0
A169: 3150 | B169: Folkestone, St Peter's Church of England Primary School | C169: 1 | D169: 95 | E169: 0 | F169: 0 | G169: 0.4421052632 | H169: 0 | I169: 0.4421052632 | J169: 0 | K169: 0.1063829787 | L169: 0.05319148936 | M169: 0.05319148936 | N169: 0.1063829787 | O169: 0.4787234043 | P169: 0.1063829787 | Q169: 0 | R169: 0 | S169: 0 | T169: 0 | U169: 0 | V169: 0 | W169: 0.1097560976 | X169: 0 | Y169: 0.325974026 | Z169: 0 | AA169: 0.1263157895 | AB169: 0 | AC169: 142484.2182 | AD169: 0 | AE169: 0 | AF169: 1 | AG169: 52954.95205 | AH169: 1664 | AI169: 0 | AJ169: 36258.4 | AK169: 4910.405 | AL169: 754028.1208 | AM169: 48891.8084 | AN169: 1040 | AO169: 106 | AP169: 52806.34712 | AQ169: 0 | AR169: 0 | AS169: 0 | AT169: 0
A170: 3153 | B170: Seabrook Church of England Primary School | C170: 1 | D170: 101 | E170: 0 | F170: 0 | G170: 0.1089108911 | H170: 0 | I170: 0.1089108911 | J170: 0 | K170: 0.2673267327 | L170: 0.0297029703 | M170: 0.009900990099 | N170: 0.0198019802 | O170: 0.0198019802 | P170: 0 | Q170: 0 | R170: 0 | S170: 0 | T170: 0 | U170: 0 | V170: 0 | W170: 0.01136363636 | X170: 0 | Y170: 0.2371100164 | Z170: 0 | AA170: 0.05940594059 | AB170: 0 | AC170: 142484.2182 | AD170: 0 | AE170: 0 | AF170: 1 | AG170: 0 | AH170: 1121 | AI170: 0 | AJ170: 0 | AK170: 4910.405 | AL170: 544904.3098 | AM170: 39643.0346 | AN170: 509 | AO170: 101 | AP170: 0 | AQ170: 0 | AR170: 0 | AS170: 0 | AT170: 0
A171: 3154 | B171: Lyminge Church of England Primary School | C171: 1 | D171: 180 | E171: 0 | F171: 0 | G171: 0.09444444444 | H171: 0 | I171: 0.1 | J171: 0 | K171: 0.05555555556 | L171: 0 | M171: 0.01111111111 | N171: 0 | O171: 0.005555555556 | P171: 0.01111111111 | Q171: 0 | R171: 0 | S171: 0 | T171: 0 | U171: 0 | V171: 0 | W171: 0.0127388535 | X171: 0 | Y171: 0.2491315136 | Z171: 0 | AA171: 0.05 | AB171: 0 | AC171: 142484.2182 | AD171: 0 | AE171: 0 | AF171: 1 | AG171: 0 | AH171: 34944 | AI171: 0 | AJ171: 0 | AK171: 4910.405 | AL171: 887801.0819 | AM171: 63296.3583 | AN171: 28160 | AO171: 187 | AP171: 0 | AQ171: 0 | AR171: 0 | AS171: 0 | AT171: 0
A172: 3155 | B172: Lympne Church of England Primary School | C172: 1 | D172: 203 | E172: 0 | F172: 0 | G172: 0.06403940887 | H172: 0 | I172: 0.06896551724 | J172: 0 | K172: 0.07881773399 | L172: 0.02955665025 | M172: 0.009852216749 | N172: 0 | O172: 0.004926108374 | P172: 0 | Q172: 0 | R172: 0 | S172: 0 | T172: 0 | U172: 0 | V172: 0 | W172: 0 | X172: 0 | Y172: 0.1977473907 | Z172: 0 | AA172: 0.02463054187 | AB172: 0 | AC172: 142484.2182 | AD172: 0 | AE172: 0 | AF172: 1 | AG172: 0 | AH172: 47775 | AI172: 0 | AJ172: 0 | AK172: 4910.405 | AL172: 986937.06 | AM172: 67383.3517 | AN172: 45824 | AO172: 206 | AP172: 0 | AQ172: 0 | AR172: 0 | AS172: 0 | AT172: 0
A173: 3158 | B173: Stelling Minnis Church of England Primary School | C173: 1 | D173: 76 | E173: 0 | F173: 0 | G173: 0.1447368421 | H173: 0 | I173: 0.1447368421 | J173: 0 | K173: 0 | L173: 0 | M173: 0 | N173: 0.01315789474 | O173: 0.01315789474 | P173: 0 | Q173: 0 | R173: 0 | S173: 0 | T173: 0 | U173: 0 | V173: 0 | W173: 0 | X173: 0 | Y173: 0.3015873016 | Z173: 0 | AA173: 0.03947368421 | AB173: 0 | AC173: 142484.2182 | AD173: 55480.82952 | AE173: 0 | AF173: 1 | AG173: 0 | AH173: 16467 | AI173: 0 | AJ173: 0 | AK173: 4910.405 | AL173: 506427.1033 | AM173: 32307.6622 | AN173: 14097 | AO173: 75 | AP173: 0 | AQ173: 0 | AR173: 0 | AS173: 0 | AT173: 0
A174: 3159 | B174: Stowting Church of England Primary School | C174: 1 | D174: 101 | E174: 0 | F174: 0 | G174: 0.05940594059 | H174: 0 | I174: 0.05940594059 | J174: 0 | K174: 0 | L174: 0.0297029703 | M174: 0 | N174: 0 | O174: 0 | P174: 0 | Q174: 0 | R174: 0 | S174: 0 | T174: 0 | U174: 0 | V174: 0 | W174: 0.02325581395 | X174: 0 | Y174: 0.1479674797 | Z174: 0 | AA174: 0.02 | AB174: 0 | AC174: 142484.2182 | AD174: 36686.51058 | AE174: 0 | AF174: 1 | AG174: 0 | AH174: 16766 | AI174: 0 | AJ174: 0 | AK174: 4910.405 | AL174: 569461.5172 | AM174: 38741.3742 | AN174: 13972 | AO174: 102 | AP174: 0 | AQ174: 0 | AR174: 0 | AS174: 0 | AT174: 0
A175: 3160 | B175: Selsted Church of England Primary School | C175: 1 | D175: 94 | E175: 0 | F175: 0 | G175: 0.09574468085 | H175: 0 | I175: 0.09574468085 | J175: 0 | K175: 0.170212766 | L175: 0.06382978723 | M175: 0 | N175: 0 | O175: 0.08510638298 | P175: 0 | Q175: 0 | R175: 0 | S175: 0 | T175: 0 | U175: 0 | V175: 0 | W175: 0.01123595506 | X175: 0 | Y175: 0.1450642055 | Z175: 0 | AA175: 0.08510638298 | AB175: 0 | AC175: 142484.2182 | AD175: 41948.91988 | AE175: 0 | AF175: 1 | AG175: 0 | AH175: 13174 | AI175: 0 | AJ175: 0 | AK175: 4910.405 | AL175: 577091.1178 | AM175: 39440.8866 | AN175: 10978 | AO175: 102 | AP175: 0 | AQ175: 0 | AR175: 0 | AS175: 0 | AT175: 0
A176: 3167 | B176: Eastry Church of England Primary School | C176: 1 | D176: 154 | E176: 0 | F176: 0 | G176: 0.3571428571 | H176: 0 | I176: 0.3571428571 | J176: 0 | K176: 0.03246753247 | L176: 0.03246753247 | M176: 0.006493506494 | N176: 0.01298701299 | O176: 0.01298701299 | P176: 0 | Q176: 0 | R176: 0 | S176: 0 | T176: 0 | U176: 0 | V176: 0 | W176: 0 | X176: 0 | Y176: 0.3832020997 | Z176: 0 | AA176: 0.07142857143 | AB176: 0 | AC176: 142484.2182 | AD176: 0 | AE176: 0 | AF176: 1 | AG176: 0 | AH176: 18089 | AI176: 0 | AJ176: 0 | AK176: 4910.405 | AL176: 914929.8049 | AM176: 69452.8674 | AN176: 17465 | AO176: 175 | AP176: 0 | AQ176: 0 | AR176: 0 | AS176: 0 | AT176: 0
A177: 3168 | B177: Goodnestone Church of England Primary School | C177: 1 | D177: 58 | E177: 0 | F177: 0 | G177: 0.06896551724 | H177: 0 | I177: 0.06896551724 | J177: 0 | K177: 0.2586206897 | L177: 0.08620689655 | M177: 0 | N177: 0.01724137931 | O177: 0 | P177: 0 | Q177: 0 | R177: 0 | S177: 0 | T177: 0 | U177: 0 | V177: 0 | W177: 0.02127659574 | X177: 0 | Y177: 0.4685714286 | Z177: 0 | AA177: 0.1034482759 | AB177: 0 | AC177: 142484.2182 | AD177: 56307.77956 | AE177: 0 | AF177: 1 | AG177: 0 | AH177: 3787 | AI177: 0 | AJ177: 0 | AK177: 4910.405 | AL177: 433428.3883 | AM177: 26386.3254 | AN177: 3443 | AO177: 57 | AP177: 0 | AQ177: 0 | AR177: 0 | AS177: 0 | AT177: 0
A178: 3169 | B178: Guston Church of England Primary School | C178: 1 | D178: 151 | E178: 0 | F178: 0 | G178: 0.2317880795 | H178: 0 | I178: 0.2317880795 | J178: 0 | K178: 0.03973509934 | L178: 0.03973509934 | M178: 0.05298013245 | N178: 0 | O178: 0.006622516556 | P178: 0.006622516556 | Q178: 0 | R178: 0 | S178: 0 | T178: 0 | U178: 0 | V178: 0 | W178: 0.4615384615 | X178: 0 | Y178: 0.329233258 | Z178: 0 | AA178: 0.1324503311 | AB178: 0 | AC178: 142484.2182 | AD178: 0 | AE178: 0 | AF178: 1 | AG178: 0 | AH178: 18588 | AI178: 0 | AJ178: 0 | AK178: 4910.405 | AL178: 776109.0563 | AM178: 53366.0854 | AN178: 19461 | AO178: 145 | AP178: 0 | AQ178: 0 | AR178: 0 | AS178: 0 | AT178: 0
A179: 3171 | B179: Nonington Church of England Primary School | C179: 1 | D179: 58 | E179: 0 | F179: 0 | G179: 0.6034482759 | H179: 0 | I179: 0.6034482759 | J179: 0 | K179: 0.350877193 | L179: 0.2105263158 | M179: 0.01754385965 | N179: 0 | O179: 0 | P179: 0 | Q179: 0 | R179: 0 | S179: 0 | T179: 0 | U179: 0 | V179: 0 | W179: 0.01960784314 | X179: 0 | Y179: 0.495543672 | Z179: 0 | AA179: 0.2068965517 | AB179: 0 | AC179: 142484.2182 | AD179: 563.0777956 | AE179: 0 | AF179: 1 | AG179: 0 | AH179: 8483 | AI179: 0 | AJ179: 0 | AK179: 4910.405 | AL179: 344365.216 | AM179: 25097.3814 | AN179: 9606 | AO179: 38 | AP179: 0 | AQ179: 0 | AR179: 0 | AS179: 0 | AT179: 0
A180: 3175 | B180: Shepherdswell Church of England Primary School | C180: 1 | D180: 210 | E180: 0 | F180: 0 | G180: 0.1619047619 | H180: 0 | I180: 0.1619047619 | J180: 0 | K180: 0.0380952381 | L180: 0.2666666667 | M180: 0.02380952381 | N180: 0 | O180: 0.004761904762 | P180: 0 | Q180: 0 | R180: 0 | S180: 0 | T180: 0 | U180: 0 | V180: 0 | W180: 0.01630434783 | X180: 0 | Y180: 0.2128890662 | Z180: 0 | AA180: 0.05714285714 | AB180: 0 | AC180: 142484.2182 | AD180: 0 | AE180: 0 | AF180: 1 | AG180: 0 | AH180: 33852 | AI180: 0 | AJ180: 0 | AK180: 4910.405 | AL180: 988579.6702 | AM180: 70709.7879 | AN180: 27136 | AO180: 208 | AP180: 0 | AQ180: 0 | AR180: 0 | AS180: 0 | AT180: 0
A181: 3178 | B181: Birchington Church of England Primary School | C181: 1 | D181: 440 | E181: 0 | F181: 0 | G181: 0.3022727273 | H181: 0 | I181: 0.3090909091 | J181: 0 | K181: 0.3613636364 | L181: 0.1840909091 | M181: 0.01818181818 | N181: 0.02727272727 | O181: 0.009090909091 | P181: 0.006818181818 | Q181: 0 | R181: 0 | S181: 0 | T181: 0 | U181: 0 | V181: 0 | W181: 0.04370179949 | X181: 0 | Y181: 0.2430899238 | Z181: 0 | AA181: 0.04772727273 | AB181: 0 | AC181: 142484.2182 | AD181: 0 | AE181: 0 | AF181: 1 | AG181: 0 | AH181: 86814 | AI181: 0 | AJ181: 0 | AK181: 4910.405 | AL181: 2103891.532 | AM181: 155086.5856 | AN181: 67072 | AO181: 440 | AP181: 0 | AQ181: 0 | AR181: 0 | AS181: 0 | AT181: 0
A182: 3179 | B182: Margate, Holy Trinity and St John's Church of England Primary School | C182: 1 | D182: 407 | E182: 0 | F182: 0 | G182: 0.5749385749 | H182: 0 | I182: 0.5773955774 | J182: 0 | K182: 0.04422604423 | L182: 0.1695331695 | M182: 0.05651105651 | N182: 0.1965601966 | O182: 0.3415233415 | P182: 0.1326781327 | Q182: 0 | R182: 0 | S182: 0 | T182: 0 | U182: 0 | V182: 0 | W182: 0.2074927954 | X182: 0 | Y182: 0.675693489 | Z182: 0 | AA182: 0.09090909091 | AB182: 0 | AC182: 142484.2182 | AD182: 0 | AE182: 0 | AF182: 1 | AG182: 0 | AH182: 41223 | AI182: 0 | AJ182: 0 | AK182: 4910.405 | AL182: 2378317.978 | AM182: 167804.9005 | AN182: 31488 | AO182: 399 | AP182: 0 | AQ182: 0 | AR182: 0 | AS182: 0 | AT182: 0
A183: 3181 | B183: St Saviour's Church of England Junior School | C183: 1 | D183: 380 | E183: 0 | F183: 0 | G183: 0.3421052632 | H183: 0 | I183: 0.3605263158 | J183: 0 | K183: 0.08421052632 | L183: 0.1921052632 | M183: 0.002631578947 | N183: 0.02631578947 | O183: 0.01578947368 | P183: 0.01052631579 | Q183: 0 | R183: 0 | S183: 0 | T183: 0 | U183: 0 | V183: 0 | W183: 0.05263157895 | X183: 0 | Y183: 0.3125 | Z183: 0 | AA183: 0.06315789474 | AB183: 0 | AC183: 142484.2182 | AD183: 0 | AE183: 0 | AF183: 1 | AG183: 0 | AH183: 57876 | AI183: 0 | AJ183: 0 | AK183: 4910.405 | AL183: 1811068.606 | AM183: 141970.9797 | AN183: 49152 | AO183: 378 | AP183: 0 | AQ183: 0 | AR183: 0 | AS183: 0 | AT183: 0
A184: 3182 | B184: Minster Church of England Primary School | C184: 1 | D184: 388 | E184: 0 | F184: 0 | G184: 0.2731958763 | H184: 0 | I184: 0.2783505155 | J184: 0 | K184: 0.07512953368 | L184: 0.2124352332 | M184: 0.0310880829 | N184: 0.00518134715 | O184: 0.02331606218 | P184: 0.007772020725 | Q184: 0 | R184: 0 | S184: 0 | T184: 0 | U184: 0 | V184: 0 | W184: 0.01488095238 | X184: 0 | Y184: 0.3335580164 | Z184: 0 | AA184: 0.04639175258 | AB184: 0 | AC184: 142484.2182 | AD184: 0 | AE184: 0 | AF184: 1 | AG184: 0 | AH184: 46246 | AI184: 0 | AJ184: 0 | AK184: 4910.405 | AL184: 1782379.275 | AM184: 130483.5663 | AN184: 35072 | AO184: 376 | AP184: 0 | AQ184: 0 | AR184: 0 | AS184: 0 | AT184: 0
A185: 3183 | B185: Monkton Church of England Primary School | C185: 1 | D185: 98 | E185: 0 | F185: 0 | G185: 0.2857142857 | H185: 0 | I185: 0.2857142857 | J185: 0 | K185: 0.09183673469 | L185: 0.1632653061 | M185: 0 | N185: 0.01020408163 | O185: 0.01020408163 | P185: 0.01020408163 | Q185: 0 | R185: 0 | S185: 0 | T185: 0 | U185: 0 | V185: 0 | W185: 0.01149425287 | X185: 0 | Y185: 0.3647509579 | Z185: 0 | AA185: 0.04081632653 | AB185: 0 | AC185: 142484.2182 | AD185: 0 | AE185: 0 | AF185: 1 | AG185: 0 | AH185: 22904 | AI185: 0 | AJ185: 0 | AK185: 4910.405 | AL185: 611499.5776 | AM185: 44368.4955 | AN185: 19087 | AO185: 103 | AP185: 0 | AQ185: 0 | AR185: 0 | AS185: 0 | AT185: 0
A186: 3186 | B186: St Nicholas At Wade Church of England Primary School | C186: 1 | D186: 211 | E186: 0 | F186: 0 | G186: 0.1990521327 | H186: 0 | I186: 0.2085308057 | J186: 0 | K186: 0.2180094787 | L186: 0.07582938389 | M186: 0.004739336493 | N186: 0.01421800948 | O186: 0.004739336493 | P186: 0.004739336493 | Q186: 0 | R186: 0 | S186: 0 | T186: 0 | U186: 0 | V186: 0 | W186: 0.01104972376 | X186: 0 | Y186: 0.2849117175 | Z186: 0 | AA186: 0.09952606635 | AB186: 0 | AC186: 142484.2182 | AD186: 0 | AE186: 0 | AF186: 1 | AG186: 0 | AH186: 16168 | AI186: 0 | AJ186: 0 | AK186: 4910.405 | AL186: 1019032.741 | AM186: 74440.5203 | AN186: 13473 | AO186: 208 | AP186: 0 | AQ186: 0 | AR186: 0 | AS186: 0 | AT186: 0
A187: 3198 | B187: Frittenden Church of England Primary School | C187: 1 | D187: 99 | E187: 0 | F187: 0 | G187: 0.1414141414 | H187: 0 | I187: 0.1515151515 | J187: 0 | K187: 0.0303030303 | L187: 0 | M187: 0.1111111111 | N187: 0.0101010101 | O187: 0 | P187: 0 | Q187: 0 | R187: 0 | S187: 0 | T187: 0 | U187: 0 | V187: 0 | W187: 0.01204819277 | X187: 0 | Y187: 0.3437751004 | Z187: 0 | AA187: 0.1111111111 | AB187: 0 | AC187: 142484.2182 | AD187: 38190.0561 | AE187: 0 | AF187: 1 | AG187: 0 | AH187: 15569 | AI187: 0 | AJ187: 0 | AK187: 4910.405 | AL187: 584728.1793 | AM187: 39192.7048 | AN187: 12974 | AO187: 94 | AP187: 0 | AQ187: 0 | AR187: 0 | AS187: 0 | AT187: 0
A188: 3199 | B188: Egerton Church of England Primary School | C188: 1 | D188: 184 | E188: 0 | F188: 0 | G188: 0.1847826087 | H188: 0 | I188: 0.1847826087 | J188: 0 | K188: 0.005434782609 | L188: 0.125 | M188: 0 | N188: 0 | O188: 0 | P188: 0 | Q188: 0 | R188: 0 | S188: 0 | T188: 0 | U188: 0 | V188: 0 | W188: 0.006134969325 | X188: 0 | Y188: 0.4002395927 | Z188: 0 | AA188: 0.04347826087 | AB188: 0 | AC188: 142484.2182 | AD188: 0 | AE188: 0 | AF188: 1 | AG188: 0 | AH188: 11851 | AI188: 0 | AJ188: 0 | AK188: 4910.405 | AL188: 904671.4266 | AM188: 65784.1804 | AN188: 11103 | AO188: 177 | AP188: 0 | AQ188: 0 | AR188: 0 | AS188: 0 | AT188: 0
A189: 3201 | B189: St Lawrence Church of England Primary School | C189: 1 | D189: 86 | E189: 0 | F189: 0 | G189: 0.09302325581 | H189: 0 | I189: 0.09302325581 | J189: 0 | K189: 0.05813953488 | L189: 0 | M189: 0 | N189: 0 | O189: 0 | P189: 0 | Q189: 0 | R189: 0 | S189: 0 | T189: 0 | U189: 0 | V189: 0 | W189: 0.01369863014 | X189: 0 | Y189: 0.2450617284 | Z189: 0 | AA189: 0.06976744186 | AB189: 0 | AC189: 142484.2182 | AD189: 8753.266105 | AE189: 0 | AF189: 1.0378 | AG189: 0 | AH189: 7547 | AI189: 0 | AJ189: 0 | AK189: 4910.405 | AL189: 497376.2508 | AM189: 35630.7772 | AN189: 6861 | AO189: 88 | AP189: 0 | AQ189: 0 | AR189: 0 | AS189: 0 | AT189: 0
A190: 3282 | B190: Boughton-under-Blean and Dunkirk Primary School | C190: 1 | D190: 203 | E190: 0 | F190: 0 | G190: 0.2068965517 | H190: 0 | I190: 0.2118226601 | J190: 0 | K190: 0.08374384236 | L190: 0.4433497537 | M190: 0.009852216749 | N190: 0 | O190: 0.004926108374 | P190: 0 | Q190: 0 | R190: 0 | S190: 0 | T190: 0 | U190: 0 | V190: 0 | W190: 0.01734104046 | X190: 0 | Y190: 0.1691331924 | Z190: 0 | AA190: 0.05911330049 | AB190: 0 | AC190: 142484.2182 | AD190: 0 | AE190: 0 | AF190: 1 | AG190: 0 | AH190: 19087 | AI190: 0 | AJ190: 0 | AK190: 4910.405 | AL190: 995149.1907 | AM190: 73119.5529 | AN190: 18338 | AO190: 203 | AP190: 0 | AQ190: 0 | AR190: 0 | AS190: 0 | AT190: 0
A191: 3284 | B191: Lady Joanna Thornhill Endowed Primary School | C191: 1 | D191: 423 | E191: 0 | F191: 0 | G191: 0.1087470449 | H191: 0 | I191: 0.1134751773 | J191: 0 | K191: 0.01891252955 | L191: 0.01891252955 | M191: 0.009456264775 | N191: 0.01182033097 | O191: 0.01654846336 | P191: 0 | Q191: 0 | R191: 0 | S191: 0 | T191: 0 | U191: 0 | V191: 0 | W191: 0.06629834254 | X191: 0 | Y191: 0.1690284338 | Z191: 0 | AA191: 0.0756501182 | AB191: 0 | AC191: 142484.2182 | AD191: 0 | AE191: 0 | AF191: 1 | AG191: 0 | AH191: 52689 | AI191: 0 | AJ191: 0 | AK191: 4910.405 | AL191: 1920153.61 | AM191: 129937.1661 | AN191: 42496 | AO191: 411 | AP191: 0 | AQ191: 0 | AR191: 0 | AS191: 0 | AT191: 0
A192: 3289 | B192: St Peter's Methodist Primary School | C192: 1 | D192: 210 | E192: 0 | F192: 0 | G192: 0.2952380952 | H192: 0 | I192: 0.2952380952 | J192: 0 | K192: 0.009523809524 | L192: 0.1714285714 | M192: 0.01904761905 | N192: 0.08571428571 | O192: 0.05714285714 | P192: 0 | Q192: 0 | R192: 0 | S192: 0 | T192: 0 | U192: 0 | V192: 0 | W192: 0.2888888889 | X192: 0 | Y192: 0.3239660657 | Z192: 0 | AA192: 0.0619047619 | AB192: 0 | AC192: 142484.2182 | AD192: 0 | AE192: 0 | AF192: 1 | AG192: 0 | AH192: 22604 | AI192: 0 | AJ192: 0 | AK192: 4910.405 | AL192: 1103677.352 | AM192: 78233.2982 | AN192: 18837 | AO192: 210 | AP192: 0 | AQ192: 0 | AR192: 0 | AS192: 0 | AT192: 0
A193: 3294 | B193: St Matthew's High Brooms Church of England Voluntary Controlled Primary School | C193: 1 | D193: 332 | E193: 0 | F193: 0 | G193: 0.4819277108 | H193: 0 | I193: 0.4879518072 | J193: 0 | K193: 0.2710843373 | L193: 0 | M193: 0 | N193: 0.1626506024 | O193: 0 | P193: 0 | Q193: 0 | R193: 0 | S193: 0 | T193: 0 | U193: 0 | V193: 0 | W193: 0.1546391753 | X193: 0 | Y193: 0.302560988 | Z193: 0 | AA193: 0.1144578313 | AB193: 0 | AC193: 142484.2182 | AD193: 0 | AE193: 0 | AF193: 1 | AG193: 0 | AH193: 41223 | AI193: 0 | AJ193: 0 | AK193: 4910.405 | AL193: 1791638.212 | AM193: 138444.3968 | AN193: 36864 | AO193: 347 | AP193: 0 | AQ193: 0 | AR193: 0 | AS193: 0 | AT193: 0
A194: 3295 | B194: Herne Church of England Infant and Nursery School | C194: 1 | D194: 270 | E194: 0 | F194: 0 | G194: 0.1037037037 | H194: 0 | I194: 0.1037037037 | J194: 0 | K194: 0.01486988848 | L194: 0.007434944238 | M194: 0.007434944238 | N194: 0 | O194: 0 | P194: 0 | Q194: 0 | R194: 0 | S194: 0 | T194: 0 | U194: 0 | V194: 0 | W194: 0.03333333333 | X194: 0 | Y194: 0.3666666667 | Z194: 0 | AA194: 0 | AB194: 0 | AC194: 142484.2182 | AD194: 0 | AE194: 0 | AF194: 1 | AG194: 0 | AH194: 55146 | AI194: 0 | AJ194: 0 | AK194: 4910.405 | AL194: 1280857.7 | AM194: 85690.76 | AN194: 47360 | AO194: 270 | AP194: 0 | AQ194: 0 | AR194: 0 | AS194: 0 | AT194: 0
A195: 3296 | B195: Langafel Church of England Voluntary Controlled Primary School | C195: 1 | D195: 313 | E195: 0 | F195: 0 | G195: 0.3610223642 | H195: 0 | I195: 0.3738019169 | J195: 0 | K195: 0.05466237942 | L195: 0.038585209 | M195: 0.08681672026 | N195: 0.0192926045 | O195: 0.01607717042 | P195: 0 | Q195: 0 | R195: 0 | S195: 0 | T195: 0 | U195: 0 | V195: 0 | W195: 0.02517985612 | X195: 0 | Y195: 0.3937728938 | Z195: 0 | AA195: 0.05750798722 | AB195: 0 | AC195: 142484.2182 | AD195: 0 | AE195: 0 | AF195: 1.0378 | AG195: 0 | AH195: 38493 | AI195: 0 | AJ195: 0 | AK195: 4910.405 | AL195: 1721854.156 | AM195: 129782.7025 | AN195: 37888 | AO195: 330 | AP195: 0 | AQ195: 0 | AR195: 0 | AS195: 1.34 | AT195: 0
A196: 3297 | B196: Southborough CofE Primary School | C196: 1 | D196: 626 | E196: 0 | F196: 0 | G196: 0.1437699681 | H196: 0 | I196: 0.1437699681 | J196: 0 | K196: 0.04952076677 | L196: 0 | M196: 0.001597444089 | N196: 0.01757188498 | O196: 0 | P196: 0 | Q196: 0 | R196: 0 | S196: 0 | T196: 0 | U196: 0 | V196: 0 | W196: 0.1203703704 | X196: 0 | Y196: 0.2567664811 | Z196: 0 | AA196: 0.07028753994 | AB196: 0 | AC196: 142484.2182 | AD196: 0 | AE196: 0 | AF196: 1 | AG196: 0 | AH196: 78078 | AI196: 0 | AJ196: 0 | AK196: 4910.405 | AL196: 2864496.63 | AM196: 195662.3033 | AN196: 64000 | AO196: 613 | AP196: 0 | AQ196: 0 | AR196: 0 | AS196: 0 | AT196: 0
A197: 3298 | B197: St. Edmund's Church of England Primary School | C197: 1 | D197: 193 | E197: 0 | F197: 0 | G197: 0.3834196891 | H197: 0 | I197: 0.3989637306 | J197: 0 | K197: 0.0207253886 | L197: 0.0310880829 | M197: 0.0207253886 | N197: 0.00518134715 | O197: 0.00518134715 | P197: 0 | Q197: 0 | R197: 0 | S197: 0 | T197: 0 | U197: 0 | V197: 0 | W197: 0.0245398773 | X197: 0 | Y197: 0.2968021319 | Z197: 0 | AA197: 0.1191709845 | AB197: 0 | AC197: 142484.2182 | AD197: 0 | AE197: 0 | AF197: 1.0378 | AG197: 0 | AH197: 28443 | AI197: 0 | AJ197: 0 | AK197: 4910.405 | AL197: 939824.097 | AM197: 72266.5836 | AN197: 30189 | AO197: 174 | AP197: 0 | AQ197: 0 | AR197: 0 | AS197: 0 | AT197: 0
A198: 3299 | B198: The John Wesley Church of England Methodist Voluntary Aided Primary School | C198: 1 | D198: 429 | E198: 0 | F198: 0 | G198: 0.2004662005 | H198: 0 | I198: 0.2004662005 | J198: 0 | K198: 0.01170960187 | L198: 0.05152224824 | M198: 0.02107728337 | N198: 0.004683840749 | O198: 0.1405152225 | P198: 0 | Q198: 0 | R198: 0 | S198: 0 | T198: 0 | U198: 0 | V198: 0 | W198: 0.09485094851 | X198: 0 | Y198: 0.3666079574 | Z198: 0 | AA198: 0.03263403263 | AB198: 0 | AC198: 142484.2182 | AD198: 0 | AE198: 0 | AF198: 1 | AG198: 0 | AH198: 18867 | AI198: 0 | AJ198: 0 | AK198: 4910.405 | AL198: 2102514.324 | AM198: 151494.9551 | AN198: 11571 | AO198: 452 | AP198: 0 | AQ198: 0 | AR198: 0 | AS198: 0 | AT198: 0
A199: 3303 | B199: St Katharine's Knockholt Church of England Voluntary Aided Primary School | C199: 1 | D199: 174 | E199: 0 | F199: 0 | G199: 0.08045977011 | H199: 0 | I199: 0.08045977011 | J199: 0 | K199: 0.03448275862 | L199: 0 | M199: 0 | N199: 0 | O199: 0 | P199: 0 | Q199: 0 | R199: 0 | S199: 0 | T199: 0 | U199: 0 | V199: 0 | W199: 0.01960784314 | X199: 0 | Y199: 0.2297149123 | Z199: 0 | AA199: 0.09770114943 | AB199: 0 | AC199: 142484.2182 | AD199: 0 | AE199: 0 | AF199: 1.0378 | AG199: 0 | AH199: 4854 | AI199: 0 | AJ199: 0 | AK199: 4910.405 | AL199: 817265.3443 | AM199: 58494.1534 | AN199: 4045 | AO199: 167 | AP199: 0 | AQ199: 0 | AR199: 0 | AS199: 0 | AT199: 0
A200: 3307 | B200: Chevening, St Botolph's Church of England Voluntary Aided Primary School | C200: 1 | D200: 193 | E200: 0 | F200: 0 | G200: 0.05699481865 | H200: 0 | I200: 0.0621761658 | J200: 0 | K200: 0.03626943005 | L200: 0 | M200: 0.00518134715 | N200: 0.00518134715 | O200: 0 | P200: 0 | Q200: 0 | R200: 0 | S200: 0 | T200: 0 | U200: 0 | V200: 0 | W200: 0.03067484663 | X200: 0 | Y200: 0.1947836115 | Z200: 0 | AA200: 0.0518134715 | AB200: 0 | AC200: 142484.2182 | AD200: 0 | AE200: 0 | AF200: 1.0378 | AG200: 0 | AH200: 5788 | AI200: 0 | AJ200: 0 | AK200: 4910.405 | AL200: 865271.5416 | AM200: 62605.6366 | AN200: 5171 | AO200: 182 | AP200: 0 | AQ200: 0 | AR200: 0 | AS200: 0 | AT200: 0
... 70 more rows

Sheet EYIDACI (hidden)
A1: pcd | B1: lsoa11 | C1: Ranks | D1: Band
A2: AL86AA | B2: E01023918 | C2: 24353 | D2: D
A3: AL86AB | B3: E01023918 | C3: 24353 | D3: D
A4: AL86AD | B4: E01023954 | C4: 7303 | D4: C
A5: AL86AE | B5: E01023918 | C5: 24353 | D5: D
A6: AL86AF | B6: E01023918 | C6: 24353 | D6: D
A7: AL86AG | B7: E01023918 | C7: 24353 | D7: D
A8: AL86AH | B8: E01023918 | C8: 24353 | D8: D
A9: AL86AJ | B9: E01023918 | C9: 24353 | D9: D
A10: AL86AL | B10: E01023918 | C10: 24353 | D10: D
A11: AL86AN | B11: E01023954 | C11: 7303 | D11: C
A12: AL86AP | B12: E01023918 | C12: 24353 | D12: D
A13: AL86AQ | B13: E01023918 | C13: 24353 | D13: D
A14: AL86AR | B14: E01023918 | C14: 24353 | D14: D
A15: AL86AS | B15: E01023917 | C15: 30462 | D15: D
A16: AL86AT | B16: E01023918 | C16: 24353 | D16: D
A17: AL86AU | B17: E01023954 | C17: 7303 | D17: C
A18: AL86AW | B18: E01023918 | C18: 24353 | D18: D
A19: AL86AX | B19: E01023918 | C19: 24353 | D19: D
A20: AL86AY | B20: E01023917 | C20: 30462 | D20: D
A21: AL86AZ | B21: E01023918 | C21: 24353 | D21: D
A22: AL86BA | B22: E01023918 | C22: 24353 | D22: D
A23: AL86BB | B23: E01023918 | C23: 24353 | D23: D
A24: AL86BD | B24: E01023918 | C24: 24353 | D24: D
A25: AL86BE | B25: E01023918 | C25: 24353 | D25: D
A26: AL86BF | B26: E01023917 | C26: 30462 | D26: D
A27: AL86BG | B27: E01023918 | C27: 24353 | D27: D
A28: AL86BH | B28: E01023918 | C28: 24353 | D28: D
A29: AL86BJ | B29: E01023918 | C29: 24353 | D29: D
A30: AL86BL | B30: E01023918 | C30: 24353 | D30: D
A31: AL86BN | B31: E01023917 | C31: 30462 | D31: D
A32: AL86BP | B32: E01023918 | C32: 24353 | D32: D
A33: AL86BQ | B33: E01023918 | C33: 24353 | D33: D
A34: AL86BS | B34: E01023918 | C34: 24353 | D34: D
A35: AL86BT | B35: E01023918 | C35: 24353 | D35: D
A36: AL86BU | B36: E01023918 | C36: 24353 | D36: D
A37: AL86BW | B37: E01023918 | C37: 24353 | D37: D
A38: AL86BX | B38: E01023918 | C38: 24353 | D38: D
A39: AL86BY | B39: E01023918 | C39: 24353 | D39: D
A40: AL86BZ | B40: E01023918 | C40: 24353 | D40: D
A41: AL86DA | B41: E01023917 | C41: 30462 | D41: D
A42: AL86DB | B42: E01023917 | C42: 30462 | D42: D
A43: AL86DD | B43: E01023918 | C43: 24353 | D43: D
A44: AL86DE | B44: E01023918 | C44: 24353 | D44: D
A45: AL86DF | B45: E01033311 | C45: 16471 | D45: D
A46: AL86DG | B46: E01023918 | C46: 24353 | D46: D
A47: AL86DH | B47: E01023918 | C47: 24353 | D47: D
A48: AL86DJ | B48: E01023918 | C48: 24353 | D48: D
A49: AL86DL | B49: E01023918 | C49: 24353 | D49: D
A50: AL86DN | B50: E01023918 | C50: 24353 | D50: D
A51: AL86DP | B51: E01023954 | C51: 7303 | D51: C
A52: AL86DQ | B52: E01023917 | C52: 30462 | D52: D
A53: AL86DR | B53: E01023916 | C53: 15810 | D53: D
A54: AL86DS | B54: E01023918 | C54: 24353 | D54: D
A55: AL86DU | B55: E01023918 | C55: 24353 | D55: D
A56: AL86DX | B56: E01023918 | C56: 24353 | D56: D
A57: AL86DY | B57: E01023917 | C57: 30462 | D57: D
A58: AL86DZ | B58: E01023954 | C58: 7303 | D58: C
A59: AL86EA | B59: E01023918 | C59: 24353 | D59: D
A60: AL86EB | B60: E01023918 | C60: 24353 | D60: D
A61: AL86ED | B61: E01023918 | C61: 24353 | D61: D
A62: AL86EE | B62: E01023918 | C62: 24353 | D62: D
A63: AL86EF | B63: E01023918 | C63: 24353 | D63: D
A64: AL86EG | B64: E01023917 | C64: 30462 | D64: D
A65: AL86EH | B65: E01023917 | C65: 30462 | D65: D
A66: AL86EJ | B66: E01023917 | C66: 30462 | D66: D
A67: AL86EL | B67: E01023917 | C67: 30462 | D67: D
A68: AL86EN | B68: E01023917 | C68: 30462 | D68: D
A69: AL86EP | B69: E01023917 | C69: 30462 | D69: D
A70: AL86EQ | B70: E01023917 | C70: 30462 | D70: D
A71: AL86ER | B71: E01023917 | C71: 30462 | D71: D
A72: AL86ES | B72: E01023917 | C72: 30462 | D72: D
A73: AL86ET | B73: E01023917 | C73: 30462 | D73: D
A74: AL86EU | B74: E01023917 | C74: 30462 | D74: D
A75: AL86EW | B75: E01023917 | C75: 30462 | D75: D
A76: AL86EX | B76: E01023917 | C76: 30462 | D76: D
A77: AL86EY | B77: E01023917 | C77: 30462 | D77: D
A78: AL86EZ | B78: E01023917 | C78: 30462 | D78: D
A79: AL86GZ | B79: E01023954 | C79: 7303 | D79: C
A80: AL86HA | B80: E01023918 | C80: 24353 | D80: D
A81: AL86HB | B81: E01023918 | C81: 24353 | D81: D
A82: AL86HD | B82: E01023917 | C82: 30462 | D82: D
A83: AL86HE | B83: E01023917 | C83: 30462 | D83: D
A84: AL86HF | B84: E01023917 | C84: 30462 | D84: D
A85: AL86HG | B85: E01023918 | C85: 24353 | D85: D
A86: AL86HH | B86: E01023918 | C86: 24353 | D86: D
A87: AL86HJ | B87: E01023917 | C87: 30462 | D87: D
A88: AL86HL | B88: E01023917 | C88: 30462 | D88: D
A89: AL86HN | B89: E01023917 | C89: 30462 | D89: D
A90: AL86HP | B90: E01023917 | C90: 30462 | D90: D
A91: AL86HQ | B91: E01023918 | C91: 24353 | D91: D
A92: AL86HR | B92: E01023917 | C92: 30462 | D92: D
A93: AL86HS | B93: E01023917 | C93: 30462 | D93: D
A94: AL86HT | B94: E01023917 | C94: 30462 | D94: D
A95: AL86HU | B95: E01023917 | C95: 30462 | D95: D
A96: AL86HW | B96: E01023917 | C96: 30462 | D96: D
A97: AL86HX | B97: E01023917 | C97: 30462 | D97: D
A98: AL86HY | B98: E01023917 | C98: 30462 | D98: D
A99: AL86HZ | B99: E01023917 | C99: 30462 | D99: D
A100: AL86JA | B100: E01023917 | C100: 30462 | D100: D
A101: AL86JB | B101: E01023917 | C101: 30462 | D101: D
A102: AL86JD | B102: E01023917 | C102: 30462 | D102: D
A103: AL86JE | B103: E01023918 | C103: 24353 | D103: D
A104: AL86JF | B104: E01023917 | C104: 30462 | D104: D
A105: AL86JG | B105: E01023917 | C105: 30462 | D105: D
A106: AL86JH | B106: E01023918 | C106: 24353 | D106: D
A107: AL86JJ | B107: E01023918 | C107: 24353 | D107: D
A108: AL86JL | B108: E01023918 | C108: 24353 | D108: D
A109: AL86JN | B109: E01023918 | C109: 24353 | D109: D
A110: AL86JP | B110: E01023917 | C110: 30462 | D110: D
A111: AL86JQ | B111: E01023918 | C111: 24353 | D111: D
A112: AL86JR | B112: E01023917 | C112: 30462 | D112: D
A113: AL86JS | B113: E01023917 | C113: 30462 | D113: D
A114: AL86JT | B114: E01023917 | C114: 30462 | D114: D
A115: AL86JU | B115: E01023917 | C115: 30462 | D115: D
A116: AL86JW | B116: E01023917 | C116: 30462 | D116: D
A117: AL86JX | B117: E01023917 | C117: 30462 | D117: D
A118: AL86JY | B118: E01023917 | C118: 30462 | D118: D
A119: AL86JZ | B119: E01023917 | C119: 30462 | D119: D
A120: AL86LA | B120: E01023919 | C120: 28088 | D120: D
A121: AL86LB | B121: E01023917 | C121: 30462 | D121: D
A122: AL86LD | B122: E01023919 | C122: 28088 | D122: D
A123: AL86LE | B123: E01023919 | C123: 28088 | D123: D
A124: AL86LG | B124: E01023919 | C124: 28088 | D124: D
A125: AL86LH | B125: E01023916 | C125: 15810 | D125: D
A126: AL86LJ | B126: E01023919 | C126: 28088 | D126: D
A127: AL86LL | B127: E01023916 | C127: 15810 | D127: D
A128: AL86LN | B128: E01023916 | C128: 15810 | D128: D
A129: AL86LP | B129: E01023919 | C129: 28088 | D129: D
A130: AL86LQ | B130: E01023919 | C130: 28088 | D130: D
A131: AL86LT | B131: E01023918 | C131: 24353 | D131: D
A132: AL86LW | B132: E01023916 | C132: 15810 | D132: D
A133: AL86LY | B133: E01023918 | C133: 24353 | D133: D
A134: AL86NA | B134: E01023918 | C134: 24353 | D134: D
A135: AL86NB | B135: E01023918 | C135: 24353 | D135: D
A136: AL86ND | B136: E01023918 | C136: 24353 | D136: D
A137: AL86NE | B137: E01023918 | C137: 24353 | D137: D
A138: AL86NF | B138: E01023918 | C138: 24353 | D138: D
A139: AL86NG | B139: E01023917 | C139: 30462 | D139: D
A140: AL86NH | B140: E01023918 | C140: 24353 | D140: D
A141: AL86NJ | B141: E01023954 | C141: 7303 | D141: C
A142: AL86NL | B142: E01023918 | C142: 24353 | D142: D
A143: AL86NN | B143: E01023918 | C143: 24353 | D143: D
A144: AL86NP | B144: E01023918 | C144: 24353 | D144: D
A145: AL86NQ | B145: E01023918 | C145: 24353 | D145: D
A146: AL86NR | B146: E01023954 | C146: 7303 | D146: C
A147: AL86NS | B147: E01023918 | C147: 24353 | D147: D
A148: AL86NT | B148: E01023918 | C148: 24353 | D148: D
A149: AL86NU | B149: E01023918 | C149: 24353 | D149: D
A150: AL86NW | B150: E01023918 | C150: 24353 | D150: D
A151: AL86NX | B151: E01023918 | C151: 24353 | D151: D
A152: AL86NY | B152: E01023918 | C152: 24353 | D152: D
A153: AL86NZ | B153: E01023918 | C153: 24353 | D153: D
A154: AL86PA | B154: E01023918 | C154: 24353 | D154: D
A155: AL86PB | B155: E01023918 | C155: 24353 | D155: D
A156: AL86PD | B156: E01023918 | C156: 24353 | D156: D
A157: AL86PE | B157: E01023918 | C157: 24353 | D157: D
A158: AL86PF | B158: E01023918 | C158: 24353 | D158: D
A159: AL86PG | B159: E01023918 | C159: 24353 | D159: D
A160: AL86PH | B160: E01023918 | C160: 24353 | D160: D
A161: AL86PJ | B161: E01023918 | C161: 24353 | D161: D
A162: AL86PL | B162: E01023918 | C162: 24353 | D162: D
A163: AL86PN | B163: E01023917 | C163: 30462 | D163: D
A164: AL86PP | B164: E01023954 | C164: 7303 | D164: C
A165: AL86PQ | B165: E01023954 | C165: 7303 | D165: C
A166: AL86PR | B166: E01023918 | C166: 24353 | D166: D
A167: AL86PS | B167: E01023918 | C167: 24353 | D167: D
A168: AL86PT | B168: E01023918 | C168: 24353 | D168: D
A169: AL86PU | B169: E01023918 | C169: 24353 | D169: D
A170: AL86PW | B170: E01023918 | C170: 24353 | D170: D
A171: AL86PX | B171: E01023917 | C171: 30462 | D171: D
A172: AL86PY | B172: E01023918 | C172: 24353 | D172: D
A173: AL86PZ | B173: E01023918 | C173: 24353 | D173: D
A174: AL86QA | B174: E01023918 | C174: 24353 | D174: D
A175: AL86QF | B175: E01023917 | C175: 30462 | D175: D
A176: AL86QG | B176: E01023954 | C176: 7303 | D176: C
A177: AL86QH | B177: E01023954 | C177: 7303 | D177: C
A178: AL86QJ | B178: E01023918 | C178: 24353 | D178: D
A179: AL86QL | B179: E01023918 | C179: 24353 | D179: D
A180: AL86QN | B180: E01023918 | C180: 24353 | D180: D
A181: AL86QP | B181: E01023918 | C181: 24353 | D181: D
A182: AL86QQ | B182: E01023917 | C182: 30462 | D182: D
A183: AL86QR | B183: E01023918 | C183: 24353 | D183: D
A184: AL86QS | B184: E01023918 | C184: 24353 | D184: D
A185: AL86QT | B185: E01023918 | C185: 24353 | D185: D
A186: AL86QU | B186: E01023919 | C186: 28088 | D186: D
A187: AL86QW | B187: E01023918 | C187: 24353 | D187: D
A188: AL86QX | B188: E01023919 | C188: 28088 | D188: D
A189: AL86QY | B189: E01023918 | C189: 24353 | D189: D
A190: AL86QZ | B190: E01023918 | C190: 24353 | D190: D
A191: AL86RA | B191: E01023918 | C191: 24353 | D191: D
A192: AL86RB | B192: E01023918 | C192: 24353 | D192: D
A193: AL86RD | B193: E01023918 | C193: 24353 | D193: D
A194: AL86RE | B194: E01023918 | C194: 24353 | D194: D
A195: AL86RF | B195: E01023918 | C195: 24353 | D195: D
A196: AL86RG | B196: E01023918 | C196: 24353 | D196: D
A197: AL86RH | B197: E01023918 | C197: 24353 | D197: D
A198: AL86RJ | B198: E01023918 | C198: 24353 | D198: D
A199: AL86RL | B199: E01023954 | C199: 7303 | D199: C
A200: AL86RP | B200: E01023918 | C200: 24353 | D200: D
... 4300 more rows

Sheet TestArea (hidden)
A1: MI DfE no | B1: School Name | D1: Macro School Name | E1: Data Calc | F1: =SUM(F2:F302) -> 301 | H1: Macro F1 | I1: Data Calc F1 | J1: =SUM(J2:J566) -> 0.006324459187 | L1: Macro F2 | M1: Data Calc F2 | N1: =SUM(N2:N566) -> 0.001612889173 | P1: Macro F4 | Q1: Data Calc F4 | R1: =SUM(R2:R566) -> 0.006310671676 | T1: Macro F6 | U1: Data Calc F6 | V1: =SUM(V2:V566) -> 0.09058853828 | X1: Macro F? | Y1: Data Calc F? | Z1: =SUM(Z2:Z566) -> -0.006839601262 | AB1: Macro F7 | AC1: Data Calc F7 | AD1: =SUM(AD2:AD566) -> 1.027347055 | AF1: Macro F8 | AG1: Data Calc F8 | AH1: =SUM(AH2:AH566) -> 0.0303519531 | AJ1: Macro F9 | AK1: Data Calc F9 | AL1: =SUM(AL2:AL566) -> -0.0001740876705 | AN1: Macro F10 | AO1: Data Calc F10 | AP1: =SUM(AP2:AP566) -> -0.01967816219 | AR1: Macro F11 | AS1: Data Calc F11 | AT1: =SUM(AT2:AT566) -> -0.0004000000004 | AV1: Macro F12 | AW1: Data Calc F12 | AX1: =SUM(AX2:AX566) -> 0 | AZ1: Macro F13 | BA1: Data Calc F13 | BB1: =SUM(BB2:BB566) -> 0.002500000001 | BD1: Macro F14 | BE1: Data Calc F14 | BF1: =SUM(BF2:BF566) -> -0.01574672006 | BH1: Macro FFT | BI1: Data Calc FFT | BJ1: =SUM(BJ2:BJ566) -> 0.1821970232 | BL1: Macro MFG | BM1: Data Calc MFG | BN1: =SUM(BN2:BN566) -> 0.07167065443 | BP1: Macro SBS | BQ1: Data Calc SBS | BR1: =SUM(BR2:BR566) -> 0.2238676794 | BT1: Early years rate | BV1: =SUM(BV2:BV566) -> 0 | BX1: Macro Notional SEN | BY1: Data Calc | BZ1: =SUM(BZ2:BZ566) -> 0 | CB1: Macro De-Delegation | CC1: Data Calc | CD1: =SUM(CD2:CD566) -> 0 | CF1: Year 2 | CG1: Data Calc | CH1: =SUM(CH2:CH566) -> 1390052169 | CJ1: Year 3 | CK1: Data Calc | CL1: =SUM(CL2:CL566) -> 1423791312
A2: 1001 | B2: Northfleet Nursery | D2: Northfleet Nursery | F2: =IF(E2=D2,0,1) -> 1 | H2: 0 | I2: 0 | J2: =H2-I2 -> 0 | L2: 0 | M2: 0 | N2: =L2-M2 -> 0 | P2: 0 | Q2: 0 | R2: =P2-Q2 -> 0 | T2: 0 | U2: 0 | V2: =T2-U2 -> 0 | X2: 0 | Y2: 0 | Z2: =X2-Y2 -> 0 | AB2: 0 | AC2: 0 | AD2: =AB2-AC2 -> 0 | AF2: 0 | AG2: 0 | AH2: =AF2-AG2 -> 0 | AJ2: 0 | AK2: 0 | AL2: =AJ2-AK2 -> 0 | AN2: 0 | AO2: 0 | AP2: =AN2-AO2 -> 0 | AR2: 0 | AS2: 0 | AT2: =AR2-AS2 -> 0 | AV2: 0 | AW2: 0 | AX2: =AV2-AW2 -> 0 | AZ2: 0 | BA2: 0 | BB2: =AZ2-BA2 -> 0 | BD2: 0 | BE2: 0 | BF2: =BD2-BE2 -> 0 | BH2: 0 | BI2: 0 | BJ2: =BH2-BI2 -> 0 | BL2: 0 | BM2: 0 | BN2: =BL2-BM2 -> 0 | BP2: 0 | BQ2: 0 | BR2: =BP2-BQ2 -> 0 | BV2: =BT2-BU2 -> 0 | BX2: 0 | BY2: 0 | BZ2: =ROUND(BX2-BY2,0) -> 0 | CB2: 0 | CC2: 0 | CD2: =IF(E2="Recoupment Academy",0,ROUND(CB2-CC2,0)) -> 0 | CF2: 0 | CH2: =ROUND(CF2-CG2,0) -> 0 | CJ2: 0 | CL2: =ROUND(CJ2-CK2,0) -> 0
A3: 2000 | B3: St Johns Church of England Primary School | D3: St Johns Church of England Primary School | E3: 0 | F3: 1 | H3: 1537370.38 | I3: 1537370.383 | J3: -0.003273217939 | L3: 413294.76 | M3: 413294.7551 | N3: 0.004895574239 | P3: 80525.1 | Q3: 80525.09518 | R3: 0.004816893372 | T3: 200545.59 | U3: 200545.5897 | V3: 0.0002534831583 | X3: 12944.53 | Y3: 12944.52959 | Z3: 0.0004140248966 | AB3: 142484.22 | AC3: 142484.2182 | AD3: 0.001831755828 | AF3: 0 | AG3: 0 | AH3: 0 | AJ3: 0 | AK3: 0 | AL3: 0 | AN3: 0 | AO3: 0 | AP3: 0 | AR3: 24576 | AS3: 24576 | AT3: 0 | AV3: 0 | AW3: 0 | AX3: 0 | AZ3: 0 | BA3: 0 | BB3: 0 | BD3: 0 | BE3: 0 | BF3: 0 | BH3: 2411740.57 | BI3: 2411740.571 | BJ3: -0.001061486546 | BL3: 13771 | BM3: 13771.00292 | BN3: -0.002916979371 | BP3: 2425511.57 | BQ3: 2425511.574 | BR3: -0.003978466149 | BV3: 0 | BX3: 518429.69 | BY3: 518429.688 | BZ3: 0 | CB3: 13170.52 | CC3: 13170.52 | CD3: =IF(E3="Recoupment Academy",0,ROUND(CB3-CC3,0)) -> 0 | CF3: 2470623.61 | CH3: 2470624 | CI3: =(CF3-BQ3)/BQ3 -> 0.01859897784 | CJ3: 2528599.93 | CL3: 2528600 | CM3: =(CJ3-CF3)/CF3 -> 0.02346626972
A4: 2002 | B4: Repton Manor Primary School | D4: Repton Manor Primary School | E4: 0 | F4: 1 | H4: 1578920.93 | I4: 1578920.934 | J4: -0.004172493936 | L4: 134467.64 | M4: 134467.6406 | N4: -0.000560875138 | P4: 24319.83 | Q4: 24319.83292 | R4: -0.002915356032 | T4: 112493.6 | U4: 112493.6045 | V4: -0.004498522001 | X4: 0 | Y4: 0 | Z4: 0 | AB4: 142484.22 | AC4: 142484.2182 | AD4: 0.001831755828 | AF4: 0 | AG4: 0 | AH4: 0 | AJ4: 0 | AK4: 0 | AL4: 0 | AN4: 0 | AO4: 0 | AP4: 0 | AR4: 17541 | AS4: 17541 | AT4: 0 | AV4: 0 | AW4: 0 | AX4: 0 | AZ4: 0 | BA4: 0 | BB4: 0 | BD4: 59863.06 | BE4: 59863.05968 | BF4: 0.0003154914593 | BH4: 2070090.29 | BI4: 2070090.29 | BJ4: 0 | BL4: 7956.38 | BM4: 7956.377271 | BN4: 0.002729416471 | BP4: 2078046.67 | BQ4: 2078046.667 | BR4: 0.002729416825 | BV4: 0 | BX4: 290367.39 | BY4: 290367.3869 | BZ4: 0 | CB4: 13526.48 | CC4: 13526.48 | CD4: 0 | CF4: 2116350.1 | CH4: 2116350 | CI4: =(CF4-BQ4)/BQ4 -> 0.01843242182 | CJ4: 2135855.79 | CL4: 2135856 | CM4: =(CJ4-CF4)/CF4 -> 0.00921666505
A5: 2065 | B5: The Discovery School | D5: The Discovery School | E5: 0 | F5: 1 | H5: 2394822.66 | I5: 2394822.661 | J5: -0.0009219162166 | L5: 97232.85 | M5: 97232.85456 | N5: -0.004562453731 | P5: 14239.47 | Q5: 14239.47436 | R5: -0.004362996513 | T5: 138112.77 | U5: 138112.7706 | V5: -0.0005915526417 | X5: 0 | Y5: 0 | Z5: 0 | AB5: 142484.22 | AC5: 142484.2182 | AD5: 0.001831755828 | AF5: 0 | AG5: 0 | AH5: 0 | AJ5: 0 | AK5: 0 | AL5: 0 | AN5: 0 | AO5: 0 | AP5: 0 | AR5: 94458 | AS5: 94458 | AT5: 0 | AV5: 0 | AW5: 0 | AX5: 0 | AZ5: 0 | BA5: 0 | BB5: 0 | BD5: 326304.79 | BE5: 326304.7914 | BF5: -0.001392836682 | BH5: 3207654.77 | BI5: 3207654.77 | BJ5: 0 | BL5: 0 | BM5: 0 | BN5: 0 | BP5: 3207654.77 | BQ5: 3207654.77 | BR5: 0 | BV5: 0 | BX5: 450663.37 | BY5: 450663.3698 | BZ5: 0 | CB5: 20516.24 | CC5: 20516.24 | CD5: 0 | CF5: 3267012.03 | CH5: 3267012 | CI5: 0.01850487794 | CJ5: 3300190.91 | CL5: 3300191 | CM5: 0.0101557263
A6: 2079 | B6: Woodlands Primary School | D6: Woodlands Primary School | E6: 0 | F6: 1 | H6: 2069972.9 | I6: 2069972.899 | J6: 0.0006542424671 | L6: 255277.28 | M6: 255277.283 | N6: -0.00299901425 | P6: 14113.38 | Q6: 14113.38392 | R6: -0.003922074662 | T6: 151296.15 | U6: 151296.1514 | V6: -0.001378064655 | X6: 0 | Y6: 0 | Z6: 0 | AB6: 142484.22 | AC6: 142484.2182 | AD6: 0.001831755828 | AF6: 0 | AG6: 0 | AH6: 0 | AJ6: 0 | AK6: 0 | AL6: 0 | AN6: 0 | AO6: 0 | AP6: 0 | AR6: 69342 | AS6: 69342 | AT6: 0 | AV6: 0 | AW6: 0 | AX6: 0 | AZ6: 0 | BA6: 0 | BB6: 0 | BD6: 57758 | BE6: 57758.00419 | BF6: -0.004186844744 | BH6: 2760243.94 | BI6: 2760243.94 | BJ6: 0 | BL6: 8849.66 | BM6: 8849.660577 | BN6: -0.0005772848708 | BP6: 2769093.6 | BQ6: 2769093.601 | BR6: -0.0005772854201 | BV6: 0 | BX6: 417804.94 | BY6: 417804.9382 | BZ6: 0 | CB6: 17733.28 | CC6: 17733.28 | CD6: 0 | CF6: 2820181.95 | CH6: 2820182 | CI6: 0.01844948449 | CJ6: 2846207.95 | CL6: 2846208 | CM6: 0.009228482581
A7: 2088 | B7: Crockenhill Primary School | D7: Crockenhill Primary School | E7: 0 | F7: 1 | H7: 759241.88 | I7: 759241.8846 | J7: -0.004614046076 | L7: 117523.86 | M7: 117523.8646 | N7: -0.004576463354 | P7: 3379.9 | Q7: 3379.903211 | R7: -0.003210987191 | T7: 75331.94 | U7: 75331.94325 | V7: -0.003246073189 | X7: 0 | Y7: 0 | Z7: 0 | AB7: 142484.22 | AC7: 142484.2182 | AD7: 0.001831755828 | AF7: 0 | AG7: 0 | AH7: 0 | AJ7: 41502.96 | AK7: 41502.95656 | AL7: 0.003437762229 | AN7: 0 | AO7: 0 | AP7: 0 | AR7: 31553 | AS7: 31553 | AT7: 0 | AV7: 0 | AW7: 0 | AX7: 0 | AZ7: 0 | BA7: 0 | BB7: 0 | BD7: 0 | BE7: 0 | BF7: 0 | BH7: 1171017.77 | BI7: 1171017.77 | BJ7: -0.0003780517727 | BL7: 0 | BM7: 0 | BN7: 0 | BP7: 1171017.77 | BQ7: 1171017.77 | BR7: -0.0003780517727 | BV7: 0 | BX7: 181532.74 | BY7: 181532.7438 | BZ7: 0 | CB7: 6750.22 | CC7: 6750.224808 | CD7: 0 | CF7: 1190790.52 | CH7: 1190791 | CI7: 0.01688509784 | CJ7: 1224378.02 | CL7: 1224378 | CM7: 0.02820605256
A8: 2089 | B8: The Anthony Roper Primary School | D8: The Anthony Roper Primary School | E8: 0 | F8: 1 | H8: 1004767.87 | I8: 1004767.867 | J8: 0.002799322014 | L8: 54513.84 | M8: 54513.8426 | N8: -0.002604089117 | P8: 3210.84 | Q8: 3210.841766 | R8: -0.00176551287 | T8: 77729.48 | U8: 77729.48423 | V8: -0.004231735569 | X8: 0 | Y8: 0 | Z8: 0 | AB8: 142484.22 | AC8: 142484.2182 | AD8: 0.001831755828 | AF8: 0 | AG8: 0 | AH8: 0 | AJ8: 48486.3 | AK8: 48486.2964 | AL8: 0.003599924181 | AN8: 0 | AO8: 0 | AP8: 0 | AR8: 7043 | AS8: 7043 | AT8: 0 | AV8: 0 | AW8: 0 | AX8: 0 | AZ8: 0 | BA8: 0 | BB8: 0 | BD8: 0 | BE8: 0 | BF8: 0 | BH8: 1338235.55 | BI8: 1338235.55 | BJ8: -0.0003703355324 | BL8: 0 | BM8: 0 | BN8: 0 | BP8: 1338235.55 | BQ8: 1338235.55 | BR8: -0.0003703355324 | BV8: 0 | BX8: 161872.67 | BY8: 161872.6673 | BZ8: 0 | CB8: 8933.13 | CC8: 8933.133328 | CD8: 0 | CF8: 1361842.85 | CH8: 1361843 | CI8: 0.01764061613 | CJ8: 1401336.33 | CL8: 1401336 | CM8: 0.02900002743
A9: 2094 | B9: Cobham Primary School | D9: Cobham Primary School | E9: 0 | F9: 1 | H9: 815901.73 | I9: 815901.7267 | J9: 0.003250577254 | L9: 22772.99 | M9: 22772.99067 | N9: -0.0006733934497 | P9: 4729.59 | Q9: 4729.586275 | R9: 0.003725366791 | T9: 47946.55 | U9: 47946.54806 | V9: 0.001937002453 | X9: 0 | Y9: 0 | Z9: 0 | AB9: 142484.22 | AC9: 142484.2182 | AD9: 0.001831755828 | AF9: 0 | AG9: 0 | AH9: 0 | AJ9: 0 | AK9: 0 | AL9: 0 | AN9: 0 | AO9: 0 | AP9: 0 | AR9: 20659 | AS9: 20659 | AT9: 0 | AV9: 0 | AW9: 0 | AX9: 0 | AZ9: 0 | BA9: 0 | BB9: 0 | BD9: 26812.41 | BE9: 26812.41007 | BF9: -7.130887025e-05 | BH9: 1081306.48 | BI9: 1081306.48 | BJ9: 0 | BL9: 0 | BM9: 0 | BN9: 0 | BP9: 1081306.48 | BQ9: 1081306.48 | BR9: 0 | BV9: 0 | BX9: 111813.38 | BY9: 111813.3751 | BZ9: 0 | CB9: 6989.76 | CC9: 6989.76 | CD9: 0 | CF9: 1099612.75 | CH9: 1099613 | CI9: 0.01692976999 | CJ9: 1111855.63 | CL9: 1111856 | CM9: 0.01113381052
A10: 2095 | B10: Cecil Road Primary and Nursery School | D10: Cecil Road Primary and Nursery School | E10: 0 | F10: 1 | H10: 1405164.09 | I10: 1405164.085 | J10: 0.005042660981 | L10: 145470.71 | M10: 145470.7081 | N10: 0.001914124965 | P10: 55303.55 | Q10: 55303.54893 | R10: 0.001073498002 | T10: 140495.65 | U10: 140495.654 | V10: -0.003985363845 | X10: 643.74 | Y10: 643.7428808 | Z10: -0.002880834658 | AB10: 142484.22 | AC10: 142484.2182 | AD10: 0.001831755828 | AF10: 0 | AG10: 0 | AH10: 0 | AJ10: 0 | AK10: 0 | AL10: 0 | AN10: 0 | AO10: 0 | AP10: 0 | AR10: 44735 | AS10: 44735 | AT10: 0 | AV10: 0 | AW10: 0 | AX10: 0 | AZ10: 0 | BA10: 0 | BB10: 0 | BD10: 0 | BE10: 0 | BF10: 0 | BH10: 1934296.96 | BI10: 1934296.957 | BJ10: 0.002995840972 | BL10: 0 | BM10: 0 | BN10: 0 | BP10: 1934296.96 | BQ10: 1934296.957 | BR10: 0.002995840972 | BV10: 0 | BX10: 290702.17 | BY10: 290702.1675 | BZ10: 0 | CB10: 12037.92 | CC10: 12037.92 | CD10: 0 | CF10: 1969181.52 | CH10: 1969182 | CI10: 0.01803475049 | CJ10: 2025876.11 | CL10: 2025876 | CM10: 0.02879094153
A11: 2109 | B11: Higham Primary School | D11: Higham Primary School | E11: 0 | F11: 1 | H11: 797015.11 | I11: 797015.1127 | J11: -0.002704297192 | L11: 46691.15 | M11: 46691.15089 | N11: -0.0008933647332 | P11: 2712.99 | Q11: 2712.989899 | R11: 0.000100642294 | T11: 90605.06 | U11: 90605.05607 | V11: 0.003926863021 | X11: 0 | Y11: 0 | Z11: 0 | AB11: 142484.22 | AC11: 142484.2182 | AD11: 0.001831755828 | AF11: 0 | AG11: 0 | AH11: 0 | AJ11: 0 | AK11: 0 | AL11: 0 | AN11: 0 | AO11: 0 | AP11: 0 | AR11: 24950 | AS11: 24950 | AT11: 0 | AV11: 0 | AW11: 0 | AX11: 0 | AZ11: 0 | BA11: 0 | BB11: 0 | BD11: 0 | BE11: 0 | BF11: 0 | BH11: 1104458.53 | BI11: 1104458.528 | BJ11: 0.002261599293 | BL11: 0 | BM11: 0 | BN11: 0 | BP11: 1104458.53 | BQ11: 1104458.528 | BR11: 0.002261599293 | BV11: 0 | BX11: 154342.24 | BY11: 154342.2391 | BZ11: 0 | CB11: 6827.96 | CC11: 6827.96 | CD11: 0 | CF11: 1123142.02 | CH11: 1123142 | CI11: 0.01691642718 | CJ11: 1154883.73 | CL11: 1154884 | CM11: 0.02826152832
A12: 2116 | B12: Lawn Primary School | D12: Lawn Primary School | E12: 0 | F12: 1 | H12: 774351.18 | I12: 774351.1759 | J12: 0.004149853485 | L12: 245111.66 | M12: 245111.6565 | N12: 0.003526515473 | P12: 36539.95 | Q12: 36539.94864 | R12: 0.001355844899 | T12: 98091.44 | U12: 98091.43948 | V12: 0.0005203269393 | X12: 9182.8 | Y12: 9182.802859 | Z12: -0.002858965081 | AB12: 142484.22 | AC12: 142484.2182 | AD12: 0.001831755828 | AF12: 0 | AG12: 0 | AH12: 0 | AJ12: 0 | AK12: 0 | AL12: 0 | AN12: 0 | AO12: 0 | AP12: 0 | AR12: 20459 | AS12: 20459 | AT12: 0 | AV12: 0 | AW12: 0 | AX12: 0 | AZ12: 0 | BA12: 0 | BB12: 0 | BD12: 0 | BE12: 0 | BF12: 0 | BH12: 1326220.24 | BI12: 1326220.241 | BJ12: -0.001474668505 | BL12: 0 | BM12: 0 | BN12: 0 | BP12: 1326220.24 | BQ12: 1326220.241 | BR12: -0.001474668505 | BV12: 0 | BX12: 278948.89 | BY12: 278948.8853 | BZ12: 0 | CB12: 6633.8 | CC12: 6633.8 | CD12: 0 | CF12: 1349428.79 | CH12: 1349429 | CI12: 0.01749976949 | CJ12: 1388139.98 | CL12: 1388140 | CM12: 0.0286870936
A13: 2120 | B13: Bean Primary School | D13: Bean Primary School | E13: 0 | F13: 1 | H13: 781905.82 | I13: 781905.8215 | J13: -0.001468196744 | L13: 107080.43 | M13: 107080.4279 | N13: 0.002107177381 | P13: 18166.25 | Q13: 18166.25406 | R13: -0.004064837241 | T13: 70594.21 | U13: 70594.21442 | V13: -0.004422183629 | X13: 15829.24 | Y13: 15829.23671 | Z13: 0.00329113814 | AB13: 142484.22 | AC13: 142484.2182 | AD13: 0.001831755828 | AF13: 0 | AG13: 0 | AH13: 0 | AJ13: 42943.07 | AK13: 42943.07453 | AL13: -0.004529010526 | AN13: 0 | AO13: 0 | AP13: 0 | AR13: 16717 | AS13: 16717 | AT13: 0 | AV13: 0 | AW13: 0 | AX13: 0 | AZ13: 0 | BA13: 0 | BB13: 0 | BD13: 0 | BE13: 0 | BF13: 0 | BH13: 1195720.25 | BI13: 1195720.247 | BJ13: 0.00274584326 | BL13: 0 | BM13: 0 | BN13: 0 | BP13: 1195720.25 | BQ13: 1195720.247 | BR13: 0.00274584326 | BV13: 0 | BX13: 184864.89 | BY13: 184864.8854 | BZ13: 0 | CB13: 6951.72 | CC13: 6951.724056 | CD13: 0 | CF13: 1216283.76 | CH13: 1216284 | CI13: 0.01719759517 | CJ13: 1251089.21 | CL13: 1251089 | CM13: 0.02861622521
A14: 2128 | B14: Capel Primary School | D14: Capel Primary School | E14: 0 | F14: 1 | H14: 774351.18 | I14: 774351.1759 | J14: 0.004149853485 | L14: 81221.88 | M14: 81221.88257 | N14: -0.002565858784 | P14: 670.07 | Q14: 670.066898 | R14: 0.003102031075 | T14: 57723.52 | U14: 57723.51673 | V14: 0.003268657892 | X14: 0 | Y14: 0 | Z14: 0 | AB14: 142484.22 | AC14: 142484.2182 | AD14: 0.001831755828 | AF14: 0 | AG14: 0 | AH14: 0 | AJ14: 0 | AK14: 0 | AL14: 0 | AN14: 0 | AO14: 0 | AP14: 0 | AR14: 23827 | AS14: 23827 | AT14: 0 | AV14: 0 | AW14: 0 | AX14: 0 | AZ14: 0 | BA14: 0 | BB14: 0 | BD14: 0 | BE14: 0 | BF14: 0 | BH14: 1080277.86 | BI14: 1080277.86 | BJ14: -0.0002135604154 | BL14: 0 | BM14: 0 | BN14: 0 | BP14: 1080277.86 | BQ14: 1080277.86 | BR14: -0.0002135604154 | BV14: 0 | BX14: 138070.16 | BY14: 138070.1617 | BZ14: 0 | CB14: 6633.8 | CC14: 6633.8 | CD14: 0 | CF14: 1098500.2 | CH14: 1098500 | CI14: 0.01686819702 | CJ14: 1129531.64 | CL14: 1129532 | CM14: 0.02824891611
A15: 2130 | B15: Dunton Green Primary School | D15: Dunton Green Primary School | E15: 0 | F15: 1 | H15: 642144.88 | I15: 642144.8775 | J15: 0.002465732163 | L15: 87243.17 | M15: 87243.16615 | N15: 0.003851507674 | P15: 8629.59 | Q15: 8629.592939 | R15: -0.002939041269 | T15: 58679.97 | U15: 58679.96959 | V15: 0.0004146164138 | X15: 757.34 | Y15: 757.3445657 | Z15: -0.004565687841 | AB15: 142484.22 | AC15: 142484.2182 | AD15: 0.001831755828 | AF15: 0 | AG15: 0 | AH15: 0 | AJ15: 35529.7 | AK15: 35529.70059 | AL15: -0.0005859742232 | AN15: 0 | AO15: 0 | AP15: 0 | AR15: 32358 | AS15: 32358 | AT15: 0 | AV15: 0 | AW15: 0 | AX15: 0 | AZ15: 0 | BA15: 0 | BB15: 0 | BD15: 0 | BE15: 0 | BF15: 0 | BH15: 1007826.87 | BI15: 1007826.87 | BJ15: 0.0004729087232 | BL15: 0 | BM15: 0 | BN15: 0 | BP15: 1007826.87 | BQ15: 1007826.87 | BR15: 0.0004729087232 | BV15: 0 | BX15: 138132.23 | BY15: 138132.2291 | BZ15: 0 | CB15: 5709.15 | CC15: 5709.14536 | CD15: 0 | CF15: 1024319.7 | CH15: 1024320 | CI15: 0.01636474574 | CJ15: 1052855.47 | CL15: 1052855 | CM15: 0.02785826534
A16: 2132 | B16: Hadlow Primary School | D16: Hadlow Primary School | E16: 0 | F16: 1 | H16: 687472.75 | I16: 687472.7512 | J16: -0.001242569066 | L16: 129936.2 | M16: 129936.1985 | N16: 0.001510082875 | P16: 4782.14 | Q16: 4782.137233 | R16: 0.002766759754 | T16: 75717.53 | U16: 75717.52948 | V16: 0.0005237262812 | X16: 1022.42 | Y16: 1022.415164 | Z16: 0.004836321427 | AB16: 142484.22 | AC16: 142484.2182 | AD16: 0.001831755828 | AF16: 0 | AG16: 0 | AH16: 0 | AJ16: 0 | AK16: 0 | AL16: 0 | AN16: 0 | AO16: 0 | AP16: 0 | AR16: 25200 | AS16: 25200 | AT16: 0 | AV16: 0 | AW16: 0 | AX16: 0 | AZ16: 0 | BA16: 0 | BB16: 0 | BD16: 0 | BE16: 0 | BF16: 0 | BH16: 1066615.25 | BI16: 1066615.25 | BJ16: 0.000226077158 | BL16: 617.57 | BM16: 617.5676539 | BN16: 0.002346087997 | BP16: 1067232.82 | BQ16: 1067232.817 | BR16: 0.002572165104 | BV16: 0 | BX16: 180372.67 | BY16: 180372.6657 | BZ16: 0 | CB16: 5889.52 | CC16: 5889.52 | CD16: 0 | CF16: 1085166.8 | CH16: 1085167 | CI16: 0.01680418956 | CJ16: 1115105.16 | CL16: 1115105 | CM16: 0.02758871724
A17: 2136 | B17: Kemsing Primary School | D17: Kemsing Primary School | E17: 0 | F17: 1 | H17: 653476.85 | I17: 653476.846 | J17: 0.004038656829 | L17: 39694.37 | M17: 39694.36704 | N17: 0.00296173821 | P17: 5297.57 | Q17: 5297.57126 | R17: -0.001259577678 | T17: 54086.34 | U17: 54086.33542 | V17: 0.004582349153 | X17: 0 | Y17: 0 | Z17: 0 | AB17: 142484.22 | AC17: 142484.2182 | AD17: 0.001831755828 | AF17: 0 | AG17: 0 | AH17: 0 | AJ17: 33832.49 | AK17: 33832.48697 | AL17: 0.003029456057 | AN17: 0 | AO17: 0 | AP17: 0 | AR17: 24701 | AS17: 24701 | AT17: 0 | AV17: 0 | AW17: 0 | AX17: 0 | AZ17: 0 | BA17: 0 | BB17: 0 | BD17: 0 | BE17: 0 | BF17: 0 | BH17: 953572.82 | BI17: 953572.8248 | BJ17: -0.004815621767 | BL17: 3311.33 | BM17: 3311.324964 | BN17: 0.005036018481 | BP17: 956884.15 | BQ17: 956884.1498 | BR17: 0.0002203967888 | BV17: 0 | BX17: 111521.18 | BY17: 111521.1836 | BZ17: 0 | CB17: 5809.9 | CC17: 5809.894984 | CD17: 0 | CF17: 972511.26 | CH17: 972511 | CI17: 0.01633124577 | CJ17: 996234.11 | CL17: 996234 | CM17: 0.02439339366
A18: 2137 | B18: Leigh Primary School | D18: Leigh Primary School | E18: 0 | F18: 1 | H18: 513715.9 | I18: 513715.902 | J18: -0.002027414273 | L18: 43835.06 | M18: 43835.05864 | N18: 0.001363415729 | P18: 3891.48 | Q18: 3891.47848 | R18: 0.001519544564 | T18: 52978.76 | U18: 52978.75627 | V18: 0.003728265539 | X18: 0 | Y18: 0 | Z18: 0 | AB18: 142484.22 | AC18: 142484.2182 | AD18: 0.001831755828 | AF18: 10374.46 | AG18: 10374.46406 | AH18: -0.004057470756 | AJ18: 29003.18 | AK18: 29003.17937 | AL18: 0.0006251360428 | AN18: 0 | AO18: 0 | AP18: 0 | AR18: 13024 | AS18: 13024 | AT18: 0 | AV18: 0 | AW18: 0 | AX18: 0 | AZ18: 0 | BA18: 0 | BB18: 0 | BD18: 0 | BE18: 0 | BF18: 0 | BH18: 809307.06 | BI18: 809307.057 | BJ18: 0.002983232494 | BL18: 0 | BM18: 0 | BN18: 0 | BP18: 809307.06 | BQ18: 809307.057 | BR18: 0.002983232494 | BV18: 0 | BX18: 104703.72 | BY18: 104703.7197 | BZ18: 0 | CB18: 4567.32 | CC18: 4567.316288 | CD18: 0 | CF18: 821996.53 | CH18: 821997 | CI18: 0.01567942955 | CJ18: 844902.53 | CL18: 844903 | CM18: 0.02786629768
A19: 2138 | B19: Otford Primary School | D19: Otford Primary School | E19: 0 | F19: 1 | H19: 1076537 | I19: 1076537.001 | J19: -0.0005721549969 | L19: 72661.98 | M19: 72661.97912 | N19: 0.0008795984031 | P19: 3251.31 | Q19: 3251.314561 | R19: -0.004560876475 | T19: 57372.61 | U19: 57372.60571 | V19: 0.004285764786 | X19: 1798.69 | Y19: 1798.693344 | Z19: -0.003343508621 | AB19: 142484.22 | AC19: 142484.2182 | AD19: 0.001831755828 | AF19: 0 | AG19: 0 | AH19: 0 | AJ19: 51185.2 | AK19: 51185.19967 | AL19: 0.0003260778758 | AN19: 0 | AO19: 0 | AP19: 0 | AR19: 38830 | AS19: 38830 | AT19: 0 | AV19: 0 | AW19: 0 | AX19: 0 | AZ19: 0 | BA19: 0 | BB19: 0 | BD19: 0 | BE19: 0 | BF19: 0 | BH19: 1444121.01 | BI19: 1444121.011 | BJ19: -0.001153343124 | BL19: 22579.37 | BM19: 22579.37147 | BN19: -0.001466290672 | BP19: 1466700.38 | BQ19: 1466700.383 | BR19: -0.002619633917 | BV19: 0 | BX19: 163051.69 | BY19: 163051.6911 | BZ19: 0 | CB19: 9571.21 | CC19: 9571.21428 | CD19: 0 | CF19: 1492241.24 | CH19: 1492241 | CI19: 0.01741382063 | CJ19: 1510986.29 | CL19: 1510986 | CM19: 0.01256167535
A20: 2139 | B20: Pembury School | D20: Pembury School | E20: 0 | F20: 1 | H20: 1529815.74 | I20: 1529815.738 | J20: 0.002344832523 | L20: 75880.98 | M20: 75880.98412 | N20: -0.004124628147 | P20: 13699.69 | Q20: 13699.69446 | R20: -0.004462444625 | T20: 119613.28 | U20: 119613.2838 | V20: -0.003798254285 | X20: 8236.12 | Y20: 8236.122152 | Z20: -0.002151855231 | AB20: 142484.22 | AC20: 142484.2182 | AD20: 0.001831755828 | AF20: 0 | AG20: 0 | AH20: 0 | AJ20: 0 | AK20: 0 | AL20: 0 | AN20: 0 | AO20: 0 | AP20: 0 | AR20: 50232 | AS20: 50232 | AT20: 0 | AV20: 0 | AW20: 0 | AX20: 0 | AZ20: 0 | BA20: 0 | BB20: 0 | BD20: 98983.98 | BE20: 98983.98464 | BF20: -0.004639406005 | BH20: 2038946.03 | BI20: 2038946.025 | BJ20: 0.005000000121 | BL20: 0 | BM20: 0 | BN20: 0 | BP20: 2038946.03 | BQ20: 2038946.025 | BR20: 0.005000000121 | BV20: 0 | BX20: 282322.93 | BY20: 282322.9268 | BZ20: 0 | CB20: 13105.8 | CC20: 13105.8 | CD20: 0 | CF20: 2075813.63 | CH20: 2075814 | CI20: 0.01808169738 | CJ20: 2097522.78 | CL20: 2097523 | CM20: 0.01045814021
A21: 2142 | B21: Sandhurst Primary School | D21: Sandhurst Primary School | E21: 0 | F21: 1 | H21: 634590.23 | I21: 634590.2319 | J21: -0.001916217618 | L21: 54105.72 | M21: 54105.71673 | N21: 0.003265235777 | P21: 2753.37 | Q21: 2753.374169 | R21: -0.004169270037 | T21: 37328.33 | U21: 37328.33311 | V21: -0.003110454163 | X21: 1817.63 | Y21: 1817.626958 | Z21: 0.003042349197 | AB21: 142484.22 | AC21: 142484.2182 | AD21: 0.001831755828 | AF21: 0 | AG21: 0 | AH21: 0 | AJ21: 0 | AK21: 0 | AL21: 0 | AN21: 0 | AO21: 0 | AP21: 0 | AR21: 28119 | AS21: 28119 | AT21: 0 | AV21: 0 | AW21: 0 | AX21: 0 | AZ21: 0 | BA21: 0 | BB21: 0 | BD21: 0 | BE21: 0 | BF21: 0 | BH21: 901198.5 | BI21: 901198.5011 | BJ21: -0.001056600828 | BL21: 12452.58 | BM21: 12452.5812 | BN21: -0.001198278349 | BP21: 913651.08 | BQ21: 913651.0823 | BR21: -0.002254879219 | BV21: 0 | BX21: 102054.53 | BY21: 102054.5313 | BZ21: 0 | CB21: 5436.48 | CC21: 5436.48 | CD21: 0 | CF21: 928455.05 | CH21: 928455 | CI21: 0.01620308675 | CJ21: 941136.28 | CL21: 941136 | CM21: 0.01365842105
A22: 2147 | B22: Weald Community Primary School | D22: Weald Community Primary School | E22: 0 | F22: 1 | H22: 366400.31 | I22: 366400.3125 | J22: -0.002475435205 | L22: 32270.42 | M22: 32270.41545 | N22: 0.004546906253 | P22: 8337.13 | Q22: 8337.132804 | R22: -0.002804008269 | T22: 31198.64 | U22: 31198.64104 | V22: -0.001037759714 | X22: 3957.13 | Y22: 3957.125356 | Z22: 0.00464428102 | AB22: 142484.22 | AC22: 142484.2182 | AD22: 0.001831755828 | AF22: 39693.6 | AG22: 39693.60161 | AH22: -0.001611192449 | AJ22: 23600.11 | AK22: 23600.10669 | AL22: 0.003306973897 | AN22: 0 | AO22: 0 | AP22: 0 | AR22: 18264 | AS22: 18264 | AT22: 0 | AV22: 0 | AW22: 0 | AX22: 0 | AZ22: 0 | BA22: 0 | BB22: 0 | BD22: 0 | BE22: 0 | BF22: 0 | BH22: 666205.55 | BI22: 666205.5536 | BJ22: -0.003598478623 | BL22: 0 | BM22: 0 | BN22: 0 | BP22: 666205.55 | BQ22: 666205.5536 | BR22: -0.003598478623 | BV22: 0 | BX22: 70334.16 | BY22: 70334.15569 | BZ22: 0 | CB22: 3257.57 | CC22: 3257.571176 | CD22: 0 | CF22: 675307.48 | CH22: 675307 | CI22: 0.01366233943 | CJ22: 693332.72 | CL22: 693333 | CM22: 0.02669190041
A23: 2148 | B23: Shoreham Village School | D23: Shoreham Village School | E23: 0 | F23: 1 | H23: 298408.5 | I23: 298408.5019 | J23: -0.001912983309 | L23: 25337.38 | M23: 25337.37793 | N23: 0.002070479499 | P23: 0 | Q23: 0 | R23: 0 | T23: 18801.44 | U23: 18801.44455 | V23: -0.00454773508 | X23: 0 | Y23: 0 | Z23: 0 | AB23: 142484.22 | AC23: 142484.2182 | AD23: 0.001831755828 | AF23: 53225.51 | AG23: 53225.51125 | AH23: -0.001251371701 | AJ23: 20346.12 | AK23: 20346.11663 | AL23: 0.00336598749 | AN23: 0 | AO23: 0 | AP23: 0 | AR23: 16717 | AS23: 16717 | AT23: 0 | AV23: 0 | AW23: 0 | AX23: 0 | AZ23: 0 | BA23: 0 | BB23: 0 | BD23: 0 | BE23: 0 | BF23: 0 | BH23: 575320.17 | BI23: 575320.1704 | BJ23: -0.0004438672913 | BL23: 3363.59 | BM23: 3363.594688 | BN23: -0.004687592937 | BP23: 578683.77 | BQ23: 578683.7651 | BR23: 0.004868539749 | BV23: 0 | BX23: 49231.08 | BY23: 49231.0818 | BZ23: 0 | CB23: 2653.07 | CC23: 2653.073432 | CD23: 0 | CF23: 585779.71 | CH23: 585780 | CI23: 0.01226221521 | CJ23: 597478.45 | CL23: 597478 | CM23: 0.01997122775
A24: 2155 | B24: Slade Primary School and Attached Unit for Children with Hearing Impairment | D24: Slade Primary School and Attached Unit for Children with Hearing Impairment | E24: 0 | F24: 1 | H24: 1582698.26 | I24: 1582698.257 | J24: 0.003018480958 | L24: 130271.65 | M24: 130271.6521 | N24: -0.002062281012 | P24: 39275.69 | Q24: 39275.68976 | R24: 0.0002399666482 | T24: 165593.42 | U24: 165593.4175 | V24: 0.002537333494 | X24: 0 | Y24: 0 | Z24: 0 | AB24: 142484.22 | AC24: 142484.2182 | AD24: 0.001831755828 | AF24: 0 | AG24: 0 | AH24: 0 | AJ24: 0 | AK24: 0 | AL24: 0 | AN24: 0 | AO24: 0 | AP24: 0 | AR24: 34671 | AS24: 34671 | AT24: 0 | AV24: 0 | AW24: 0 | AX24: 0 | AZ24: 0 | BA24: 0 | BB24: 0 | BD24: 0 | BE24: 0 | BF24: 0 | BH24: 2094994.23 | BI24: 2094994.234 | BJ24: -0.004434744129 | BL24: 0 | BM24: 0 | BN24: 0 | BP24: 2094994.23 | BQ24: 2094994.234 | BR24: -0.004434744129 | BV24: 0 | BX24: 313925.04 | BY24: 313925.0411 | BZ24: 0 | CB24: 13558.84 | CC24: 13558.84 | CD24: 0 | CF24: 2133294.02 | CH24: 2133294 | CI24: 0.01828157087 | CJ24: 2195248.75 | CL24: 2195249 | CM24: 0.02904181487
A25: 2156 | B25: Sussex Road Community Primary School | D25: Sussex Road Community Primary School | E25: 0 | F25: 1 | H25: 1578920.93 | I25: 1578920.934 | J25: -0.004172493936 | L25: 76265.63 | M25: 76265.63379 | N25: -0.00379188286 | P25: 19700.42 | Q25: 19700.42331 | R25: -0.003311321932 | T25: 88640.03 | U25: 88640.03136 | V25: -0.001361829956 | X25: 0 | Y25: 0 | Z25: 0 | AB25: 142484.22 | AC25: 142484.2182 | AD25: 0.001831755828 | AF25: 0 | AG25: 0 | AH25: 0 | AJ25: 0 | AK25: 0 | AL25: 0 | AN25: 0 | AO25: 0 | AP25: 0 | AR25: 62790 | AS25: 62790 | AT25: 0 | AV25: 0 | AW25: 0 | AX25: 0 | AZ25: 0 | BA25: 0 | BB25: 0 | BD25: 146538.05 | BE25: 146538.0492 | BF25: 0.0008057730156 | BH25: 2115339.29 | BI25: 2115339.29 | BJ25: 0 | BL25: 0 | BM25: 0 | BN25: 0 | BP25: 2115339.29 | BQ25: 2115339.29 | BR25: 0 | BV25: 0 | BX25: 270787.32 | BY25: 270787.3155 | BZ25: 0 | CB25: 13526.48 | CC25: 13526.48 | CD25: 0 | CF25: 2153483.6 | CH25: 2153484 | CI25: 0.01803224201 | CJ25: 2175843.87 | CL25: 2175844 | CM25: 0.01038330173
A26: 2161 | B26: Boughton Monchelsea Primary School | D26: Boughton Monchelsea Primary School | E26: 0 | F26: 1 | H26: 785683.14 | I26: 785683.1443 | J26: -0.004277221859 | L26: 59967.6 | M26: 59967.60308 | N26: -0.00307572203 | P26: 4759.11 | Q26: 4759.109285 | R26: 0.0007149133953 | T26: 82257.84 | U26: 82257.83559 | V26: 0.004408373032 | X26: 0 | Y26: 0 | Z26: 0 | AB26: 142484.22 | AC26: 142484.2182 | AD26: 0.001831755828 | AF26: 0 | AG26: 0 | AH26: 0 | AJ26: 0 | AK26: 0 | AL26: 0 | AN26: 0 | AO26: 0 | AP26: 0 | AR26: 29775 | AS26: 29775 | AT26: 0 | AV26: 0 | AW26: 0 | AX26: 0 | AZ26: 0 | BA26: 0 | BB26: 0 | BD26: 0 | BE26: 0 | BF26: 0 | BH26: 1104926.91 | BI26: 1104926.91 | BJ26: -0.0003979017492 | BL26: 11100.37 | BM26: 11100.36679 | BN26: 0.003205820807 | BP26: 1116027.28 | BQ26: 1116027.277 | BR26: 0.002807919169 | BV26: 0 | BX26: 158141.65 | BY26: 158141.6516 | BZ26: 0 | CB26: 6730.88 | CC26: 6730.88 | CD26: 0 | CF26: 1134845.64 | CH26: 1134846 | CI26: 0.01686192013 | CJ26: 1155130.78 | CL26: 1155131 | CM26: 0.01787480102
A27: 2163 | B27: East Farleigh Primary School | D27: East Farleigh Primary School | E27: 0 | F27: 1 | H27: 785683.14 | I27: 785683.1443 | J27: -0.004277221859 | L27: 69258.87 | M27: 69258.86896 | N27: 0.001039779381 | P27: 1352.15 | Q27: 1352.149166 | R27: 0.0008336066785 | T27: 63564.15 | U27: 63564.15166 | V27: -0.001663033516 | X27: 0 | Y27: 0 | Z27: 0 | AB27: 142484.22 | AC27: 142484.2182 | AD27: 0.001831755828 | AF27: 0 | AG27: 0 | AH27: 0 | AJ27: 0 | AK27: 0 | AL27: 0 | AN27: 0 | AO27: 0 | AP27: 0 | AR27: 20060 | AS27: 20060 | AT27: 0 | AV27: 0 | AW27: 0 | AX27: 0 | AZ27: 0 | BA27: 0 | BB27: 0 | BD27: 0 | BE27: 0 | BF27: 0 | BH27: 1082402.53 | BI27: 1082402.532 | BJ27: -0.00223511341 | BL27: 0 | BM27: 0 | BN27: 0 | BP27: 1082402.53 | BQ27: 1082402.532 | BR27: -0.00223511341 | BV27: 0 | BX27: 138810.17 | BY27: 138810.1711 | BZ27: 0 | CB27: 6730.88 | CC27: 6730.88 | CD27: 0 | CF27: 1100742.7 | CH27: 1100743 | CI27: 0.01694394388 | CJ27: 1131955.63 | CL27: 1131956 | CM27: 0.02835624529
A28: 2164 | B28: East Peckham Primary School | D28: East Peckham Primary School | E28: 0 | F28: 1 | H28: 751687.24 | I28: 751687.239 | J28: 0.001004004036 | L28: 85248.14 | M28: 85248.14109 | N28: -0.001091197264 | P28: 2724.26 | Q28: 2724.259358 | R28: 0.0006416234992 | T28: 68284.13 | U28: 68284.12901 | V28: 0.0009946363425 | X28: 0 | Y28: 0 | Z28: 0 | AB28: 142484.22 | AC28: 142484.2182 | AD28: 0.001831755828 | AF28: 0 | AG28: 0 | AH28: 0 | AJ28: 0 | AK28: 0 | AL28: 0 | AN28: 0 | AO28: 0 | AP28: 0 | AR28: 20334 | AS28: 20334 | AT28: 0 | AV28: 0 | AW28: 0 | AX28: 0 | AZ28: 0 | BA28: 0 | BB28: 0 | BD28: 0 | BE28: 0 | BF28: 0 | BH28: 1070761.99 | BI28: 1070761.987 | BJ28: 0.003380822483 | BL28: 0 | BM28: 0 | BN28: 0 | BP28: 1070761.99 | BQ28: 1070761.987 | BR28: 0.003380822483 | BV28: 0 | BX28: 152346.12 | BY28: 152346.1223 | BZ28: 0 | CB28: 6439.64 | CC28: 6439.64 | CD28: 0 | CF28: 1088863.87 | CH28: 1088864 | CI28: 0.01690560891 | CJ28: 1119709.78 | CL28: 1119710 | CM28: 0.02832852742
A29: 2165 | B29: Headcorn Primary School | D29: Headcorn Primary School | E29: 0 | F29: 1 | H29: 1507151.8 | I29: 1507151.801 | J29: -0.0008010168094 | L29: 204974.97 | M29: 204974.9721 | N29: -0.00209770989 | P29: 7532.69 | Q29: 7532.691611 | R29: -0.001610950973 | T29: 97350.39 | U29: 97350.38774 | V29: 0.002256204738 | X29: 0 | Y29: 0 | Z29: 0 | AB29: 142484.22 | AC29: 142484.2182 | AD29: 0.001831755828 | AF29: 0 | AG29: 0 | AH29: 0 | AJ29: 0 | AK29: 0 | AL29: 0 | AN29: 0 | AO29: 0 | AP29: 0 | AR29: 57330 | AS29: 57330 | AT29: 0 | AV29: 0 | AW29: 0 | AX29: 0 | AZ29: 0 | BA29: 0 | BB29: 0 | BD29: 0 | BE29: 0 | BF29: 0 | BH29: 2016824.07 | BI29: 2016824.07 | BJ29: -0.0004217170645 | BL29: 0 | BM29: 0 | BN29: 0 | BP29: 2016824.07 | BQ29: 2016824.07 | BR29: -0.0004217170645 | BV29: 0 | BX29: 284046.19 | BY29: 284046.1915 | BZ29: 0 | CB29: 12911.64 | CC29: 12911.64 | CD29: 0 | CF29: 2053107.27 | CH29: 2053107 | CI29: 0.01799026505 | CJ29: 2111956.06 | CL29: 2111956 | CM29: 0.02866328071
A30: 2166 | B30: Hollingbourne Primary School | D30: Hollingbourne Primary School | E30: 0 | F30: 1 | H30: 373954.96 | I30: 373954.9581 | J30: 0.001906514633 | L30: 36207.8 | M30: 36207.79657 | N30: 0.003430930614 | P30: 0 | Q30: 0 | R30: 0 | T30: 41765.19 | U30: 41765.19213 | V30: -0.00213342093 | X30: 6683.57 | Y30: 6683.565792 | Z30: 0.004207804869 | AB30: 142484.22 | AC30: 142484.2182 | AD30: 0.001831755828 | AF30: 38190.06 | AG30: 38190.0561 | AH30: 0.003904383018 | AJ30: 0 | AK30: 0 | AL30: 0 | AN30: 0 | AO30: 0 | AP30: 0 | AR30: 15719 | AS30: 15719 | AT30: 0 | AV30: 0 | AW30: 0 | AX30: 0 | AZ30: 0 | BA30: 0 | BB30: 0 | BD30: 0 | BE30: 0 | BF30: 0 | BH30: 655004.79 | BI30: 655004.7869 | BJ30: 0.003147968091 | BL30: 0 | BM30: 0 | BN30: 0 | BP30: 655004.79 | BQ30: 655004.7869 | BR30: 0.003147968091 | BV30: 0 | BX30: 83042.96 | BY30: 83042.95823 | BZ30: 0 | CB30: 3203.64 | CC30: 3203.64 | CD30: 0 | CF30: 664104.75 | CH30: 664105 | CI30: 0.01389297198 | CJ30: 681880.71 | CL30: 681881 | CM30: 0.02676680147
A31: 2167 | B31: Ightham Primary School | D31: Ightham Primary School | E31: 0 | F31: 1 | H31: 793237.79 | I31: 793237.7899 | J31: 0.0001047280384 | L31: 15886.35 | M31: 15886.3518 | N31: -0.001804703939 | P31: 4751.48 | Q31: 4751.482507 | R31: -0.002507386149 | T31: 44420.03 | U31: 44420.0338 | V31: -0.003803917505 | X31: 0 | Y31: 0 | Z31: 0 | AB31: 142484.22 | AC31: 142484.2182 | AD31: 0.001831755828 | AF31: 0 | AG31: 0 | AH31: 0 | AJ31: 0 | AK31: 0 | AL31: 0 | AN31: 0 | AO31: 0 | AP31: 0 | AR31: 28404 | AS31: 28404 | AT31: 0 | AV31: 0 | AW31: 0 | AX31: 0 | AZ31: 0 | BA31: 0 | BB31: 0 | BD31: 30405.17 | BE31: 30405.17382 | BF31: -0.003820476166 | BH31: 1059589.05 | BI31: 1059589.05 | BJ31: 0 | BL31: 0 | BM31: 0 | BN31: 0 | BP31: 1059589.05 | BQ31: 1059589.05 | BR31: 0 | BV31: 0 | BX31: 105231.35 | BY31: 105231.348 | BZ31: 0 | CB31: 6795.6 | CC31: 6795.6 | CD31: 0 | CF31: 1077306.07 | CH31: 1077306 | CI31: 0.01672065222 | CJ31: 1089248.43 | CL31: 1089248 | CM31: 0.01108539192
A32: 2168 | B32: Lenham Primary School | D32: Lenham Primary School | E32: 0 | F32: 1 | H32: 774351.18 | I32: 774351.1759 | J32: 0.004149853485 | L32: 96533.26 | M32: 96533.26167 | N32: -0.001667968943 | P32: 3294.8 | Q32: 3294.804084 | R32: -0.004083935597 | T32: 83545.77 | U32: 83545.7653 | V32: 0.004703524348 | X32: 0 | Y32: 0 | Z32: 0 | AB32: 142484.22 | AC32: 142484.2182 | AD32: 0.001831755828 | AF32: 0 | AG32: 0 | AH32: 0 | AJ32: 0 | AK32: 0 | AL32: 0 | AN32: 0 | AO32: 0 | AP32: 0 | AR32: 22604 | AS32: 22604 | AT32: 0 | AV32: 0 | AW32: 0 | AX32: 0 | AZ32: 0 | BA32: 0 | BB32: 0 | BD32: 0 | BE32: 0 | BF32: 0 | BH32: 1122813.23 | BI32: 1122813.225 | BJ32: 0.004933229182 | BL32: 0 | BM32: 0 | BN32: 0 | BP32: 1122813.23 | BQ32: 1122813.225 | BR32: 0.004933229182 | BV32: 0 | BX32: 168858.24 | BY32: 168858.2437 | BZ32: 0 | CB32: 6633.8 | CC32: 6633.8 | CD32: 0 | CF32: 1141910.73 | CH32: 1141911 | CI32: 0.0170086213 | CJ32: 1174290.1 | CL32: 1174290 | CM32: 0.0283554302
A33: 2169 | B33: Platts Heath Primary School | D33: Platts Heath Primary School | E33: 0 | F33: 1 | H33: 207752.75 | I33: 207752.7545 | J33: -0.004496380774 | L33: 36290.79 | M33: 36290.79398 | N33: -0.00397826502 | P33: 695.65 | Q33: 695.6473946 | R33: 0.002605395995 | T33: 29824.88 | U33: 29824.87984 | V33: 0.0001602268458 | X33: 3752.79 | Y33: 3752.785218 | Z33: 0.004781815705 | AB33: 142484.22 | AC33: 142484.2182 | AD33: 0.001831755828 | AF33: 16329.26 | AG33: 16329.25607 | AH33: 0.003928092598 | AJ33: 0 | AK33: 0 | AL33: 0 | AN33: 0 | AO33: 0 | AP33: 0 | AR33: 2580 | AS33: 2580 | AT33: 0 | AV33: 0 | AW33: 0 | AX33: 0 | AZ33: 0 | BA33: 0 | BB33: 0 | BD33: 0 | BE33: 0 | BF33: 0 | BH33: 439710.34 | BI33: 439710.3352 | BJ33: 0.004832641222 | BL33: 0 | BM33: 0 | BN33: 0 | BP33: 439710.34 | BQ33: 439710.3352 | BR33: 0.004832641222 | BV33: 0 | BX33: 61137.45 | BY33: 61137.44824 | BZ33: 0 | CB33: 1779.8 | CC33: 1779.8 | CD33: 0 | CF33: 445213.15 | CH33: 445213 | CI33: 0.0125146361 | CJ33: 456993.82 | CL33: 456994 | CM33: 0.02646074133
A34: 2171 | B34: Brunswick House Primary School | D34: Brunswick House Primary School | E34: 0 | F34: 1 | H34: 1533593.06 | I34: 1533593.06 | J34: -0.0004641925916 | L34: 172884.55 | M34: 172884.5536 | N34: -0.003591034765 | P34: 46290.28 | Q34: 46290.27668 | R34: 0.003320384654 | T34: 171161.15 | U34: 171161.1526 | V34: -0.002648760856 | X34: 5339.28 | Y34: 5339.279188 | Z34: 0.0008119007289 | AB34: 142484.22 | AC34: 142484.2182 | AD34: 0.001831755828 | AF34: 0 | AG34: 0 | AH34: 0 | AJ34: 0 | AK34: 0 | AL34: 0 | AN34: 0 | AO34: 0 | AP34: 0 | AR34: 79170 | AS34: 79170 | AT34: 0 | AV34: 0 | AW34: 0 | AX34: 0 | AZ34: 0 | BA34: 0 | BB34: 0 | BD34: 0 | BE34: 0 | BF34: 0 | BH34: 2150922.54 | BI34: 2150922.541 | BJ34: -0.0007399469614 | BL34: 0 | BM34: 0 | BN34: 0 | BP34: 2150922.54 | BQ34: 2150922.541 | BR34: -0.0007399469614 | BV34: 0 | BX34: 338761.42 | BY34: 338761.4183 | BZ34: 0 | CB34: 13138.16 | CC34: 13138.16 | CD34: 0 | CF34: 2189450.91 | CH34: 2189451 | CI34: 0.0179124857 | CJ34: 2251757.71 | CL34: 2251758 | CM34: 0.0284577287
A35: 2175 | B35: North Borough Junior School | D35: North Borough Junior School | E35: 0 | F35: 1 | H35: 1329617.63 | I35: 1329617.629 | J35: 0.001223162981 | L35: 207215.62 | M35: 207215.6171 | N35: 0.002895596292 | P35: 40145.18 | Q35: 40145.17874 | R35: 0.001264125269 | T35: 148765.04 | U35: 148765.0359 | V35: 0.004105845816 | X35: 3740.55 | Y35: 3740.548544 | Z35: 0.001455622702 | AB35: 142484.22 | AC35: 142484.2182 | AD35: 0.001831755828 | AF35: 0 | AG35: 0 | AH35: 0 | AJ35: 0 | AK35: 0 | AL35: 0 | AN35: 0 | AO35: 0 | AP35: 0 | AR35: 28938 | AS35: 28938 | AT35: 0 | AV35: 0 | AW35: 0 | AX35: 0 | AZ35: 0 | BA35: 0 | BB35: 0 | BD35: 0 | BE35: 0 | BF35: 0 | BH35: 1900906.23 | BI35: 1900906.227 | BJ35: 0.002776108915 | BL35: 0 | BM35: 0 | BN35: 0 | BP35: 1900906.23 | BQ35: 1900906.227 | BR35: 0.002776108915 | BV35: 0 | BX35: 324342.11 | BY35: 324342.1131 | BZ35: 0 | CB35: 11390.72 | CC35: 11390.72 | CD35: 0 | CF35: 1935438.91 | CH35: 1935439 | CI35: 0.01816643151 | CJ35: 1991591.55 | CL35: 1991592 | CM35: 0.0290128713
A36: 2176 | B36: Park Way Primary School | D36: Park Way Primary School | E36: 0 | F36: 1 | H36: 1155860.78 | I36: 1155860.78 | J36: 0.0004383178893 | L36: 179501.58 | M36: 179501.582 | N36: -0.001992869918 | P36: 31695.65 | Q36: 31695.65001 | R36: -9.845800378e-06 | T36: 134112.33 | U36: 134112.3299 | V36: 7.02686375e-05 | X36: 2564.42 | Y36: 2564.418361 | Z36: 0.001638642259 | AB36: 142484.22 | AC36: 142484.2182 | AD36: 0.001831755828 | AF36: 0 | AG36: 0 | AH36: 0 | AJ36: 0 | AK36: 0 | AL36: 0 | AN36: 0 | AO36: 0 | AP36: 0 | AR36: 37765 | AS36: 37765 | AT36: 0 | AV36: 0 | AW36: 0 | AX36: 0 | AZ36: 0 | BA36: 0 | BB36: 0 | BD36: 0 | BE36: 0 | BF36: 0 | BH36: 1683983.98 | BI36: 1683983.978 | BJ36: 0.001976268832 | BL36: 3506.74 | BM36: 3506.735003 | BN36: 0.004997004531 | BP36: 1687490.71 | BQ36: 1687490.713 | BR36: -0.003026726656 | BV36: 0 | BX36: 293452.25 | BY36: 293452.2483 | BZ36: 0 | CB36: 9902.16 | CC36: 9902.16 | CD36: 0 | CF36: 1717578.55 | CH36: 1717579 | CI36: 0.01782992744 | CJ36: 1763200.34 | CL36: 1763200 | CM36: 0.02656169058
A37: 2185 | B37: Mereworth Community Primary School | D37: Mereworth Community Primary School | E37: 0 | F37: 1 | H37: 766796.53 | I37: 766796.5302 | J37: -0.0002320962958 | L37: 49784.34 | M37: 49784.33691 | N37: 0.003086667442 | P37: 1990.59 | Q37: 1990.58898 | R37: 0.001020180117 | T37: 45143.66 | U37: 45143.65959 | V37: 0.0004070009381 | X37: 0 | Y37: 0 | Z37: 0 | AB37: 142484.22 | AC37: 142484.2182 | AD37: 0.001831755828 | AF37: 0 | AG37: 0 | AH37: 0 | AJ37: 0 | AK37: 0 | AL37: 0 | AN37: 0 | AO37: 0 | AP37: 0 | AR37: 34398 | AS37: 34398 | AT37: 0 | AV37: 0 | AW37: 0 | AX37: 0 | AZ37: 0 | BA37: 0 | BB37: 0 | BD37: 0 | BE37: 0 | BF37: 0 | BH37: 1040597.33 | BI37: 1040597.334 | BJ37: -0.003886492108 | BL37: 7248.13 | BM37: 7248.131266 | BN37: -0.001266250973 | BP37: 1047845.47 | BQ37: 1047845.465 | BR37: 0.004847256932 | BV37: 0 | BX37: 111975.12 | BY37: 111975.1187 | BZ37: 0 | CB37: 6569.08 | CC37: 6569.08 | CD37: 0 | CF37: 1065207.74 | CH37: 1065208 | CI37: 0.01656949944 | CJ37: 1087298.13 | CL37: 1087298 | CM37: 0.02073810504
A38: 2187 | B38: Offham Primary School | D38: Offham Primary School | E38: 0 | F38: 1 | H38: 751687.24 | I38: 751687.239 | J38: 0.001004004036 | L38: 33509.39 | M38: 33509.39247 | N38: -0.002469228573 | P38: 2043.19 | Q38: 2043.194519 | R38: -0.004518782373 | T38: 52397.66 | U38: 52397.66427 | V38: -0.004269357356 | X38: 0 | Y38: 0 | Z38: 0 | AB38: 142484.22 | AC38: 142484.2182 | AD38: 0.001831755828 | AF38: 0 | AG38: 0 | AH38: 0 | AJ38: 0 | AK38: 0 | AL38: 0 | AN38: 0 | AO38: 0 | AP38: 0 | AR38: 31318 | AS38: 31318 | AT38: 0 | AV38: 0 | AW38: 0 | AX38: 0 | AZ38: 0 | BA38: 0 | BB38: 0 | BD38: 0 | BE38: 0 | BF38: 0 | BH38: 1013439.71 | BI38: 1013439.708 | BJ38: 0.00157839153 | BL38: 0 | BM38: 0 | BN38: 0 | BP38: 1013439.71 | BQ38: 1013439.708 | BR38: 0.00157839153 | BV38: 0 | BX38: 108363.19 | BY38: 108363.1904 | BZ38: 0 | CB38: 6439.64 | CC38: 6439.64 | CD38: 0 | CF38: 1030175.46 | CH38: 1030175 | CI38: 0.01651381078 | CJ38: 1058917.27 | CL38: 1058917 | CM38: 0.02789991717
A39: 2188 | B39: Plaxtol Primary School | D39: Plaxtol Primary School | E39: 0 | F39: 1 | H39: 283299.21 | I39: 283299.2107 | J39: -0.0006768828607 | L39: 22579.83 | M39: 22579.82621 | N39: 0.003787217032 | P39: 614.59 | Q39: 614.5924485 | R39: -0.002448497776 | T39: 22693.58 | U39: 22693.58106 | V39: -0.001059106031 | X39: 0 | Y39: 0 | Z39: 0 | AB39: 142484.22 | AC39: 142484.2182 | AD39: 0.001831755828 | AF39: 49906.43 | AG39: 49906.43453 | AH39: -0.004525738863 | AJ39: 0 | AK39: 0 | AL39: 0 | AN39: 0 | AO39: 0 | AP39: 0 | AR39: 15220 | AS39: 15220 | AT39: 0 | AV39: 0 | AW39: 0 | AX39: 0 | AZ39: 0 | BA39: 0 | BB39: 0 | BD39: 0 | BE39: 0 | BF39: 0 | BH39: 536797.86 | BI39: 536797.8631 | BJ39: -0.003091252758 | BL39: 0 | BM39: 0 | BN39: 0 | BP39: 536797.86 | BQ39: 536797.8631 | BR39: -0.003091252758 | BV39: 0 | BX39: 48265.73 | BY39: 48265.7308 | BZ39: 0 | CB39: 2427 | CC39: 2427 | CD39: 0 | CF39: 543304.65 | CH39: 543305 | CI39: 0.01212148437 | CJ39: 557330.46 | CL39: 557330 | CM39: 0.02581573708
A40: 2189 | B40: Ryarsh Primary School | D40: Ryarsh Primary School | E40: 0 | F40: 1 | H40: 789460.47 | I40: 789460.4671 | J40: 0.002913753036 | L40: 36544.73 | M40: 36544.73132 | N40: -0.001319081275 | P40: 2037.97 | Q40: 2037.974825 | R40: -0.004825309159 | T40: 36857.29 | U40: 36857.29378 | V40: -0.003781730637 | X40: 0 | Y40: 0 | Z40: 0 | AB40: 142484.22 | AC40: 142484.2182 | AD40: 0.001831755828 | AF40: 0 | AG40: 0 | AH40: 0 | AJ40: 0 | AK40: 0 | AL40: 0 | AN40: 0 | AO40: 0 | AP40: 0 | AR40: 24659 | AS40: 24659 | AT40: 0 | AV40: 0 | AW40: 0 | AX40: 0 | AZ40: 0 | BA40: 0 | BB40: 0 | BD40: 18889.96 | BE40: 18889.95982 | BF40: 0.0001806122673 | BH40: 1050933.65 | BI40: 1050933.645 | BJ40: 0.005000000121 | BL40: 0 | BM40: 0 | BN40: 0 | BP40: 1050933.65 | BQ40: 1050933.645 | BR40: 0.005000000121 | BV40: 0 | BX40: 102252.02 | BY40: 102252.0156 | BZ40: 0 | CB40: 6763.24 | CC40: 6763.24 | CD40: 0 | CF40: 1068552.46 | CH40: 1068552 | CI40: 0.01676491669 | CJ40: 1080444.73 | CL40: 1080445 | CM40: 0.01112932724
A41: 2190 | B41: Shipbourne School | D41: Shipbourne School | E41: 0 | F41: 1 | H41: 219084.72 | I41: 219084.7229 | J41: -0.002923456079 | L41: 9652.66 | M41: 9652.657586 | N41: 0.00241405272 | P41: 2066.03 | Q41: 2066.034043 | R41: -0.004043194976 | T41: 18184.37 | U41: 18184.37296 | V41: -0.002957560791 | X41: 0 | Y41: 0 | Z41: 0 | AB41: 142484.22 | AC41: 142484.2182 | AD41: 0.001831755828 | AF41: 0 | AG41: 0 | AH41: 0 | AJ41: 0 | AK41: 0 | AL41: 0 | AN41: 0 | AO41: 0 | AP41: 0 | AR41: 7411 | AS41: 7411 | AT41: 0 | AV41: 0 | AW41: 0 | AX41: 0 | AZ41: 0 | BA41: 0 | BB41: 0 | BD41: 0 | BE41: 0 | BF41: 0 | BH41: 398883.01 | BI41: 398883.0057 | BJ41: 0.004321596702 | BL41: 6295.16 | BM41: 6295.159949 | BN41: 5.061298361e-05 | BP41: 405178.17 | BQ41: 405178.1656 | BR41: 0.00437220966 | BV41: 0 | BX41: 37248.95 | BY41: 37248.94538 | BZ41: 0 | CB41: 1876.88 | CC41: 1876.88 | CD41: 0 | CF41: 410226.83 | CH41: 410227 | CI41: 0.01246035646 | CJ41: 414353.2 | CL41: 414353 | CM41: 0.01005875213
A42: 2192 | B42: Staplehurst School | D42: Staplehurst School | E42: 0 | F42: 1 | H42: 1458046.6 | I42: 1458046.604 | J42: -0.004283690359 | L42: 137894.12 | M42: 137894.1243 | N42: -0.004341763037 | P42: 11465.06 | Q42: 11465.0591 | R42: 0.00090330284 | T42: 132772.85 | U42: 132772.8509 | V42: -0.0008915576327 | X42: 9315.34 | Y42: 9315.338158 | Z42: 0.001842039614 | AB42: 142484.22 | AC42: 142484.2182 | AD42: 0.001831755828 | AF42: 0 | AG42: 0 | AH42: 0 | AJ42: 0 | AK42: 0 | AL42: 0 | AN42: 0 | AO42: 0 | AP42: 0 | AR42: 42588 | AS42: 42588 | AT42: 0 | AV42: 0 | AW42: 0 | AX42: 0 | AZ42: 0 | BA42: 0 | BB42: 0 | BD42: 3438.14 | BE42: 3438.13506 | BF42: 0.004939912977 | BH42: 1938004.33 | BI42: 1938004.33 | BJ42: 0 | BL42: 0 | BM42: 0 | BN42: 0 | BP42: 1938004.33 | BQ42: 1938004.33 | BR42: 0 | BV42: 0 | BX42: 281101.18 | BY42: 281101.1825 | BZ42: 0 | CB42: 12490.96 | CC42: 12490.96 | CD42: 0 | CF42: 1973005.98 | CH42: 1973006 | CI42: 0.01806066656 | CJ42: 2026268.1 | CL42: 2026268 | CM42: 0.02699541742
A43: 2193 | B43: Sutton Valence Primary School | D43: Sutton Valence Primary School | E43: 0 | F43: 1 | H43: 785683.14 | I43: 785683.1443 | J43: -0.004277221859 | L43: 94148.65 | M43: 94148.64711 | N43: 0.002892925957 | P43: 9518.22 | Q43: 9518.21857 | R43: 0.001429826791 | T43: 55086.46 | U43: 55086.45782 | V43: 0.002178643648 | X43: 5308 | Y43: 5307.997565 | Z43: 0.002435266122 | AB43: 142484.22 | AC43: 142484.2182 | AD43: 0.001831755828 | AF43: 0 | AG43: 0 | AH43: 0 | AJ43: 0 | AK43: 0 | AL43: 0 | AN43: 0 | AO43: 0 | AP43: 0 | AR43: 23802 | AS43: 23802 | AT43: 0 | AV43: 0 | AW43: 0 | AX43: 0 | AZ43: 0 | BA43: 0 | BB43: 0 | BD43: 0 | BE43: 0 | BF43: 0 | BH43: 1116030.68 | BI43: 1116030.684 | BJ43: -0.003508803668 | BL43: 0 | BM43: 0 | BN43: 0 | BP43: 1116030.68 | BQ43: 1116030.684 | BR43: -0.003508803668 | BV43: 0 | BX43: 146057.15 | BY43: 146057.149 | BZ43: 0 | CB43: 6730.88 | CC43: 6730.88 | CD43: 0 | CF43: 1134968.58 | CH43: 1134969 | CI43: 0.01696897475 | CJ43: 1167102.12 | CL43: 1167102 | CM43: 0.02831227275
A44: 2226 | B44: Eastling Primary School | D44: Eastling Primary School | E44: 0 | F44: 1 | H44: 396618.89 | I44: 396618.8949 | J44: -0.004947635985 | L44: 37238.4 | M44: 37238.40219 | N44: -0.002194853485 | P44: 3471.05 | Q44: 3471.050533 | R44: -0.0005329931255 | T44: 38158.44 | U44: 38158.44354 | V44: -0.003540973499 | X44: 6342.76 | Y44: 6342.760738 | Z44: -0.0007376356525 | AB44: 142484.22 | AC44: 142484.2182 | AD44: 0.001831755828 | AF44: 33679.42 | AG44: 33679.41955 | AH44: 0.0004511094376 | AJ44: 0 | AK44: 0 | AL44: 0 | AN44: 0 | AO44: 0 | AP44: 0 | AR44: 14222 | AS44: 14222 | AT44: 0 | AV44: 0 | AW44: 0 | AX44: 0 | AZ44: 0 | BA44: 0 | BB44: 0 | BD44: 0 | BE44: 0 | BF44: 0 | BH44: 672215.19 | BI44: 672215.1897 | BJ44: 0.0003287733998 | BL44: 2526.49 | BM44: 2526.494925 | BN44: -0.004924994942 | BP44: 674741.68 | BQ44: 674741.6846 | BR44: -0.004596221377 | BV44: 0 | BX44: 82815.38 | BY44: 82815.3811 | BZ44: 0 | CB44: 3397.8 | CC44: 3397.8 | CD44: 0 | CF44: 684358.34 | CH44: 684358 | CI44: 0.01425235112 | CJ44: 700181.39 | CL44: 700181 | CM44: 0.0231210012
A45: 2227 | B45: Ethelbert Road Primary School | D45: Ethelbert Road Primary School | E45: 0 | F45: 1 | H45: 781905.82 | I45: 781905.8215 | J45: -0.001468196744 | L45: 27194.94 | M45: 27194.94132 | N45: -0.001323508935 | P45: 5443.41 | Q45: 5443.414066 | R45: -0.004065881334 | T45: 48550 | U45: 48549.99562 | V45: 0.004375470417 | X45: 0 | Y45: 0 | Z45: 0 | AB45: 142484.22 | AC45: 142484.2182 | AD45: 0.001831755828 | AF45: 0 | AG45: 0 | AH45: 0 | AJ45: 0 | AK45: 0 | AL45: 0 | AN45: 0 | AO45: 0 | AP45: 0 | AR45: 13772 | AS45: 13772 | AT45: 0 | AV45: 0 | AW45: 0 | AX45: 0 | AZ45: 0 | BA45: 0 | BB45: 0 | BD45: 10875.44 | BE45: 10875.44435 | BF45: -0.004349639234 | BH45: 1030225.84 | BI45: 1030225.835 | BJ45: 0.005000000121 | BL45: 0 | BM45: 0 | BN45: 0 | BP45: 1030225.84 | BQ45: 1030225.835 | BR45: 0.005000000121 | BV45: 0 | BX45: 107297.86 | BY45: 107297.8583 | BZ45: 0 | CB45: 6698.52 | CC45: 6698.52 | CD45: 0 | CF45: 1047648.23 | CH45: 1047648 | CI45: 0.01691123869 | CJ45: 1066019.64 | CL45: 1066020 | CM45: 0.01753585743
A46: 2228 | B46: Davington Primary School | D46: Davington Primary School | E46: 0 | F46: 1 | H46: 1575143.61 | I46: 1575143.611 | J46: -0.001363468589 | L46: 224828.78 | M46: 224828.7835 | N46: -0.003517351957 | P46: 14192.05 | Q46: 14192.05241 | R46: -0.002407656355 | T46: 135833.5 | U46: 135833.5008 | V46: -0.0008429625886 | X46: 0 | Y46: 0 | Z46: 0 | AB46: 142484.22 | AC46: 142484.2182 | AD46: 0.001831755828 | AF46: 0 | AG46: 0 | AH46: 0 | AJ46: 0 | AK46: 0 | AL46: 0 | AN46: 0 | AO46: 0 | AP46: 0 | AR46: 46683 | AS46: 46683 | AT46: 0 | AV46: 0 | AW46: 0 | AX46: 0 | AZ46: 0 | BA46: 0 | BB46: 0 | BD46: 0 | BE46: 0 | BF46: 0 | BH46: 2139165.17 | BI46: 2139165.166 | BJ46: 0.003700315952 | BL46: 4545.62 | BM46: 4545.619088 | BN46: 0.0009119639917 | BP46: 2143710.79 | BQ46: 2143710.785 | BR46: 0.004612280056 | BV46: 0 | BX46: 344826.43 | BY46: 344826.4256 | BZ46: 0 | CB46: 13494.12 | CC46: 13494.12 | CD46: 0 | CF46: 2182744.66 | CH46: 2182745 | CI46: 0.01820855447 | CJ46: 2241053.48 | CL46: 2241053 | CM46: 0.02671353231
A47: 2231 | B47: Lower Halstow Primary School | D47: Lower Halstow Primary School | E47: 0 | F47: 1 | H47: 706359.37 | I47: 706359.3653 | J47: 0.004712305381 | L47: 59073.48 | M47: 59073.47713 | N47: 0.002874882928 | P47: 3487.16 | Q47: 3487.155529 | R47: 0.004470638901 | T47: 82453.93 | U47: 82453.9299 | V47: 0.0001000986085 | X47: 1685.09 | Y47: 1685.091659 | Z47: -0.001658655437 | AB47: 142484.22 | AC47: 142484.2182 | AD47: 0.001831755828 | AF47: 0 | AG47: 0 | AH47: 0 | AJ47: 0 | AK47: 0 | AL47: 0 | AN47: 0 | AO47: 0 | AP47: 0 | AR47: 27655 | AS47: 27655 | AT47: 0 | AV47: 0 | AW47: 0 | AX47: 0 | AZ47: 0 | BA47: 0 | BB47: 0 | BD47: 0 | BE47: 0 | BF47: 0 | BH47: 1023198.24 | BI47: 1023198.238 | BJ47: 0.002331026248 | BL47: 0 | BM47: 0 | BN47: 0 | BP47: 1023198.24 | BQ47: 1023198.238 | BR47: 0.002331026248 | BV47: 0 | BX47: 151505.52 | BY47: 151505.518 | BZ47: 0 | CB47: 6051.32 | CC47: 6051.32 | CD47: 0 | CF47: 1040202.42 | CH47: 1040202 | CI47: 0.01661865874 | CJ47: 1069357.67 | CL47: 1069358 | CM47: 0.02802843893
A48: 2239 | B48: Rodmersham School | D48: Rodmersham School | E48: 0 | F48: 1 | H48: 498606.61 | I48: 498606.6108 | J48: -0.0007913138834 | L48: 31511.16 | M48: 31511.15757 | N48: 0.002430347969 | P48: 1919.99 | Q48: 1919.986809 | R48: 0.003190892945 | T48: 30848.35 | U48: 30848.3464 | V48: 0.003598260711 | X48: 7649.18 | Y48: 7649.180113 | Z48: -0.0001134471258 | AB48: 142484.22 | AC48: 142484.2182 | AD48: 0.001831755828 | AF48: 0 | AG48: 0 | AH48: 0 | AJ48: 0 | AK48: 0 | AL48: 0 | AN48: 0 | AO48: 0 | AP48: 0 | AR48: 6449 | AS48: 6449 | AT48: 0 | AV48: 0 | AW48: 0 | AX48: 0 | AZ48: 12530 | BA48: 12530 | BB48: 0 | BD48: 0 | BE48: 0 | BF48: 0 | BH48: 731998.5 | BI48: 731998.4999 | BJ48: 0.0001464965753 | BL48: 0 | BM48: 0 | BN48: 0 | BP48: 731998.5 | BQ48: 731998.4999 | BR48: 0.0001464965753 | BV48: 0 | BX48: 79130.58 | BY48: 79130.58488 | BZ48: 0 | CB48: 4271.52 | CC48: 4271.52 | CD48: 0 | CF48: 743352.21 | CH48: 743352 | CI48: 0.01551056477 | CJ48: 763804.59 | CL48: 763805 | CM48: 0.02751371386
A49: 2245 | B49: Rose Street Primary School | D49: Rose Street Primary School | E49: 0 | F49: 1 | H49: 1442937.31 | I49: 1442937.313 | J49: -0.003047590144 | L49: 597731.54 | M49: 597731.5437 | N49: -0.003739408683 | P49: 21486.7 | Q49: 21486.69665 | R49: 0.003346585523 | T49: 166928.92 | U49: 166928.9153 | V49: 0.004692248185 | X49: 12382.58 | Y49: 12382.58365 | Z49: -0.003648996142 | AB49: 142484.22 | AC49: 142484.2182 | AD49: 0.001831755828 | AF49: 0 | AG49: 0 | AH49: 0 | AJ49: 0 | AK49: 0 | AL49: 0 | AN49: 0 | AO49: 0 | AP49: 0 | AR49: 110838 | AS49: 110838 | AT49: 0 | AV49: 0 | AW49: 0 | AX49: 0 | AZ49: 0 | BA49: 0 | BB49: 0 | BD49: 0 | BE49: 0 | BF49: 0 | BH49: 2494789.27 | BI49: 2494789.271 | BJ49: -0.0005654054694 | BL49: 0 | BM49: 0 | BN49: 0 | BP49: 2494789.27 | BQ49: 2494789.271 | BR49: -0.0005654054694 | BV49: 0 | BX49: 582242.22 | BY49: 582242.2158 | BZ49: 0 | CB49: 12361.52 | CC49: 12361.52 | CD49: 0 | CF49: 2539561.62 | CH49: 2539562 | CI49: 0.01794634519 | CJ49: 2611485.38 | CL49: 2611485 | CM49: 0.02832132894
A50: 2254 | B50: Canterbury Road Primary School | D50: Canterbury Road Primary School | E50: 0 | F50: 1 | H50: 785683.14 | I50: 785683.1443 | J50: -0.004277221859 | L50: 157319.21 | M50: 157319.214 | N50: -0.003956305562 | P50: 16225.79 | Q50: 16225.79 | R50: 3.280118108e-06 | T50: 93182.99 | U50: 93182.98501 | V50: 0.004991307505 | X50: 1438.95 | Y50: 1438.954675 | Z50: -0.00467480689 | AB50: 142484.22 | AC50: 142484.2182 | AD50: 0.001831755828 | AF50: 0 | AG50: 0 | AH50: 0 | AJ50: 0 | AK50: 0 | AL50: 0 | AN50: 0 | AO50: 0 | AP50: 0 | AR50: 34944 | AS50: 34944 | AT50: 0 | AV50: 0 | AW50: 0 | AX50: 0 | AZ50: 0 | BA50: 0 | BB50: 0 | BD50: 0 | BE50: 0 | BF50: 0 | BH50: 1231278.31 | BI50: 1231278.306 | BJ50: 0.003918009112 | BL50: 0 | BM50: 0 | BN50: 0 | BP50: 1231278.31 | BQ50: 1231278.306 | BR50: 0.003918009112 | BV50: 0 | BX50: 221266.05 | BY50: 221266.0539 | BZ50: 0 | CB50: 6730.88 | CC50: 6730.88 | CD50: 0 | CF50: 1252298.31 | CH50: 1252298 | CI50: 0.01707169193 | CJ50: 1287638.72 | CL50: 1287639 | CM50: 0.02822044054
A51: 2258 | B51: Blean Primary School | D51: Blean Primary School | E51: 0 | F51: 1 | H51: 1639358.1 | I51: 1639358.099 | J51: 0.0008831045125 | L51: 77910.33 | M51: 77910.32979 | N51: 0.0002059796243 | P51: 16878.83 | Q51: 16878.83396 | R51: -0.003964358741 | T51: 105240.53 | U51: 105240.5325 | V51: -0.002462383927 | X51: 0 | Y51: 0 | Z51: 0 | AB51: 142484.22 | AC51: 142484.2182 | AD51: 0.001831755828 | AF51: 0 | AG51: 0 | AH51: 0 | AJ51: 0 | AK51: 0 | AL51: 0 | AN51: 0 | AO51: 0 | AP51: 0 | AR51: 44499 | AS51: 44499 | AT51: 0 | AV51: 0 | AW51: 0 | AX51: 0 | AZ51: 0 | BA51: 0 | BB51: 0 | BD51: 149243.76 | BE51: 149243.7565 | BF51: 0.003505902772 | BH51: 2175614.77 | BI51: 2175614.77 | BJ51: 0 | BL51: 0 | BM51: 0 | BN51: 0 | BP51: 2175614.77 | BQ51: 2175614.77 | BR51: 0 | BV51: 0 | BX51: 294077.86 | BY51: 294077.859 | BZ51: 0 | CB51: 14044.24 | CC51: 14044.24 | CD51: 0 | CF51: 2215330.41 | CH51: 2215330 | CI51: 0.01825490457 | CJ51: 2238492.06 | CL51: 2238492 | CM51: 0.01045516727
A52: 2263 | B52: Herne Bay Infant School | D52: Herne Bay Infant School | E52: 0 | F52: 1 | H52: 902780.15 | I52: 902780.1514 | J52: -0.001357000088 | L52: 197520.68 | M52: 197520.6845 | N52: -0.00448568241 | P52: 12243.71 | Q52: 12243.71234 | R52: -0.002337092064 | T52: 115940.48 | U52: 115940.4837 | V52: -0.003744994756 | X52: 0 | Y52: 0 | Z52: 0 | AB52: 142484.22 | AC52: 142484.2182 | AD52: 0.001831755828 | AF52: 0 | AG52: 0 | AH52: 0 | AJ52: 0 | AK52: 0 | AL52: 0 | AN52: 0 | AO52: 0 | AP52: 0 | AR52: 19162 | AS52: 19162 | AT52: 0 | AV52: 0 | AW52: 0 | AX52: 0 | AZ52: 0 | BA52: 0 | BB52: 0 | BD52: 0 | BE52: 0 | BF52: 0 | BH52: 1390131.25 | BI52: 1390131.25 | BJ52: -9.301351383e-05 | BL52: 0 | BM52: 0 | BN52: 0 | BP52: 1390131.25 | BQ52: 1390131.25 | BR52: -9.301351383e-05 | BV52: 0 | BX52: 266522.98 | BY52: 266522.9823 | BZ52: 0 | CB52: 7734.04 | CC52: 7734.04 | CD52: 0 | CF52: 1414643.96 | CH52: 1414644 | CI52: 0.01763337808 | CJ52: 1455363.82 | CL52: 1455364 | CM52: 0.02878452894
A53: 2265 | B53: Hoath Primary School | D53: Hoath Primary School | E53: 0 | F53: 1 | H53: 392841.57 | I53: 392841.5721 | J53: -0.002138610929 | L53: 49915.56 | M53: 49915.56457 | N53: -0.004566462798 | P53: 0 | Q53: 0 | R53: 0 | T53: 50173.13 | U53: 50173.12776 | V53: 0.002242991308 | X53: 0 | Y53: 0 | Z53: 0 | AB53: 142484.22 | AC53: 142484.2182 | AD53: 0.001831755828 | AF53: 0 | AG53: 0 | AH53: 0 | AJ53: 0 | AK53: 0 | AL53: 0 | AN53: 0 | AO53: 0 | AP53: 0 | AR53: 17215 | AS53: 17215 | AT53: 0 | AV53: 0 | AW53: 0 | AX53: 0 | AZ53: 0 | BA53: 0 | BB53: 0 | BD53: 0 | BE53: 0 | BF53: 0 | BH53: 652629.48 | BI53: 652629.4826 | BJ53: -0.002630326664 | BL53: 0 | BM53: 0 | BN53: 0 | BP53: 652629.48 | BQ53: 652629.4826 | BR53: -0.002630326664 | BV53: 0 | BX53: 95958.72 | BY53: 95958.72328 | BZ53: 0 | CB53: 3365.44 | CC53: 3365.44 | CD53: 0 | CF53: 662431.09 | CH53: 662431 | CI53: 0.01501864018 | CJ53: 680492.93 | CL53: 680493 | CM53: 0.02726599079
A54: 2268 | B54: Westmeads Community Infant School | D54: Westmeads Community Infant School | E54: 0 | F54: 1 | H54: 532602.52 | I54: 532602.5161 | J54: 0.003927460173 | L54: 51515.9 | M54: 51515.89867 | N54: 0.001326748919 | P54: 6310.45 | Q54: 6310.446156 | R54: 0.003844193597 | T54: 53008.47 | U54: 53008.46877 | V54: 0.001234723888 | X54: 0 | Y54: 0 | Z54: 0 | AB54: 142484.22 | AC54: 142484.2182 | AD54: 0.001831755828 | AF54: 0 | AG54: 0 | AH54: 0 | AJ54: 0 | AK54: 0 | AL54: 0 | AN54: 0 | AO54: 0 | AP54: 0 | AR54: 23653 | AS54: 23653 | AT54: 0 | AV54: 0 | AW54: 0 | AX54: 0 | AZ54: 0 | BA54: 0 | BB54: 0 | BD54: 0 | BE54: 0 | BF54: 0 | BH54: 809574.55 | BI54: 809574.5478 | BJ54: 0.002164882375 | BL54: 0 | BM54: 0 | BN54: 0 | BP54: 809574.55 | BQ54: 809574.5478 | BR54: 0.002164882375 | BV54: 0 | BX54: 105548.9 | BY54: 105548.9026 | BZ54: 0 | CB54: 4562.76 | CC54: 4562.76 | CD54: 0 | CF54: 822386.3 | CH54: 822386 | CI54: 0.01582529021 | CJ54: 845084.36 | CL54: 845084 | CM54: 0.02760024091
A55: 2269 | B55: Whitstable Junior School | D55: Whitstable Junior School | E55: 0 | F55: 1 | H55: 732800.63 | I55: 732800.625 | J55: 0.005049129599 | L55: 116380.68 | M55: 116380.6832 | N55: -0.003212137439 | P55: 1763.62 | Q55: 1763.624247 | R55: -0.004247001746 | T55: 73843.23 | U55: 73843.22679 | V55: 0.003205858666 | X55: 0 | Y55: 0 | Z55: 0 | AB55: 142484.22 | AC55: 142484.2182 | AD55: 0.001831755828 | AF55: 0 | AG55: 0 | AH55: 0 | AJ55: 0 | AK55: 0 | AL55: 0 | AN55: 0 | AO55: 0 | AP55: 0 | AR55: 23194 | AS55: 23194 | AT55: 0 | AV55: 0 | AW55: 0 | AX55: 0 | AZ55: 0 | BA55: 0 | BB55: 0 | BD55: 0 | BE55: 0 | BF55: 0 | BH55: 1090466.38 | BI55: 1090466.377 | BJ55: 0.002627604874 | BL55: 0 | BM55: 0 | BN55: 0 | BP55: 1090466.38 | BQ55: 1090466.377 | BR55: 0.002627604874 | BV55: 0 | BX55: 170633.01 | BY55: 170633.012 | BZ55: 0 | CB55: 6277.84 | CC55: 6277.84 | CD55: 0 | CF55: 1108905.15 | CH55: 1108905 | CI55: 0.01690907029 | CJ55: 1140269.93 | CL55: 1140270 | CM55: 0.02828445697
A56: 2270 | B56: Aldington Primary School | D56: Aldington Primary School | E56: 0 | F56: 1 | H56: 729023.3 | I56: 729023.3021 | J56: -0.00214184518 | L56: 32840.11 | M56: 32840.11059 | N56: -0.0005878102165 | P56: 688.9 | Q56: 688.8965498 | R56: 0.00345016237 | T56: 74653.12 | U56: 74653.12402 | V56: -0.004023597634 | X56: 0 | Y56: 0 | Z56: 0 | AB56: 142484.22 | AC56: 142484.2182 | AD56: 0.001831755828 | AF56: 0 | AG56: 0 | AH56: 0 | AJ56: 0 | AK56: 0 | AL56: 0 | AN56: 0 | AO56: 0 | AP56: 0 | AR56: 39350 | AS56: 39350 | AT56: 0 | AV56: 0 | AW56: 0 | AX56: 0 | AZ56: 0 | BA56: 0 | BB56: 0 | BD56: 0 | BE56: 0 | BF56: 0 | BH56: 1019039.65 | BI56: 1019039.651 | BJ56: -0.001471334952 | BL56: 0 | BM56: 0 | BN56: 0 | BP56: 1019039.65 | BQ56: 1019039.651 | BR56: -0.001471334952 | BV56: 0 | BX56: 127663.51 | BY56: 127663.5132 | BZ56: 0 | CB56: 6245.48 | CC56: 6245.48 | CD56: 0 | CF56: 1035726.77 | CH56: 1035727 | CI56: 0.0163753378 | CJ56: 1064393.65 | CL56: 1064394 | CM56: 0.02767803327
A57: 2275 | B57: Victoria Road Primary School | D57: Victoria Road Primary School | E57: 0 | F57: 1 | H57: 793237.79 | I57: 793237.7899 | J57: 0.0001047280384 | L57: 90002.07 | M57: 90002.07269 | N57: -0.002688553854 | P57: 26472.55 | Q57: 26472.5454 | R57: 0.004601705714 | T57: 71700.62 | U57: 71700.62223 | V57: -0.002232238665 | X57: 0 | Y57: 0 | Z57: 0 | AB57: 142484.22 | AC57: 142484.2182 | AD57: 0.001831755828 | AF57: 0 | AG57: 0 | AH57: 0 | AJ57: 0 | AK57: 0 | AL57: 0 | AN57: 0 | AO57: 0 | AP57: 0 | AR57: 18114 | AS57: 18114 | AT57: 0 | AV57: 0 | AW57: 0 | AX57: 0 | AZ57: 0 | BA57: 0 | BB57: 0 | BD57: 0 | BE57: 0 | BF57: 0 | BH57: 1142011.25 | BI57: 1142011.248 | BJ57: 0.001617397182 | BL57: 0 | BM57: 0 | BN57: 0 | BP57: 1142011.25 | BQ57: 1142011.248 | BR57: 0.001617397182 | BV57: 0 | BX57: 158461.01 | BY57: 158461.0096 | BZ57: 0 | CB57: 6795.6 | CC57: 6795.6 | CD57: 0 | CF57: 1161582.52 | CH57: 1161583 | CI57: 0.01713754715 | CJ57: 1194691.57 | CL57: 1194692 | CM57: 0.02850339897
A58: 2276 | B58: Willesborough Infant School | D58: Willesborough Infant School | E58: 0 | F58: 1 | H58: 1329617.63 | I58: 1329617.629 | J58: 0.001223162981 | L58: 98395.95 | M58: 98395.95105 | N58: -0.001052876483 | P58: 61527.47 | Q58: 61527.47428 | R58: -0.004283258953 | T58: 108783.76 | U58: 108783.7563 | V58: 0.003745508206 | X58: 0 | Y58: 0 | Z58: 0 | AB58: 142484.22 | AC58: 142484.2182 | AD58: 0.001831755828 | AF58: 0 | AG58: 0 | AH58: 0 | AJ58: 0 | AK58: 0 | AL58: 0 | AN58: 0 | AO58: 0 | AP58: 0 | AR58: 30303 | AS58: 30303 | AT58: 0 | AV58: 0 | AW58: 0 | AX58: 0 | AZ58: 0 | BA58: 0 | BB58: 0 | BD58: 0 | BE58: 0 | BF58: 0 | BH58: 1771112.03 | BI58: 1771112.029 | BJ58: 0.001464291709 | BL58: 3775.67 | BM58: 3775.666737 | BN58: 0.003263459615 | BP58: 1774887.7 | BQ58: 1774887.695 | BR58: 0.004727751249 | BV58: 0 | BX58: 231215.83 | BY58: 231215.8299 | BZ58: 0 | CB58: 11390.72 | CC58: 11390.72 | CD58: 0 | CF58: 1806872.71 | CH58: 1806873 | CI58: 0.01802086679 | CJ58: 1855133.94 | CL58: 1855134 | CM58: 0.02670981178
A59: 2278 | B59: Bethersden Primary School | D59: Bethersden Primary School | E59: 0 | F59: 1 | H59: 426837.48 | I59: 426837.4774 | J59: 0.002580163127 | L59: 45701.26 | M59: 45701.26489 | N59: -0.004893131256 | P59: 1328.18 | Q59: 1328.181876 | R59: -0.001875905094 | T59: 26566.26 | U59: 26566.26105 | V59: -0.00104544697 | X59: 0 | Y59: 0 | Z59: 0 | AB59: 142484.22 | AC59: 142484.2182 | AD59: 0.001831755828 | AF59: 27665.24 | AG59: 27665.23749 | AH59: 0.002513411324 | AJ59: 0 | AK59: 0 | AL59: 0 | AN59: 0 | AO59: 0 | AP59: 0 | AR59: 13174 | AS59: 13174 | AT59: 0 | AV59: 0 | AW59: 0 | AX59: 0 | AZ59: 0 | BA59: 0 | BB59: 0 | BD59: 0 | BE59: 0 | BF59: 0 | BH59: 683756.64 | BI59: 683756.6409 | BJ59: -0.0008891529869 | BL59: 967.45 | BM59: 967.4455203 | BN59: 0.004479724029 | BP59: 684724.09 | BQ59: 684724.0864 | BR59: 0.003590570996 | BV59: 0 | BX59: 70840.92 | BY59: 70840.92223 | BZ59: 0 | CB59: 3656.68 | CC59: 3656.68 | CD59: 0 | CF59: 694684.04 | CH59: 694684 | CI59: 0.01454593724 | CJ59: 712548.93 | CL59: 712549 | CM59: 0.02571656893
A60: 2279 | B60: Brook Community Primary School | D60: Brook Community Primary School | E60: 0 | F60: 1 | H60: 279521.89 | I60: 279521.8879 | J60: 0.002132142254 | L60: 32974.17 | M60: 32974.16507 | N60: 0.004928273644 | P60: 2018.17 | Q60: 2018.167953 | R60: 0.002047245425 | T60: 23664.2 | U60: 23664.20018 | V60: -0.000175640409 | X60: 9050.27 | Y60: 9050.26756 | Z60: 0.002440030363 | AB60: 142484.22 | AC60: 142484.2182 | AD60: 0.001831755828 | AF60: 56307.78 | AG60: 56307.77956 | AH60: 0.0004416985757 | AJ60: 0 | AK60: 0 | AL60: 0 | AN60: 0 | AO60: 0 | AP60: 0 | AR60: 9469 | AS60: 9469 | AT60: 0 | AV60: 0 | AW60: 0 | AX60: 0 | AZ60: 0 | BA60: 0 | BB60: 0 | BD60: 0 | BE60: 0 | BF60: 0 | BH60: 555489.69 | BI60: 555489.6864 | BJ60: 0.003645505523 | BL60: 0 | BM60: 0 | BN60: 0 | BP60: 555489.69 | BQ60: 555489.6864 | BR60: 0.003645505523 | BV60: 0 | BX60: 60966.9 | BY60: 60966.90476 | BZ60: 0 | CB60: 2394.64 | CC60: 2394.64 | CD60: 0 | CF60: 562354.74 | CH60: 562355 | CI60: 0.01235856185 | CJ60: 577065.58 | CL60: 577066 | CM60: 0.02615935984
A61: 2280 | B61: Challock Primary School | D61: Challock Primary School | E61: 0 | F61: 1 | H61: 785683.14 | I61: 785683.1443 | J61: -0.004277221859 | L61: 49948.19 | M61: 49948.19102 | N61: -0.001018546456 | P61: 2039.62 | Q61: 2039.618265 | R61: 0.001734962879 | T61: 45782.17 | U61: 45782.1743 | V61: -0.004298044034 | X61: 0 | Y61: 0 | Z61: 0 | AB61: 142484.22 | AC61: 142484.2182 | AD61: 0.001831755828 | AF61: 0 | AG61: 0 | AH61: 0 | AJ61: 0 | AK61: 0 | AL61: 0 | AN61: 0 | AO61: 0 | AP61: 0 | AR61: 26097 | AS61: 26097 | AT61: 0 | AV61: 0 | AW61: 0 | AX61: 0 | AZ61: 0 | BA61: 0 | BB61: 0 | BD61: 0 | BE61: 0 | BF61: 0 | BH61: 1052034.35 | BI61: 1052034.346 | BJ61: 0.003972906386 | BL61: 0 | BM61: 0 | BN61: 0 | BP61: 1052034.35 | BQ61: 1052034.346 | BR61: 0.003972906386 | BV61: 0 | BX61: 111232.69 | BY61: 111232.6869 | BZ61: 0 | CB61: 6730.88 | CC61: 6730.88 | CD61: 0 | CF61: 1069646.41 | CH61: 1069646 | CI61: 0.01674095911 | CJ61: 1099737.92 | CL61: 1099738 | CM61: 0.02813220305
A62: 2282 | B62: Great Chart Primary School | D62: Great Chart Primary School | E62: 0 | F62: 1 | H62: 1590252.9 | I62: 1590252.903 | J62: -0.00259956927 | L62: 125758.23 | M62: 125758.2335 | N62: -0.003535743002 | P62: 34210.02 | Q62: 34210.02398 | R62: -0.003981465714 | T62: 87039.13 | U62: 87039.12623 | V62: 0.003768073133 | X62: 0 | Y62: 0 | Z62: 0 | AB62: 142484.22 | AC62: 142484.2182 | AD62: 0.001831755828 | AF62: 0 | AG62: 0 | AH62: 0 | AJ62: 0 | AK62: 0 | AL62: 0 | AN62: 0 | AO62: 0 | AP62: 0 | AR62: 44226 | AS62: 44226 | AT62: 0 | AV62: 0 | AW62: 0 | AX62: 0 | AZ62: 0 | BA62: 0 | BB62: 0 | BD62: 87536 | BE62: 87536.00048 | BF62: -0.0004830509715 | BH62: 2111506.51 | BI62: 2111506.505 | BJ62: 0.004999999423 | BL62: 0 | BM62: 0 | BN62: 0 | BP62: 2111506.51 | BQ62: 2111506.505 | BR62: 0.004999999423 | BV62: 0 | BX62: 267184.32 | BY62: 267184.323 | BZ62: 0 | CB62: 13623.56 | CC62: 13623.56 | CD62: 0 | CF62: 2149945.44 | CH62: 2149945 | CI62: 0.01820450702 | CJ62: 2172455.97 | CL62: 2172456 | CM62: 0.01047027966
A63: 2285 | B63: Mersham Primary School | D63: Mersham Primary School | E63: 0 | F63: 1 | H63: 642144.88 | I63: 642144.8775 | J63: 0.002465732163 | L63: 66553.16 | M63: 66553.15994 | N63: 6.201784709e-05 | P63: 7205.25 | Q63: 7205.248511 | R63: 0.001489002221 | T63: 47953.59 | U63: 47953.58969 | V63: 0.0003053847904 | X63: 5490.75 | Y63: 5490.748101 | Z63: 0.001898763187 | AB63: 142484.22 | AC63: 142484.2182 | AD63: 0.001831755828 | AF63: 0 | AG63: 0 | AH63: 0 | AJ63: 0 | AK63: 0 | AL63: 0 | AN63: 0 | AO63: 0 | AP63: 0 | AR63: 9431 | AS63: 9431 | AT63: 0 | AV63: 0 | AW63: 0 | AX63: 0 | AZ63: 0 | BA63: 0 | BB63: 0 | BD63: 0 | BE63: 0 | BF63: 0 | BH63: 921262.84 | BI63: 921262.8419 | BJ63: -0.001947343932 | BL63: 0 | BM63: 0 | BN63: 0 | BP63: 921262.84 | BQ63: 921262.8419 | BR63: -0.001947343932 | BV63: 0 | BX63: 117633.86 | BY63: 117633.8625 | BZ63: 0 | CB63: 5501.2 | CC63: 5501.2 | CD63: 0 | CF63: 936592.8 | CH63: 936593 | CI63: 0.0166401567 | CJ63: 963169.4 | CL63: 963169 | CM63: 0.02837583206
A64: 2289 | B64: Smeeth Community Primary School | D64: Smeeth Community Primary School | E64: 0 | F64: 1 | H64: 415505.51 | I64: 415505.509 | J64: 0.001007238461 | L64: 29384.34 | M64: 29384.34459 | N64: -0.004589930955 | P64: 0 | Q64: 0 | R64: 0 | T64: 20356.15 | U64: 20356.15297 | V64: -0.002970698664 | X64: 0 | Y64: 0 | Z64: 0 | AB64: 142484.22 | AC64: 142484.2182 | AD64: 0.001831755828 | AF64: 0 | AG64: 0 | AH64: 0 | AJ64: 0 | AK64: 0 | AL64: 0 | AN64: 0 | AO64: 0 | AP64: 0 | AR64: 17091 | AS64: 17091 | AT64: 0 | AV64: 0 | AW64: 0 | AX64: 0 | AZ64: 0 | BA64: 0 | BB64: 0 | BD64: 0 | BE64: 0 | BF64: 0 | BH64: 624821.22 | BI64: 624821.2247 | BJ64: -0.004721635371 | BL64: 0 | BM64: 0 | BN64: 0 | BP64: 624821.22 | BQ64: 624821.2247 | BR64: -0.004721635371 | BV64: 0 | BX64: 55948.34 | BY64: 55948.33768 | BZ64: 0 | CB64: 3559.6 | CC64: 3559.6 | CD64: 0 | CF64: 634069.15 | CH64: 634069 | CI64: 0.01480091411 | CJ64: 651278.2 | CL64: 651278 | CM64: 0.02714065177
A65: 2298 | B65: Hawkinge Primary School | D65: Hawkinge Primary School | E65: 0 | F65: 1 | H65: 1480710.54 | I65: 1480710.541 | J65: -0.001137841027 | L65: 155433.18 | M65: 155433.1753 | N65: 0.004717736447 | P65: 5213.06 | Q65: 5213.055094 | R65: 0.004906182047 | T65: 129528.54 | U65: 129528.5448 | V65: -0.004796976427 | X65: 0 | Y65: 0 | Z65: 0 | AB65: 142484.22 | AC65: 142484.2182 | AD65: 0.001831755828 | AF65: 0 | AG65: 0 | AH65: 0 | AJ65: 0 | AK65: 0 | AL65: 0 | AN65: 0 | AO65: 0 | AP65: 0 | AR65: 11903 | AS65: 11903 | AT65: 0 | AV65: 0 | AW65: 0 | AX65: 0 | AZ65: 0 | BA65: 0 | BB65: 0 | BD65: 11509.23 | BE65: 11509.22552 | BF65: 0.004479143146 | BH65: 1936781.76 | BI65: 1936781.76 | BJ65: 0 | BL65: 0 | BM65: 0 | BN65: 0 | BP65: 1936781.76 | BQ65: 1936781.76 | BR65: 0 | BV65: 0 | BX65: 291939.21 | BY65: 291939.2088 | BZ65: 0 | CB65: 12685.12 | CC65: 12685.12 | CD65: 0 | CF65: 1972372.66 | CH65: 1972373 | CI65: 0.01837630895 | CJ65: 2018061.21 | CL65: 2018061 | CM65: 0.02316425842
A66: 2300 | B66: Sellindge Primary School | D66: Sellindge Primary School | E66: 0 | F66: =IF(E66=D66,0,1) -> 1 | H66: 702582.04 | I66: 702582.0425 | J66: =H66-I66 -> -0.002478669514 | L66: 63292.94 | M66: 63292.93653 | N66: =L66-M66 -> 0.003471328469 | P66: 7393.74 | Q66: 7393.738023 | R66: =P66-Q66 -> 0.001977351715 | T66: 49004.15 | U66: 49004.15431 | V66: =T66-U66 -> -0.004308657757 | X66: 4663.81 | Y66: 4663.809711 | Z66: =X66-Y66 -> 0.0002894061163 | AB66: 142484.22 | AC66: 142484.2182 | AD66: =AB66-AC66 -> 0.001831755828 | AF66: 0 | AG66: 0 | AH66: =AF66-AG66 -> 0 | AJ66: 0 | AK66: 0 | AL66: =AJ66-AK66 -> 0 | AN66: 0 | AO66: 0 | AP66: =AN66-AO66 -> 0 | AR66: 20659 | AS66: 20659 | AT66: =AR66-AS66 -> 0 | AV66: 0 | AW66: 0 | AX66: =AV66-AW66 -> 0 | AZ66: 0 | BA66: 0 | BB66: =AZ66-BA66 -> 0 | BD66: 0 | BE66: 0 | BF66: =BD66-BE66 -> 0 | BH66: 990079.9 | BI66: 990079.8992 | BJ66: =BH66-BI66 -> 0.0007825148059 | BL66: 0 | BM66: 0 | BN66: =BL66-BM66 -> 0 | BP66: 990079.9 | BQ66: 990079.8992 | BR66: =BP66-BQ66 -> 0.0007825148059 | BV66: =BT66-BU66 -> 0 | BX66: 118506.91 | BY66: 118506.9114 | BZ66: =ROUND(BX66-BY66,0) -> 0 | CB66: 6018.96 | CC66: 6018.96 | CD66: 0 | CF66: 1006561.64 | CH66: =ROUND(CF66-CG66,0) -> 1006562 | CI66: 0.0166468795 | CJ66: 1034912.21 | CL66: =ROUND(CJ66-CK66,0) -> 1034912 | CM66: 0.02816575645
A67: 2312 | B67: River Primary School | D67: River Primary School | E67: 0 | F67: 1 | H67: 1476933.22 | I67: 1476933.218 | J67: 0.001671183854 | L67: 183447.8 | M67: 183447.8035 | N67: -0.003529601294 | P67: 5352.69 | Q67: 5352.690498 | R67: -0.000498116643 | T67: 125352.11 | U67: 125352.1129 | V67: -0.002909626259 | X67: 0 | Y67: 0 | Z67: 0 | AB67: 142484.22 | AC67: 142484.2182 | AD67: 0.001831755828 | AF67: 0 | AG67: 0 | AH67: 0 | AJ67: 0 | AK67: 0 | AL67: 0 | AN67: 0 | AO67: 0 | AP67: 0 | AR67: 51597 | AS67: 51597 | AT67: 0 | AV67: 0 | AW67: 0 | AX67: 0 | AZ67: 0 | BA67: 0 | BB67: 0 | BD67: 0 | BE67: 0 | BF67: 0 | BH67: 1985167.04 | BI67: 1985167.043 | BJ67: -0.003434404498 | BL67: 0 | BM67: 0 | BN67: 0 | BP67: 1985167.04 | BQ67: 1985167.043 | BR67: -0.003434404498 | BV67: 0 | BX67: 298851.58 | BY67: 298851.5765 | BZ67: 0 | CB67: 12652.76 | CC67: 12652.76 | CD67: =IF(E67="Recoupment Academy",0,ROUND(CB67-CC67,0)) -> 0 | CF67: 2020931.77 | CH67: 2020932 | CI67: 0.0180159784 | CJ67: 2078981.99 | CL67: 2078982 | CM67: 0.02872448287
A68: 2318 | B68: Langdon Primary School | D68: Langdon Primary School | E68: 0 | F68: 1 | H68: 351291.02 | I68: 351291.0212 | J68: -0.001239334757 | L68: 37321.11 | M68: 37321.11008 | N68: -8.494011126e-05 | P68: 2774.81 | Q68: 2774.806111 | R68: 0.003888936189 | T68: 47249.8 | U68: 47249.79946 | V68: 0.0005429552984 | X68: 6077.69 | Y68: 6077.69014 | Z68: -0.0001396448797 | AB68: 142484.22 | AC68: 142484.2182 | AD68: 0.001831755828 | AF68: 42700.69 | AG68: 42700.69264 | AH68: -0.002642343396 | AJ68: 0 | AK68: 0 | AL68: 0 | AN68: 0 | AO68: 0 | AP68: 0 | AR68: 5489 | AS68: 5489 | AT68: 0 | AV68: 0 | AW68: 0 | AX68: 0 | AZ68: 0 | BA68: 0 | BB68: 0 | BD68: 0 | BE68: 0 | BF68: 0 | BH68: 635388.34 | BI68: 635388.3378 | BJ68: 0.00215738418 | BL68: 0 | BM68: 0 | BN68: 0 | BP68: 635388.34 | BQ68: 635388.3378 | BR68: 0.00215738418 | BV68: 0 | BX68: 89441.38 | BY68: 89441.37873 | BZ68: 0 | CB68: 3009.48 | CC68: 3009.48 | CD68: 0 | CF68: 644208.55 | CH68: 644209 | CI68: =(CF68-BQ68)/BQ68 -> 0.01388160851 | CJ68: 661647.53 | CL68: 661648 | CM68: =(CJ68-CF68)/CF68 -> 0.02707039514
A69: 2320 | B69: Eythorne Elvington Community Primary School | D69: Eythorne Elvington Community Primary School | E69: 0 | F69: 1 | H69: 430614.8 | I69: 430614.8002 | J69: -0.0002288619871 | L69: 101463.01 | M69: 101463.0122 | N69: -0.002187929596 | P69: 663.27 | Q69: 663.2681704 | R69: 0.001829581199 | T69: 22321.86 | U69: 22321.86167 | V69: -0.00167299961 | X69: 9618.28 | Y69: 9618.275984 | Z69: 0.004015764458 | AB69: 142484.22 | AC69: 142484.2182 | AD69: 0.001831755828 | AF69: 26913.46 | AG69: 26913.46473 | AH69: -0.004728800945 | AJ69: 0 | AK69: 0 | AL69: 0 | AN69: 0 | AO69: 0 | AP69: 0 | AR69: 20334 | AS69: 20334 | AT69: 0 | AV69: 0 | AW69: 0 | AX69: 0 | AZ69: 0 | BA69: 0 | BB69: 0 | BD69: 0 | BE69: 0 | BF69: 0 | BH69: 754412.9 | BI69: 754412.9011 | BJ69: -0.001141490648 | BL69: 14034.77 | BM69: 14034.76701 | BN69: 0.002992985985 | BP69: 768447.67 | BQ69: 768447.6681 | BR69: 0.001851495355 | BV69: 0 | BX69: 110049.7 | BY69: 110049.6967 | BZ69: 0 | CB69: 3689.04 | CC69: 3689.04 | CD69: 0 | CF69: 779954.23 | CH69: 779954 | CI69: 0.01497377418 | CJ69: 786454.36 | CL69: 786454 | CM69: 0.008333989034
A70: 2321 | B70: Lydden Primary School | D70: Lydden Primary School | E70: 0 | F70: 1 | H70: 290853.86 | I70: 290853.8563 | J70: 0.00370506692 | L70: 29664.65 | M70: 29664.64709 | N70: 0.002908431477 | P70: 0 | Q70: 0 | R70: 0 | T70: 22961.08 | U70: 22961.08028 | V70: -0.0002754549168 | X70: 2253.1 | Y70: 2253.100083 | Z70: -8.292131406e-05 | AB70: 142484.22 | AC70: 142484.2182 | AD70: 0.001831755828 | AF70: 16555.54 | AG70: 16555.53967 | AH70: 0.0003279984739 | AJ70: 0 | AK70: 0 | AL70: 0 | AN70: 0 | AO70: 0 | AP70: 0 | AR70: 10180 | AS70: 10180 | AT70: 0 | AV70: 0 | AW70: 0 | AX70: 0 | AZ70: 0 | BA70: 0 | BB70: 0 | BD70: 0 | BE70: 0 | BF70: 0 | BH70: 514952.44 | BI70: 514952.4416 | BJ70: -0.001585123537 | BL70: 0 | BM70: 0 | BN70: 0 | BP70: 514952.44 | BQ70: 514952.4416 | BR70: -0.001585123537 | BV70: 0 | BX70: 55109.15 | BY70: 55109.14627 | BZ70: 0 | CB70: 2491.72 | CC70: 2491.72 | CD70: 0 | CF70: 521803.48 | CH70: 521803 | CI70: 0.01330421581 | CJ70: 535665.4 | CL70: 535665 | CM70: 0.02656540351
A71: 2322 | B71: Preston Primary School | D71: Preston Primary School | E71: 0 | F71: 1 | H71: 449501.41 | I71: 449501.4143 | J71: -0.00427398755 | L71: 26578.44 | M71: 26578.44288 | N71: -0.00288354234 | P71: 1959.51 | Q71: 1959.506263 | R71: 0.003736846146 | T71: 33282.33 | U71: 33282.3275 | V71: 0.002500432456 | X71: 0 | Y71: 0 | Z71: 0 | AB71: 142484.22 | AC71: 142484.2182 | AD71: 0.001831755828 | AF71: 23154.6 | AG71: 23154.60094 | AH71: -0.0009398622642 | AJ71: 0 | AK71: 0 | AL71: 0 | AN71: 0 | AO71: 0 | AP71: 0 | AR71: 17715 | AS71: 17715 | AT71: 0 | AV71: 0 | AW71: 0 | AX71: 0 | AZ71: 0 | BA71: 0 | BB71: 0 | BD71: 0 | BE71: 0 | BF71: 0 | BH71: 694675.51 | BI71: 694675.51 | BJ71: -2.835772466e-05 | BL71: 0 | BM71: 0 | BN71: 0 | BP71: 694675.51 | BQ71: 694675.51 | BR71: -2.835772466e-05 | BV71: 0 | BX71: 69625.26 | BY71: 69625.25839 | BZ71: 0 | CB71: 3850.84 | CC71: 3850.84 | CD71: 0 | CF71: 704835.69 | CH71: 704836 | CI71: 0.01462579265 | CJ71: 723931.68 | CL71: 723932 | CM71: 0.027092825
A72: 2326 | B72: Wingham Primary School | D72: Wingham Primary School | E72: 0 | F72: 1 | H72: 763019.21 | I72: 763019.2074 | J72: 0.002576928702 | L72: 68178.51 | M72: 68178.51245 | N72: -0.002452174682 | P72: 5466.35 | Q72: 5466.347223 | R72: 0.002777454196 | T72: 42582.51 | U72: 42582.50924 | V72: 0.0007560956219 | X72: 2726.44 | Y72: 2726.440436 | Z72: -0.0004364762203 | AB72: 142484.22 | AC72: 142484.2182 | AD72: 0.001831755828 | AF72: 0 | AG72: 0 | AH72: 0 | AJ72: 0 | AK72: 0 | AL72: 0 | AN72: 0 | AO72: 0 | AP72: 0 | AR72: 37128 | AS72: 37128 | AT72: 0 | AV72: 0 | AW72: 0 | AX72: 0 | AZ72: 0 | BA72: 0 | BB72: 0 | BD72: 0 | BE72: 0 | BF72: 0 | BH72: 1061585.23 | BI72: 1061585.235 | BJ72: -0.00494641671 | BL72: 0 | BM72: 0 | BN72: 0 | BP72: 1061585.23 | BQ72: 1061585.235 | BR72: -0.00494641671 | BV72: 0 | BX72: 117509.23 | BY72: 117509.2299 | BZ72: 0 | CB72: 6536.72 | CC72: 6536.72 | CD72: 0 | CF72: 1079167.7 | CH72: 1079168 | CI72: 0.01656246194 | CJ72: 1109213.61 | CL72: 1109214 | CM72: 0.02784174322
A73: 2328 | B73: St Mildred's Primary Infant School | D73: St Mildred's Primary Infant School | E73: 0 | F73: 1 | H73: 1019877.16 | I73: 1019877.158 | J73: 0.001563221682 | L73: 93213.1 | M73: 93213.09818 | N73: 0.00182311394 | P73: 12218.1 | Q73: 12218.09788 | R73: 0.002123864191 | T73: 102678.83 | U73: 102678.8273 | V73: 0.002677007113 | X73: 0 | Y73: 0 | Z73: 0 | AB73: 142484.22 | AC73: 142484.2182 | AD73: 0.001831755828 | AF73: 0 | AG73: 0 | AH73: 0 | AJ73: 0 | AK73: 0 | AL73: 0 | AN73: 0 | AO73: 0 | AP73: 0 | AR73: 32878 | AS73: 32878 | AT73: 0 | AV73: 0 | AW73: 0 | AX73: 0 | AZ73: 0 | BA73: 0 | BB73: 0 | BD73: 0 | BE73: 0 | BF73: 0 | BH73: 1403349.4 | BI73: 1403349.4 | BJ73: 1.896265894e-05 | BL73: 13698.53 | BM73: 13698.52572 | BN73: 0.004282566109 | BP73: 1417047.93 | BQ73: 1417047.926 | BR73: 0.004301528679 | BV73: 0 | BX73: 209247.63 | BY73: 209247.6277 | BZ73: 0 | CB73: 8737.2 | CC73: 8737.2 | CD73: 0 | CF73: 1441824.65 | CH73: 1441825 | CI73: 0.01748474688 | CJ73: 1468556.68 | CL73: 1468557 | CM73: 0.01854041683
A74: 2329 | B74: Callis Grange Nursery and Infant School | D74: Callis Grange Nursery and Infant School | E74: 0 | F74: 1 | H74: 959439.99 | I74: 959439.9935 | J74: -0.003492376651 | L74: 135160.94 | M74: 135160.9409 | N74: -0.0008605607436 | P74: 10555.77 | Q74: 10555.77163 | R74: -0.00163448467 | T74: 73713.69 | U74: 73713.68529 | V74: 0.004710541441 | X74: 0 | Y74: 0 | Z74: 0 | AB74: 142484.22 | AC74: 142484.2182 | AD74: 0.001831755828 | AF74: 0 | AG74: 0 | AH74: 0 | AJ74: 0 | AK74: 0 | AL74: 0 | AN74: 0 | AO74: 0 | AP74: 0 | AR74: 52962 | AS74: 52962 | AT74: 0 | AV74: 0 | AW74: 0 | AX74: 0 | AZ74: 0 | BA74: 0 | BB74: 0 | BD74: 0 | BE74: 0 | BF74: 0 | BH74: 1374316.61 | BI74: 1374316.609 | BJ74: 0.0005548752379 | BL74: 0 | BM74: 0 | BN74: 0 | BP74: 1374316.61 | BQ74: 1374316.609 | BR74: 0.0005548752379 | BV74: 0 | BX74: 195658.34 | BY74: 195658.3407 | BZ74: 0 | CB74: 8219.44 | CC74: 8219.44 | CD74: 0 | CF74: 1397837.02 | CH74: 1397837 | CI74: 0.01711425911 | CJ74: 1437028.56 | CL74: 1437029 | CM74: 0.02803727433
A75: 2337 | B75: St Crispin's Community Primary Infant School | D75: St Crispin's Community Primary Infant School | E75: 0 | F75: 1 | H75: 789460.47 | I75: 789460.4671 | J75: 0.002913753036 | L75: 115462.57 | M75: 115462.5723 | N75: -0.002267917225 | P75: 4929.7 | Q75: 4929.695861 | R75: 0.004138779187 | T75: 107355.66 | U75: 107355.659 | V75: 0.001002273842 | X75: 0 | Y75: 0 | Z75: 0 | AB75: 142484.22 | AC75: 142484.2182 | AD75: 0.001831755828 | AF75: 0 | AG75: 0 | AH75: 0 | AJ75: 0 | AK75: 0 | AL75: 0 | AN75: 0 | AO75: 0 | AP75: 0 | AR75: 23578 | AS75: 23578 | AT75: 0 | AV75: 0 | AW75: 0 | AX75: 0 | AZ75: 0 | BA75: 0 | BB75: 0 | BD75: 0 | BE75: 0 | BF75: 0 | BH75: 1183270.61 | BI75: 1183270.612 | BJ75: -0.002381355269 | BL75: 0 | BM75: 0 | BN75: 0 | BP75: 1183270.61 | BQ75: 1183270.612 | BR75: -0.002381355269 | BV75: 0 | BX75: 207689.2 | BY75: 207689.2015 | BZ75: 0 | CB75: 6763.24 | CC75: 6763.24 | CD75: 0 | CF75: 1203557.79 | CH75: 1203558 | CI75: 0.01714500251 | CJ75: 1237769.49 | CL75: 1237769 | CM75: 0.02842547345
A76: 2340 | B76: Ellington Infant School | D76: Ellington Infant School | E76: 0 | F76: 1 | H76: 657254.17 | I76: 657254.1688 | J76: 0.001229631715 | L76: 191335.1 | M76: 191335.1034 | N76: -0.003435718274 | P76: 11345.38 | Q76: 11345.3766 | R76: 0.003400731073 | T76: 68113.47 | U76: 68113.46556 | V76: 0.004436108051 | X76: 4316.86 | Y76: 4316.864024 | Z76: -0.004024420665 | AB76: 142484.22 | AC76: 142484.2182 | AD76: 0.001831755828 | AF76: 0 | AG76: 0 | AH76: 0 | AJ76: 0 | AK76: 0 | AL76: 0 | AN76: 0 | AO76: 0 | AP76: 0 | AR76: 22118 | AS76: 22118 | AT76: 0 | AV76: 0 | AW76: 0 | AX76: 0 | AZ76: 0 | BA76: 0 | BB76: 0 | BD76: 0 | BE76: 0 | BF76: 0 | BH76: 1096967.2 | BI76: 1096967.197 | BJ76: 0.003438087879 | BL76: 11803.96 | BM76: 11803.95521 | BN76: 0.004790593091 | BP76: 1108771.15 | BQ76: 1108771.152 | BR76: -0.001771319192 | BV76: 0 | BX76: 212555.79 | BY76: 212555.7887 | BZ76: 0 | CB76: 5630.64 | CC76: 5630.64 | CD76: 0 | CF76: 1127597.54 | CH76: 1127598 | CI76: 0.01697950763 | CJ76: 1147155.68 | CL76: 1147156 | CM76: 0.01734496512
A77: 2345 | B77: Priory Infant School | D77: Priory Infant School | E77: 0 | F77: 1 | H77: 589262.36 | I77: 589262.3582 | J77: 0.001792083611 | L77: 160228.12 | M77: 160228.1168 | N77: 0.003231782466 | P77: 12039.99 | Q77: 12039.99149 | R77: -0.001493101774 | T77: 104508.97 | U77: 104508.9694 | V77: 0.0006481774035 | X77: 3445.92 | Y77: 3445.917774 | Z77: 0.002226120347 | AB77: 142484.22 | AC77: 142484.2182 | AD77: 0.001831755828 | AF77: 0 | AG77: 0 | AH77: 0 | AJ77: 0 | AK77: 0 | AL77: 0 | AN77: 0 | AO77: 0 | AP77: 0 | AR77: 37128 | AS77: 37128 | AT77: 0 | AV77: 0 | AW77: 0 | AX77: 0 | AZ77: 0 | BA77: 0 | BB77: 0 | BD77: 0 | BE77: 0 | BF77: 0 | BH77: 1049097.57 | BI77: 1049097.572 | BJ77: -0.001763181994 | BL77: 0 | BM77: 0 | BN77: 0 | BP77: 1049097.57 | BQ77: 1049097.572 | BR77: -0.001763181994 | BV77: 0 | BX77: 223843.58 | BY77: 223843.5801 | BZ77: 0 | CB77: 5048.16 | CC77: 5048.16 | CD77: 0 | CF77: 1066430.29 | CH77: 1066430 | CI77: 0.01652155024 | CJ77: 1096091.52 | CL77: 1096092 | CM77: 0.0278135667
A78: 2431 | B78: Shears Green Junior School | D78: Shears Green Junior School | E78: 0 | F78: 1 | H78: 1847110.85 | I78: 1847110.854 | J78: -0.003613276174 | L78: 326120.99 | M78: 326120.9949 | N78: -0.004921600805 | P78: 18618.05 | Q78: 18618.05391 | R78: -0.003906492657 | T78: 96968.61 | U78: 96968.60838 | V78: 0.001617917238 | X78: 0 | Y78: 0 | Z78: 0 | AB78: 142484.22 | AC78: 142484.2182 | AD78: 0.001831755828 | AF78: 0 | AG78: 0 | AH78: 0 | AJ78: 0 | AK78: 0 | AL78: 0 | AN78: 0 | AO78: 0 | AP78: 0 | AR78: 18713 | AS78: 18713 | AT78: 0 | AV78: 0 | AW78: 0 | AX78: 0 | AZ78: 0 | BA78: 0 | BB78: 0 | BD78: 0 | BE78: 0 | BF78: 0 | BH78: 2450015.73 | BI78: 2450015.729 | BJ78: 0.001008303836 | BL78: 0 | BM78: 0 | BN78: 0 | BP78: 2450015.73 | BQ78: 2450015.729 | BR78: 0.001008303836 | BV78: 0 | BX78: 361779.33 | BY78: 361779.3315 | BZ78: 0 | CB78: 15824.04 | CC78: 15824.04 | CD78: 0 | CF78: 2495735.11 | CH78: 2495735 | CI78: 0.01866085204 | CJ78: 2569117.48 | CL78: 2569117 | CM78: 0.02940310841
A79: 2434 | B79: West Minster Primary School | D79: West Minster Primary School | E79: 0 | F79: 1 | H79: 1635580.78 | I79: 1635580.776 | J79: 0.003692129627 | L79: 642203.73 | M79: 642203.7324 | N79: -0.002376112039 | P79: 4041.59 | Q79: 4041.586234 | R79: 0.00376595355 | T79: 142730.12 | U79: 142730.115 | V79: 0.005003360449 | X79: 0 | Y79: 0 | Z79: 0 | AB79: 142484.22 | AC79: 142484.2182 | AD79: 0.001831755828 | AF79: 0 | AG79: 0 | AH79: 0 | AJ79: 0 | AK79: 0 | AL79: 0 | AN79: 0 | AO79: 0 | AP79: 0 | AR79: 104286 | AS79: 104286 | AT79: 0 | AV79: 0 | AW79: 0 | AX79: 0 | AZ79: 0 | BA79: 0 | BB79: 0 | BD79: 0 | BE79: 0 | BF79: 0 | BH79: 2671326.43 | BI79: 2671326.428 | BJ79: 0.001917087473 | BL79: 0 | BM79: 0 | BN79: 0 | BP79: 2671326.43 | BQ79: 2671326.428 | BR79: 0.001917087473 | BV79: 0 | BX79: 582356.02 | BY79: 582356.016 | BZ79: 0 | CB79: 14011.88 | CC79: 14011.88 | CD79: 0 | CF79: 2719760.56 | CH79: 2719761 | CI79: 0.01813111696 | CJ79: 2797324.2 | CL79: 2797324 | CM79: 0.02851855459
A80: 2454 | B80: Aycliffe Community Primary School | D80: Aycliffe Community Primary School | E80: 0 | F80: 1 | H80: 328627.08 | I80: 328627.0844 | J80: -0.004385184147 | L80: 119678.3 | M80: 119678.2974 | N80: 0.002568032025 | P80: 3893.68 | Q80: 3893.679543 | R80: 0.0004570556239 | T80: 35140.21 | U80: 35140.21316 | V80: -0.003158371546 | X80: 2631.77 | Y80: 2631.772366 | Z80: -0.00236576523 | AB80: 142484.22 | AC80: 142484.2182 | AD80: 0.001831755828 | AF80: 22071.3 | AG80: 22071.2964 | AH80: 0.003604109879 | AJ80: 0 | AK80: 0 | AL80: 0 | AN80: 0 | AO80: 0 | AP80: 0 | AR80: 24451 | AS80: 24451 | AT80: 0 | AV80: 0 | AW80: 0 | AX80: 0 | AZ80: 0 | BA80: 0 | BB80: 0 | BD80: 0 | BE80: 0 | BF80: 0 | BH80: 678977.56 | BI80: 678977.5614 | BJ80: -0.00144836749 | BL80: 3719.03 | BM80: 3719.025851 | BN80: 0.004148594018 | BP80: 682696.59 | BQ80: 682696.5873 | BR80: 0.002700226498 | BV80: 0 | BX80: 120516.32 | BY80: 120516.3194 | BZ80: 0 | CB80: 2815.32 | CC80: 2815.32 | CD80: 0 | CF80: 692504.57 | CH80: 692505 | CI80: 0.01436653249 | CJ80: 707127.59 | CL80: 707128 | CM80: 0.02111613502
A81: 2459 | B81: Riverhead Infants' School | D81: Riverhead Infants' School | E81: 0 | F81: 1 | H81: 985881.25 | I81: 985881.2532 | J81: -0.003155552433 | L81: 7628.26 | M81: 7628.256168 | N81: 0.003832143051 | P81: 12654.46 | Q81: 12654.45851 | R81: 0.001485430776 | T81: 73156.66 | U81: 73156.65704 | V81: 0.002962599581 | X81: 0 | Y81: 0 | Z81: 0 | AB81: 142484.22 | AC81: 142484.2182 | AD81: 0.001831755828 | AF81: 0 | AG81: 0 | AH81: 0 | AJ81: 46184.22 | AK81: 46184.22307 | AL81: -0.003067048958 | AN81: 0 | AO81: 0 | AP81: 0 | AR81: 47502 | AS81: 47502 | AT81: 0 | AV81: 0 | AW81: 0 | AX81: 0 | AZ81: 0 | BA81: 0 | BB81: 0 | BD81: 13626.64 | BE81: 13626.63889 | BF81: 0.001110672318 | BH81: 1329117.71 | BI81: 1329117.705 | BJ81: 0.005000000121 | BL81: 0 | BM81: 0 | BN81: 0 | BP81: 1329117.71 | BQ81: 1329117.705 | BR81: 0.005000000121 | BV81: 0 | BX81: 136724.68 | BY81: 136724.6809 | BZ81: 0 | CB81: 8765.22 | CC81: 8765.217288 | CD81: 0 | CF81: 1351733.47 | CH81: 1351733 | CI81: 0.0170156224 | CJ81: 1375380.86 | CL81: 1375381 | CM81: 0.01749412183
A82: 2465 | B82: Claremont Primary School | D82: Claremont Primary School | E82: 0 | F82: 1 | H82: 1646912.74 | I82: 1646912.745 | J82: -0.004734945716 | L82: 20141.84 | M82: 20141.83785 | N82: 0.002149047166 | P82: 35756.81 | Q82: 35756.8143 | R82: -0.0043011331 | T82: 106635.51 | U82: 106635.5125 | V82: -0.002525644319 | X82: 0 | Y82: 0 | Z82: 0 | AB82: 142484.22 | AC82: 142484.2182 | AD82: 0.001831755828 | AF82: 0 | AG82: 0 | AH82: 0 | AJ82: 0 | AK82: 0 | AL82: 0 | AN82: 0 | AO82: 0 | AP82: 0 | AR82: 41496 | AS82: 41496 | AT82: 0 | AV82: 0 | AW82: 0 | AX82: 0 | AZ82: 0 | BA82: 0 | BB82: 0 | BD82: 189005.45 | BE82: 189005.4524 | BF82: -0.002419079945 | BH82: 2182432.58 | BI82: 2182432.58 | BJ82: 0 | BL82: 0 | BM82: 0 | BN82: 0 | BP82: 2182432.58 | BQ82: 2182432.58 | BR82: 0 | BV82: 0 | BX82: 280630.81 | BY82: 280630.8131 | BZ82: 0 | CB82: 14108.96 | CC82: 14108.96 | CD82: 0 | CF82: 2222344.63 | CH82: 2222345 | CI82: 0.01828787307 | CJ82: 2245606.46 | CL82: 2245606 | CM82: 0.01046724693
A83: 2471 | B83: Whitfield Aspen School | D83: Whitfield Aspen School | E83: 0 | F83: 1 | H83: 2341940.14 | I83: 2341940.142 | J83: -0.001595565118 | L83: 456208 | M83: 456208.0011 | N83: -0.00110568665 | P83: 10113.78 | Q83: 10113.77928 | R83: 0.0007166833093 | T83: 363414.36 | U83: 363414.3569 | V83: 0.003115184198 | X83: 8471.72 | Y83: 8471.720037 | Z83: -3.656961053e-05 | AB83: 142484.22 | AC83: 142484.2182 | AD83: 0.001831755828 | AF83: 0 | AG83: 0 | AH83: 0 | AJ83: 0 | AK83: 0 | AL83: 0 | AN83: 79481.73 | AO83: 79481.73437 | AP83: -0.00436775999 | AR83: 84630 | AS83: 84630 | AT83: 0 | AV83: 0 | AW83: 0 | AX83: 0 | AZ83: 0 | BA83: 0 | BB83: 0 | BD83: 0 | BE83: 0 | BF83: 0 | BH83: 3486743.95 | BI83: 3486743.951 | BJ83: -0.001441957895 | BL83: 0 | BM83: 0 | BN83: 0 | BP83: 3486743.95 | BQ83: 3486743.951 | BR83: -0.001441957895 | BV83: 0 | BX83: 730332.73 | BY83: 730332.732 | BZ83: 0 | CB83: 20063.2 | CC83: 20063.2 | CD83: 0 | CF83: 3550289.92 | CH83: 3550290 | CI83: 0.01822501722 | CJ83: 3651128.81 | CL83: 3651129 | CM83: 0.02840300152
A84: 2474 | B84: St Paul's Infant School | D84: St Paul's Infant School | E84: 0 | F84: 1 | H84: 985881.25 | I84: 985881.2532 | J84: -0.003155552433 | L84: 100104.24 | M84: 100104.2408 | N84: -0.0007630549226 | P84: 50042.63 | Q84: 50042.6314 | R84: -0.001398523833 | T84: 156008.77 | U84: 156008.7746 | V84: -0.004646022775 | X84: 0 | Y84: 0 | Z84: 0 | AB84: 142484.22 | AC84: 142484.2182 | AD84: 0.001831755828 | AF84: 0 | AG84: 0 | AH84: 0 | AJ84: 0 | AK84: 0 | AL84: 0 | AN84: 0 | AO84: 0 | AP84: 0 | AR84: 13772 | AS84: 13772 | AT84: 0 | AV84: 0 | AW84: 0 | AX84: 0 | AZ84: 0 | BA84: 0 | BB84: 0 | BD84: 0 | BE84: 0 | BF84: 0 | BH84: 1448293.12 | BI84: 1448293.118 | BJ84: 0.001868601423 | BL84: 15110.53 | BM84: 15110.52563 | BN84: 0.004373681821 | BP84: 1463403.64 | BQ84: 1463403.644 | BR84: -0.003757716855 | BV84: 0 | BX84: 264278.58 | BY84: 264278.5753 | BZ84: 0 | CB84: 8445.96 | CC84: 8445.96 | CD84: 0 | CF84: 1489489.6 | CH84: 1489490 | CI84: 0.0178255373 | CJ84: 1516754.38 | CL84: 1516754 | CM84: 0.01830478038
A85: 2482 | B85: Langton Green Primary School | D85: Langton Green Primary School | E85: 0 | F85: 1 | H85: 1594030.23 | I85: 1594030.225 | J85: 0.004591405625 | L85: 39916.72 | M85: 39916.72221 | N85: -0.002208807215 | P85: 6763.79 | Q85: 6763.790245 | R85: -0.0002449551521 | T85: 78730.19 | U85: 78730.19162 | V85: -0.001621416508 | X85: 643.74 | Y85: 643.7428808 | Z85: -0.002880834648 | AB85: 142484.22 | AC85: 142484.2182 | AD85: 0.001831755828 | AF85: 0 | AG85: 0 | AH85: 0 | AJ85: 0 | AK85: 0 | AL85: 0 | AN85: 0 | AO85: 0 | AP85: 0 | AR85: 47502 | AS85: 47502 | AT85: 0 | AV85: 0 | AW85: 0 | AX85: 0 | AZ85: 0 | BA85: 0 | BB85: 0 | BD85: 209622.02 | BE85: 209622.0195 | BF85: 0.0005328521947 | BH85: 2119692.91 | BI85: 2119692.91 | BJ85: 0 | BL85: 0 | BM85: 0 | BN85: 0 | BP85: 2119692.91 | BQ85: 2119692.91 | BR85: 0 | BV85: 0 | BX85: 269855.92 | BY85: 269855.9221 | BZ85: 0 | CB85: 13655.92 | CC85: 13655.92 | CD85: 0 | CF85: 2158230.05 | CH85: 2158230 | CI85: 0.01818052974 | CJ85: 2180790.67 | CL85: 2180791 | CM85: 0.01045329714
A86: 2490 | B86: Bishops Down Primary and Nursery School | D86: Bishops Down Primary and Nursery School | E86: 0 | F86: 1 | H86: 691250.07 | I86: 691250.0741 | J86: -0.004051594296 | L86: 51512.41 | M86: 51512.40971 | N86: 0.0002883791967 | P86: 9434.23 | Q86: 9434.227474 | R86: 0.002526021715 | T86: 83749.43 | U86: 83749.43207 | V86: -0.002071585506 | X86: 2858.98 | Y86: 2858.975735 | Z86: 0.004264528409 | AB86: 142484.22 | AC86: 142484.2182 | AD86: 0.001831755828 | AF86: 0 | AG86: 0 | AH86: 0 | AJ86: 0 | AK86: 0 | AL86: 0 | AN86: 0 | AO86: 0 | AP86: 0 | AR86: 37128 | AS86: 37128 | AT86: 0 | AV86: 0 | AW86: 0 | AX86: 0 | AZ86: 0 | BA86: 0 | BB86: 0 | BD86: 0 | BE86: 0 | BF86: 0 | BH86: 1018417.34 | BI86: 1018417.337 | BJ86: 0.002787505393 | BL86: 0 | BM86: 0 | BN86: 0 | BP86: 1018417.34 | BQ86: 1018417.337 | BR86: 0.002787505393 | BV86: 0 | BX86: 146897.81 | BY86: 146897.8059 | BZ86: 0 | CB86: 5921.88 | CC86: 5921.88 | CD86: 0 | CF86: 1035136.45 | CH86: 1035136 | CI86: 0.01641675979 | CJ86: 1063852.61 | CL86: 1063853 | CM86: 0.02774142481
A87: 2509 | B87: Singlewell Primary School | D87: Singlewell Primary School | E87: 0 | F87: 1 | H87: 1507151.8 | I87: 1507151.801 | J87: -0.0008010168094 | L87: 143865.56 | M87: 143865.557 | N87: 0.003041028453 | P87: 17804.54 | Q87: 17804.54381 | R87: -0.00380770232 | T87: 143494.19 | U87: 143494.1879 | V87: 0.002102623199 | X87: 56.8 | Y87: 56.80084243 | Z87: -0.0008424265798 | AB87: 142484.22 | AC87: 142484.2182 | AD87: 0.001831755828 | AF87: 0 | AG87: 0 | AH87: 0 | AJ87: 0 | AK87: 0 | AL87: 0 | AN87: 0 | AO87: 0 | AP87: 0 | AR87: 60606 | AS87: 60606 | AT87: 0 | AV87: 0 | AW87: 0 | AX87: 0 | AZ87: 0 | BA87: 0 | BB87: 0 | BD87: 4394.49 | BE87: 4394.486524 | BF87: 0.003475738299 | BH87: 2019857.6 | BI87: 2019857.595 | BJ87: 0.005000000121 | BL87: 0 | BM87: 0 | BN87: 0 | BP87: 2019857.6 | BQ87: 2019857.595 | BR87: 0.005000000121 | BV87: 0 | BX87: 296110 | BY87: 296110.0049 | BZ87: 0 | CB87: 12911.64 | CC87: 12911.64 | CD87: 0 | CF87: 2056135.95 | CH87: 2056136 | CI87: 0.01796084788 | CJ87: 2110359.52 | CL87: 2110360 | CM87: 0.02637158793
A88: 2510 | B88: Cheriton Primary School | D88: Cheriton Primary School | E88: 0 | F88: 1 | H88: 1537370.38 | I88: 1537370.383 | J88: -0.003273217939 | L88: 185102.55 | M88: 185102.5509 | N88: -0.0008533424116 | P88: 61567.58 | Q88: 61567.57701 | R88: 0.002987967098 | T88: 178927 | U88: 178926.9985 | V88: 0.001525942498 | X88: 19482.69 | Y88: 19482.68895 | Z88: 0.001047680224 | AB88: 142484.22 | AC88: 142484.2182 | AD88: 0.001831755828 | AF88: 0 | AG88: 0 | AH88: 0 | AJ88: 0 | AK88: 0 | AL88: 0 | AN88: 0 | AO88: 0 | AP88: 0 | AR88: 7733 | AS88: 7733 | AT88: 0 | AV88: 0 | AW88: 0 | AX88: 0 | AZ88: 0 | BA88: 0 | BB88: 0 | BD88: 0 | BE88: 0 | BF88: 0 | BH88: 2132667.42 | BI88: 2132667.417 | BJ88: 0.003266785294 | BL88: 0 | BM88: 0 | BN88: 0 | BP88: 2132667.42 | BQ88: 2132667.417 | BR88: 0.003266785294 | BV88: 0 | BX88: 363815.67 | BY88: 363815.6724 | BZ88: 0 | CB88: 13170.52 | CC88: 13170.52 | CD88: 0 | CF88: 2172259.43 | CH88: 2172259 | CI88: 0.01856455111 | CJ88: 2236204.43 | CL88: 2236204 | CM88: 0.02943709168
A89: 2514 | B89: Brookfield Infant School | D89: Brookfield Infant School | E89: 0 | F89: 1 | H89: 657254.17 | I89: 657254.1688 | J89: 0.001229631715 | L89: 72504.53 | M89: 72504.52755 | N89: 0.002453486813 | P89: 5147.58 | Q89: 5147.576345 | R89: 0.003655090488 | T89: 63486.77 | U89: 63486.77492 | V89: -0.00492055076 | X89: 0 | Y89: 0 | Z89: 0 | AB89: 142484.22 | AC89: 142484.2182 | AD89: 0.001831755828 | AF89: 0 | AG89: 0 | AH89: 0 | AJ89: 0 | AK89: 0 | AL89: 0 | AN89: 0 | AO89: 0 | AP89: 0 | AR89: 20459 | AS89: 20459 | AT89: 0 | AV89: 0 | AW89: 0 | AX89: 0 | AZ89: 0 | BA89: 0 | BB89: 0 | BD89: 0 | BE89: 0 | BF89: 0 | BH89: 961336.27 | BI89: 961336.2658 | BJ89: 0.004249413963 | BL89: 0 | BM89: 0 | BN89: 0 | BP89: 961336.27 | BQ89: 961336.2658 | BR89: 0.004249413963 | BV89: 0 | BX89: 134583.31 | BY89: 134583.3066 | BZ89: 0 | CB89: 5630.64 | CC89: 5630.64 | CD89: 0 | CF89: 977247.13 | CH89: 977247 | CI89: 0.01655077918 | CJ89: 1004718.44 | CL89: 1004718 | CM89: 0.02811091397
A90: 2519 | B90: Vigo Village School | D90: Vigo Village School | E90: 0 | F90: 1 | H90: 498606.61 | I90: 498606.6108 | J90: -0.0007913138834 | L90: 43468.49 | M90: 43468.49345 | N90: -0.003450909469 | P90: 0 | Q90: 0 | R90: 0 | T90: 42351.85 | U90: 42351.8461 | V90: 0.003895677568 | X90: 2915.78 | Y90: 2915.776578 | Z90: 0.003422101831 | AB90: 142484.22 | AC90: 142484.2182 | AD90: 0.001831755828 | AF90: 13381.56 | AG90: 13381.55509 | AH90: 0.004911378308 | AJ90: 0 | AK90: 0 | AL90: 0 | AN90: 0 | AO90: 0 | AP90: 0 | AR90: 20958 | AS90: 20958 | AT90: 0 | AV90: 0 | AW90: 0 | AX90: 0 | AZ90: 0 | BA90: 0 | BB90: 0 | BD90: 0 | BE90: 0 | BF90: 0 | BH90: 764166.5 | BI90: 764166.5002 | BJ90: -0.0001813098788 | BL90: 2553.59 | BM90: 2553.586299 | BN90: 0.003701334503 | BP90: 766720.09 | BQ90: 766720.0865 | BR90: 0.003520024591 | BV90: 0 | BX90: 92390.19 | BY90: 92390.1902 | BZ90: 0 | CB90: 4271.52 | CC90: 4271.52 | CD90: 0 | CF90: 778455.67 | CH90: 778456 | CI90: 0.01530621635 | CJ90: 797091.38 | CL90: 797091 | CM90: 0.02393933363
A91: 2520 | B91: Madginford Primary School | D91: Madginford Primary School | E91: 0 | F91: 1 | H91: 2368381.4 | I91: 2368381.401 | J91: -0.001258741133 | L91: 182334.84 | M91: 182334.8434 | N91: -0.003413390659 | P91: 25296.18 | Q91: 25296.17657 | R91: 0.003427458127 | T91: 168280.13 | U91: 168280.1271 | V91: 0.002881114895 | X91: 0 | Y91: 0 | Z91: 0 | AB91: 142484.22 | AC91: 142484.2182 | AD91: 0.001831755828 | AF91: 0 | AG91: 0 | AH91: 0 | AJ91: 0 | AK91: 0 | AL91: 0 | AN91: 0 | AO91: 0 | AP91: 0 | AR91: 64974 | AS91: 64974 | AT91: 0 | AV91: 0 | AW91: 0 | AX91: 0 | AZ91: 0 | BA91: 0 | BB91: 0 | BD91: 192047.17 | BE91: 192047.1685 | BF91: 0.001531802845 | BH91: 3143797.94 | BI91: 3143797.935 | BJ91: 0.004999999888 | BL91: 0 | BM91: 0 | BN91: 0 | BP91: 3143797.94 | BQ91: 3143797.935 | BR91: 0.004999999888 | BV91: 0 | BX91: 469845.01 | BY91: 469845.0138 | BZ91: 0 | CB91: 20289.72 | CC91: 20289.72 | CD91: 0 | CF91: 3202467.74 | CH91: 3202468 | CI91: 0.01866207887 | CJ91: 3235296.01 | CL91: 3235296 | CM91: 0.01025092918
A92: 2524 | B92: Palmarsh Primary School | D92: Palmarsh Primary School | E92: 0 | F92: 1 | H92: 744132.59 | I92: 744132.5934 | J92: -0.003377945744 | L92: 97714.71 | M92: 97714.70867 | N92: 0.001326627593 | P92: 2696.88 | Q92: 2696.879867 | R92: 0.0001326624592 | T92: 74164.95 | U92: 74164.94834 | V92: 0.001659598624 | X92: 0 | Y92: 0 | Z92: 0 | AB92: 142484.22 | AC92: 142484.2182 | AD92: 0.001831755828 | AF92: 0 | AG92: 0 | AH92: 0 | AJ92: 0 | AK92: 0 | AL92: 0 | AN92: 0 | AO92: 0 | AP92: 0 | AR92: 16093 | AS92: 16093 | AT92: 0 | AV92: 0 | AW92: 0 | AX92: 0 | AZ92: 0 | BA92: 0 | BB92: 0 | BD92: 0 | BE92: 0 | BF92: 0 | BH92: 1077286.35 | BI92: 1077286.348 | BJ92: 0.00157269882 | BL92: 0 | BM92: 0 | BN92: 0 | BP92: 1077286.35 | BQ92: 1077286.348 | BR92: 0.00157269882 | BV92: 0 | BX92: 161500.4 | BY92: 161500.3961 | BZ92: 0 | CB92: 6374.92 | CC92: 6374.92 | CD92: 0 | CF92: 1095603.54 | CH92: 1095604 | CI92: 0.01700308521 | CJ92: 1126781.06 | CL92: 1126781 | CM92: 0.02845693617
A93: 2525 | B93: Painters Ash Primary School | D93: Painters Ash Primary School | E93: 0 | F93: 1 | H93: 1514706.45 | I93: 1514706.446 | J93: 0.003580932738 | L93: 216758.44 | M93: 216758.4406 | N93: -0.0006046134513 | P93: 34930.22 | Q93: 34930.21713 | R93: 0.002867700481 | T93: 126419.94 | U93: 126419.9352 | V93: 0.004831958038 | X93: 4676.6 | Y93: 4676.602693 | Z93: -0.002693122407 | AB93: 142484.22 | AC93: 142484.2182 | AD93: 0.001831755828 | AF93: 0 | AG93: 0 | AH93: 0 | AJ93: 0 | AK93: 0 | AL93: 0 | AN93: 0 | AO93: 0 | AP93: 0 | AR93: 44226 | AS93: 44226 | AT93: 0 | AV93: 0 | AW93: 0 | AX93: 0 | AZ93: 0 | BA93: 0 | BB93: 0 | BD93: 0 | BE93: 0 | BF93: 0 | BH93: 2084201.86 | BI93: 2084201.86 | BJ93: -0.0001853883732 | BL93: 0 | BM93: 0 | BN93: 0 | BP93: 2084201.86 | BQ93: 2084201.86 | BR93: -0.0001853883732 | BV93: 0 | BX93: 323323.72 | BY93: 323323.7175 | BZ93: 0 | CB93: 12976.36 | CC93: 12976.36 | CD93: 0 | CF93: 2122094.7 | CH93: 2122095 | CI93: 0.01818098359 | CJ93: 2183422.64 | CL93: 2183423 | CM93: 0.02889971875
A94: 2530 | B94: Tunbury Primary School | D94: Tunbury Primary School | E94: 0 | F94: 1 | H94: 2051086.29 | I94: 2051086.285 | J94: 0.00469936803 | L94: 134118.95 | M94: 134118.9516 | N94: -0.001578948257 | P94: 11073.66 | Q94: 11073.66338 | R94: -0.003376986715 | T94: 125678.49 | U94: 125678.494 | V94: -0.003976302803 | X94: 1403.67 | Y94: 1403.672479 | Z94: -0.002478711676 | AB94: 142484.22 | AC94: 142484.2182 | AD94: 0.001831755828 | AF94: 0 | AG94: 0 | AH94: 0 | AJ94: 0 | AK94: 0 | AL94: 0 | AN94: 0 | AO94: 0 | AP94: 0 | AR94: 48594 | AS94: 48594 | AT94: 0 | AV94: 0 | AW94: 0 | AX94: 0 | AZ94: 0 | BA94: 0 | BB94: 0 | BD94: 200504.63 | BE94: 200504.6301 | BF94: -0.0001201744017 | BH94: 2714943.92 | BI94: 2714943.915 | BJ94: 0.004999999888 | BL94: 0 | BM94: 0 | BN94: 0 | BP94: 2714943.92 | BQ94: 2714943.915 | BR94: 0.004999999888 | BV94: 0 | BX94: 387998.91 | BY94: 387998.9117 | BZ94: 0 | CB94: 17571.48 | CC94: 17571.48 | CD94: 0 | CF94: 2765364.24 | CH94: 2765364 | CI94: 0.01857140574 | CJ94: 2793985.28 | CL94: 2793985 | CM94: 0.01034982647
A95: 2532 | B95: St Margaret's-at-Cliffe Primary School | D95: St Margaret's-at-Cliffe Primary School | E95: 0 | F95: 1 | H95: 623258.26 | I95: 623258.2635 | J95: -0.003489142284 | L95: 28988.21 | M95: 28988.20899 | N95: 0.001013576912 | P95: 2559.98 | Q95: 2559.982412 | R95: -0.002412142744 | T95: 34311.23 | U95: 34311.22892 | V95: 0.001075478809 | X95: 0 | Y95: 0 | Z95: 0 | AB95: 142484.22 | AC95: 142484.2182 | AD95: 0.001831755828 | AF95: 0 | AG95: 0 | AH95: 0 | AJ95: 0 | AK95: 0 | AL95: 0 | AN95: 0 | AO95: 0 | AP95: 0 | AR95: 19711 | AS95: 19711 | AT95: 0 | AV95: 0 | AW95: 0 | AX95: 0 | AZ95: 0 | BA95: 0 | BB95: 0 | BD95: 0 | BE95: 0 | BF95: 0 | BH95: 851312.9 | BI95: 851312.902 | BJ95: -0.001980473637 | BL95: 0 | BM95: 0 | BN95: 0 | BP95: 851312.9 | BQ95: 851312.902 | BR95: -0.001980473637 | BV95: 0 | BX95: 81705.56 | BY95: 81705.55995 | BZ95: 0 | CB95: 5339.4 | CC95: 5339.4 | CD95: 0 | CF95: 865038.26 | CH95: 865038 | CI95: 0.01612257724 | CJ95: 889143.45 | CL95: 889143 | CM95: 0.02786603913
A96: 2539 | B96: Stocks Green Primary School | D96: Stocks Green Primary School | E96: 0 | F96: 1 | H96: 800792.44 | I96: 800792.4355 | J96: 0.004486677703 | L96: 22150.86 | M96: 22150.86152 | N96: -0.001517373876 | P96: 5936.37 | Q96: 5936.371466 | R96: -0.001466174464 | T96: 40244.31 | U96: 40244.30623 | V96: 0.003767669536 | X96: 0 | Y96: 0 | Z96: 0 | AB96: 142484.22 | AC96: 142484.2182 | AD96: 0.001831755828 | AF96: 0 | AG96: 0 | AH96: 0 | AJ96: 0 | AK96: 0 | AL96: 0 | AN96: 0 | AO96: 0 | AP96: 0 | AR96: 22206 | AS96: 22206 | AT96: 0 | AV96: 0 | AW96: 0 | AX96: 0 | AZ96: 0 | BA96: 0 | BB96: 0 | BD96: 29397.67 | BE96: 29397.6671 | BF96: 0.002897445243 | BH96: 1063211.86 | BI96: 1063211.86 | BJ96: 0 | BL96: 0 | BM96: 0 | BN96: 0 | BP96: 1063211.86 | BQ96: 1063211.86 | BR96: 0 | BV96: 0 | BX96: 104031.84 | BY96: 104031.8388 | BZ96: 0 | CB96: 6860.32 | CC96: 6860.32 | CD96: 0 | CF96: 1081125.3 | CH96: 1081125 | CI96: 0.01684842003 | CJ96: 1093167.83 | CL96: 1093168 | CM96: 0.01113888464
A97: 2545 | B97: Sandgate Primary School | D97: Sandgate Primary School | E97: 0 | F97: 1 | H97: 1582698.26 | I97: 1582698.257 | J97: 0.003018480958 | L97: 104511.61 | M97: 104511.6116 | N97: -0.00156986533 | P97: 4753.37 | Q97: 4753.373268 | R97: -0.003268431657 | T97: 108949.22 | U97: 108949.2228 | V97: -0.002780975134 | X97: 0 | Y97: 0 | Z97: 0 | AB97: 142484.22 | AC97: 142484.2182 | AD97: 0.001831755828 | AF97: 0 | AG97: 0 | AH97: 0 | AJ97: 0 | AK97: 0 | AL97: 0 | AN97: 0 | AO97: 0 | AP97: 0 | AR97: 52416 | AS97: 52416 | AT97: 0 | AV97: 0 | AW97: 0 | AX97: 0 | AZ97: 0 | BA97: 0 | BB97: 0 | BD97: 114063.01 | BE97: 114063.0122 | BF97: -0.002230964528 | BH97: 2109875.7 | BI97: 2109875.695 | BJ97: 0.005000000354 | BL97: 0 | BM97: 0 | BN97: 0 | BP97: 2109875.7 | BQ97: 2109875.695 | BR97: 0.005000000354 | BV97: 0 | BX97: 292694.6 | BY97: 292694.6024 | BZ97: 0 | CB97: 13558.84 | CC97: 13558.84 | CD97: 0 | CF97: 2148118.21 | CH97: 2148118 | CI97: 0.01812548251 | CJ97: 2170528.57 | CL97: 2170529 | CM97: 0.01043255436
A98: 2552 | B98: Sandling Primary School | D98: Sandling Primary School | E98: 0 | F98: 1 | H98: 1563811.64 | I98: 1563811.643 | J98: -0.002936393488 | L98: 50792.52 | M98: 50792.51735 | N98: 0.002648037298 | P98: 20412.8 | Q98: 20412.80275 | R98: -0.002747054976 | T98: 130730.32 | U98: 130730.3152 | V98: 0.004792309366 | X98: 0 | Y98: 0 | Z98: 0 | AB98: 142484.22 | AC98: 142484.2182 | AD98: 0.001831755828 | AF98: 0 | AG98: 0 | AH98: 0 | AJ98: 0 | AK98: 0 | AL98: 0 | AN98: 0 | AO98: 0 | AP98: 0 | AR98: 33306 | AS98: 33306 | AT98: 0 | AV98: 0 | AW98: 0 | AX98: 0 | AZ98: 0 | BA98: 0 | BB98: 0 | BD98: 124676.17 | BE98: 124676.1736 | BF98: -0.003588654086 | BH98: 2066213.67 | BI98: 2066213.67 | BJ98: 0 | BL98: 0 | BM98: 0 | BN98: 0 | BP98: 2066213.67 | BQ98: 2066213.67 | BR98: 0 | BV98: 0 | BX98: 288950.68 | BY98: 288950.6752 | BZ98: 0 | CB98: 13397.04 | CC98: 13397.04 | CD98: 0 | CF98: 2103965.15 | CH98: 2103965 | CI98: 0.01827084998 | CJ98: 2126125.08 | CL98: 2126125 | CM98: 0.01053246058
A99: 2559 | B99: Capel-le-Ferne Primary School | D99: Capel-le-Ferne Primary School | E99: 0 | F99: 1 | H99: 676140.78 | I99: 676140.7828 | J99: -0.002815493732 | L99: 75519.43 | M99: 75519.4262 | N99: 0.003799493817 | P99: 685.16 | Q99: 685.1627568 | R99: -0.002756838442 | T99: 61465.57 | U99: 61465.56935 | V99: 0.0006516602152 | X99: 0 | Y99: 0 | Z99: 0 | AB99: 142484.22 | AC99: 142484.2182 | AD99: 0.001831755828 | AF99: 0 | AG99: 0 | AH99: 0 | AJ99: 0 | AK99: 0 | AL99: 0 | AN99: 0 | AO99: 0 | AP99: 0 | AR99: 20210 | AS99: 20210 | AT99: 0 | AV99: 0 | AW99: 0 | AX99: 0 | AZ99: 0 | BA99: 0 | BB99: 0 | BD99: 0 | BE99: 0 | BF99: 0 | BH99: 976505.16 | BI99: 976505.1593 | BJ99: 0.0007105775876 | BL99: 0 | BM99: 0 | BN99: 0 | BP99: 976505.16 | BQ99: 976505.1593 | BR99: 0.0007105775876 | BV99: 0 | BX99: 136631.94 | BY99: 136631.9429 | BZ99: 0 | CB99: 5792.44 | CC99: 5792.44 | CD99: 0 | CF99: 992724.38 | CH99: 992724 | CI99: 0.01660945726 | CJ99: 1020670.63 | CL99: 1020671 | CM99: 0.02815106646
A100: 2562 | B100: Lunsford Primary School | D100: Lunsford Primary School | E100: 0 | F100: 1 | H100: 766796.53 | I100: 766796.5302 | J100: -0.0002320962958 | L100: 93726.43 | M100: 93726.43179 | N100: -0.001785322282 | P100: 4778.95 | Q100: 4778.947724 | R100: 0.002275808158 | T100: 69036.02 | U100: 69036.01821 | V100: 0.001792474912 | X100: 5509.68 | Y100: 5509.681715 | Z100: -0.001715379023 | AB100: 142484.22 | AC100: 142484.2182 | AD100: 0.001831755828 | AF100: 0 | AG100: 0 | AH100: 0 | AJ100: 0 | AK100: 0 | AL100: 0 | AN100: 0 | AO100: 0 | AP100: 0 | AR100: 20334 | AS100: 20334 | AT100: 0 | AV100: 0 | AW100: 0 | AX100: 0 | AZ100: 0 | BA100: 0 | BB100: 0 | BD100: 0 | BE100: 0 | BF100: 0 | BH100: 1102665.83 | BI100: 1102665.828 | BJ100: 0.002167241415 | BL100: 0 | BM100: 0 | BN100: 0 | BP100: 1102665.83 | BQ100: 1102665.828 | BR100: 0.002167241415 | BV100: 0 | BX100: 160599.81 | BY100: 160599.8104 | BZ100: 0 | CB100: 6569.08 | CC100: 6569.08 | CD100: 0 | CF100: 1121405.79 | CH100: 1121406 | CI100: 0.01699514186 | CJ100: 1153234.46 | CL100: 1153234 | CM100: 0.02838283009
A101: 2574 | B101: Downs View Infant School | D101: Downs View Infant School | E101: 0 | F101: 1 | H101: 827233.7 | I101: 827233.6952 | J101: 0.00482350192 | L101: 96995.18 | M101: 96995.1794 | N101: 0.0006001676957 | P101: 15496.7 | Q101: 15496.69943 | R101: 0.0005702292492 | T101: 83071.23 | U101: 83071.23205 | V101: -0.002048884722 | X101: 0 | Y101: 0 | Z101: 0 | AB101: 142484.22 | AC101: 142484.2182 | AD101: 0.001831755828 | AF101: 0 | AG101: 0 | AH101: 0 | AJ101: 0 | AK101: 0 | AL101: 0 | AN101: 0 | AO101: 0 | AP101: 0 | AR101: 32214 | AS101: 32214 | AT101: 0 | AV101: 0 | AW101: 0 | AX101: 0 | AZ101: 0 | BA101: 0 | BB101: 0 | BD101: 0 | BE101: 0 | BF101: 0 | BH101: 1197495.02 | BI101: 1197495.024 | BJ101: -0.004223229829 | BL101: 0 | BM101: 0 | BN101: 0 | BP101: 1197495.02 | BQ101: 1197495.024 | BR101: -0.004223229829 | BV101: 0 | BX101: 176764.95 | BY101: 176764.95 | BZ101: 0 | CB101: 7086.84 | CC101: 7086.84 | CD101: 0 | CF101: 1217893.97 | CH101: 1217894 | CI101: 0.01703468103 | CJ101: 1252277.81 | CL101: 1252278 | CM101: 0.02823221138
A102: 2578 | B102: Kingswood Primary School | D102: Kingswood Primary School | E102: 0 | F102: 1 | H102: 487274.64 | I102: 487274.6424 | J102: -0.002364238549 | L102: 27600.03 | M102: 27600.02855 | N102: 0.001445534035 | P102: 3320.97 | Q102: 3320.97477 | R102: -0.004770378256 | T102: 54231.07 | U102: 54231.06676 | V102: 0.003241006809 | X102: 0 | Y102: 0 | Z102: 0 | AB102: 142484.22 | AC102: 142484.2182 | AD102: 0.001831755828 | AF102: 8483 | AG102: 8483.003799 | AH102: -0.003798876809 | AJ102: 0 | AK102: 0 | AL102: 0 | AN102: 0 | AO102: 0 | AP102: 0 | AR102: 16592 | AS102: 16592 | AT102: 0 | AV102: 0 | AW102: 0 | AX102: 0 | AZ102: 0 | BA102: 0 | BB102: 0 | BD102: 0 | BE102: 0 | BF102: 0 | BH102: 739985.93 | BI102: 739985.9344 | BJ102: -0.004415196832 | BL102: 0 | BM102: 0 | BN102: 0 | BP102: 739985.93 | BQ102: 739985.9344 | BR102: -0.004415196832 | BV102: 0 | BX102: 92501.05 | BY102: 92501.04762 | BZ102: 0 | CB102: 4174.44 | CC102: 4174.44 | CD102: 0 | CF102: 751374.08 | CH102: 751374 | CI102: 0.01538967845 | CJ102: 772056.05 | CL102: 772056 | CM102: 0.02752553029
A103: 2586 | B103: Senacre Wood Primary School | D103: Senacre Wood Primary School | E103: 0 | F103: 1 | H103: 793237.79 | I103: 793237.7899 | J103: 0.0001047280384 | L103: 179160.75 | M103: 179160.7484 | N103: 0.001645280252 | P103: 15612.01 | Q103: 15612.01395 | R103: -0.003952840221 | T103: 64997.73 | U103: 64997.73246 | V103: -0.002462491429 | X103: 378.67 | Y103: 378.6722828 | Z103: -0.002282843917 | AB103: 142484.22 | AC103: 142484.2182 | AD103: 0.001831755828 | AF103: 0 | AG103: 0 | AH103: 0 | AJ103: 0 | AK103: 0 | AL103: 0 | AN103: 0 | AO103: 0 | AP103: 0 | AR103: 19212 | AS103: 19212 | AT103: 0 | AV103: 0 | AW103: 0 | AX103: 0 | AZ103: 0 | BA103: 0 | BB103: 0 | BD103: 0 | BE103: 0 | BF103: 0 | BH103: 1215083.18 | BI103: 1215083.175 | BJ103: 0.004883588525 | BL103: 0 | BM103: 0 | BN103: 0 | BP103: 1215083.18 | BQ103: 1215083.175 | BR103: 0.004883588525 | BV103: 0 | BX103: 204283.44 | BY103: 204283.4423 | BZ103: 0 | CB103: 6795.6 | CC103: 6795.6 | CD103: 0 | CF103: 1236093.92 | CH103: 1236094 | CI103: 0.01729161041 | CJ103: 1271420.06 | CL103: 1271420 | CM103: 0.02857884779
A104: 2603 | B104: Bromstone Primary School, Broadstairs | D104: Bromstone Primary School, Broadstairs | E104: 0 | F104: 1 | H104: 1556257 | I104: 1556256.997 | J104: 0.002681656741 | L104: 363596.41 | M104: 363596.4143 | N104: -0.004258061294 | P104: 14300.73 | Q104: 14300.7282 | R104: 0.001804068321 | T104: 206044.81 | U104: 206044.8119 | V104: -0.00187133174 | X104: 0 | Y104: 0 | Z104: 0 | AB104: 142484.22 | AC104: 142484.2182 | AD104: 0.001831755828 | AF104: 0 | AG104: 0 | AH104: 0 | AJ104: 0 | AK104: 0 | AL104: 0 | AN104: 0 | AO104: 0 | AP104: 0 | AR104: 53235 | AS104: 53235 | AT104: 0 | AV104: 0 | AW104: 0 | AX104: 0 | AZ104: 0 | BA104: 0 | BB104: 0 | BD104: 0 | BE104: 0 | BF104: 0 | BH104: 2335918.17 | BI104: 2335918.17 | BJ104: 0.0001880875789 | BL104: 0 | BM104: 0 | BN104: 0 | BP104: 2335918.17 | BQ104: 2335918.17 | BR104: 0.0001880875789 | BV104: 0 | BX104: 479500.39 | BY104: 479500.3894 | BZ104: 0 | CB104: 13332.32 | CC104: 13332.32 | CD104: 0 | CF104: 2378665.16 | CH104: 2378665 | CI104: 0.0182998663 | CJ104: 2447469.45 | CL104: 2447469 | CM104: 0.02892558867
A105: 2607 | B105: Parkside Community Primary School | D105: Parkside Community Primary School | E105: 0 | F105: 1 | H105: 608148.97 | I105: 608148.9723 | J105: -0.002253041952 | L105: 229437.24 | M105: 229437.2405 | N105: -0.0005388834688 | P105: 20306.54 | Q105: 20306.53563 | R105: 0.004369033013 | T105: 113675.87 | U105: 113675.8708 | V105: -0.0007620565448 | X105: 41975.82 | Y105: 41975.82255 | Z105: -0.002553248429 | AB105: 142484.22 | AC105: 142484.2182 | AD105: 0.001831755828 | AF105: 0 | AG105: 0 | AH105: 0 | AJ105: 0 | AK105: 0 | AL105: 0 | AN105: 0 | AO105: 0 | AP105: 0 | AR105: 19461 | AS105: 19461 | AT105: 0 | AV105: 0 | AW105: 0 | AX105: 0 | AZ105: 0 | BA105: 0 | BB105: 0 | BD105: 0 | BE105: 0 | BF105: 0 | BH105: 1175489.66 | BI105: 1175489.66 | BJ105: 9.355833754e-05 | BL105: 0 | BM105: 0 | BN105: 0 | BP105: 1175489.66 | BQ105: 1175489.66 | BR105: 9.355833754e-05 | BV105: 0 | BX105: 297867.87 | BY105: 297867.8683 | BZ105: 0 | CB105: 5209.96 | CC105: 5209.96 | CD105: 0 | CF105: 1195703.56 | CH105: 1195704 | CI105: 0.01719615304 | CJ105: 1229802.39 | CL105: 1229802 | CM105: 0.02851779583
A106: 2615 | B106: High Firs Primary School | D106: High Firs Primary School | E106: 0 | F106: 1 | H106: 781905.82 | I106: 781905.8215 | J106: -0.001468196744 | L106: 82690.63 | M106: 82690.63281 | N106: -0.002809841943 | P106: 11567.25 | Q106: 11567.25489 | R106: -0.004889997821 | T106: 78987.17 | U106: 78987.16929 | V106: 0.0007149243174 | X106: 549.07 | Y106: 549.0748101 | Z106: -0.00481012369 | AB106: 142484.22 | AC106: 142484.2182 | AD106: 0.001831755828 | AF106: 0 | AG106: 0 | AH106: 0 | AJ106: 41511.36 | AK106: 41511.36168 | AL106: -0.001680109941 | AN106: 0 | AO106: 0 | AP106: 0 | AR106: 21831 | AS106: 21831 | AT106: 0 | AV106: 0 | AW106: 0 | AX106: 0 | AZ106: 0 | BA106: 0 | BB106: 0 | BD106: 0 | BE106: 0 | BF106: 0 | BH106: 1161526.53 | BI106: 1161526.533 | BJ106: -0.003111589933 | BL106: 3199.32 | BM106: 3199.315285 | BN106: 0.004714937466 | BP106: 1164725.85 | BQ106: 1164725.848 | BR106: 0.001603347715 | BV106: 0 | BX106: 173155.18 | BY106: 173155.1773 | BZ106: 0 | CB106: 6951.72 | CC106: 6951.724056 | CD106: 0 | CF106: 1184567.19 | CH106: 1184567 | CI106: 0.01703520329 | CJ106: 1214898.5 | CL106: 1214899 | CM106: 0.02560539432
A107: 2627 | B107: Sandwich Junior School | D107: Sandwich Junior School | E107: 0 | F107: 1 | H107: 887670.86 | I107: 887670.8601 | J107: -0.00012089964 | L107: 102521.25 | M107: 102521.2465 | N107: 0.003519819904 | P107: 6981.77 | Q107: 6981.770215 | R107: -0.0002149347392 | T107: 64393.97 | U107: 64393.96962 | V107: 0.0003845027095 | X107: 9372.14 | Y107: 9372.139 | Z107: 0.0009996130375 | AB107: 142484.22 | AC107: 142484.2182 | AD107: 0.001831755828 | AF107: 0 | AG107: 0 | AH107: 0 | AJ107: 0 | AK107: 0 | AL107: 0 | AN107: 0 | AO107: 0 | AP107: 0 | AR107: 24202 | AS107: 24202 | AT107: 0 | AV107: 0 | AW107: 0 | AX107: 0 | AZ107: 0 | BA107: 0 | BB107: 0 | BD107: 0 | BE107: 0 | BF107: 0 | BH107: 1237626.2 | BI107: 1237626.204 | BJ107: -0.003600142896 | BL107: 0 | BM107: 0 | BN107: 0 | BP107: 1237626.2 | BQ107: 1237626.204 | BR107: -0.003600142896 | BV107: 0 | BX107: 167816.32 | BY107: 167816.3224 | BZ107: 0 | CB107: 7604.6 | CC107: 7604.6 | CD107: 0 | CF107: 1258988.01 | CH107: 1258988 | CI107: 0.01726030552 | CJ107: 1294854.86 | CL107: 1294855 | CM107: 0.02848863509
A108: 2632 | B108: Sevenoaks Primary School | D108: Sevenoaks Primary School | E108: 0 | F108: 1 | H108: 2092636.84 | I108: 2092636.836 | J108: 0.003800091799 | L108: 129140.49 | M108: 129140.4877 | N108: 0.002287288939 | P108: 43151.02 | Q108: 43151.022 | R108: -0.001997781357 | T108: 134717.04 | U108: 134717.0435 | V108: -0.00353156653 | X108: 5452.88 | Y108: 5452.880873 | Z108: -0.0008729524234 | AB108: 142484.22 | AC108: 142484.2182 | AD108: 0.001831755828 | AF108: 0 | AG108: 0 | AH108: 0 | AJ108: 96298.62 | AK108: 96298.61806 | AL108: 0.001935336419 | AN108: 0 | AO108: 0 | AP108: 0 | AR108: 120120 | AS108: 120120 | AT108: 0 | AV108: 0 | AW108: 0 | AX108: 0 | AZ108: 0 | BA108: 0 | BB108: 0 | BD108: 76483.26 | BE108: 76483.26345 | BF108: -0.003452172226 | BH108: 2840484.37 | BI108: 2840484.37 | BJ108: 0 | BL108: 4238.32 | BM108: 4238.320416 | BN108: -0.0004158165029 | BP108: 2844722.69 | BQ108: 2844722.69 | BR108: -0.0004158155061 | BV108: 0 | BX108: 352088.89 | BY108: 352088.8923 | BZ108: 0 | CB108: 18605.1 | CC108: 18605.09723 | CD108: 0 | CF108: 2896198.19 | CH108: 2896198 | CI108: 0.01809508525 | CJ108: 2922476.57 | CL108: 2922477 | CM108: 0.009073405298
A109: 2643 | B109: Swalecliffe Community Primary School | D109: Swalecliffe Community Primary School | E109: 0 | F109: 1 | H109: 1892438.73 | I109: 1892438.727 | J109: 0.002678422257 | L109: 153047.98 | M109: 153047.9755 | N109: 0.004467828025 | P109: 3860.78 | Q109: 3860.780218 | R109: -0.0002181923978 | T109: 154523.46 | U109: 154523.4602 | V109: -0.0001592526387 | X109: 0 | Y109: 0 | Z109: 0 | AB109: 142484.22 | AC109: 142484.2182 | AD109: 0.001831755828 | AF109: 0 | AG109: 0 | AH109: 0 | AJ109: 0 | AK109: 0 | AL109: 0 | AN109: 0 | AO109: 0 | AP109: 0 | AR109: 67704 | AS109: 67704 | AT109: 0 | AV109: 0 | AW109: 0 | AX109: 0 | AZ109: 0 | BA109: 0 | BB109: 0 | BD109: 113757.74 | BE109: 113757.7436 | BF109: -0.003600560871 | BH109: 2527816.91 | BI109: 2527816.905 | BJ109: 0.005000000354 | BL109: 3320.1 | BM109: 3320.098801 | BN109: 0.001199319865 | BP109: 2531137 | BQ109: 2531137.004 | BR109: -0.00380067993 | BV109: 0 | BX109: 380568.68 | BY109: 380568.6775 | BZ109: 0 | CB109: 16212.36 | CC109: 16212.36 | CD109: 0 | CF109: 2577498.99 | CH109: 2577499 | CI109: 0.01831666406 | CJ109: 2601114.53 | CL109: 2601115 | CM109: 0.009162191757
A110: 2648 | B110: Aylesham Primary School | D110: Aylesham Primary School | E110: 0 | F110: 1 | H110: 1412718.73 | I110: 1412718.731 | J110: -0.0005753892474 | L110: 305993.47 | M110: 305993.4731 | N110: -0.003139031993 | P110: 17053.17 | Q110: 17053.17438 | R110: -0.00437555902 | T110: 140471.58 | U110: 140471.5759 | V110: 0.004087920563 | X110: 9996.95 | Y110: 9996.948267 | Z110: 0.001732920538 | AB110: 142484.22 | AC110: 142484.2182 | AD110: 0.001831755828 | AF110: 0 | AG110: 0 | AH110: 0 | AJ110: 0 | AK110: 0 | AL110: 0 | AN110: 0 | AO110: 0 | AP110: 0 | AR110: 36112 | AS110: 36112 | AT110: 0 | AV110: 0 | AW110: 0 | AX110: 0 | AZ110: 0 | BA110: 0 | BB110: 0 | BD110: 0 | BE110: 0 | BF110: 0 | BH110: 2064830.12 | BI110: 2064830.12 | BJ110: -0.0004373830743 | BL110: 0 | BM110: 0 | BN110: 0 | BP110: 2064830.12 | BQ110: 2064830.12 | BR110: -0.0004373830743 | BV110: 0 | BX110: 383576.87 | BY110: 383576.8662 | BZ110: 0 | CB110: 12102.64 | CC110: 12102.64 | CD110: 0 | CF110: 2102497.8 | CH110: 2102498 | CI110: 0.01824250779 | CJ110: 2163478.97 | CL110: 2163479 | CM110: 0.02900415401
A111: 2651 | B111: Broadwater Down Primary School | D111: Broadwater Down Primary School | E111: 0 | F111: 1 | H111: 479720 | I111: 479719.9967 | J111: 0.003253811679 | L111: 84871.93 | M111: 84871.93433 | N111: -0.004329612319 | P111: 18314.71 | Q111: 18314.71489 | R111: -0.004887182826 | T111: 68732.2 | U111: 68732.19518 | V111: 0.004819223643 | X111: 21186.71 | Y111: 21186.71423 | Z111: -0.004225117249 | AB111: 142484.22 | AC111: 142484.2182 | AD111: 0.001831755828 | AF111: 0 | AG111: 0 | AH111: 0 | AJ111: 0 | AK111: 0 | AL111: 0 | AN111: 0 | AO111: 0 | AP111: 0 | AR111: 19336 | AS111: 19336 | AT111: 0 | AV111: 0 | AW111: 0 | AX111: 0 | AZ111: 0 | BA111: 0 | BB111: 0 | BD111: 0 | BE111: 0 | BF111: 0 | BH111: 834645.77 | BI111: 834645.7735 | BJ111: -0.003537121345 | BL111: 0 | BM111: 0 | BN111: 0 | BP111: 834645.77 | BQ111: 834645.7735 | BR111: -0.003537121345 | BV111: 0 | BX111: 150041.21 | BY111: 150041.2139 | BZ111: 0 | CB111: 4109.72 | CC111: 4109.72 | CD111: 0 | CF111: 848045.29 | CH111: 848045 | CI111: 0.01605413564 | CJ111: 871648.62 | CL111: 871649 | CM111: 0.02783262908
A112: 2653 | B112: West Borough Primary School | D112: West Borough Primary School | E112: 0 | F112: 1 | H112: 1571366.29 | I112: 1571366.289 | J112: 0.001445556292 | L112: 192096.83 | M112: 192096.8262 | N112: 0.003810864786 | P112: 48135.75 | Q112: 48135.75282 | R112: -0.002817066372 | T112: 102416.7 | U112: 102416.7004 | V112: -0.0003884044563 | X112: 0 | Y112: 0 | Z112: 0 | AB112: 142484.22 | AC112: 142484.2182 | AD112: 0.001831755828 | AF112: 0 | AG112: 0 | AH112: 0 | AJ112: 0 | AK112: 0 | AL112: 0 | AN112: 0 | AO112: 0 | AP112: 0 | AR112: 73164 | AS112: 73164 | AT112: 0 | AV112: 0 | AW112: 0 | AX112: 0 | AZ112: 0 | BA112: 0 | BB112: 0 | BD112: 0 | BE112: 0 | BF112: 0 | BH112: 2129663.79 | BI112: 2129663.786 | BJ112: 0.003882706165 | BL112: 0 | BM112: 0 | BN112: 0 | BP112: 2129663.79 | BQ112: 2129663.786 | BR112: 0.003882706165 | BV112: 0 | BX112: 280601.64 | BY112: 280601.6407 | BZ112: 0 | CB112: 13461.76 | CC112: 13461.76 | CD112: 0 | CF112: 2167887.1 | CH112: 2167887 | CI112: 0.01794805083 | CJ112: 2229724.05 | CL112: 2229724 | CM112: 0.02852406382
A113: 2662 | B113: Long Mead Community Primary School | D113: Long Mead Community Primary School | E113: 0 | F113: 1 | H113: 396618.89 | I113: 396618.8949 | J113: -0.004947635985 | L113: 115833.91 | M113: 115833.9082 | N113: 0.00183571977 | P113: 8632.35 | Q113: 8632.35176 | R113: -0.001760313342 | T113: 65153.91 | U113: 65153.90749 | V113: 0.002510678765 | X113: 14107.36 | Y113: 14107.36308 | Z113: -0.003075757335 | AB113: 142484.22 | AC113: 142484.2182 | AD113: 0.001831755828 | AF113: 0 | AG113: 0 | AH113: 0 | AJ113: 0 | AK113: 0 | AL113: 0 | AN113: 0 | AO113: 0 | AP113: 0 | AR113: 17091 | AS113: 17091 | AT113: 0 | AV113: 0 | AW113: 0 | AX113: 0 | AZ113: 0 | BA113: 0 | BB113: 0 | BD113: 0 | BE113: 0 | BF113: 0 | BH113: 759921.64 | BI113: 759921.6436 | BJ113: -0.003605552251 | BL113: 0 | BM113: 0 | BN113: 0 | BP113: 759921.64 | BQ113: 759921.6436 | BR113: -0.003605552251 | BV113: 0 | BX113: 156318.82 | BY113: 156318.8213 | BZ113: 0 | CB113: 3397.8 | CC113: 3397.8 | CD113: 0 | CF113: 771871.58 | CH113: 771872 | CI113: 0.0157252218 | CJ113: 793242.26 | CL113: 793242 | CM113: 0.02768683361
A114: 2674 | B114: King's Farm Primary School | D114: King's Farm Primary School | E114: 0 | F114: 1 | H114: 1552479.67 | I114: 1552479.675 | J114: -0.004509318154 | L114: 465628.03 | M114: 465628.0271 | N114: 0.002889944124 | P114: 35401.28 | Q114: 35401.2804 | R114: -0.0003984924188 | T114: 164902.55 | U114: 164902.5522 | V114: -0.002201923489 | X114: 9788.68 | Y114: 9788.678512 | Z114: 0.001488484708 | AB114: 142484.22 | AC114: 142484.2182 | AD114: 0.001831755828 | AF114: 0 | AG114: 0 | AH114: 0 | AJ114: 0 | AK114: 0 | AL114: 0 | AN114: 0 | AO114: 0 | AP114: 0 | AR114: 55146 | AS114: 55146 | AT114: 0 | AV114: 0 | AW114: 0 | AX114: 0 | AZ114: 0 | BA114: 0 | BB114: 0 | BD114: 0 | BE114: 0 | BF114: 0 | BH114: 2425830.43 | BI114: 2425830.431 | BJ114: -0.0008995495737 | BL114: 76608.9 | BM114: 76608.90201 | BN114: -0.002010007767 | BP114: 2502439.33 | BQ114: 2502439.333 | BR114: -0.002909557428 | BV114: 0 | BX114: 531113.82 | BY114: 531113.8174 | BZ114: 0 | CB114: 13299.96 | CC114: 13299.96 | CD114: 0 | CF114: 2548478.52 | CH114: 2548479 | CI114: 0.01839772357 | CJ114: 2571929.44 | CL114: 2571929 | CM114: 0.009201929628
A115: 2680 | B115: Kings Hill School Primary and Nursery | D115: Kings Hill School Primary and Nursery | E115: 0 | F115: 1 | H115: 1578920.93 | I115: 1578920.934 | J115: -0.004172493936 | L115: 82825.74 | M115: 82825.74472 | N115: -0.004719740944 | P115: 8831.22 | Q115: 8831.224243 | R115: -0.004243006388 | T115: 68307.35 | U115: 68307.34642 | V115: 0.003584425329 | X115: 0 | Y115: 0 | Z115: 0 | AB115: 142484.22 | AC115: 142484.2182 | AD115: 0.001831755828 | AF115: 0 | AG115: 0 | AH115: 0 | AJ115: 0 | AK115: 0 | AL115: 0 | AN115: 0 | AO115: 0 | AP115: 0 | AR115: 61152 | AS115: 61152 | AT115: 0 | AV115: 0 | AW115: 0 | AX115: 0 | AZ115: 0 | BA115: 0 | BB115: 0 | BD115: 171179.82 | BE115: 171179.8223 | BF115: -0.002280939778 | BH115: 2113701.29 | BI115: 2113701.29 | BJ115: 0 | BL115: 0 | BM115: 0 | BN115: 0 | BP115: 2113701.29 | BQ115: 2113701.29 | BR115: 0 | BV115: 0 | BX115: 263274.15 | BY115: 263274.1457 | BZ115: 0 | CB115: 13526.48 | CC115: 13526.48 | CD115: 0 | CF115: 2151845.6 | CH115: 2151846 | CI115: 0.01804621598 | CJ115: 2174205.87 | CL115: 2174206 | CM115: 0.01039120558
A116: 2682 | B116: New Ash Green Primary School | D116: New Ash Green Primary School | E116: 0 | F116: 1 | H116: 1458046.6 | I116: 1458046.604 | J116: -0.004283690359 | L116: 98992.33 | M116: 98992.32956 | N116: 0.0004361847969 | P116: 1999.23 | Q116: 1999.230937 | R116: -0.0009369175159 | T116: 161779.02 | U116: 161779.0202 | V116: -0.000247492746 | X116: 0 | Y116: 0 | Z116: 0 | AB116: 142484.22 | AC116: 142484.2182 | AD116: 0.001831755828 | AF116: 0 | AG116: 0 | AH116: 0 | AJ116: 70432.79 | AK116: 70432.79304 | AL116: -0.003040966054 | AN116: 0 | AO116: 0 | AP116: 0 | AR116: 39312 | AS116: 39312 | AT116: 0 | AV116: 0 | AW116: 0 | AX116: 0 | AZ116: 0 | BA116: 0 | BB116: 0 | BD116: 0 | BE116: 0 | BF116: 0 | BH116: 1973046.2 | BI116: 1973046.196 | BJ116: 0.003758873791 | BL116: 0 | BM116: 0 | BN116: 0 | BP116: 1973046.2 | BQ116: 1973046.196 | BR116: 0.003758873791 | BV116: 0 | BX116: 293694.93 | BY116: 293694.9275 | BZ116: 0 | CB116: 12963.12 | CC116: 12963.11829 | CD116: 0 | CF116: 2008704.33 | CH116: 2008704 | CI116: 0.01807262994 | CJ116: 2066758.51 | CL116: 2066759 | CM116: 0.02890130674
A117: 2689 | B117: The Craylands School | D117: The Craylands School | E117: 0 | F117: 1 | H117: 1597807.55 | I117: 1597807.548 | J117: 0.00178238051 | L117: 241672.42 | M117: 241672.4213 | N117: -0.001282853395 | P117: 13597.09 | Q117: 13597.09393 | R117: -0.003926875683 | T117: 194702.96 | U117: 194702.9576 | V117: 0.002354480239 | X117: 0 | Y117: 0 | Z117: 0 | AB117: 142484.22 | AC117: 142484.2182 | AD117: 0.001831755828 | AF117: 0 | AG117: 0 | AH117: 0 | AJ117: 82791.99 | AK117: 82791.98824 | AL117: 0.001756685946 | AN117: 0 | AO117: 0 | AP117: 0 | AR117: 81900 | AS117: 81900 | AT117: 0 | AV117: 101160.43 | AW117: 101160.43 | AX117: 0 | AZ117: 0 | BA117: 0 | BB117: 0 | BD117: 0 | BE117: 0 | BF117: 0 | BH117: 2456116.66 | BI117: 2456116.657 | BJ117: 0.00251557352 | BL117: 0 | BM117: 0 | BN117: 0 | BP117: 2456116.66 | BQ117: 2456116.657 | BR117: 0.00251557352 | BV117: 0 | BX117: 422262.88 | BY117: 422262.8799 | BZ117: 0 | CB117: 14205.7 | CC117: 14205.69698 | CD117: 0 | CF117: 2498561.23 | CH117: 2498561 | CI117: 0.01728117123 | CJ117: 2567067.88 | CL117: 2567068 | CM117: 0.02741843953
A118: 3010 | B118: St Pauls' Church of England Voluntary Controlled Primary School | D118: St Pauls' Church of England Voluntary Controlled Primary School | E118: 0 | F118: 1 | H118: 419282.83 | I118: 419282.8318 | J118: -0.001801786653 | L118: 26480.93 | M118: 26480.92767 | N118: 0.002326027516 | P118: 1359.61 | Q118: 1359.607884 | R118: 0.002116039021 | T118: 21950.01 | U118: 21950.00852 | V118: 0.001482150248 | X118: 0 | Y118: 0 | Z118: 0 | AB118: 142484.22 | AC118: 142484.2182 | AD118: 0.001831755828 | AF118: 0 | AG118: 0 | AH118: 0 | AJ118: 25118.57 | AK118: 25118.57424 | AL118: -0.004242571245 | AN118: 52954.95 | AO118: 52954.95205 | AP118: -0.002053954231 | AR118: 11477 | AS118: 11477 | AT118: 0 | AV118: 0 | AW118: 0 | AX118: 0 | AZ118: 0 | BA118: 0 | BB118: 0 | BD118: 0 | BE118: 0 | BF118: 0 | BH118: 701108.12 | BI118: 701108.1203 | BJ118: -0.0003423396265 | BL118: 0 | BM118: 0 | BN118: 0 | BP118: 701108.12 | BQ118: 701108.1203 | BR118: -0.0003423396265 | BV118: 0 | BX118: 59910.98 | BY118: 59910.98159 | BZ118: 0 | CB118: 3727.74 | CC118: 3727.736088 | CD118: 0 | CF118: 710785.06 | CH118: 710785 | CI118: 0.01380234999 | CJ118: 728823 | CL118: 728823 | CM118: 0.02537748894
A119: 3015 | B119: Fawkham Church of England Voluntary Controlled Primary School | D119: Fawkham Church of England Voluntary Controlled Primary School | E119: 0 | F119: 1 | H119: 381509.6 | I119: 381509.6037 | J119: -0.003711535654 | L119: 15402.34 | M119: 15402.34423 | N119: -0.004225633213 | P119: 0 | Q119: 0 | R119: 0 | T119: 31552.27 | U119: 31552.27236 | V119: -0.002361129275 | X119: 889.88 | Y119: 889.8798647 | Z119: 0.0001353167921 | AB119: 142484.22 | AC119: 142484.2182 | AD119: 0.001831755828 | AF119: 1284.03 | AG119: 1284.02787 | AH119: 0.002129698546 | AJ119: 21664.02 | AK119: 21664.02469 | AL119: -0.004686417724 | AN119: 0 | AO119: 0 | AP119: 0 | AR119: 24451 | AS119: 24451 | AT119: 0 | AV119: 0 | AW119: 0 | AX119: 0 | AZ119: 0 | BA119: 0 | BB119: 0 | BD119: 0 | BE119: 0 | BF119: 0 | BH119: 619237.37 | BI119: 619237.3709 | BJ119: -0.0008879448287 | BL119: 0 | BM119: 0 | BN119: 0 | BP119: 619237.37 | BQ119: 619237.3709 | BR119: -0.0008879448287 | BV119: 0 | BX119: 61216.77 | BY119: 61216.77407 | BZ119: 0 | CB119: 3391.9 | CC119: 3391.904008 | CD119: 0 | CF119: 628089.36 | CH119: 628089 | CI119: 0.0142949853 | CJ119: 644884.96 | CL119: 644885 | CM119: 0.02674078096
A120: 3022 | B120: Benenden Church of England Primary School | D120: Benenden Church of England Primary School | E120: 0 | F120: 1 | H120: 812124.4 | I120: 812124.4039 | J120: -0.003940397524 | L120: 42318.74 | M120: 42318.73938 | N120: 0.0006152851056 | P120: 0 | Q120: 0 | R120: 0 | T120: 45631.63 | U120: 45631.63309 | V120: -0.003089060439 | X120: 0 | Y120: 0 | Z120: 0 | AB120: 142484.22 | AC120: 142484.2182 | AD120: 0.001831755828 | AF120: 0 | AG120: 0 | AH120: 0 | AJ120: 0 | AK120: 0 | AL120: 0 | AN120: 0 | AO120: 0 | AP120: 0 | AR120: 55146 | AS120: 55146 | AT120: 0 | AV120: 0 | AW120: 0 | AX120: 0 | AZ120: 0 | BA120: 0 | BB120: 0 | BD120: 13178.08 | BE120: 13178.08042 | BF120: -0.0004175829108 | BH120: 1110883.08 | BI120: 1110883.075 | BJ120: 0.005000000121 | BL120: 0 | BM120: 0 | BN120: 0 | BP120: 1110883.08 | BQ120: 1110883.075 | BR120: 0.005000000121 | BV120: 0 | BX120: 114083.61 | BY120: 114083.61 | BZ120: 0 | CB120: 6957.4 | CC120: 6957.4 | CD120: 0 | CF120: 1129091.14 | CH120: 1129091 | CI120: 0.01639062239 | CJ120: 1146253.01 | CL120: 1146253 | CM120: 0.01519972072
A121: 3023 | B121: Bidborough Church of England Voluntary Controlled Primary School | D121: Bidborough Church of England Voluntary Controlled Primary School | E121: 0 | F121: 1 | H121: 751687.24 | I121: 751687.239 | J121: 0.001004004036 | L121: 21431.96 | M121: 21431.9639 | N121: -0.003902720237 | P121: 8503.69 | Q121: 8503.690935 | R121: -0.0009350452838 | T121: 58994.36 | U121: 58994.35586 | V121: 0.004138123324 | X121: 0 | Y121: 0 | Z121: 0 | AB121: 142484.22 | AC121: 142484.2182 | AD121: 0.001831755828 | AF121: 0 | AG121: 0 | AH121: 0 | AJ121: 0 | AK121: 0 | AL121: 0 | AN121: 0 | AO121: 0 | AP121: 0 | AR121: 17216 | AS121: 17216 | AT121: 0 | AV121: 0 | AW121: 0 | AX121: 0 | AZ121: 0 | BA121: 0 | BB121: 0 | BD121: 0 | BE121: 0 | BF121: 0 | BH121: 1000317.47 | BI121: 1000317.468 | BJ121: 0.002136117779 | BL121: 2464.16 | BM121: 2464.161456 | BN121: -0.001456435337 | BP121: 1002781.63 | BQ121: 1002781.629 | BR121: 0.0006796824746 | BV121: 0 | BX121: 108918.71 | BY121: 108918.7142 | BZ121: 0 | CB121: 6439.64 | CC121: 6439.64 | CD121: 0 | CF121: 1019586.26 | CH121: 1019586 | CI121: 0.01675801609 | CJ121: 1045844.8 | CL121: 1045845 | CM121: 0.02575411324
A122: 3027 | B122: Cranbrook Church of England Primary School | D122: Cranbrook Church of England Primary School | E122: 0 | F122: 1 | H122: 774351.18 | I122: 774351.1759 | J122: 0.004149853485 | L122: 137946.94 | M122: 137946.9445 | N122: -0.004454317066 | P122: 7412.38 | Q122: 7412.378453 | R122: 0.001546761843 | T122: 76798.4 | U122: 76798.40171 | V122: -0.001713482488 | X122: 8236.12 | Y122: 8236.122152 | Z122: -0.002151855244 | AB122: 142484.22 | AC122: 142484.2182 | AD122: 0.001831755828 | AF122: 0 | AG122: 0 | AH122: 0 | AJ122: 0 | AK122: 0 | AL122: 0 | AN122: 0 | AO122: 0 | AP122: 0 | AR122: 34295 | AS122: 34295 | AT122: 0 | AV122: 0 | AW122: 0 | AX122: 0 | AZ122: 0 | BA122: 0 | BB122: 0 | BD122: 0 | BE122: 0 | BF122: 0 | BH122: 1181524.24 | BI122: 1181524.241 | BJ122: -0.0007912835572 | BL122: 0 | BM122: 0 | BN122: 0 | BP122: 1181524.24 | BQ122: 1181524.241 | BR122: -0.0007912835572 | BV122: 0 | BX122: 192128.69 | BY122: 192128.6937 | BZ122: 0 | CB122: 6633.8 | CC122: 6633.8 | CD122: 0 | CF122: 1201562.15 | CH122: 1201562 | CI122: 0.01695937207 | CJ122: 1235389.92 | CL122: 1235390 | CM122: 0.02815315879
A123: 3029 | B123: Goudhurst and Kilndown Church of England Primary School | D123: Goudhurst and Kilndown Church of England Primary School | E123: 0 | F123: 1 | H123: 800792.44 | I123: 800792.4355 | J123: 0.004486677703 | L123: 53652.86 | M123: 53652.85558 | N123: 0.004416509408 | P123: 2033.15 | Q123: 2033.152865 | R123: -0.002864788692 | T123: 44228.35 | U123: 44228.34974 | V123: 0.0002559249115 | X123: 0 | Y123: 0 | Z123: 0 | AB123: 142484.22 | AC123: 142484.2182 | AD123: 0.001831755828 | AF123: 0 | AG123: 0 | AH123: 0 | AJ123: 0 | AK123: 0 | AL123: 0 | AN123: 0 | AO123: 0 | AP123: 0 | AR123: 36704 | AS123: 36704 | AT123: 0 | AV123: 0 | AW123: 0 | AX123: 0 | AZ123: 0 | BA123: 0 | BB123: 0 | BD123: 0 | BE123: 0 | BF123: 0 | BH123: 1079895.01 | BI123: 1079895.012 | BJ123: -0.001873920672 | BL123: 0 | BM123: 0 | BN123: 0 | BP123: 1079895.01 | BQ123: 1079895.012 | BR123: -0.001873920672 | BV123: 0 | BX123: 110997.43 | BY123: 110997.4279 | BZ123: 0 | CB123: 6860.32 | CC123: 6860.32 | CD123: 0 | CF123: 1097852.15 | CH123: 1097852 | CI123: 0.01662859623 | CJ123: 1128475.14 | CL123: 1128475 | CM123: 0.0278935465
A124: 3032 | B124: Hawkhurst Church of England Primary School | D124: Hawkhurst Church of England Primary School | E124: 0 | F124: 1 | H124: 759241.88 | I124: 759241.8846 | J124: -0.004614046076 | L124: 106709.68 | M124: 106709.6787 | N124: 0.001308178224 | P124: 7522.76 | Q124: 7522.755334 | R124: 0.004666071768 | T124: 54958.58 | U124: 54958.58026 | V124: -0.0002550814897 | X124: 10356.69 | Y124: 10356.68694 | Z124: 0.003064218907 | AB124: 142484.22 | AC124: 142484.2182 | AD124: 0.001831755828 | AF124: 0 | AG124: 0 | AH124: 0 | AJ124: 0 | AK124: 0 | AL124: 0 | AN124: 0 | AO124: 0 | AP124: 0 | AR124: 43134 | AS124: 43134 | AT124: 0 | AV124: 0 | AW124: 0 | AX124: 0 | AZ124: 0 | BA124: 0 | BB124: 0 | BD124: 0 | BE124: 0 | BF124: 0 | BH124: 1124407.8 | BI124: 1124407.804 | BJ124: -0.003998902859 | BL124: 0 | BM124: 0 | BN124: 0 | BP124: 1124407.8 | BQ124: 1124407.804 | BR124: -0.003998902859 | BV124: 0 | BX124: 151520.24 | BY124: 151520.2419 | BZ124: 0 | CB124: 6504.36 | CC124: 6504.36 | CD124: 0 | CF124: 1143126.6 | CH124: 1143127 | CI124: 0.01664769307 | CJ124: 1174922.69 | CL124: 1174923 | CM124: 0.02781502066
A125: 3033 | B125: Hildenborough Church of England Primary School | D125: Hildenborough Church of England Primary School | E125: 0 | F125: 1 | H125: 732800.63 | I125: 732800.625 | J125: 0.005049129599 | L125: 37783.83 | M125: 37783.83249 | N125: -0.002493579559 | P125: 2064.73 | Q125: 2064.730826 | R125: -0.0008257581449 | T125: 41303.43 | U125: 41303.43389 | V125: -0.003889311229 | X125: 0 | Y125: 0 | Z125: 0 | AB125: 142484.22 | AC125: 142484.2182 | AD125: 0.001831755828 | AF125: 0 | AG125: 0 | AH125: 0 | AJ125: 0 | AK125: 0 | AL125: 0 | AN125: 0 | AO125: 0 | AP125: 0 | AR125: 29681 | AS125: 29681 | AT125: 0 | AV125: 0 | AW125: 0 | AX125: 0 | AZ125: 0 | BA125: 0 | BB125: 0 | BD125: 0 | BE125: 0 | BF125: 0 | BH125: 986117.84 | BI125: 986117.8403 | BJ125: -0.0003277637297 | BL125: 2648.42 | BM125: 2648.421226 | BN125: -0.001225734288 | BP125: 988766.26 | BQ125: 988766.2616 | BR125: -0.001553497976 | BV125: 0 | BX125: 99102.12 | BY125: 99102.11565 | BZ125: 0 | CB125: 6277.84 | CC125: 6277.84 | CD125: 0 | CF125: 1005041.29 | CH125: 1005041 | CI125: 0.01645993505 | CJ125: 1030290.51 | CL125: 1030291 | CM125: 0.02512256984
A126: 3034 | B126: Lamberhurst St Mary's CofE (Voluntary Controlled) Primary School | D126: Lamberhurst St Mary's CofE (Voluntary Controlled) Primary School | E126: 0 | F126: 1 | H126: 785683.14 | I126: 785683.1443 | J126: -0.004277221859 | L126: 28583.82 | M126: 28583.81857 | N126: 0.001426588729 | P126: 6118.85 | Q126: 6118.854795 | R126: -0.004795111352 | T126: 55337.39 | U126: 55337.38543 | V126: 0.004572403181 | X126: 0 | Y126: 0 | Z126: 0 | AB126: 142484.22 | AC126: 142484.2182 | AD126: 0.001831755828 | AF126: 0 | AG126: 0 | AH126: 0 | AJ126: 0 | AK126: 0 | AL126: 0 | AN126: 0 | AO126: 0 | AP126: 0 | AR126: 36916 | AS126: 36916 | AT126: 0 | AV126: 0 | AW126: 0 | AX126: 0 | AZ126: 0 | BA126: 0 | BB126: 0 | BD126: 3156.82 | BE126: 3156.818758 | BF126: 0.001241585466 | BH126: 1058280.24 | BI126: 1058280.24 | BJ126: 0 | BL126: 640.55 | BM126: 640.5493181 | BN126: 0.0006818519439 | BP126: 1058920.79 | BQ126: 1058920.789 | BR126: 0.0006818517577 | BV126: 0 | BX126: 110510.95 | BY126: 110510.952 | BZ126: 0 | CB126: 6730.88 | CC126: 6730.88 | CD126: 0 | CF126: 1076454.21 | CH126: 1076454 | CI126: 0.01655782081 | CJ126: 1102434.28 | CL126: 1102434 | CM126: 0.02413485846
A127: 3037 | B127: St John's Church of England Primary School, Sevenoaks | D127: St John's Church of England Primary School, Sevenoaks | E127: 0 | F127: 1 | H127: 744132.59 | I127: 744132.5934 | J127: -0.003377945744 | L127: 40179.72 | M127: 40179.71746 | N127: 0.002544126161 | P127: 13484.4 | Q127: 13484.39934 | R127: 0.0006633123521 | T127: 50528.08 | U127: 50528.08474 | V127: -0.004735215829 | X127: 0 | Y127: 0 | Z127: 0 | AB127: 142484.22 | AC127: 142484.2182 | AD127: 0.001831755828 | AF127: 0 | AG127: 0 | AH127: 0 | AJ127: 37452.58 | AK127: 37452.58069 | AL127: -0.0006941959655 | AN127: 0 | AO127: 0 | AP127: 0 | AR127: 24950 | AS127: 24950 | AT127: 0 | AV127: 0 | AW127: 0 | AX127: 0 | AZ127: 0 | BA127: 0 | BB127: 0 | BD127: 0 | BE127: 0 | BF127: 0 | BH127: 1053211.59 | BI127: 1053211.594 | BJ127: -0.003768163035 | BL127: 0 | BM127: 0 | BN127: 0 | BP127: 1053211.59 | BQ127: 1053211.594 | BR127: -0.003768163035 | BV127: 0 | BX127: 111110.13 | BY127: 111110.125 | BZ127: 0 | CB127: 6615.89 | CC127: 6615.891976 | CD127: 0 | CF127: 1070760.28 | CH127: 1070760 | CI127: 0.01666207088 | CJ127: 1100922.27 | CL127: 1100922 | CM127: 0.02816876061
A128: 3042 | B128: Speldhurst Church of England Voluntary Aided Primary School | D128: Speldhurst Church of England Voluntary Aided Primary School | E128: 0 | F128: 1 | H128: 804569.76 | I128: 804569.7583 | J128: 0.001677652588 | L128: 21455.64 | M128: 21455.64287 | N128: -0.002873090139 | P128: 4740.35 | Q128: 4740.354914 | R128: -0.004913692037 | T128: 45487.43 | U128: 45487.42881 | V128: 0.00119399598 | X128: 0 | Y128: 0 | Z128: 0 | AB128: 142484.22 | AC128: 142484.2182 | AD128: 0.001831755828 | AF128: 0 | AG128: 0 | AH128: 0 | AJ128: 0 | AK128: 0 | AL128: 0 | AN128: 0 | AO128: 0 | AP128: 0 | AR128: 4608 | AS128: 4608 | AT128: 0 | AV128: 0 | AW128: 0 | AX128: 0 | AZ128: 0 | BA128: 0 | BB128: 0 | BD128: 27178.86 | BE128: 27178.86192 | BF128: -0.001916622088 | BH128: 1050524.27 | BI128: 1050524.265 | BJ128: 0.005000000121 | BL128: 0 | BM128: 0 | BN128: 0 | BP128: 1050524.27 | BQ128: 1050524.265 | BR128: 0.005000000121 | BV128: 0 | BX128: 108023.09 | BY128: 108023.0882 | BZ128: 0 | CB128: 6892.68 | CC128: 6892.68 | CD128: 0 | CF128: 1068535.91 | CH128: 1068536 | CI128: 0.01714538693 | CJ128: 1080628.53 | CL128: 1080629 | CM128: 0.01131699916
A129: 3043 | B129: Sundridge and Brasted Church of England Voluntary Controlled Primary School | D129: Sundridge and Brasted Church of England Voluntary Controlled Primary School | E129: 0 | F129: 1 | H129: 256857.95 | I129: 256857.951 | J129: -0.001013707137 | L129: 61771.33 | M129: 61771.33096 | N129: -0.0009615176386 | P129: 2197.96 | Q129: 2197.964697 | R129: -0.004697294274 | T129: 47369.76 | U129: 47369.75916 | V129: 0.0008442418912 | X129: 11284.43 | Y129: 11284.43403 | Z129: -0.004028748779 | AB129: 142484.22 | AC129: 142484.2182 | AD129: 0.001831755828 | AF129: 56307.78 | AG129: 56307.77956 | AH129: 0.0004416985757 | AJ129: 21858.74 | AK129: 21858.73594 | AL129: 0.004059340998 | AN129: 0 | AO129: 0 | AP129: 0 | AR129: 8234 | AS129: 8234 | AT129: 0 | AV129: 0 | AW129: 0 | AX129: 0 | AZ129: 0 | BA129: 0 | BB129: 0 | BD129: 0 | BE129: 0 | BF129: 0 | BH129: 608366.17 | BI129: 608366.1735 | BJ129: -0.003524230444 | BL129: 0 | BM129: 0 | BN129: 0 | BP129: 608366.17 | BQ129: 608366.1735 | BR129: -0.003524230444 | BV129: 0 | BX129: 102217.06 | BY129: 102217.0581 | BZ129: 0 | CB129: 2283.66 | CC129: 2283.658144 | CD129: 0 | CF129: 616160.17 | CH129: 616160 | CI129: 0.01281135739 | CJ129: 632536.32 | CL129: 632536 | CM129: 0.02657774844
A130: 3050 | B130: St John's Church of England Primary School | D130: St John's Church of England Primary School | E130: 0 | F130: =IF(E130=D130,0,1) -> 1 | H130: 2383490.69 | I130: 2383490.692 | J130: =H130-I130 -> -0.002494841348 | L130: 119729.66 | M130: 119729.6621 | N130: =L130-M130 -> -0.002072523755 | P130: 39431.92 | Q130: 39431.91764 | R130: =P130-Q130 -> 0.002357070858 | T130: 173693.18 | U130: 173693.175 | V130: =T130-U130 -> 0.005028992484 | X130: 0 | Y130: 0 | Z130: =X130-Y130 -> 0 | AB130: 142484.22 | AC130: 142484.2182 | AD130: =AB130-AC130 -> 0.001831755828 | AF130: 0 | AG130: 0 | AH130: =AF130-AG130 -> 0 | AJ130: 0 | AK130: 0 | AL130: =AJ130-AK130 -> 0 | AN130: 0 | AO130: 0 | AP130: =AN130-AO130 -> 0 | AR130: 85176 | AS130: 85176 | AT130: =AR130-AS130 -> 0 | AV130: 0 | AW130: 0 | AX130: =AV130-AW130 -> 0 | AZ130: 0 | BA130: 0 | BB130: =AZ130-BA130 -> 0 | BD130: 239635.89 | BE130: 239635.8897 | BF130: =BD130-BE130 -> 0.0003495461424 | BH130: 3183641.56 | BI130: 3183641.555 | BJ130: =BH130-BI130 -> 0.004999999888 | BL130: 0 | BM130: 0 | BN130: =BL130-BM130 -> 0 | BP130: 3183641.56 | BQ130: 3183641.555 | BR130: =BP130-BQ130 -> 0.004999999888 | BV130: =BT130-BU130 -> 0 | BX130: 458066.82 | BY130: 458066.8206 | BZ130: =ROUND(BX130-BY130,0) -> 0 | CB130: 20419.16 | CC130: 20419.16 | CD130: 0 | CF130: 3242704.19 | CH130: =ROUND(CF130-CG130,0) -> 3242704 | CI130: 0.01855191107 | CJ130: 3275732.81 | CL130: =ROUND(CJ130-CK130,0) -> 3275733 | CM130: 0.01018551742
A131: 3052 | B131: St Mark's Church of England Primary School | D131: St Mark's Church of England Primary School | E131: 0 | F131: 1 | H131: 1310731.01 | I131: 1310731.015 | J131: -0.004731711466 | L131: 132226.91 | M131: 132226.9082 | N131: 0.001822408231 | P131: 35589.5 | Q131: 35589.49908 | R131: 0.000920932318 | T131: 104302.38 | U131: 104302.3845 | V131: -0.004532620995 | X131: 20050.7 | Y131: 20050.69738 | Z131: 0.002623414599 | AB131: 142484.22 | AC131: 142484.2182 | AD131: 0.001831755828 | AF131: 0 | AG131: 0 | AH131: 0 | AJ131: 0 | AK131: 0 | AL131: 0 | AN131: 0 | AO131: 0 | AP131: 0 | AR131: 61152 | AS131: 61152 | AT131: 0 | AV131: 0 | AW131: 0 | AX131: 0 | AZ131: 0 | BA131: 0 | BB131: 0 | BD131: 0 | BE131: 0 | BF131: 0 | BH131: 1806536.72 | BI131: 1806536.722 | BJ131: -0.002065821551 | BL131: 5639.24 | BM131: 5639.239358 | BN131: 0.000642118519 | BP131: 1812175.96 | BQ131: 1812175.961 | BR131: -0.001423703041 | BV131: 0 | BX131: 253819.44 | BY131: 253819.4401 | BZ131: 0 | CB131: 11228.92 | CC131: 11228.92 | CD131: =IF(E131="Recoupment Academy",0,ROUND(CB131-CC131,0)) -> 0 | CF131: 1844289.76 | CH131: 1844290 | CI131: 0.01772112602 | CJ131: 1890791.1 | CL131: 1890791 | CM131: 0.02521368443
A132: 3053 | B132: St Peter's Church of England Primary School | D132: St Peter's Church of England Primary School | E132: 0 | F132: 1 | H132: 793237.79 | I132: 793237.7899 | J132: 0.0001047280384 | L132: 47855.19 | M132: 47855.19294 | N132: -0.002939992919 | P132: 14254.45 | Q132: 14254.44752 | R132: 0.002477841519 | T132: 53835.66 | U132: 53835.66005 | V132: -5.190296361e-05 | X132: 0 | Y132: 0 | Z132: 0 | AB132: 142484.22 | AC132: 142484.2182 | AD132: 0.001831755828 | AF132: 0 | AG132: 0 | AH132: 0 | AJ132: 0 | AK132: 0 | AL132: 0 | AN132: 0 | AO132: 0 | AP132: 0 | AR132: 49553 | AS132: 49553 | AT132: 0 | AV132: 0 | AW132: 0 | AX132: 0 | AZ132: 0 | BA132: 0 | BB132: 0 | BD132: 0 | BE132: 0 | BF132: 0 | BH132: 1101220.31 | BI132: 1101220.309 | BJ132: 0.001422429457 | BL132: 5174.27 | BM132: 5174.267841 | BN132: 0.002159353095 | BP132: 1106394.58 | BQ132: 1106394.576 | BR132: 0.00358178257 | BV132: 0 | BX132: 119070.3 | BY132: 119070.2987 | BZ132: 0 | CB132: 6795.6 | CC132: 6795.6 | CD132: 0 | CF132: 1124624.73 | CH132: 1124625 | CI132: =(CF132-BQ132)/BQ132 -> 0.01647708148 | CJ132: 1150231.06 | CL132: 1150231 | CM132: =(CJ132-CF132)/CF132 -> 0.02276877728
A133: 3054 | B133: Crockham Hill Church of England Voluntary Controlled Primary School | D133: Crockham Hill Church of England Voluntary Controlled Primary School | E133: 0 | F133: 1 | H133: 540157.16 | I133: 540157.1617 | J133: -0.001690589939 | L133: 14284.6 | M133: 14284.60489 | N133: -0.004889722697 | P133: 1352.84 | Q133: 1352.836234 | R133: 0.003765940829 | T133: 23328.32 | U133: 23328.31986 | V133: 0.0001392775375 | X133: 0 | Y133: 0 | Z133: 0 | AB133: 142484.22 | AC133: 142484.2182 | AD133: 0.001831755828 | AF133: 5112.05 | AG133: 5112.054753 | AH133: -0.004752956603 | AJ133: 27469.99 | AK133: 27469.98559 | AL133: 0.004406460044 | AN133: 0 | AO133: 0 | AP133: 0 | AR133: 21557 | AS133: 21557 | AT133: 0 | AV133: 0 | AW133: 0 | AX133: 0 | AZ133: 20174 | BA133: 20174 | BB133: 0 | BD133: 0 | BE133: 0 | BF133: 0 | BH133: 795920.18 | BI133: 795920.1812 | BJ133: -0.001189835137 | BL133: 0 | BM133: 0 | BN133: 0 | BP133: 795920.18 | BQ133: 795920.1812 | BR133: -0.001189835137 | BV133: 0 | BX133: 60860.33 | BY133: 60860.32585 | BZ133: 0 | CB133: 4802.4 | CC133: 4802.398744 | CD133: 0 | CF133: 807879.19 | CH133: 807879 | CI133: 0.01502538708 | CJ133: 829544.39 | CL133: 829544 | CM133: 0.026817376
A134: 3055 | B134: Churchill Church of England Voluntary Controlled Primary School | D134: Churchill Church of England Voluntary Controlled Primary School | E134: 0 | F134: 1 | H134: 774351.18 | I134: 774351.1759 | J134: 0.004149853485 | L134: 121662.05 | M134: 121662.0499 | N134: 0.0001080972434 | P134: 3932.04 | Q134: 3932.040918 | R134: -0.0009177517154 | T134: 98870.53 | U134: 98870.52708 | V134: 0.002917147402 | X134: 0 | Y134: 0 | Z134: 0 | AB134: 142484.22 | AC134: 142484.2182 | AD134: 0.001831755828 | AF134: 0 | AG134: 0 | AH134: 0 | AJ134: 43141.14 | AK134: 43141.14045 | AL134: -0.0004502319352 | AN134: 0 | AO134: 0 | AP134: 0 | AR134: 33579 | AS134: 33579 | AT134: 0 | AV134: 0 | AW134: 0 | AX134: 0 | AZ134: 0 | BA134: 0 | BB134: 0 | BD134: 0 | BE134: 0 | BF134: 0 | BH134: 1218020.15 | BI134: 1218020.152 | BJ134: -0.002361129737 | BL134: 0 | BM134: 0 | BN134: 0 | BP134: 1218020.15 | BQ134: 1218020.152 | BR134: -0.002361129737 | BV134: 0 | BX134: 209049.03 | BY134: 209049.0318 | BZ134: 0 | CB134: 6884.56 | CC134: 6884.55764 | CD134: 0 | CF134: 1238692.42 | CH134: 1238692 | CI134: 0.01697202431 | CJ134: 1273665.38 | CL134: 1273665 | CM134: 0.02823377251
